Workbook

Sheet Homepage
B2: Rekentool 4.0 voor voedselbossen | H2: Invoer voor basisgebruiker | L2: Invoer voor expertgebruiker | P2: Uitkomst
B4: Dit is rekentool 4.0 voor voedselbossen. Een tool waabij de financiele haalbaarheid van een voedselbos inzichtelijk wordt gemaakt. Gebruik de knoppen op deze pagina en het home icoontje om je door de verschillende invoer pagina's te leiden. Voor meer gebruiksinformatie, zie de handleiding.
B11: Naam:
B12: Locatie:
B13: Aantal hectare:

Sheet Plantenlijst
A3: Wetenschappelijke naam | B3: Nederlandse naam | C3: Variateit | D3: Categorie | E3: Functie | F3: Eenheid | G3: Aantal
A4: Acer campestre | B4: Veldesdoorn | D4: Geen oogst | E4: klimboom | F4: plant
A5: Acer platanoides | B5: Noorse esdoorn | D5: Geen oogst | E5: ?? | F5: plant
A6: Acer pseudoplatanus | B6: Gewone esdoorn | D6: Geen oogst | E6: ?? | F6: plant
A7: Acer saccharum | B7: Suikeresdoorn | E7: boomsap | F7: plant
A8: Achillea millefolium | B8: Duizendblad | D8: Blad | E8: blad en bloem | F8: m2
A9: Actinidia arguta | B9: Kiwibes | C9: Issai 15 | D9: Zacht fruit | E9: kiwibes | F9: plant
A10: Actinidia deliciosa | B10: Zelf bestuivende kiwi | D10: Zacht fruit | E10: kiwibes | F10: plant
A11: Actinidia komikta | B11: Arctisch | D11: Zacht fruit | E11: kiwibes | F11: plant
A12: Agaricus bisporus | B12: Champignon | D12: Paddenstoel | E12: paddenstoel | F12: plant
A13: Agastache foeniculum | B13: Dropplant | D13: Blad | E13: blad | F13: m2
A14: Akebia quinata | B14: Schijnaugurk | E14: vrucht | F14: plant
A15: Alcea ficifolia | B15: Vijgenbladstokroos | D15: Blad | E15: blad en bloem | F15: m2
A16: Alchemilla xanthochlora | B16: Geelgroene vrouwenmantel | D16: Blad | E16: blad | F16: m2
A17: Allium schoenoprasum | B17: Bieslook | D17: Blad | E17: blad | F17: m2
A18: Allium Ursinum | B18: Daslook | D18: Blad | E18: blad | F18: m2
A19: Alnus cordata | B19: Harbladige els | D19: Geen oogst | E19: stikstofbinder | F19: plant
A20: Alnus glutinosa | B20: Zwarte els | D20: Geen oogst | E20: stikstofbinder | F20: plant
A21: Alnus incana | B21: Witte els, grijze els | D21: Geen oogst | E21: stikstofbinder | F21: plant
A22: Aloysia citrodora | B22: Citroenverbena | E22: vrucht | F22: plant
A23: Amelanchier alnifolia | B23: Krentenboompje | E23: vrucht | F23: plant
A24: Amelanchier laevis | B24: Krentenboompje | E24: vrucht | F24: plant
A25: Amelanchier lamarckii | B25: Krentenboompje | D25: Zacht fruit | E25: krenten bes | F25: plant
A26: Amorpha fruticosa | B26: Indigostruik | E26: ?? | F26: plant
A27: Angelica archangelica | B27: Grote engelwortel | E27: zaad en bloem | F27: m2
A28: Aralia elata | B28: Engelenboom | D28: Blad | E28: blad | F28: plant
A29: Araucaria araucana | B29: Slangenden | D29: Zaden | E29: zaden | F29: plant
A30: Arbutus unedo | B30: Aardbei boom | E30: vrucht | F30: plant
A31: Arnica spp. | B31: Valkruid | E31: ?? | F31: plant
A32: Aronia arbutifolia | B32: Appelbes | D32: Zacht fruit | E32: appelbes | F32: plant
A33: Aronia melanocarpa | B33: Appelbes | D33: Zacht fruit | E33: appelbes | F33: plant
A34: Aronia prunifolia | B34: Appelbes | D34: Zacht fruit | E34: appelbes | F34: plant
A35: Artemisia abrotanum | B35: Citroenkruid | D35: Blad | E35: blad | F35: m2
A36: Artemisia dracunculus | B36: Dragon | D36: Blad | E36: blad | F36: m2
A37: Artemisia moxa | B37: Bijvoet | E37: ?? | F37: plant
A38: Asimina triloba | B38: Pawpaw | E38: vrucht | F38: plant
A39: Berberis aristata | B39: Chitra | E39: vrucht | F39: plant
A40: Berberis vulgaris | B40: Zuurbes | D40: Zacht fruit | E40: bessen | F40: plant
A41: Bunimum bulbocastanum | B41: Aardkastanje | D41: Wortels | E41: wortels | F41: plant
A42: Capparis Spinosa | B42: Kappertjes plant | E42: kappertjes | F42: plant
A43: Caragana arborecens | B43: Chiberische erwtensctruik | D43: Zaden | E43: zaden | F43: plant
A44: Carya illinoiensis | B44: Pecanoot | D44: Noten | E44: noot | F44: plant
A45: Carya spp | B45: Hickorynoot | D45: Noten | E45: noot | F45: plant
A46: Castanea mollissima | B46: Chinese kastanje | D46: Noten | E46: kastanje | F46: plant
A47: Castanea sativa | B47: Tamme kastanje | C47: Lyon | D47: Noten | E47: kastanje | F47: plant
A48: Casteana Pumiles | B48: Chinkapin | D48: Noten | E48: noten | F48: plant
A49: Celtis australis | B49: Europese netelboom | E49: vrucht | F49: plant
A50: Cercis siliquastrum | B50: Judasboom | E50: zaad en bloem | F50: plant
A51: Chaenomeles cathayensis | B51: Chinese kwee | E51: kwee vrucht | F51: plant
A52: Chaenomeles speciosa | B52: Japanse kwee | C52: japonica 60 | E52: kwee vrucht | F52: plant
A53: Chaenomeles spp. | B53: Kwee | E53: kwee vrucht | F53: plant
A54: Chelidonium majus | B54: Stinkende gouwe | D54: Blad | E54: blad | F54: m2
A55: Cornus kousa | B55: Chinese kornoelje | C55: Big apple | E55: vrucht | F55: plant
A56: Cornus mas | B56: Gele kornoelje | C56: Jolico | E56: vrucht | F56: plant
A57: Cornus sanguinea | B57: Rode kornoelje | E57: vrucht | F57: plant
A58: Corylus avellana | B58: Hazelaar | C58: Webb's | D58: Noten | E58: hazelnoot | F58: plant
A59: Crataegus persimilis | B59: Grootvruchtmeidoorn | E59: meidoornvrucht | F59: plant
A60: Crataegus pinnatifida | B60: Grootvruchtmeidoorn | C60: Major | E60: meidoornvrucht | F60: plant
A61: Cydonia oblonga (sept) | B61: Kweepeer (sept) | C61: Ludovich | E61: kweepeer | F61: plant
A62: Cynara cardunculus | B62: Kardoen | E62: stengel | F62: plant
A63: Decaisnea fargesii | B63: Augurkenstruik | E63: vrucht | F63: plant
A64: Diospyros virginiana | B64: Persimoen, Kaki | D64: Hard fruit | E64: vrucht | F64: plant
A65: Diospyrus kaki | B65: Persimoen, Kaki | D65: Hard fruit | E65: vrucht | F65: plant
A66: Diospyrus virginia | B66: Persimoen, Kaki | D66: Hard fruit | E66: vrucht | F66: plant
A67: Echinacea spp. | B67: Zonnehoed | E67: medicinaal | F67: m2
A68: Elaeagnus umbellata | B68: Herfstolijfwilg | D68: Zacht fruit | E68: olijfwilgbes | F68: plant
A69: Elaeagnus x ebbingei | B69: Zilverbes | C69: Limelight | D69: Zacht fruit | E69: bessen | F69: plant
A70: Eleutherococcus Ginseng | B70: Siberische Ginseg | D70: Wortels | E70: wortels | F70: plant
A71: Fagus spp | B71: Beuk | D71: Noten | E71: noten | F71: plant
A72: Feijoa sellowiana | B72: Ananas Guave | E72: vrucht | F72: plant
A73: Ficus carica | B73: Vijg | C73: Brown Turkey | D73: Zacht fruit | E73: vijgen | F73: plant
A74: Foeniculum vulgare | B74: Brons venkel | D74: Blad | E74: blad | F74: m2
A75: Gaultheria salal | B75: Appeltjes blad | D75: Blad | E75: blad | F75: m2
A76: Geum spp-. | B76: Nagelkruid | D76: Wortels | E76: wortel | F76: m2
A77: Ginkgo Biloba | B77: Ginko noot | D77: Noten | E77: noten | F77: plant
A78: Gleditsia triacanthos | B78: Valse Christusdoorn | D78: Zaden | E78: zaden | F78: plant
A79: Halesia carolina | B79: Sneeuwklokjesboom | E79: ?? | F79: plant
A80: Helichrysum italicum | B80: Kerriekruid | D80: Blad | E80: blad | F80: m2
A81: Hemercallis | B81: Daglelie | D81: Bloem | E81: bloemen | F81: m2
A82: Hibiscus syriacus | B82: Hibiscus, Altheastruik | C82: Marina | D82: Bloem | E82: bloemen | F82: plant
A83: Hippophae rhamnoides | B83: Duindoorn | C83: Pollmix (M) | D83: Zacht fruit | E83: bessen | F83: plant
A84: Hosta spp. | B84: Hosta | E84: jonge scheut | F84: m2
A85: Hovenia Dulcis | B85: Japanse krentenboom | E85: vrucht | F85: plant
A86: Humulus Lupulus | B86: Hop | E86: vrucht | F86: plant
A87: Hydrangea serrata | B87: Thee hortensia | D87: Blad | E87: blad | F87: plant
A88: Hypsizygus tessellatus | B88: Beukenzwam | D88: Paddenstoel | E88: paddenstoel | F88: plant
A89: Ilex aquifolium | B89: Hulst | D89: Zacht fruit | E89: blad en bes | F89: plant
A90: Juglans ailantifolia | B90: Japanse walnoot (hartnoot) | D90: Noten | E90: hartnoot | F90: plant
A91: Juglans cinerea | B91: Witte walnoot, boternoot | C91: Beckwith | D91: Noten | E91: boternoot | F91: plant
A92: Juglans nigra | B92: Zwarte walnoot | C92: Bicentennial | D92: Noten | E92: zwarte walnoot | F92: plant
A93: Juglans regia | B93: Walnoot | C93: Broadview | D93: Noten | E93: walnoot | F93: plant
A94: Laurus nobilis | B94: Keukenlaurier | D94: Blad | E94: blad en vrucht | F94: plant
A95: Lentinula edodes | B95: Shiitake | D95: Paddenstoel | E95: paddenstoel | F95: plant
A96: Lonicera caerulea | B96: Honingbes | C96: Kamtschatica | D96: Zacht fruit | E96: honingbes | F96: plant
A97: lonicera caerulea (juli) | B97: Honingbes | C97: Blue Velvet | D97: Zacht fruit | E97: honingbes | F97: plant
A98: Lycium barbarum | B98: Gojibes | D98: Zacht fruit | E98: gojibes | F98: plant
A99: Magnolia x soulangeana | B99: Magnolia, beverboom | D99: Bloem | E99: bloemen | F99: plant
A100: Mahonia aquifolium | B100: Mahonie | C100: Smaragd | D100: Zacht fruit | E100: bessen | F100: plant
A101: Malus domestica (Bewaar) | B101: Appel | D101: Hard fruit | E101: appel | F101: plant
A102: Malus domestica (Hand) | B102: Appel | D102: Hard fruit | E102: appel | F102: plant
A103: Malus domestica cider | D103: Hard fruit | E103: appel | F103: plant
A104: Malus domestica (Midden) | B104: Appel (midden) | D104: Hard fruit | E104: appel | F104: plant
A105: Malus domestica (Vroeg) | B105: Appel (vroeg) | D105: Hard fruit | E105: appel | F105: plant
A106: Malus pumila | B106: Appel | D106: Hard fruit | E106: appel | F106: plant
A107: Mellissa off. | B107: Citroenmellise | D107: Blad | E107: blad | F107: m2
A108: Mentha spp. | B108: Munt | D108: Blad | E108: blad | F108: m2
A109: Mespilus germanica | B109: Mispel | C109: Nothingham | E109: vrucht | F109: plant
A110: Monarda didyma | B110: Gewone bergamotplant | E110: blad en bloem | F110: m2
A111: Morus alba | B111: Witte moerbei | D111: Zacht fruit | E111: vrucht | F111: plant
A112: Morus nigra | B112: Zwarte moerbei | D112: Zacht fruit | E112: vrucht | F112: plant
A113: Myosotis spp. | B113: Vergeet mij nietje | E113: ?? | F113: plant
A114: Myrica gale | B114: Wilde gagel | E114: vrucht | F114: plant
A115: Myrica pensylvanica | B115: Wasgagel | E115: vrucht | F115: plant
A116: Nepeta nervosa | B116: Kattekruid | D116: Blad | E116: blad | F116: m2
A117: Nepeta x. faassenii | B117: Grijs kattenkruid | D117: Blad | E117: blad | F117: m2
A118: Paulownia tomentosa | B118: Keizersboom | D118: Bloem | E118: bloemen | F118: plant
A119: Persicaria odorata | B119: Vietnamese koriander | D119: Blad | E119: blad | F119: m2
A120: Phyllostachus bissetii 80 | B120: Eetbare bamboe | C120: Aurea 80 | E120: scheuten | F120: plant
A121: Pinus Koraiensis | B121: Koreaanse den | D121: Zaden | E121: pijnboompitten | F121: plant
A122: Pleurotus ostreatus | B122: Oesterzwam | D122: Paddenstoel | E122: paddenstoel | F122: plant
A123: Poncirus trifoliata | B123: Wilde citroen | D123: Hard fruit | E123: vrucht | F123: plant
A124: Populus canadensis | B124: Populier | C124: Koster | D124: Geen oogst | E124: ?? | F124: plant
A125: Primula vulgaris | B125: Sleutel bloem | E125: blad en bloem | F125: m2
A126: Prunus armeniaca | B126: Abrikoos | C126: Goldcot | D126: Hard fruit | E126: abrikoos | F126: plant
A127: Prunus avium | B127: Zoete kers | D127: Zacht fruit | E127: kersen | F127: plant
A128: Prunus cerasifera | B128: Kerspruim | D128: Zacht fruit | E128: vrucht | F128: plant
A129: Prunus cerasus | B129: Zuurkers | D129: Zacht fruit | E129: vrucht | F129: plant
A130: Prunus domestica | B130: Pruim | C130: Opal | D130: Hard fruit | E130: pruim | F130: plant
A131: Prunus dulcis | B131: Amandel | C131: Robijn | D131: Noten | E131: amandelnoot | F131: plant
A132: Prunus insititia | B132: Mirabel | E132: mirabel | F132: plant
A133: Prunus persica | B133: Perzik | D133: Hard fruit | E133: vrucht | F133: plant
A134: Prunus persica nusipersica | B134: Nectarine | D134: Hard fruit | E134: vrucht | F134: plant
A135: Prunus salicina | B135: Perzik | D135: Hard fruit | E135: vrucht | F135: plant
A136: Prunus salicina x Prunus armeniaca | B136: Pruimabrikoos | C136: Pluot | D136: Hard fruit | E136: pruimabrikoos | F136: plant
A137: Prunus tomentosa | B137: Struikkers | E137: vrucht | F137: plant
A138: Pulmonaria off. | B138: Longkruid | D138: Blad | E138: blad | F138: m2
A139: Punica granatum | B139: Granaatappel | D139: Hard fruit | E139: vrucht | F139: plant
A140: Pyrus bretschneideri | B140: Chinapeer | D140: Hard fruit | E140: vrucht | F140: plant
A141: Pyrus communis | B141: Peer | C141: Conference | D141: Hard fruit | E141: peer | F141: plant
A142: Pyrus pyrifolia | B142: Nashi peer | C142: Nijsseiki 50 | D142: Hard fruit | E142: nashipeer | F142: plant
A143: Quercus spp. | B143: Eik | D143: Noten | E143: eikels | F143: plant
A144: Rhamnus frangula | B144: Vuilboom, sporkehout | D144: Geen oogst | E144: bijen | F144: plant
A145: Rheum rabarberum | B145: Rabarber | E145: stelen | F145: plant
A146: Rhus aromatica | B146: Sumac, limonadestruik | D146: Bloem | E146: bloemen | F146: plant
A147: Rhus glabra | B147: Sumac | D147: Zacht fruit | E147: bessen | F147: plant
A148: Ribes divaricatum | B148: Worchesterbes | D148: Zacht fruit | E148: worchesterbes | F148: plant
A149: Ribes 'Josta' | B149: Jostabes | C149: Jostabes | D149: Zacht fruit | E149: jostabes | F149: plant
A150: Ribes nigrum | B150: Zwarte bes | D150: Zacht fruit | E150: zwarte bes | F150: plant
A151: Ribes rubrum | B151: Aalbes | D151: Zacht fruit | E151: aalbes | F151: plant
A152: Ribes Uva-Crispa | B152: kruisbes | D152: Zacht fruit | E152: bessen | F152: plant
A153: Ribes x. nidigrolaria | B153: Jostabes | D153: Zacht fruit | E153: jostabes | F153: plant
A154: Robinia pseudoacacia | B154: Valse acacia | D154: Geen oogst | E154: stikstofbinder | F154: plant
A155: Rosa rugosa | B155: Rimpelroos | E155: vrucht | F155: plant
A156: Rosmarinum off. | B156: Rozemarijn | D156: Blad | E156: blad | F156: m2
A157: Rubus fruticosus | B157: Braam | D157: Zacht fruit | E157: vrucht | F157: plant
A158: Rubus hibrids | B158: Tayberry, braamboos | C158: Lochness | D158: Zacht fruit | E158: vrucht | F158: plant
A159: Rubus idaeus | B159: framboos | C159: Autumn bliss | D159: Zacht fruit | E159: framboos | F159: plant
A160: Rubus loganobaccus | B160: Logan bes | D160: Zacht fruit | E160: vrucht | F160: plant
A161: Rubus phoenicolasius | B161: Japanse wijnbes | D161: Zacht fruit | E161: vrucht | F161: plant
A162: Ruta graveolens | B162: Wijnruit | D162: Blad | E162: blad | F162: m2
A163: Salvia off. | B163: Salie | D163: Blad | E163: blad | F163: m2
A164: Sambucus canadiensis | B164: Canadese vlier | E164: bloem en bes | F164: plant
A165: Sambucus nigra | B165: Gewone vlier | C165: Korsor | E165: vrucht | F165: plant
A166: Santolina spp. | B166: Heiligbloem | E166: ?? | F166: plant
A167: Sassafras albidum | B167: Sassafras | D167: Blad | E167: blad | F167: plant
A168: Schisandra spp. | B168: Schisandra | D168: Blad | E168: blad | F168: plant
A169: Scutellaria galericulata | B169: Blauw glidkruid | E169: ?? | F169: plant
A170: Solidago spp. | B170: Guldenroede | D170: Blad | E170: blad | F170: m2
A171: Sorbus aucuparia | B171: Lijserterbes | D171: Zacht fruit | E171: bessen | F171: plant
A172: Sorbus domestica | B172: Peerlijserbes | D172: Zacht fruit | E172: bessen | F172: plant
A173: Sorbus torminalis | B173: Elsbes | D173: Zacht fruit | E173: bessen | F173: plant
A174: Staphylea pinnata | B174: Pimpernoot | D174: Noten | E174: noten | F174: plant
A175: Symphytum officinale | B175: Smeerwortel | D175: Blad | E175: blad | F175: m2
A176: Tanacetum balsamita | B176: Balsem longkruid | D176: Blad | E176: blad | F176: m2
A177: Tanacetum parthenium | B177: Moederkruid | E177: blad en bloem | F177: m2
A178: Teucrium chamaedrys | B178: Echte gamander | D178: Blad | E178: blad | F178: m2
A179: Thymus Vulgaris | B179: Thijm | D179: Blad | E179: blad | F179: m2
A180: Tilia cordata | B180: Linde | D180: Blad | E180: blad | F180: plant
A181: Toona sinensis | B181: Chinese mahonie | D181: Blad | E181: blad | F181: plant
A182: Ugni Molinae | B182: Chileense guave | E182: vrucht | F182: plant
A183: Ulmus laevis | B183: Fladderiep | D183: Geen oogst | E183: ?? | F183: plant
A184: Urtica Dioica | B184: Brandnetel | D184: Blad | E184: blad | F184: m2
A185: Vaccinium Corymbosum | B185: Blauwe bes | D185: Zacht fruit | E185: bessen | F185: plant
A186: Vaccinium Macrocarpon | B186: Cranberry | D186: Zacht fruit | E186: vrucht | F186: plant
A187: Valeriana off. | B187: Valeriaan | D187: Wortels | E187: wortel | F187: m2
A188: Viburnum Lentago | B188: Schapenbes | D188: Zacht fruit | E188: vrucht | F188: plant
A189: Viburnum setigerum | B189: Sneeuwbal | D189: Zacht fruit | E189: blad en bes | F189: plant
A190: Vitis vinifera | B190: Druif | D190: Zacht fruit | E190: druif | F190: plant
A191: Xanthoceras sorbifolium | B191: Chinesekastanje | D191: Noten | E191: kastanje | F191: plant
A192: Zanthoxylum spp | B192: Sechuan peper | C192: simulans | D192: Zacht fruit | E192: bessen | F192: plant
A193: Ziziphus jujube | B193: Chinese dadelboom | D193: Zacht fruit | E193: dadel | F193: plant
A194: Chephalotaxus | F194: plant
A195: ZR overig | F195: plant
A196: ZR overig | F196: plant
A197: ZR overig | F197: plant
A198: ZR overig | F198: plant

Sheet Productielijst
D3: Productie in kg per plant of m2
A4: Wetenschappelijke naam | B4: Nederlandse naam | C4: Variateit | D4: 1 | E4: 2 | F4: 3 | G4: 4 | H4: 5 | I4: 6 | J4: 7 | K4: 8 | L4: 9 | M4: 10 | N4: 11/15 jr | O4: 16/20 jr
A5: Acer campestre | B5: Veldesdoorn | D5: 0 | E5: 0 | F5: 0 | G5: 0 | H5: 0 | I5: 0 | J5: 0 | K5: 0 | L5: 0 | M5: 0 | N5: 0.2 | O5: 0.5
A6: Acer platanoides | B6: Noorse esdoorn | D6: 0 | E6: 0 | F6: 0 | G6: 0 | H6: 0 | I6: 0 | J6: 0 | K6: 0 | L6: 0 | M6: 0 | N6: 0.17 | O6: 0.46
A7: Acer pseudoplatanus | B7: Gewone esdoorn | D7: 0 | E7: 0 | F7: 0 | G7: 0 | H7: 0 | I7: 0 | J7: 0 | K7: 0 | L7: 0 | M7: 0 | N7: 0.17 | O7: 0.46
A8: Acer saccharum | B8: Suikeresdoorn | D8: 0 | E8: 0 | F8: 0 | G8: 0 | H8: 0 | I8: 0 | J8: 0 | K8: 0 | L8: 0 | M8: 0 | N8: 0.17 | O8: 0.46
A9: Achillea millefolium | B9: Duizendblad | D9: 0 | E9: 0 | F9: 0.2 | G9: 0.3 | H9: 0.3 | I9: 0.3 | J9: 0.3 | K9: 0.3 | L9: 0.3 | M9: 0.3 | N9: 0.3 | O9: 0.3
A10: Actinidia arguta | B10: Kiwibes | C10: Issai 15 | D10: 0 | E10: 0 | F10: 0 | G10: 2 | H10: 4 | I10: 6 | J10: 15 | K10: 20 | L10: 25 | M10: 30 | N10: 30 | O10: 30
A11: Actinidia deliciosa | B11: Zelf bestuivende kiwi | D11: 0 | E11: 1 | F11: 2.094240838 | G11: 4.125838061 | H11: 7.322319345 | I11: 11.24152056 | J11: 14.80819569 | K11: 17.27456514 | L11: 18.67418521 | M11: 19.38080765 | N11: 19.89839338 | O11: 19.99810654
A12: Actinidia komikta | B12: Arctisch | D12: 0 | E12: 1 | F12: 2.094240838 | G12: 4.125838061 | H12: 7.322319345 | I12: 11.24152056 | J12: 14.80819569 | K12: 17.27456514 | L12: 18.67418521 | M12: 19.38080765 | N12: 19.89839338 | O12: 19.99810654
A13: Agaricus bisporus | B13: Champignon | D13: 0.1 | E13: 0.1 | F13: 0.1 | G13: 0.1 | H13: 0.1 | I13: 0.1 | J13: 0.1 | K13: 0.1 | L13: 0.1 | M13: 0.1 | N13: 0.1 | O13: 0.1
A14: Agastache foeniculum | B14: Dropplant | D14: 0.05 | E14: 0.05 | F14: 0.05 | G14: 0.05 | H14: 0.05 | I14: 0.05 | J14: 0.05 | K14: 0.05 | L14: 0.05 | M14: 0.05 | N14: 0.05 | O14: 0.05
A15: Akebia quinata | B15: Schijnaugurk | D15: 0 | E15: 1 | F15: 2.985074627 | G15: 7.380073801 | H15: 13.21877065 | I15: 17.33252448 | J15: 19.11735186 | K15: 19.72676458 | L15: 19.9172379 | M15: 19.97509924 | N15: 19.9978688 | O15: 19.99999482
A16: Alcea ficifolia | B16: Vijgenbladstokroos | D16: 0.05 | E16: 0.05 | F16: 0.05 | G16: 0.05 | H16: 0.05 | I16: 0.05 | J16: 0.05 | K16: 0.05 | L16: 0.05 | M16: 0.05 | N16: 0.05 | O16: 0.05
A17: Alchemilla xanthochlora | B17: Geelgroene vrouwenmantel | D17: 0.05 | E17: 0.05 | F17: 0.05 | G17: 0.05 | H17: 0.05 | I17: 0.05 | J17: 0.05 | K17: 0.05 | L17: 0.05 | M17: 0.05 | N17: 0.05 | O17: 0.05
A18: Allium schoenoprasum | B18: Bieslook | D18: 0.02 | E18: 0.02 | F18: 0.02 | G18: 0.02 | H18: 0.02 | I18: 0.02 | J18: 0.02 | K18: 0.02 | L18: 0.02 | M18: 0.02 | N18: 0.02 | O18: 0.02
A19: Allium Ursinum | B19: Daslook | D19: 0 | E19: 0 | F19: 0 | G19: 0 | H19: 0 | I19: 0 | J19: 0 | K19: 0 | L19: 0.02 | M19: 0.02 | N19: 0.02 | O19: 0.02
A20: Alnus cordata | B20: Harbladige els | D20: 0 | E20: 0 | F20: 0 | G20: 0 | H20: 0 | I20: 0 | J20: 0 | K20: 0 | L20: 0 | M20: 0.5 | N20: 7.82 | O20: 19.5
A21: Alnus glutinosa | B21: Zwarte els | D21: 0 | E21: 0 | F21: 0 | G21: 0 | H21: 0 | I21: 0 | J21: 0 | K21: 0 | L21: 0 | M21: 0 | N21: 0 | O21: 0
A22: Alnus incana | B22: Witte els, grijze els | D22: 0 | E22: 0 | F22: 0 | G22: 0 | H22: 0 | I22: 0 | J22: 0 | K22: 0 | L22: 0 | M22: 0 | N22: 0 | O22: 0
A23: Aloysia citrodora | B23: Citroenverbena | D23: 0.05 | E23: 0.05 | F23: 0.05 | G23: 0.05 | H23: 0.05 | I23: 0.05 | J23: 0.05 | K23: 0.05 | L23: 0.05 | M23: 0.05 | N23: 0.05 | O23: 0.05
A24: Amelanchier alnifolia | B24: Krentenboompje | D24: 0 | E24: 0 | F24: 0 | G24: 2 | H24: 12 | I24: 17 | J24: 22 | K24: 35 | L24: 45 | M24: 45 | N24: 45 | O24: 45
A25: Amelanchier laevis | B25: Krentenboompje | D25: 0 | E25: 0.5 | F25: 0.9900990099 | G25: 1.771479185 | H25: 2.747064075 | I25: 3.652150889 | J25: 4.287887709 | K25: 4.652314441 | L25: 4.837319725 | M25: 4.925459995 | N25: 4.987904226 | O25: 4.999775752
A26: Amelanchier lamarckii | B26: Krentenboompje | D26: 0 | E26: 0.5 | F26: 0.9900990099 | G26: 1.771479185 | H26: 2.747064075 | I26: 3.652150889 | J26: 4.287887709 | K26: 4.652314441 | L26: 4.837319725 | M26: 4.925459995 | N26: 4.987904226 | O26: 4.999775752
A27: Amorpha fruticosa | B27: Indigostruik | D27: 0 | E27: 0 | F27: 0 | G27: 0 | H27: 0 | I27: 0 | J27: 0 | K27: 0 | L27: 0 | M27: 0 | N27: 0 | O27: 0
A28: Angelica archangelica | B28: Grote engelwortel | D28: 0.05 | E28: 0.05 | F28: 0.05 | G28: 0.05 | H28: 0.05 | I28: 0.05 | J28: 0.05 | K28: 0.05 | L28: 0.05 | M28: 0.05 | N28: 0.05 | O28: 0.05
A29: Aralia elata | B29: Engelenboom | D29: 0 | E29: 0 | F29: 0 | G29: 0 | H29: 0 | I29: 0 | J29: 0 | K29: 0 | L29: 0 | M29: 0 | N29: 0 | O29: 0
A30: Araucaria araucana | B30: Slangenden | D30: 0 | E30: 0 | F30: 0 | G30: 0 | H30: 0 | I30: 0 | J30: 0 | K30: 0 | L30: 0 | M30: 0 | N30: 0 | O30: 0
A31: Arbutus unedo | B31: Aardbei boom | D31: 0 | E31: 1 | F31: 2.884615385 | G31: 6.637168142 | H31: 10.88534107 | I31: 13.47224717 | J31: 14.50648924 | K31: 14.84845665 | L31: 14.95421319 | M31: 14.98623454 | N31: 14.99882214 | O31: 14.99999714
A32: Arnica spp. | B32: Valkruid | D32: 0.05 | E32: 0.05 | F32: 0.05 | G32: 0.05 | H32: 0.05 | I32: 0.05 | J32: 0.05 | K32: 0.05 | L32: 0.05 | M32: 0.05 | N32: 0.05 | O32: 0.05
A33: Aronia arbutifolia | B33: Appelbes | D33: 0 | E33: 1 | F33: 3.902439024 | G33: 6.911447084 | H33: 7.815362071 | I33: 7.971750111 | J33: 7.995749759 | K33: 7.999362176 | L33: 7.99990432 | M33: 7.999985648 | N33: 7.999999493 | O33: 8
A34: Aronia melanocarpa | B34: Appelbes | D34: 0 | E34: 1 | F34: 3.902439024 | G34: 6.911447084 | H34: 7.815362071 | I34: 7.971750111 | J34: 7.995749759 | K34: 7.999362176 | L34: 7.99990432 | M34: 7.999985648 | N34: 7.999999493 | O34: 8
A35: Aronia prunifolia | B35: Appelbes | D35: 0 | E35: 1 | F35: 3.902439024 | G35: 6.911447084 | H35: 7.815362071 | I35: 7.971750111 | J35: 7.995749759 | K35: 7.999362176 | L35: 7.99990432 | M35: 7.999985648 | N35: 7.999999493 | O35: 8
A36: Artemisia abrotanum | B36: Citroenkruid | D36: 0.05 | E36: 0.05 | F36: 0.05 | G36: 0.05 | H36: 0.05 | I36: 0.05 | J36: 0.05 | K36: 0.05 | L36: 0.05 | M36: 0.05 | N36: 0.05 | O36: 0.05
A37: Artemisia dracunculus | B37: Dragon | D37: 0.05 | E37: 0.05 | F37: 0.05 | G37: 0.05 | H37: 0.05 | I37: 0.05 | J37: 0.05 | K37: 0.05 | L37: 0.05 | M37: 0.05 | N37: 0.05 | O37: 0.05
A38: Artemisia moxa | B38: Bijvoet | D38: 0.05 | E38: 0.05 | F38: 0.05 | G38: 0.05 | H38: 0.05 | I38: 0.05 | J38: 0.05 | K38: 0.05 | L38: 0.05 | M38: 0.05 | N38: 0.05 | O38: 0.05
A39: Asimina triloba | B39: Pawpaw | D39: 0 | E39: 0 | F39: 0 | G39: 0 | H39: 0 | I39: 1 | J39: 2 | K39: 3 | L39: 4 | M39: 5 | N39: 6 | O39: 6
A40: Berberis aristata | B40: Chitra | D40: 0 | E40: 0 | F40: 0 | G40: 0 | H40: 0 | I40: 0 | J40: 0 | K40: 0 | L40: 0 | M40: 0 | N40: 0 | O40: 0
A41: Berberis vulgaris | B41: Zuurbes | D41: 0.25 | E41: 0.25 | F41: 0.25 | G41: 0.25 | H41: 0.25 | I41: 0 | J41: 0 | K41: 0 | L41: 0 | M41: 0 | N41: 0 | O41: 0
A42: Bunimum bulbocastanum | B42: Aardkastanje | D42: 0.02 | E42: 0.02 | F42: 0.02 | G42: 0.02 | H42: 0.02 | I42: 0.02 | J42: 0.02 | K42: 0.02 | L42: 0.02 | M42: 0.02 | N42: 0.02 | O42: 0.02
A43: Capparis Spinosa | B43: Kappertjes plant | D43: 0 | E43: 0 | F43: 0.5 | G43: 1 | H43: 2 | I43: 3 | J43: 3 | K43: 3 | L43: 3 | M43: 3 | N43: 3 | O43: 3
A44: Caragana arborecens | B44: Chiberische erwtensctruik | D44: 0 | E44: 0 | F44: 0.1 | G44: 0.2 | H44: 0.3 | I44: 0.4 | J44: 0.5 | K44: 0.5 | L44: 0.5 | M44: 0.5 | N44: 0.5 | O44: 0.5
A45: Carya illinoiensis | B45: Pecanoot | D45: 0 | E45: 0 | F45: 0 | G45: 1 | H45: 2 | I45: 4 | J45: 6 | K45: 8 | L45: 10 | M45: 9 | N45: 11.5 | O45: 14
A46: Carya spp | B46: Hickorynoot | D46: 0 | E46: 0 | F46: 0 | G46: 0 | H46: 0 | I46: 0 | J46: 0 | K46: 0 | L46: 0 | M46: 0 | N46: 0 | O46: 19
A47: Castanea mollissima | B47: Chinese kastanje | D47: 0 | E47: 0 | F47: 0 | G47: 0 | H47: 0 | I47: 5 | J47: 6 | K47: 8 | L47: 9 | M47: 11 | N47: 20.6 | O47: 40
A48: Castanea sativa | B48: Tamme kastanje | C48: Lyon | D48: 0 | E48: 0 | F48: 0 | G48: 0 | H48: 2.5 | I48: 4 | J48: 5 | K48: 6 | L48: 7 | M48: 8 | N48: 16 | O48: 25
A49: Casteana Pumiles | B49: Chinkapin | D49: 0 | E49: 0 | F49: 0 | G49: 2 | H49: 2.5 | I49: 3 | J49: 4 | K49: 4.5 | L49: 5 | M49: 5.5 | N49: 6 | O49: 6
A50: Celtis australis | B50: Europese netelboom | D50: 0 | E50: 0 | F50: 0 | G50: 0 | H50: 0 | I50: 0 | J50: 0 | K50: 0 | L50: 0 | M50: 0 | N50: 0 | O50: 0
A51: Cercis siliquastrum | B51: Judasboom | D51: 0 | E51: 0 | F51: 0 | G51: 0 | H51: 0 | I51: 0 | J51: 0 | K51: 0 | L51: 0 | M51: 0 | N51: 0 | O51: 0
A52: Chaenomeles cathayensis | B52: Chinese kwee | D52: 0 | E52: 0 | F52: 0 | G52: 0 | H52: 0 | I52: 0 | J52: 0 | K52: 0 | L52: 0 | M52: 0 | N52: 0 | O52: 0
A53: Chaenomeles speciosa | B53: Japanse kwee | C53: japonica 60 | D53: 0 | E53: 0 | F53: 0 | G53: 0 | H53: 0 | I53: 0 | J53: 0 | K53: 0 | L53: 0 | M53: 0 | N53: 0 | O53: 0
A54: Chaenomeles spp. | B54: Kwee | D54: 0 | E54: 0.5 | F54: 1.951219512 | G54: 3.455723542 | H54: 3.907681036 | I54: 3.985875055 | J54: 3.99787488 | K54: 3.999681088 | L54: 3.99995216 | M54: 3.999992824 | N54: 3.999999747 | O54: 4
A55: Chelidonium majus | B55: Stinkende gouwe | D55: 0.05 | E55: 0.05 | F55: 0.05 | G55: 0.05 | H55: 0.05 | I55: 0.05 | J55: 0.05 | K55: 0.05 | L55: 0.05 | M55: 0.05 | N55: 0.05 | O55: 0.05
A56: Cornus kousa | B56: Chinese kornoelje | C56: Big apple | D56: 0 | E56: 0 | F56: 0 | G56: 0 | H56: 0 | I56: 0 | J56: 0 | K56: 0 | L56: 0 | M56: 0 | N56: 0 | O56: 0
A57: Cornus mas | B57: Gele kornoelje | C57: Jolico | D57: 0 | E57: 0 | F57: 0 | G57: 0 | H57: 0 | I57: 0 | J57: 0 | K57: 0 | L57: 1 | M57: 3 | N57: 8.2 | O57: 13
A58: Cornus sanguinea | B58: Rode kornoelje | D58: 0 | E58: 0.5 | F58: 0.5 | G58: 0.5 | H58: 0.5 | I58: 0.5 | J58: 0.5 | K58: 0.5 | L58: 0.5 | M58: 0.5 | N58: 0.5 | O58: 0.5
A59: Corylus avellana | B59: Hazelaar | C59: Webb's | D59: 0 | E59: 0 | F59: 0 | G59: 0 | H59: 0.2 | I59: 1 | J59: 2 | K59: 3 | L59: 4 | M59: 4 | N59: 4 | O59: 4
A60: Crataegus persimilis | B60: Grootvruchtmeidoorn | D60: 0 | E60: 0 | F60: 0 | G60: 0 | H60: 0 | I60: 0 | J60: 0 | K60: 0 | L60: 0 | M60: 0 | N60: 0 | O60: 0
A61: Crataegus pinnatifida | B61: Grootvruchtmeidoorn | C61: Major | D61: 0 | E61: 0 | F61: 0 | G61: 0 | H61: 0 | I61: 0 | J61: 0 | K61: 0 | L61: 0 | M61: 0 | N61: 0 | O61: 0
A62: Cydonia oblonga (sept) | B62: Kweepeer (sept) | C62: Ludovich | D62: 0 | E62: 0 | F62: 0 | G62: 3 | H62: 5 | I62: 12 | J62: 18 | K62: 18 | L62: 18 | M62: 18 | N62: 18 | O62: 18
A63: Cynara cardunculus | B63: Kardoen | D63: 0.1 | E63: 0.1 | F63: 0.1 | G63: 0.1 | H63: 0.1 | I63: 0.1 | J63: 0.1 | K63: 0.1 | L63: 0.1 | M63: 0.1 | N63: 0.1 | O63: 0.1
A64: Decaisnea fargesii | B64: Augurkenstruik | D64: 0 | E64: 1 | F64: 1 | G64: 1 | H64: 1 | I64: 1 | J64: 1 | K64: 1 | L64: 1 | M64: 1 | N64: 1 | O64: 1
A65: Diospyros virginiana | B65: Persimoen, Kaki | D65: 0 | E65: 0 | F65: 0 | G65: 0 | H65: 0 | I65: 0 | J65: 0 | K65: 0 | L65: 0 | M65: 0 | N65: 0 | O65: 0
A66: Diospyrus kaki | B66: Persimoen, Kaki | D66: 0 | E66: 0 | F66: 2 | G66: 6.417112299 | H66: 19.01743265 | I66: 46.27844196 | J66: 81.19629204 | K66: 104.9529024 | L66: 115.0515191 | M66: 118.4713289 | N66: 119.8679966 | O66: 119.9996783
A67: Diospyrus virginia | B67: Persimoen, Kaki | D67: 0 | E67: 0 | F67: 0 | G67: 9 | H67: 12 | I67: 15 | J67: 18 | K67: 21 | L67: 25 | M67: 30 | N67: 30 | O67: 30
A68: Echinacea spp. | B68: Zonnehoed | D68: 0.05 | E68: 0.05 | F68: 0.05 | G68: 0.05 | H68: 0.05 | I68: 0.05 | J68: 0.05 | K68: 0.05 | L68: 0.05 | M68: 0.05 | N68: 0.05 | O68: 0.05
A69: Elaeagnus umbellata | B69: Herfstolijfwilg | D69: 0 | E69: 0 | F69: 0 | G69: 2 | H69: 4 | I69: 6 | J69: 8 | K69: 10 | L69: 10 | M69: 10 | N69: 10 | O69: 10
A70: Elaeagnus x ebbingei | B70: Zilverbes | C70: Limelight | D70: 0 | E70: 0.5 | F70: 1.2 | G70: 2.068965517 | H70: 2.643171806 | I70: 2.883229217 | J70: 2.963987551 | K70: 2.989104713 | L70: 2.996723083 | M70: 2.999016173 | N70: 2.999915856 | O70: 2.999999796
A71: Eleutherococcus Ginseng | B71: Siberische Ginseg | D71: 0 | E71: 0 | F71: 0 | G71: 0 | H71: 0.12 | I71: 0.15 | J71: 0.15 | K71: 0.15 | L71: 0.15 | M71: 0.15 | N71: 0.15 | O71: 0.15
A72: Fagus spp | B72: Beuk | D72: 0 | E72: 0 | F72: 0 | G72: 0 | H72: 0 | I72: 0 | J72: 0 | K72: 0 | L72: 0 | M72: 0 | N72: 0 | O72: 0
A73: Feijoa sellowiana | B73: Ananas Guave | D73: 0 | E73: 0 | F73: 3 | G73: 6 | H73: 9 | I73: 10 | J73: 11 | K73: 11 | L73: 12 | M73: 12 | N73: 13.8 | O73: 18.2
A74: Ficus carica | B74: Vijg | C74: Brown Turkey | D74: 0 | E74: 0 | F74: 0 | G74: 3 | H74: 5 | I74: 8 | J74: 10 | K74: 12 | L74: 15 | M74: 20 | N74: 20 | O74: 20
A75: Foeniculum vulgare | B75: Brons venkel | D75: 0.02 | E75: 0.02 | F75: 0.02 | G75: 0.02 | H75: 0.02 | I75: 0.02 | J75: 0.02 | K75: 0.02 | L75: 0.02 | M75: 0.02 | N75: 0.02 | O75: 0.02
A76: Gaultheria salal | B76: Appeltjes blad | D76: 0 | E76: 0 | F76: 0 | G76: 0 | H76: 0 | I76: 0 | J76: 0 | K76: 0 | L76: 0 | M76: 0 | N76: 0 | O76: 0
A77: Geum spp-. | B77: Nagelkruid | D77: 0.05 | E77: 0.05 | F77: 0.05 | G77: 0.05 | H77: 0.05 | I77: 0.05 | J77: 0.05 | K77: 0.05 | L77: 0.05 | M77: 0.05 | N77: 0.05 | O77: 0.05
A78: Ginkgo Biloba | B78: Ginko noot | D78: 0 | E78: 0 | F78: 0 | G78: 0 | H78: 0 | I78: 0 | J78: 0 | K78: 0 | L78: 0 | M78: 0 | N78: 0 | O78: 0
A79: Gleditsia triacanthos | B79: Valse Christusdoorn | D79: 0 | E79: 0 | F79: 2 | G79: 4 | H79: 5 | I79: 10 | J79: 15 | K79: 20 | L79: 25 | M79: 33 | N79: 33 | O79: 33
A80: Halesia carolina | B80: Sneeuwklokjesboom | D80: 0 | E80: 0 | F80: 0 | G80: 0 | H80: 0 | I80: 0 | J80: 0 | K80: 0 | L80: 0 | M80: 0 | N80: 0 | O80: 0
A81: Helichrysum italicum | B81: Kerriekruid | D81: 0.05 | E81: 0.05 | F81: 0.05 | G81: 0.05 | H81: 0.05 | I81: 0.05 | J81: 0.05 | K81: 0.05 | L81: 0.05 | M81: 0.05 | N81: 0.05 | O81: 0.05
A82: Hemercallis | B82: Daglelie | D82: 0 | E82: 0 | F82: 0 | G82: 0 | H82: 0 | I82: 0 | J82: 0 | K82: 0.2 | L82: 0.2 | M82: 0.2 | N82: 0.3 | O82: 0.3
A83: Hibiscus syriacus | B83: Hibiscus, Altheastruik | C83: Marina | D83: 0 | E83: 0 | F83: 0 | G83: 0 | H83: 0 | I83: 0 | J83: 0 | K83: 0 | L83: 0 | M83: 0 | N83: 0 | O83: 0
A84: Hippophae rhamnoides | B84: Duindoorn | C84: Pollmix (M) | D84: 0 | E84: 0 | F84: 0 | G84: 0 | H84: 6 | I84: 10 | J84: 10 | K84: 10 | L84: 10 | M84: 10 | N84: 10 | O84: 10
A85: Hosta spp. | B85: Hosta | D85: 0 | E85: 0 | F85: 0.5 | G85: 0.75 | H85: 1 | I85: 1.25 | J85: 1.5 | K85: 2 | L85: 2.25 | M85: 2.5 | N85: 2.5 | O85: 2.5
A86: Hovenia Dulcis | B86: Japanse krentenboom | D86: 0 | E86: 0 | F86: 0 | G86: 2 | H86: 1 | I86: 6 | J86: 11 | K86: 17 | L86: 22 | M86: 22 | N86: 22 | O86: 22
A87: Humulus Lupulus | B87: Hop | D87: 0 | E87: 0 | F87: 0.1 | G87: 0.2 | H87: 0.25 | I87: 0.25 | J87: 0.25 | K87: 0.25 | L87: 0.25 | M87: 0.25 | N87: 0.25 | O87: 0.25
A88: Hydrangea serrata | B88: Thee hortensia | D88: 0 | E88: 0 | F88: 0 | G88: 0 | H88: 0 | I88: 0 | J88: 0 | K88: 0 | L88: 0 | M88: 0 | N88: 0 | O88: 0
A89: Hypsizygus tessellatus | B89: Beukenzwam | D89: 0.1 | E89: 0.1 | F89: 0.1 | G89: 0.1 | H89: 0.1 | I89: 0.1 | J89: 0.1 | K89: 0.1 | L89: 0.1 | M89: 0.1 | N89: 0.1 | O89: 0.1
A90: Ilex aquifolium | B90: Hulst | D90: 0 | E90: 0 | F90: 0 | G90: 0 | H90: 0 | I90: 0 | J90: 0 | K90: 0 | L90: 0 | M90: 0 | N90: 0 | O90: 0
A91: Juglans ailantifolia | B91: Japanse walnoot (hartnoot) | D91: 0 | E91: 0 | F91: 0 | G91: 0 | H91: 2.3 | I91: 5 | J91: 9 | K91: 12 | L91: 18 | M91: 23 | N91: 24.2 | O91: 30
A92: Juglans cinerea | B92: Witte walnoot, boternoot | C92: Beckwith | D92: 0 | E92: 0 | F92: 0 | G92: 0 | H92: 0 | I92: 1 | J92: 2.884615385 | K92: 4.769230769 | L92: 6.653846154 | M92: 8.538461538 | N92: 14.2 | O92: 28
A93: Juglans nigra | B93: Zwarte walnoot | C93: Bicentennial | D93: 0 | E93: 0 | F93: 0 | G93: 0 | H93: 0 | I93: 1 | J93: 1.5 | K93: 2 | L93: 2.5 | M93: 3 | N93: 6 | O93: 14
A94: Juglans regia | B94: Walnoot | C94: Broadview | D94: 0 | E94: 0 | F94: 0 | G94: 0 | H94: 0 | I94: 1 | J94: 2.884615385 | K94: 4.769230769 | L94: 6.653846154 | M94: 8.538461538 | N94: 14.2 | O94: 28
A95: Laurus nobilis | B95: Keukenlaurier | D95: 0.05 | E95: 0.05 | F95: 0.05 | G95: 0.05 | H95: 0.05 | I95: 0.05 | J95: 0.05 | K95: 0.05 | L95: 0.05 | M95: 0.05 | N95: 0.05 | O95: 0.05
A96: Lentinula edodes | B96: Shiitake | D96: 0.1 | E96: 0.1 | F96: 0.1 | G96: 0.1 | H96: 0.1 | I96: 0.1 | J96: 0.1 | K96: 0.1 | L96: 0.1 | M96: 0.1 | N96: 0.1 | O96: 0.1
A97: Lonicera caerulea | B97: Honingbes | C97: Kamtschatica | D97: 0 | E97: 0 | F97: 0.1 | G97: 0.2 | H97: 0.4 | I97: 0.6 | J97: 0.8 | K97: 1 | L97: 1.2 | M97: 1.4 | N97: 1.5 | O97: 1.5
A98: lonicera caerulea (juli) | B98: Honingbes | C98: Blue Velvet | D98: 0 | E98: 0 | F98: 0.1 | G98: 0.2 | H98: 0.4 | I98: 0.6 | J98: 0.8 | K98: 1 | L98: 1.2 | M98: 1.4 | N98: 1.5 | O98: 1.5
A99: Lycium barbarum | B99: Gojibes | D99: 0 | E99: 0 | F99: 2 | G99: 3 | H99: 4 | I99: 5 | J99: 6 | K99: 7 | L99: 8 | M99: 8 | N99: 8 | O99: 8
A100: Magnolia x soulangeana | B100: Magnolia, beverboom | D100: 0 | E100: 0 | F100: 0 | G100: 0 | H100: 0 | I100: 0 | J100: 0 | K100: 0 | L100: 0 | M100: 0 | N100: 0 | O100: 0
A101: Mahonia aquifolium | B101: Mahonie | C101: Smaragd | D101: 0 | E101: 0 | F101: 0 | G101: 0 | H101: 0 | I101: 0 | J101: 0 | K101: 0 | L101: 0 | M101: 0 | N101: 0 | O101: 0
A102: Malus domestica (Bewaar) | B102: Appel | D102: 0 | E102: 0 | F102: 0 | G102: 0.5 | H102: 4.916666667 | I102: 9.333333333 | J102: 13.75 | K102: 18.16666667 | L102: 22.58333333 | M102: 27 | N102: 27 | O102: 27
A103: Malus domestica (Hand) | B103: Appel | D103: 0 | E103: 0 | F103: 0 | G103: 0.5 | H103: 4.9 | I103: 5.9 | J103: 13.8 | K103: 18.2 | L103: 22.6 | M103: 27 | N103: 27 | O103: 27
A104: Malus domestica (Laat) | B104: Appel (laat) | D104: 0 | E104: 0 | F104: 0 | G104: 0.5 | H104: 4.916666667 | I104: 9.333333333 | J104: 13.75 | K104: 18.16666667 | L104: 22.58333333 | M104: 27 | N104: 27 | O104: 27
A105: Malus domestica (Midden) | B105: Appel (midden) | D105: 0 | E105: 0 | F105: 0 | G105: 0.5 | H105: 4.916666667 | I105: 9.333333333 | J105: 13.75 | K105: 18.16666667 | L105: 22.58333333 | M105: 27 | N105: 27 | O105: 27
A106: Malus domestica (Vroeg) | B106: Appel (vroeg) | D106: 0 | E106: 0 | F106: 0 | G106: 0.5 | H106: 4.916666667 | I106: 9.333333333 | J106: 13.75 | K106: 18.16666667 | L106: 22.58333333 | M106: 27 | N106: 27 | O106: 27
A107: Malus pumila | B107: Appel | D107: 0 | E107: 3 | F107: 9.278350515 | G107: 24.93074792 | H107: 50.47672462 | I107: 72.88039517 | J107: 84.0752193 | K107: 88.13670198 | L107: 89.43279041 | M107: 89.8290831 | N107: 89.98536421 | O107: 89.99996442
A108: Mellissa off. | B108: Citroenmellise | D108: 0.05 | E108: 0.05 | F108: 0.05 | G108: 0.05 | H108: 0.05 | I108: 0.05 | J108: 0.05 | K108: 0.05 | L108: 0.05 | M108: 0.05 | N108: 0.05 | O108: 0.05
A109: Mentha spp. | B109: Munt | D109: 0 | E109: 0 | F109: 0.15 | G109: 0.25 | H109: 0.25 | I109: 0.25 | J109: 0.25 | K109: 0.25 | L109: 0.25 | M109: 0.25 | N109: 0.25 | O109: 0.25
A110: Mespilus germanica | B110: Mispel | C110: Nothingham | D110: 0 | E110: 0 | F110: 3 | G110: 3.5 | H110: 4 | I110: 5 | J110: 6 | K110: 7 | L110: 8 | M110: 9 | N110: 9 | O110: 9
A111: Monarda didyma | B111: Gewone bergamotplant | D111: 0.05 | E111: 0.05 | F111: 0.05 | G111: 0.05 | H111: 0.05 | I111: 0.05 | J111: 0.05 | K111: 0.05 | L111: 0.05 | M111: 0.05 | N111: 0.05 | O111: 0.05
A112: Morus alba | B112: Witte moerbei | D112: 0 | E112: 0 | F112: 3 | G112: 3.986710963 | H112: 5.292171996 | I112: 7.014979905 | J112: 9.280966767 | K112: 12.24831546 | L112: 16.11181769 | M112: 21.10460847 | N112: 47.82601974 | O112: 129.9537038
A113: Morus nigra | B113: Zwarte moerbei | D113: 0 | E113: 0 | F113: 3 | G113: 3.986710963 | H113: 5.292171996 | I113: 7.014979905 | J113: 9.280966767 | K113: 12.24831546 | L113: 16.11181769 | M113: 21.10460847 | N113: 47.82601974 | O113: 129.9537038
A114: Myosotis spp. | B114: Vergeet mij nietje | D114: 0.05 | E114: 0.05 | F114: 0.05 | G114: 0.05 | H114: 0.05 | I114: 0.05 | J114: 0.05 | K114: 0.05 | L114: 0.05 | M114: 0.05 | N114: 0.05 | O114: 0.05
A115: Myrica gale | B115: Wilde gagel | D115: 0 | E115: 0 | F115: 0 | G115: 0 | H115: 0 | I115: 0 | J115: 0 | K115: 0 | L115: 0 | M115: 0 | N115: 0 | O115: 0
A116: Myrica pensylvanica | B116: Wasgagel | D116: 0 | E116: 0 | F116: 0 | G116: 0 | H116: 0 | I116: 0 | J116: 0 | K116: 0 | L116: 0 | M116: 0 | N116: 0 | O116: 0
A117: Nepeta nervosa | B117: Kattekruid | D117: 0.05 | E117: 0.05 | F117: 0.05 | G117: 0.05 | H117: 0.05 | I117: 0.05 | J117: 0.05 | K117: 0.05 | L117: 0.05 | M117: 0.05 | N117: 0.05 | O117: 0.05
A118: Nepeta x. faassenii | B118: Grijs kattenkruid | D118: 0.05 | E118: 0.05 | F118: 0.05 | G118: 0.05 | H118: 0.05 | I118: 0.05 | J118: 0.05 | K118: 0.05 | L118: 0.05 | M118: 0.05 | N118: 0.05 | O118: 0.05
A119: Paulownia tomentosa | B119: Keizersboom | D119: 0 | E119: 0 | F119: 0 | G119: 0 | H119: 0 | I119: 0 | J119: 0 | K119: 0 | L119: 0 | M119: 0 | N119: 0 | O119: 0
A120: Persicaria odorata | B120: Vietnamese koriander | D120: 0.05 | E120: 0.05 | F120: 0.05 | G120: 0.05 | H120: 0.05 | I120: 0.05 | J120: 0.05 | K120: 0.05 | L120: 0.05 | M120: 0.05 | N120: 0.05 | O120: 0.05
A121: Phyllostachus bissetii 80 | B121: Eetbare bamboe | C121: Aurea 80 | D121: 0 | E121: 0 | F121: 0 | G121: 0 | H121: 0 | I121: 0 | J121: 0 | K121: 0 | L121: 0 | M121: 0 | N121: 0 | O121: 0
A122: Pinus Koraiensis | B122: Koreaanse den | D122: 0 | E122: 0 | F122: 0 | G122: 0 | H122: 0 | I122: 0 | J122: 0 | K122: 0 | L122: 0 | M122: 0.5 | N122: 2.1 | O122: 6
A123: Pleurotus ostreatus | B123: Oesterzwam | D123: 0.1 | E123: 0.1 | F123: 0.1 | G123: 0.1 | H123: 0.1 | I123: 0.1 | J123: 0.1 | K123: 0.1 | L123: 0.1 | M123: 0.1 | N123: 0.1 | O123: 0.1
A124: Poncirus trifoliata | B124: Wilde citroen | D124: 0 | E124: 0 | F124: 0 | G124: 0 | H124: 0 | I124: 0 | J124: 0 | K124: 0 | L124: 0 | M124: 0 | N124: 0 | O124: 0
A125: Populus canadensis | B125: Populier | C125: Koster | D125: 0 | E125: 0 | F125: 0 | G125: 0 | H125: 0 | I125: 0 | J125: 0 | K125: 0 | L125: 0 | M125: 0 | N125: 0 | O125: 0
A126: Primula vulgaris | B126: Sleutel bloem | D126: 0.02 | E126: 0.02 | F126: 0.02 | G126: 0.02 | H126: 0.02 | I126: 0.02 | J126: 0.02 | K126: 0.02 | L126: 0.02 | M126: 0.02 | N126: 0.02 | O126: 0.02
A127: Prunus armeniaca | B127: Abrikoos | C127: Goldcot | D127: 0 | E127: 0 | F127: 0 | G127: 0 | H127: 0 | I127: 3 | J127: 10 | K127: 17 | L127: 25 | M127: 25 | N127: 25 | O127: 25
A128: Prunus avium | B128: Zoete kers | D128: 0 | E128: 0.7 | F128: 2.1 | G128: 4.5 | H128: 7 | I128: 8.5 | J128: 9 | K128: 9 | L128: 9 | M128: 9 | N128: 9 | O128: 9
A129: Prunus cerasifera | B129: Kerspruim | D129: 0 | E129: 1 | F129: 2.985074627 | G129: 7.380073801 | H129: 13.21877065 | I129: 17.33252448 | J129: 19.11735186 | K129: 19.72676458 | L129: 19.9172379 | M129: 19.97509924 | N129: 19.9978688 | O129: 19.99999482
A130: Prunus cerasus | B130: Zuurkers | D130: 0 | E130: 0 | F130: 2.297297297 | G130: 5.743243243 | H130: 11.48648649 | I130: 13.78378378 | J130: 16.08108108 | K130: 18.37837838 | L130: 18.37837838 | M130: 18.37837838 | N130: 18.37837838 | O130: 18.37837838
A131: Prunus domestica | B131: Pruim | C131: Opal | D131: 0 | E131: 0 | F131: 2.5 | G131: 2.5 | H131: 5 | I131: 7 | J131: 10 | K131: 15 | L131: 23 | M131: 23 | N131: 23 | O131: 23
A132: Prunus dulcis | B132: Amandel | C132: Robijn | D132: 0 | E132: 0 | F132: 0 | G132: 0.5 | H132: 1.5 | I132: 2.5 | J132: 3.5 | K132: 6 | L132: 8 | M132: 10 | N132: 12 | O132: 15
A133: Prunus insititia | B133: Mirabel | D133: 0 | E133: 0 | F133: 0 | G133: 0 | H133: 0 | I133: 0 | J133: 0 | K133: 0 | L133: 0 | M133: 0 | N133: 0 | O133: 0
A134: Prunus persica | B134: Perzik | D134: 0 | E134: 0 | F134: 2 | G134: 8 | H134: 15 | I134: 25 | J134: 25 | K134: 25 | L134: 25 | M134: 25 | N134: 25 | O134: 25
A135: Prunus persica nusipersica | B135: Nectarine | D135: 0 | E135: 0 | F135: 2 | G135: 8 | H135: 12 | I135: 17.5 | J135: 17.5 | K135: 17.5 | L135: 17.5 | M135: 17.5 | N135: 17.5 | O135: 17.5
A136: Prunus salicina | B136: Perzik | D136: 0 | E136: 5 | F136: 10.62992126 | G136: 21.54828412 | H136: 40.06826445 | I136: 65.33852008 | J136: 91.23020125 | K136: 111.0290587 | L136: 123.0456188 | M136: 129.3451186 | N136: 134.0648996 | O136: 134.9825116
A137: Prunus salicina x Prunus armeniaca | B137: Pruimabrikoos | C137: Pluot | D137: 0 | E137: 0 | F137: 0 | G137: 0 | H137: 0 | I137: 0 | J137: 0 | K137: 0 | L137: 0 | M137: 0 | N137: 0 | O137: 0
A138: Prunus tomentosa | B138: Struikkers | D138: 0 | E138: 1 | F138: 2.4 | G138: 4.137931034 | H138: 5.286343612 | I138: 5.766458433 | J138: 5.927975103 | K138: 5.978209427 | L138: 5.993446167 | M138: 5.998032345 | N138: 5.999831711 | O138: 5.999999591
A139: Pulmonaria off. | B139: Longkruid | D139: 0.05 | E139: 0.05 | F139: 0.05 | G139: 0.05 | H139: 0.05 | I139: 0.05 | J139: 0.05 | K139: 0.05 | L139: 0.05 | M139: 0.05 | N139: 0.05 | O139: 0.05
A140: Punica granatum | B140: Granaatappel | D140: 0 | E140: 0 | F140: 2 | G140: 12.18274112 | H140: 51.55746509 | I140: 100.0729699 | J140: 116.5197021 | K140: 119.4647605 | L140: 119.9194085 | M140: 119.9879044 | N140: 119.9995731 | O140: 120
A141: Pyrus bretschneideri | B141: Chinapeer | D141: 0 | E141: 4 | F141: 11.23595506 | G141: 24.57002457 | H141: 38.15337657 | I141: 45.73937703 | J141: 48.64073467 | K141: 49.58430994 | L141: 49.87456298 | M141: 49.96230269 | N141: 49.99677478 | O141: 49.99999216
A142: Pyrus communis | B142: Peer | C142: Conference | D142: 0 | E142: 2 | F142: 5 | G142: 11 | H142: 13 | I142: 15 | J142: 20 | K142: 20 | L142: 20 | M142: 20 | N142: 20 | O142: 20
A143: Pyrus pyrifolia | B143: Nashi peer | C143: Nijsseiki 50 | D143: 0 | E143: 2 | F143: 5 | G143: 11 | H143: 13 | I143: 15 | J143: 20 | K143: 20 | L143: 20 | M143: 20 | N143: 20 | O143: 20
A144: Quercus spp. | B144: Eik | D144: 0 | E144: 0 | F144: 0 | G144: 0 | H144: 0 | I144: 0 | J144: 0 | K144: 0 | L144: 0 | M144: 0 | N144: 1 | O144: 17
A145: Rhamnus frangula | B145: Vuilboom, sporkehout | D145: 0 | E145: 0 | F145: 0 | G145: 0 | H145: 0 | I145: 0 | J145: 0 | K145: 0 | L145: 0 | M145: 0 | N145: 0 | O145: 0
A146: Rheum rabarberum | B146: Rabarber | D146: 0 | E146: 0 | F146: 2 | G146: 3 | H146: 4 | I146: 4 | J146: 4 | K146: 4 | L146: 0 | M146: 2 | N146: 3.8 | O146: 2.6
A147: Rhus aromatica | B147: Sumac, limonadestruik | D147: 0 | E147: 0 | F147: 0 | G147: 0 | H147: 0 | I147: 0 | J147: 0 | K147: 0 | L147: 0 | M147: 0 | N147: 0 | O147: 0
A148: Rhus glabra | B148: Sumac | D148: 0 | E148: 0 | F148: 0 | G148: 0 | H148: 0 | I148: 0 | J148: 0 | K148: 0 | L148: 0 | M148: 0 | N148: 0 | O148: 0
A149: Ribes divaricatum | B149: Worchesterbes | D149: 0 | E149: 1 | F149: 2.75862069 | G149: 3.7470726 | H149: 3.959905952 | I149: 3.993934212 | J149: 3.999088958 | K149: 3.999863317 | L149: 3.999979497 | M149: 3.999996925 | N149: 3.999999891 | O149: 4
A150: Ribes 'Josta' | B150: Jostabes | C150: Jostabes | D150: 0 | E150: 0 | F150: 0 | G150: 0 | H150: 0 | I150: 0 | J150: 0 | K150: 0 | L150: 0 | M150: 0 | N150: 0 | O150: 0
A151: Ribes nigrum | B151: Zwarte bes | D151: 0 | E151: 0.5 | F151: 1 | G151: 2 | H151: 2.5 | I151: 2.5 | J151: 2.5 | K151: 2.5 | L151: 2.5 | M151: 2.5 | N151: 2.5 | O151: 1.2
A152: Ribes rubrum | B152: Aalbes | D152: 0 | E152: 0.5 | F152: 0.9 | G152: 1.9 | H152: 2.5 | I152: 2.5 | J152: 2.5 | K152: 2.5 | L152: 2.5 | M152: 2.5 | N152: 2.5 | O152: 0.5
A153: Ribes Uva-Crispa | B153: kruisbes | D153: 0 | E153: 0 | F153: 0.6 | G153: 1.5 | H153: 2.5 | I153: 3.5 | J153: 3.5 | K153: 3.5 | L153: 3.5 | M153: 3.5 | N153: 3.5 | O153: 3.5
A154: Ribes x. nidigrolaria | B154: Jostabes | D154: 0 | E154: 1 | F154: 2.272727273 | G154: 3.676470588 | H154: 4.512635379 | I154: 4.843084076 | J154: 4.951867845 | K154: 4.985462392 | L154: 4.995629823 | M154: 4.998688144 | N154: 4.999887806 | O154: 4.999999727
A155: Robinia pseudoacacia | B155: Valse acacia | D155: 0 | E155: 0 | F155: 0 | G155: 0 | H155: 0 | I155: 0 | J155: 0 | K155: 0 | L155: 0 | M155: 0 | N155: 0 | O155: 0
A156: Rosa rugosa | B156: Rimpelroos | D156: 0.5 | E156: 1.379310345 | F156: 1.8735363 | G156: 1.979952976 | H156: 1.996967106 | I156: 1.999544479 | J156: 1.999931659 | K156: 1.999989748 | L156: 1.999998462 | M156: 1.999999769 | N156: 1.999999992 | O156: 2
A157: Rosmarinum off. | B157: Rozemarijn | D157: 0.05 | E157: 0.05 | F157: 0.05 | G157: 0.05 | H157: 0.05 | I157: 0.05 | J157: 0.05 | K157: 0.05 | L157: 0.05 | M157: 0.05 | N157: 0.05 | O157: 0.05
A158: Rubus fruticosus | B158: Braam | D158: 0 | E158: 0.5 | F158: 3 | G158: 5 | H158: 5 | I158: 5 | J158: 5 | K158: 5 | L158: 5 | M158: 5 | N158: 5 | O158: 5
A159: Rubus hibrids | B159: Tayberry, braamboos | C159: Lochness | D159: 0 | E159: 0 | F159: 0 | G159: 0 | H159: 0 | I159: 0 | J159: 0 | K159: 0 | L159: 0 | M159: 0 | N159: 0 | O159: 0
A160: Rubus idaeus | B160: framboos | C160: Autumn bliss | D160: 0 | E160: 0.4 | F160: 1 | G160: 1.2 | H160: 1.2 | I160: 1.2 | J160: 1.2 | K160: 1.2 | L160: 1.2 | M160: 1.2 | N160: 1.2 | O160: 1.2
A161: Rubus loganobaccus | B161: Logan bes | D161: 0 | E161: 1 | F161: 2.75862069 | G161: 3.7470726 | H161: 3.959905952 | I161: 3.993934212 | J161: 3.999088958 | K161: 3.999863317 | L161: 3.999979497 | M161: 3.999996925 | N161: 3.999999891 | O161: 4
A162: Rubus phoenicolasius | B162: Japanse wijnbes | D162: 0 | E162: 1 | F162: 2.75862069 | G162: 3.7470726 | H162: 3.959905952 | I162: 3.993934212 | J162: 3.999088958 | K162: 3.999863317 | L162: 3.999979497 | M162: 3.999996925 | N162: 3.999999891 | O162: 4
A163: Ruta graveolens | B163: Wijnruit | D163: 0.05 | E163: 0.05 | F163: 0.05 | G163: 0.05 | H163: 0.05 | I163: 0.05 | J163: 0.05 | K163: 0.05 | L163: 0.05 | M163: 0.05 | N163: 0.05 | O163: 0.05
A164: Salvia off. | B164: Salie | D164: 0.05 | E164: 0.05 | F164: 0.05 | G164: 0.05 | H164: 0.05 | I164: 0.05 | J164: 0.05 | K164: 0.05 | L164: 0.05 | M164: 0.05 | N164: 0.05 | O164: 0.05
A165: Sambucus canadiensis | B165: Canadese vlier | D165: 0 | E165: 0 | F165: 3 | G165: 5 | H165: 7 | I165: 10 | J165: 15 | K165: 15 | L165: 15 | M165: 15 | N165: 15 | O165: 15
A166: Sambucus nigra | B166: Gewone vlier | C166: Korsor | D166: 0 | E166: 0 | F166: 4 | G166: 7 | H166: 10 | I166: 12 | J166: 15 | K166: 18 | L166: 20 | M166: 20 | N166: 20 | O166: 20
A167: Santolina spp. | B167: Heiligbloem | D167: 0.05 | E167: 0.05 | F167: 0.05 | G167: 0.05 | H167: 0.05 | I167: 0.05 | J167: 0.05 | K167: 0.05 | L167: 0.05 | M167: 0.05 | N167: 0.05 | O167: 0.05
A168: Sassafras albidum | B168: Sassafras | D168: 0 | E168: 0 | F168: 0 | G168: 0 | H168: 0 | I168: 0 | J168: 0 | K168: 0 | L168: 0 | M168: 0 | N168: 0 | O168: 0
A169: Schisandra spp. | B169: Schisandra | D169: 0 | E169: 1 | F169: 2.75862069 | G169: 3.7470726 | H169: 3.959905952 | I169: 3.993934212 | J169: 3.999088958 | K169: 3.999863317 | L169: 3.999979497 | M169: 3.999996925 | N169: 3.999999891 | O169: 4
A170: Scutellaria galericulata | B170: Blauw glidkruid | D170: 0.05 | E170: 0.05 | F170: 0.05 | G170: 0.05 | H170: 0.05 | I170: 0.05 | J170: 0.05 | K170: 0.05 | L170: 0.05 | M170: 0.05 | N170: 0.05 | O170: 0.05
A171: Solidago spp. | B171: Guldenroede | D171: 0.05 | E171: 0.05 | F171: 0.05 | G171: 0.05 | H171: 0.05 | I171: 0.05 | J171: 0.05 | K171: 0.05 | L171: 0.05 | M171: 0.05 | N171: 0.05 | O171: 0.05
A172: Sorbus aucuparia | B172: Lijserterbes | D172: 0 | E172: 0 | F172: 0 | G172: 0 | H172: 0 | I172: 0 | J172: 0 | K172: 0 | L172: 0 | M172: 0 | N172: 8.2 | O172: 15
A173: Sorbus domestica | B173: Peerlijserbes | D173: 0 | E173: 2 | F173: 5.405405405 | G173: 11.04972376 | H173: 16.09010459 | I173: 18.64106627 | J173: 19.57196121 | K173: 19.86963532 | L173: 19.96071133 | M173: 19.98819717 | N173: 19.99899033 | O173: 19.99999755
A174: Sorbus torminalis | B174: Elsbes | D174: 0 | E174: 2 | F174: 5.405405405 | G174: 11.04972376 | H174: 16.09010459 | I174: 18.64106627 | J174: 19.57196121 | K174: 19.86963532 | L174: 19.96071133 | M174: 19.98819717 | N174: 19.99899033 | O174: 19.99999755
A175: Staphylea pinnata | B175: Pimpernoot | D175: 0 | E175: 0 | F175: 0 | G175: 0 | H175: 0.1 | I175: 0.2 | J175: 0.25 | K175: 0.3 | L175: 0.4 | M175: 0.5 | N175: 0.8 | O175: 1
A176: Symphytum officinale | B176: Smeerwortel | D176: 0.05 | E176: 0.05 | F176: 0.05 | G176: 0.05 | H176: 0.05 | I176: 0.05 | J176: 0.05 | K176: 0.05 | L176: 0.05 | M176: 0.05 | N176: 0.05 | O176: 0.05
A177: Tanacetum balsamita | B177: Balsem longkruid | D177: 0.05 | E177: 0.05 | F177: 0.05 | G177: 0.05 | H177: 0.05 | I177: 0.05 | J177: 0.05 | K177: 0.05 | L177: 0.05 | M177: 0.05 | N177: 0.05 | O177: 0.05
A178: Tanacetum parthenium | B178: Moederkruid | D178: 0.05 | E178: 0.05 | F178: 0.05 | G178: 0.05 | H178: 0.05 | I178: 0.05 | J178: 0.05 | K178: 0.05 | L178: 0.05 | M178: 0.05 | N178: 0.05 | O178: 0.05
A179: Teucrium chamaedrys | B179: Echte gamander | D179: 0.05 | E179: 0.05 | F179: 0.05 | G179: 0.05 | H179: 0.05 | I179: 0.05 | J179: 0.05 | K179: 0.05 | L179: 0.05 | M179: 0.05 | N179: 0.05 | O179: 0.05
A180: Thymus Vulgaris | B180: Thijm | D180: 0 | E180: 0 | F180: 0 | G180: 0.5 | H180: 0.6 | I180: 0.75 | J180: 0.75 | K180: 0.75 | L180: 0.75 | M180: 0.75 | N180: 0.3 | O180: 0.67
A181: Tilia cordata | B181: Linde | D181: 0 | E181: 0 | F181: 0 | G181: 0 | H181: 0 | I181: 0 | J181: 0 | K181: 0 | L181: 0 | M181: 0 | N181: 0 | O181: 0
A182: Toona sinensis | B182: Chinese mahonie | D182: 0 | E182: 0 | F182: 0 | G182: 0.1 | H182: 0.2 | I182: 0.3 | J182: 0.4 | K182: 0.5 | L182: 0.5 | M182: 0.5 | N182: 0.5 | O182: 0.5
A183: Ugni Molinae | B183: Chileense guave | D183: 0 | E183: 1 | F183: 3.125 | G183: 4.587155963 | H183: 4.933399112 | I183: 4.989895462 | J183: 4.998481711 | K183: 4.999772198 | L183: 4.999965828 | M183: 4.999994874 | N183: 4.999999819 | O183: 5
A184: Ulmus laevis | B184: Fladderiep | D184: 0 | E184: 0 | F184: 0 | G184: 0 | H184: 0 | I184: 0 | J184: 0 | K184: 0 | L184: 0 | M184: 0 | N184: 0 | O184: 0
A185: Urtica Dioica | B185: Brandnetel | D185: 0 | E185: 0.2 | F185: 0.5 | G185: 0.6 | H185: 0.75 | I185: 0.75 | J185: 0.75 | K185: 0.75 | L185: 0.75 | M185: 0.75 | N185: 0.75 | O185: 0.75
A186: Vaccinium Corymbosum | B186: Blauwe bes | D186: 0 | E186: 0.5 | F186: 1 | G186: 1.5 | H186: 2.2 | I186: 2.5 | J186: 3 | K186: 3.5 | L186: 4 | M186: 4.5 | N186: 4.5 | O186: 4.5
A187: Vaccinium Macrocarpon | B187: Cranberry | D187: 0 | E187: 0 | F187: 0 | G187: 0 | H187: 0 | I187: 1 | J187: 1.25 | K187: 1.25 | L187: 1.25 | M187: 1.25 | N187: 1.25 | O187: 1.25
A188: Valeriana off. | B188: Valeriaan | D188: 0.05 | E188: 0.05 | F188: 0.05 | G188: 0.05 | H188: 0.05 | I188: 0.05 | J188: 0.05 | K188: 0.05 | L188: 0.05 | M188: 0.05 | N188: 0.05 | O188: 0.05
A189: Viburnum Lentago | B189: Schapenbes | D189: 0 | E189: 0 | F189: 0 | G189: 0 | H189: 0 | I189: 0 | J189: 0 | K189: 0 | L189: 0 | M189: 0 | N189: 0 | O189: 0
A190: Viburnum setigerum | B190: Sneeuwbal | D190: 0 | E190: 0 | F190: 0 | G190: 0 | H190: 0 | I190: 0 | J190: 0 | K190: 0 | L190: 0 | M190: 0 | N190: 0 | O190: 0
A191: Vitis vinifera | B191: Druif | D191: 0 | E191: 1 | F191: 3 | G191: 5 | H191: 7 | I191: 9 | J191: 11 | K191: 11 | L191: 11 | M191: 11 | N191: 11 | O191: 11
A192: Xanthoceras sorbifolium | B192: Chinesekastanje | D192: 0 | E192: 1 | F192: 3.048780488 | G192: 7.911392405 | H192: 15.16990291 | I192: 20.93101139 | J192: 23.62234485 | K192: 24.57012116 | L192: 24.86946515 | M192: 24.96069589 | N192: 24.9966352 | O192: 24.99999182
A193: Zanthoxylum spp | B193: Sechuan peper | C193: simulans | D193: 0 | E193: 0 | F193: 0 | G193: 0 | H193: 0 | I193: 0.2 | J193: 0.4 | K193: 0.8 | L193: 0.9 | M193: 1 | N193: 1 | O193: 1
A194: Ziziphus jujube | B194: Chinese dadelboom | D194: 0 | E194: 0 | F194: 0 | G194: 2 | H194: 4 | I194: 6 | J194: 8 | K194: 10 | L194: 12 | M194: 15 | N194: 30 | O194: 45
A195: Chephalotaxus | D195: 0 | E195: 0 | F195: 0 | G195: 0 | H195: 0 | I195: 0 | J195: 0 | K195: 0 | L195: 0 | M195: 1 | N195: 3 | O195: 5
A196: ZR overig
A197: ZR overig
A198: ZR overig
A199: ZR overig

Sheet Plukprestaties
D1: Plukprestaties
A3: Wetenschappelijke naam | B3: Variateit | C3: Nederlandse naam | D3: Categorie | E3: Functie | F3: Eenheid | G3: Plukprestatie in kg/uur
A4: Acer campestre | C4: Veldesdoorn | D4: Geen oogst | E4: klimboom | F4: plant | G4: 4
A5: Acer platanoides | C5: Noorse esdoorn | D5: Geen oogst | E5: ?? | F5: plant | G5: 4
A6: Acer pseudoplatanus | C6: Gewone esdoorn | D6: Geen oogst | E6: ?? | F6: plant | G6: 4
A7: Acer saccharum | C7: Suikeresdoorn | E7: boomsap | F7: plant | G7: 4
A8: Achillea millefolium | C8: Duizendblad | D8: Blad | E8: blad en bloem | F8: m2 | G8: 4
A9: Actinidia arguta | B9: Issai 15 | C9: Kiwibes | D9: Zacht fruit | E9: kiwibes | F9: plant | G9: 16
A10: Actinidia deliciosa | C10: Zelf bestuivende kiwi | D10: Zacht fruit | E10: kiwibes | F10: plant | G10: 16
A11: Actinidia komikta | C11: Arctisch | D11: Zacht fruit | E11: kiwibes | F11: plant | G11: 16
A12: Agaricus bisporus | C12: Champignon | D12: Paddenstoel | E12: paddenstoel | F12: plant | G12: 4
A13: Agastache foeniculum | C13: Dropplant | D13: Blad | E13: blad | F13: m2 | G13: 4
A14: Akebia quinata | C14: Schijnaugurk | D14: Blad | E14: vrucht | F14: plant | G14: 4
A15: Alcea ficifolia | C15: Vijgenbladstokroos | E15: blad en bloem | F15: m2 | G15: 4
A16: Alchemilla xanthochlora | C16: Geelgroene vrouwenmantel | D16: Blad | E16: blad | F16: m2 | G16: 4
A17: Allium schoenoprasum | C17: Bieslook | D17: Blad | E17: blad | F17: m2 | G17: 4
A18: Allium Ursinum | C18: Daslook | D18: Blad | E18: blad | F18: m2 | G18: 4
A19: Alnus cordata | C19: Harbladige els | D19: Geen oogst | E19: stikstofbinder | F19: plant | G19: 0
A20: Alnus glutinosa | C20: Zwarte els | D20: Geen oogst | E20: stikstofbinder | F20: plant | G20: 0
A21: Alnus incana | C21: Witte els, grijze els | D21: Geen oogst | E21: stikstofbinder | F21: plant | G21: 0
A22: Aloysia citrodora | C22: Citroenverbena | D22: Blad | E22: blad | F22: plant | G22: 4
A23: Amelanchier alnifolia | C23: Krentenboompje | D23: Zacht fruit | E23: vrucht | F23: plant | G23: 5
A24: Amelanchier laevis | C24: Krentenboompje | D24: Zacht fruit | E24: vrucht | F24: plant | G24: 5
A25: Amelanchier lamarckii | C25: Krentenboompje | D25: Zacht fruit | E25: krenten bes | F25: plant | G25: 5
A26: Amorpha fruticosa | C26: Indigostruik | E26: ?? | F26: plant | G26: 4
A27: Angelica archangelica | C27: Grote engelwortel | E27: zaad en bloem | F27: m2 | G27: 4
A28: Aralia elata | C28: Engelenboom | D28: Blad | E28: blad | F28: plant | G28: 4
A29: Araucaria araucana | C29: Slangenden | D29: Zaden | E29: zaden | F29: plant | G29: 4
A30: Arbutus unedo | C30: Aardbei boom | D30: Zacht fruit | E30: vrucht | F30: plant | G30: 12.25
A31: Arnica spp. | C31: Valkruid | E31: ?? | F31: plant | G31: 4
A32: Aronia arbutifolia | C32: Appelbes | D32: Zacht fruit | E32: appelbes | F32: plant | G32: 5
A33: Aronia melanocarpa | C33: Appelbes | D33: Zacht fruit | E33: appelbes | F33: plant | G33: 5
A34: Aronia prunifolia | C34: Appelbes | D34: Zacht fruit | E34: appelbes | F34: plant | G34: 5
A35: Artemisia abrotanum | C35: Citroenkruid | D35: Blad | E35: blad | F35: m2 | G35: 4
A36: Artemisia dracunculus | C36: Dragon | D36: Blad | E36: blad | F36: m2 | G36: 4
A37: Artemisia moxa | C37: Bijvoet | E37: ?? | F37: plant | G37: 4
A38: Asimina triloba | C38: Pawpaw | E38: vrucht | F38: plant | G38: 4
A39: Berberis aristata | C39: Chitra | D39: Zacht fruit | E39: vrucht | F39: plant | G39: 5
A40: Berberis vulgaris | C40: Zuurbes | D40: Zacht fruit | E40: bessen | F40: plant | G40: 5
A41: Bunimum bulbocastanum | C41: Aardkastanje | D41: Wortels | E41: wortels | F41: plant | G41: 4
A42: Capparis Spinosa | C42: Kappertjes plant | E42: kappertjes | F42: plant | G42: 4
A43: Caragana arborecens | C43: Chiberische erwtensctruik | D43: Zaden | E43: zaden | F43: plant | G43: 4
A44: Carya illinoiensis | C44: Pecanoot | D44: Noten | E44: noot | F44: plant | G44: 4
A45: Carya spp | C45: Hickorynoot | D45: Noten | E45: noot | F45: plant | G45: 4
A46: Castanea mollissima | C46: Chinese kastanje | D46: Noten | E46: kastanje | F46: plant | G46: 15
A47: Castanea sativa | B47: Lyon | C47: Tamme kastanje | D47: Noten | E47: kastanje | F47: plant | G47: 15
A48: Casteana Pumiles | C48: Chinkapin | D48: Noten | E48: noten | F48: plant | G48: 4
A49: Celtis australis | C49: Europese netelboom | E49: vrucht | F49: plant | G49: 4
A50: Cercis siliquastrum | C50: Judasboom | E50: zaad en bloem | F50: plant | G50: 4
A51: Chaenomeles cathayensis | C51: Chinese kwee | D51: Hard fruit | E51: kwee vrucht | F51: plant | G51: 116.25
A52: Chaenomeles speciosa | B52: japonica 60 | C52: Japanse kwee | D52: Hard fruit | E52: kwee vrucht | F52: plant | G52: 116.25
A53: Chaenomeles spp. | C53: Kwee | D53: Hard fruit | E53: kwee vrucht | F53: plant | G53: 116.25
A54: Chelidonium majus | C54: Stinkende gouwe | D54: Blad | E54: blad | F54: m2 | G54: 4
A55: Cornus kousa | B55: Big apple | C55: Chinese kornoelje | D55: Zacht fruit | E55: vrucht | F55: plant | G55: 3.5
A56: Cornus mas | B56: Jolico | C56: Gele kornoelje | D56: Zacht fruit | E56: vrucht | F56: plant | G56: 16
A57: Cornus sanguinea | C57: Rode kornoelje | D57: Zacht fruit | E57: vrucht | F57: plant | G57: 9
A58: Corylus avellana | B58: Webb's | C58: Hazelaar | D58: Noten | E58: hazelnoot | F58: plant | G58: 4
A59: Crataegus persimilis | C59: Grootvruchtmeidoorn | E59: meidoornvrucht | F59: plant | G59: 16
A60: Crataegus pinnatifida | B60: Major | C60: Grootvruchtmeidoorn | E60: meidoornvrucht | F60: plant | G60: 16
A61: Cydonia oblonga (sept) | B61: Ludovich | C61: Kweepeer (sept) | D61: Hard fruit | E61: kweepeer | F61: plant | G61: 116.25
A62: Cynara cardunculus | C62: Kardoen | E62: stengel | F62: plant | G62: 4
A63: Decaisnea fargesii | C63: Augurkenstruik | D63: Zacht fruit | E63: vrucht | F63: plant | G63: 4
A64: Diospyros virginiana | C64: Persimoen, Kaki | D64: Hard fruit | E64: vrucht | F64: plant | G64: 122.5
A65: Diospyrus kaki | C65: Persimoen, Kaki | D65: Hard fruit | E65: vrucht | F65: plant | G65: 122.5
A66: Diospyrus virginia | C66: Persimoen, Kaki | D66: Hard fruit | E66: vrucht | F66: plant | G66: 122.5
A67: Echinacea spp. | C67: Zonnehoed | E67: medicinaal | F67: m2 | G67: 4
A68: Elaeagnus umbellata | C68: Herfstolijfwilg | D68: Zacht fruit | E68: olijfwilgbes | F68: plant | G68: 9
A69: Elaeagnus x ebbingei | B69: Limelight | C69: Zilverbes | D69: Zacht fruit | E69: bessen | F69: plant | G69: 4
A70: Eleutherococcus Ginseng | C70: Siberische Ginseg | D70: Wortels | E70: wortels | F70: plant | G70: 4
A71: Fagus spp | C71: Beuk | D71: Noten | E71: noten | F71: plant | G71: 4
A72: Feijoa sellowiana | C72: Ananas Guave | E72: vrucht | F72: plant | G72: 105
A73: Ficus carica | B73: Brown Turkey | C73: Vijg | D73: Zacht fruit | E73: vijgen | F73: plant | G73: 4
A74: Foeniculum vulgare | C74: Brons venkel | D74: Blad | E74: blad | F74: m2 | G74: 4
A75: Gaultheria salal | C75: Appeltjes blad | D75: Blad | E75: blad | F75: m2 | G75: 4
A76: Geum spp-. | C76: Nagelkruid | D76: Wortels | E76: wortel | F76: m2 | G76: 4
A77: Ginkgo Biloba | C77: Ginko noot | D77: Noten | E77: noten | F77: plant | G77: 4
A78: Gleditsia triacanthos | C78: Valse Christusdoorn | D78: Zaden | E78: zaden | F78: plant | G78: 4
A79: Halesia carolina | C79: Sneeuwklokjesboom | E79: ?? | F79: plant | G79: 4
A80: Helichrysum italicum | C80: Kerriekruid | D80: Blad | E80: blad | F80: m2 | G80: 4
A81: Hemercallis | C81: Daglelie | D81: Bloem | E81: bloemen | F81: m2 | G81: 4
A82: Hibiscus syriacus | B82: Marina | C82: Hibiscus, Altheastruik | D82: Bloem | E82: bloemen | F82: plant | G82: 4
A83: Hippophae rhamnoides | B83: Pollmix (M) | C83: Duindoorn | D83: Zacht fruit | E83: bessen | F83: plant | G83: 16
A84: Hosta spp. | C84: Hosta | E84: jonge scheut | F84: m2 | G84: 4
A85: Hovenia Dulcis | C85: Japanse krentenboom | E85: vrucht | F85: plant | G85: 5
A86: Humulus Lupulus | C86: Hop | E86: vrucht | F86: plant | G86: 4
A87: Hydrangea serrata | C87: Thee hortensia | D87: Blad | E87: blad | F87: plant | G87: 4
A88: Hypsizygus tessellatus | C88: Beukenzwam | D88: Paddenstoel | E88: paddenstoel | F88: plant | G88: 4
A89: Ilex aquifolium | C89: Hulst | D89: Zacht fruit | E89: blad en bes | F89: plant | G89: 5.5
A90: Juglans ailantifolia | C90: Japanse walnoot (hartnoot) | D90: Noten | E90: hartnoot | F90: plant | G90: 4
A91: Juglans cinerea | B91: Beckwith | C91: Witte walnoot, boternoot | D91: Noten | E91: boternoot | F91: plant | G91: 4
A92: Juglans nigra | B92: Bicentennial | C92: Zwarte walnoot | D92: Noten | E92: zwarte walnoot | F92: plant | G92: 4
A93: Juglans regia | B93: Broadview | C93: Walnoot | D93: Noten | E93: walnoot | F93: plant | G93: 4
A94: Laurus nobilis | C94: Keukenlaurier | D94: Blad | E94: blad en vrucht | F94: plant | G94: 4
A95: Lentinula edodes | C95: Shiitake | D95: Paddenstoel | E95: paddenstoel | F95: plant | G95: 4
A96: Lonicera caerulea | B96: Kamtschatica | C96: Honingbes | D96: Zacht fruit | E96: honingbes | F96: plant | G96: 5
A97: lonicera caerulea (juli) | B97: Blue Velvet | C97: Honingbes | D97: Zacht fruit | E97: honingbes | F97: plant | G97: 5
A98: Lycium barbarum | C98: Gojibes | D98: Zacht fruit | E98: gojibes | F98: plant | G98: 5
A99: Magnolia x soulangeana | C99: Magnolia, beverboom | D99: Bloem | E99: bloemen | F99: plant | G99: 4
A100: Mahonia aquifolium | B100: Smaragd | C100: Mahonie | D100: Zacht fruit | E100: bessen | F100: plant | G100: 4
A101: Malus domestica (Bewaar) | C101: Appel | D101: Hard fruit | E101: appel | F101: plant | G101: 122.5
A102: Malus domestica (Hand) | C102: Appel | D102: Hard fruit | E102: appel | F102: plant | G102: 122.5
A103: Malus domestica (Laat) | C103: Appel (laat) | D103: Hard fruit | E103: appel | F103: plant | G103: 122.5
A104: Malus domestica (Midden) | C104: Appel (midden) | D104: Hard fruit | E104: appel | F104: plant | G104: 122.5
A105: Malus domestica (Vroeg) | C105: Appel (vroeg) | D105: Hard fruit | E105: appel | F105: plant | G105: 122.5
A106: Malus pumila | C106: Appel | D106: Hard fruit | E106: appel | F106: plant | G106: 122.5
A107: Mellissa off. | C107: Citroenmellise | D107: Blad | E107: blad | F107: m2 | G107: 4
A108: Mentha spp. | C108: Munt | D108: Blad | E108: blad | F108: m2 | G108: 4
A109: Mespilus germanica | B109: Nothingham | C109: Mispel | D109: Zacht fruit | E109: vrucht | F109: plant | G109: 4
A110: Monarda didyma | C110: Gewone bergamotplant | E110: blad en bloem | F110: m2 | G110: 4
A111: Morus alba | C111: Witte moerbei | D111: Zacht fruit | E111: vrucht | F111: plant | G111: 5.5
A112: Morus nigra | C112: Zwarte moerbei | D112: Zacht fruit | E112: vrucht | F112: plant | G112: 5.5
A113: Myosotis spp. | C113: Vergeet mij nietje | E113: ?? | F113: plant | G113: 4
A114: Myrica gale | C114: Wilde gagel | E114: vrucht | F114: plant | G114: 4
A115: Myrica pensylvanica | C115: Wasgagel | E115: vrucht | F115: plant | G115: 4
A116: Nepeta nervosa | C116: Kattekruid | D116: Blad | E116: blad | F116: m2 | G116: 4
A117: Nepeta x. faassenii | C117: Grijs kattenkruid | D117: Blad | E117: blad | F117: m2 | G117: 4
A118: Paulownia tomentosa | C118: Keizersboom | D118: Bloem | E118: bloemen | F118: plant | G118: 4
A119: Persicaria odorata | C119: Vietnamese koriander | D119: Blad | E119: blad | F119: m2 | G119: 4
A120: Phyllostachus bissetii 80 | B120: Aurea 80 | C120: Eetbare bamboe | E120: scheuten | F120: plant | G120: 4
A121: Pinus Koraiensis | C121: Koreaanse den | D121: Zaden | E121: pijnboompitten | F121: plant | G121: 4
A122: Pleurotus ostreatus | C122: Oesterzwam | D122: Paddenstoel | E122: paddenstoel | F122: plant | G122: 4
A123: Poncirus trifoliata | C123: Wilde citroen | D123: Hard fruit | E123: vrucht | F123: plant | G123: 4
A124: Populus canadensis | B124: Koster | C124: Populier | D124: Geen oogst | E124: ?? | F124: plant | G124: 0
A125: Primula vulgaris | C125: Sleutel bloem | E125: blad en bloem | F125: m2 | G125: 4
A126: Prunus armeniaca | B126: Goldcot | C126: Abrikoos | D126: Hard fruit | E126: abrikoos | F126: plant | G126: 52.5
A127: Prunus avium | C127: Zoete kers | D127: Zacht fruit | E127: kersen | F127: plant | G127: 12
A128: Prunus cerasifera | C128: Kerspruim | D128: Zacht fruit | E128: vrucht | F128: plant | G128: 24.5
A129: Prunus cerasus | C129: Zuurkers | D129: Zacht fruit | E129: vrucht | F129: plant | G129: 12
A130: Prunus domestica | B130: Opal | C130: Pruim | D130: Hard fruit | E130: pruim | F130: plant | G130: 24.5
A131: Prunus dulcis | B131: Robijn | C131: Amandel | D131: Noten | E131: amandelnoot | F131: plant | G131: 4
A132: Prunus insititia | C132: Mirabel | D132: Zacht fruit | E132: mirabel | F132: plant | G132: 38.25
A133: Prunus persica | C133: Perzik | D133: Hard fruit | E133: vrucht | F133: plant | G133: 105
A134: Prunus persica nusipersica | C134: Nectarine | D134: Hard fruit | E134: vrucht | F134: plant | G134: 105
A135: Prunus salicina | C135: Perzik | D135: Hard fruit | E135: vrucht | F135: plant | G135: 105
A136: Prunus salicina x Prunus armeniaca | B136: Pluot | C136: Pruimabrikoos | D136: Hard fruit | E136: pruimabrikoos | F136: plant | G136: 38.25
A137: Prunus tomentosa | C137: Struikkers | E137: vrucht | F137: plant | G137: 12
A138: Pulmonaria off. | C138: Longkruid | D138: Blad | E138: blad | F138: m2 | G138: 4
A139: Punica granatum | C139: Granaatappel | D139: Hard fruit | E139: vrucht | F139: plant | G139: 4
A140: Pyrus bretschneideri | C140: Chinapeer | D140: Hard fruit | E140: vrucht | F140: plant | G140: 110
A141: Pyrus communis | B141: Conference | C141: Peer | D141: Hard fruit | E141: peer | F141: plant | G141: 110
A142: Pyrus pyrifolia | B142: Nijsseiki 50 | C142: Nashi peer | D142: Hard fruit | E142: nashipeer | F142: plant | G142: 110
A143: Quercus spp. | C143: Eik | D143: Noten | E143: eikels | F143: plant | G143: 4
A144: Rhamnus frangula | C144: Vuilboom, sporkehout | D144: Geen oogst | E144: bijen | F144: plant | G144: 0
A145: Rheum rabarberum | C145: Rabarber | E145: stelen | F145: plant | G145: 4
A146: Rhus aromatica | C146: Sumac, limonadestruik | D146: Bloem | E146: bloemen | F146: plant | G146: 4
A147: Rhus glabra | C147: Sumac | D147: Zacht fruit | E147: bessen | F147: plant | G147: 4
A148: Ribes divaricatum | C148: Worchesterbes | D148: Zacht fruit | E148: worchesterbes | F148: plant | G148: 9
A149: Ribes 'Josta' | B149: Jostabes | C149: Jostabes | D149: Zacht fruit | E149: jostabes | F149: plant | G149: 9
A150: Ribes nigrum | C150: Zwarte bes | D150: Zacht fruit | E150: zwarte bes | F150: plant | G150: 9
A151: Ribes rubrum | C151: Aalbes | D151: Zacht fruit | E151: aalbes | F151: plant | G151: 9
A152: Ribes Uva-Crispa | C152: kruisbes | D152: Zacht fruit | E152: bessen | F152: plant | G152: 5
A153: Ribes x. nidigrolaria | C153: Jostabes | D153: Zacht fruit | E153: jostabes | F153: plant | G153: 9
A154: Robinia pseudoacacia | C154: Valse acacia | D154: Geen oogst | E154: stikstofbinder | F154: plant | G154: 0
A155: Rosa rugosa | C155: Rimpelroos | E155: vrucht | F155: plant | G155: 4
A156: Rosmarinum off. | C156: Rozemarijn | D156: Blad | E156: blad | F156: m2 | G156: 4
A157: Rubus fruticosus | C157: Braam | D157: Zacht fruit | E157: vrucht | F157: plant | G157: 5.5
A158: Rubus hibrids | B158: Lochness | C158: Tayberry, braamboos | D158: Zacht fruit | E158: vrucht | F158: plant | G158: 4.25
A159: Rubus idaeus | B159: Autumn bliss | C159: framboos | D159: Zacht fruit | E159: framboos | F159: plant | G159: 3.5
A160: Rubus loganobaccus | C160: Logan bes | D160: Zacht fruit | E160: vrucht | F160: plant | G160: 4.25
A161: Rubus phoenicolasius | C161: Japanse wijnbes | D161: Zacht fruit | E161: vrucht | F161: plant | G161: 4
A162: Ruta graveolens | C162: Wijnruit | D162: Blad | E162: blad | F162: m2 | G162: 4
A163: Salvia off. | C163: Salie | D163: Blad | E163: blad | F163: m2 | G163: 4
A164: Sambucus canadiensis | C164: Canadese vlier | E164: bloem en bes | F164: plant | G164: 4
A165: Sambucus nigra | B165: Korsor | C165: Gewone vlier | E165: vrucht | F165: plant | G165: 4
A166: Santolina spp. | C166: Heiligbloem | E166: ?? | F166: plant | G166: 4
A167: Sassafras albidum | C167: Sassafras | D167: Blad | E167: blad | F167: plant | G167: 4
A168: Schisandra spp. | C168: Schisandra | D168: Blad | E168: blad | F168: plant | G168: 4
A169: Scutellaria galericulata | C169: Blauw glidkruid | E169: ?? | F169: plant | G169: 4
A170: Solidago spp. | C170: Guldenroede | D170: Blad | E170: blad | F170: m2 | G170: 4
A171: Sorbus aucuparia | C171: Lijsterbes | D171: Zacht fruit | E171: bessen | F171: plant | G171: 9
A172: Sorbus domestica | C172: Peerlijsterbes | D172: Zacht fruit | E172: bessen | F172: plant | G172: 9
A173: Sorbus torminalis | C173: Elsbes | D173: Zacht fruit | E173: bessen | F173: plant | G173: 9
A174: Staphylea pinnata | C174: Pimpernoot | D174: Noten | E174: noten | F174: plant | G174: 4
A175: Symphytum officinale | C175: Smeerwortel | D175: Blad | E175: blad | F175: m2 | G175: 4
A176: Tanacetum balsamita | C176: Balsem longkruid | D176: Blad | E176: blad | F176: m2 | G176: 4
A177: Tanacetum parthenium | C177: Moederkruid | E177: blad en bloem | F177: m2 | G177: 4
A178: Teucrium chamaedrys | C178: Echte gamander | D178: Blad | E178: blad | F178: m2 | G178: 4
A179: Thymus Vulgaris | C179: Thijm | D179: Blad | E179: blad | F179: m2 | G179: 4
A180: Tilia cordata | C180: Linde | D180: Blad | E180: blad | F180: plant | G180: 4
A181: Toona sinensis | C181: Chinese mahonie | D181: Blad | E181: blad | F181: plant | G181: 4
A182: Ugni Molinae | C182: Chileense guave | E182: vrucht | F182: plant | G182: 4
A183: Ulmus laevis | C183: Fladderiep | D183: Geen oogst | E183: ?? | F183: plant | G183: 0
A184: Urtica Dioica | C184: Brandnetel | D184: Blad | E184: blad | F184: m2 | G184: 4
A185: Vaccinium Corymbosum | C185: Blauwe bes | D185: Zacht fruit | E185: bessen | F185: plant | G185: 5
A186: Vaccinium Macrocarpon | C186: Cranberry | D186: Zacht fruit | E186: vrucht | F186: plant | G186: 16
A187: Valeriana off. | C187: Valeriaan | D187: Wortels | E187: wortel | F187: m2 | G187: 4
A188: Viburnum Lentago | C188: Schapenbes | D188: Zacht fruit | E188: vrucht | F188: plant | G188: 5
A189: Viburnum setigerum | C189: Sneeuwbal | D189: Zacht fruit | E189: blad en bes | F189: plant | G189: 4
A190: Vitis vinifera | C190: Druif | D190: Zacht fruit | E190: druif | F190: plant | G190: 4
A191: Xanthoceras sorbifolium | C191: Chinesekastanje | D191: Noten | E191: kastanje | F191: plant | G191: 4
A192: Zanthoxylum spp | B192: simulans | C192: Sechuan peper | D192: Zacht fruit | E192: bessen | F192: plant | G192: 4
A193: Ziziphus jujube | C193: Chinese dadelboom | D193: Zacht fruit | E193: dadel | F193: plant | G193: 4
A194: Chephalotaxus | F194: plant | G194: 4
A195: ZR overig | F195: plant | G195: 1
A196: ZR overig | F196: plant | G196: 0
A197: ZR overig | F197: plant | G197: 0
A198: ZR overig | F198: plant | G198: 1

Sheet Verkoopprijs per afzetkanaal
D1: Verkoopprijs per afzetkanaal
A3: Wetenschappelijke naam | B3: Variateit | C3: Nederlandse naam | D3: Categorie | E3: Functie | F3: Eenheid berekening | G3: Prijs supermarkt per kg | H3: Prijs catering per kg | I3: Prijs direct naar consument per kg | J3: Kostprijs
A4: Acer campestre | C4: Veldesdoorn | D4: Geen oogst | E4: klimboom | F4: plant | G4: 10.17 | H4: 24.0667 | J4: ='Kostprijs berekening'!F42 -> 5.5
A5: Acer platanoides | C5: Noorse esdoorn | D5: Geen oogst | E5: ?? | F5: plant | G5: 10.170633 | J5: ='Kostprijs berekening'!F43 -> 5.5
A6: Acer pseudoplatanus | C6: Gewone esdoorn | D6: Geen oogst | E6: ?? | F6: plant | G6: 10.17 | J6: ='Kostprijs berekening'!F44 -> 5.5
A7: Acer saccharum | C7: Suikeresdoorn | E7: boomsap | F7: plant | G7: 10.17 | J7: ='Kostprijs berekening'!F45 -> 5.5
A8: Achillea millefolium | C8: Duizendblad | D8: Blad | E8: blad en bloem | F8: m2 | G8: 60 | J8: ='Kostprijs berekening'!F46 -> 5.5
A9: Actinidia arguta | B9: Issai 15 | C9: Kiwibes | D9: Zacht fruit | E9: kiwibes | F9: plant | G9: 2.94 | J9: ='Kostprijs berekening'!F47 -> 1.375
A10: Actinidia deliciosa | C10: Zelf bestuivende kiwi | D10: Zacht fruit | E10: kiwibes | F10: plant | G10: 2.94 | J10: ='Kostprijs berekening'!F48 -> 1.375
A11: Actinidia komikta | C11: Arctisch | D11: Zacht fruit | E11: kiwibes | F11: plant | G11: 2.94 | J11: ='Kostprijs berekening'!F49 -> 1.375
A12: Agaricus bisporus | C12: Champignon | D12: Paddenstoel | E12: paddenstoel | F12: plant | G12: 3.25 | J12: ='Kostprijs berekening'!F50 -> 5.5
A13: Agastache foeniculum | C13: Dropplant | D13: Blad | E13: blad | F13: m2 | G13: 60 | J13: ='Kostprijs berekening'!F51 -> 5.5
A14: Akebia quinata | C14: Schijnaugurk | E14: vrucht | F14: plant | G14: 6.5 | J14: ='Kostprijs berekening'!F52 -> 5.5
A15: Alcea ficifolia | C15: Vijgenbladstokroos | D15: Blad | E15: blad en bloem | F15: m2 | G15: 60 | J15: ='Kostprijs berekening'!F53 -> 5.5
A16: Alchemilla xanthochlora | C16: Geelgroene vrouwenmantel | D16: Blad | E16: blad | F16: m2 | G16: 60 | J16: ='Kostprijs berekening'!F54 -> 5.5
A17: Allium schoenoprasum | C17: Bieslook | D17: Blad | E17: blad | F17: m2 | G17: 60 | J17: ='Kostprijs berekening'!F55 -> 5.5
A18: Allium Ursinum | C18: Daslook | D18: Blad | E18: blad | F18: m2 | G18: 12.5 | J18: ='Kostprijs berekening'!F56 -> 5.5
A19: Alnus cordata | C19: Harbladige els | D19: Geen oogst | E19: stikstofbinder | F19: plant | G19: 0 | J19: ='Kostprijs berekening'!F57 -> 0
A20: Alnus glutinosa | C20: Zwarte els | D20: Geen oogst | E20: stikstofbinder | F20: plant | G20: 0 | J20: ='Kostprijs berekening'!F58 -> 0
A21: Alnus incana | C21: Witte els, grijze els | D21: Geen oogst | E21: stikstofbinder | F21: plant | G21: 0 | J21: ='Kostprijs berekening'!F59 -> 0
A22: Aloysia citrodora | C22: Citroenverbena | E22: vrucht | F22: plant | G22: 60 | J22: ='Kostprijs berekening'!F60 -> 5.5
A23: Amelanchier alnifolia | C23: Krentenboompje | E23: vrucht | F23: plant | G23: 10.06 | J23: ='Kostprijs berekening'!F61 -> 4.4
A24: Amelanchier laevis | C24: Krentenboompje | E24: vrucht | F24: plant | G24: 10.06 | J24: ='Kostprijs berekening'!F62 -> 4.4
A25: Amelanchier lamarckii | C25: Krentenboompje | D25: Zacht fruit | E25: krenten bes | F25: plant | G25: 10.06 | J25: ='Kostprijs berekening'!F63 -> 4.4
A26: Amorpha fruticosa | C26: Indigostruik | E26: ?? | F26: plant | G26: 2 | J26: ='Kostprijs berekening'!F64 -> 5.5
A27: Angelica archangelica | C27: Grote engelwortel | E27: zaad en bloem | F27: m2 | G27: 60 | J27: ='Kostprijs berekening'!F65 -> 5.5
A28: Aralia elata | C28: Engelenboom | D28: Blad | E28: blad | F28: plant | G28: 12.5 | J28: ='Kostprijs berekening'!F66 -> 5.5
A29: Araucaria araucana | C29: Slangenden | D29: Zaden | E29: zaden | F29: plant | G29: 7.69725 | J29: ='Kostprijs berekening'!F67 -> 5.5
A30: Arbutus unedo | C30: Aardbei boom | E30: vrucht | F30: plant | G30: 13.51 | J30: ='Kostprijs berekening'!F68 -> 1.795918367
A31: Arnica spp. | C31: Valkruid | E31: ?? | F31: plant | G31: 60 | J31: ='Kostprijs berekening'!F69 -> 5.5
A32: Aronia arbutifolia | C32: Appelbes | D32: Zacht fruit | E32: appelbes | F32: plant | G32: 7.7 | J32: ='Kostprijs berekening'!F70 -> 4.4
A33: Aronia melanocarpa | C33: Appelbes | D33: Zacht fruit | E33: appelbes | F33: plant | G33: 7.7 | J33: ='Kostprijs berekening'!F71 -> 4.4
A34: Aronia prunifolia | C34: Appelbes | D34: Zacht fruit | E34: appelbes | F34: plant | G34: 7.7 | J34: ='Kostprijs berekening'!F72 -> 4.4
A35: Artemisia abrotanum | C35: Citroenkruid | D35: Blad | E35: blad | F35: m2 | G35: 60 | J35: ='Kostprijs berekening'!F73 -> 5.5
A36: Artemisia dracunculus | C36: Dragon | D36: Blad | E36: blad | F36: m2 | G36: 51 | J36: ='Kostprijs berekening'!F74 -> 5.5
A37: Artemisia moxa | C37: Bijvoet | E37: ?? | F37: plant | G37: 60 | J37: ='Kostprijs berekening'!F75 -> 5.5
A38: Asimina triloba | C38: Pawpaw | E38: vrucht | F38: plant | G38: 5 | J38: ='Kostprijs berekening'!F76 -> 5.5
A39: Berberis aristata | C39: Chitra | E39: vrucht | F39: plant | G39: 7.7 | J39: ='Kostprijs berekening'!F77 -> 4.4
A40: Berberis vulgaris | C40: Zuurbes | D40: Zacht fruit | E40: bessen | F40: plant | G40: 7.7 | J40: ='Kostprijs berekening'!F78 -> 4.4
A41: Bunimum bulbocastanum | C41: Aardkastanje | D41: Wortels | E41: wortels | F41: plant | G41: 2 | J41: ='Kostprijs berekening'!F79 -> 5.5
A42: Capparis Spinosa | C42: Kappertjes plant | E42: kappertjes | F42: plant | G42: 9.17 | J42: ='Kostprijs berekening'!F80 -> 5.5
A43: Caragana arborecens | C43: Chiberische erwtensctruik | D43: Zaden | E43: zaden | F43: plant | G43: 4 | J43: ='Kostprijs berekening'!F81 -> 5.5
A44: Carya illinoiensis | C44: Pecanoot | D44: Noten | E44: noot | F44: plant | G44: 4 | J44: ='Kostprijs berekening'!F82 -> 5.5
A45: Carya spp | C45: Hickorynoot | D45: Noten | E45: noot | F45: plant | G45: 4 | J45: ='Kostprijs berekening'!F83 -> 5.5
A46: Castanea mollissima | C46: Chinese kastanje | D46: Noten | E46: kastanje | F46: plant | G46: 2.25 | J46: ='Kostprijs berekening'!F84 -> 1.466666667
A47: Castanea sativa | B47: Lyon | C47: Tamme kastanje | D47: Noten | E47: kastanje | F47: plant | G47: 2.25 | J47: ='Kostprijs berekening'!F85 -> 1.466666667
A48: Casteana Pumiles | C48: Chinkapin | D48: Noten | E48: noten | F48: plant | G48: 4 | J48: ='Kostprijs berekening'!F86 -> 5.5
A49: Celtis australis | C49: Europese netelboom | E49: vrucht | F49: plant | G49: 0 | J49: ='Kostprijs berekening'!F87 -> 5.5
A50: Cercis siliquastrum | C50: Judasboom | E50: zaad en bloem | F50: plant | G50: 4 | J50: ='Kostprijs berekening'!F88 -> 5.5
A51: Chaenomeles cathayensis | C51: Chinese kwee | E51: kwee vrucht | F51: plant | G51: 1.92 | J51: ='Kostprijs berekening'!F89 -> 0.1892473118
A52: Chaenomeles speciosa | B52: japonica 60 | C52: Japanse kwee | E52: kwee vrucht | F52: plant | G52: 1.92 | J52: ='Kostprijs berekening'!F90 -> 0.1892473118
A53: Chaenomeles spp. | C53: Kwee | E53: kwee vrucht | F53: plant | G53: 1.92 | J53: ='Kostprijs berekening'!F91 -> 0.1892473118
A54: Chelidonium majus | C54: Stinkende gouwe | D54: Blad | E54: blad | F54: m2 | G54: 12.5 | J54: ='Kostprijs berekening'!F92 -> 5.5
A55: Cornus kousa | B55: Big apple | C55: Chinese kornoelje | E55: vrucht | F55: plant | G55: 20 | J55: ='Kostprijs berekening'!F93 -> 6.285714286
A56: Cornus mas | B56: Jolico | C56: Gele kornoelje | E56: vrucht | F56: plant | G56: 6.82 | J56: ='Kostprijs berekening'!F94 -> 1.375
A57: Cornus sanguinea | C57: Rode kornoelje | E57: vrucht | F57: plant | G57: 1.14 | J57: ='Kostprijs berekening'!F95 -> 2.444444444
A58: Corylus avellana | B58: Webb's | C58: Hazelaar | D58: Noten | E58: hazelnoot | F58: plant | G58: 8.76 | J58: ='Kostprijs berekening'!F96 -> 5.5
A59: Crataegus persimilis | C59: Grootvruchtmeidoorn | E59: meidoornvrucht | F59: plant | G59: 4 | J59: ='Kostprijs berekening'!F97 -> 1.375
A60: Crataegus pinnatifida | B60: Major | C60: Grootvruchtmeidoorn | E60: meidoornvrucht | F60: plant | G60: 4 | J60: ='Kostprijs berekening'!F98 -> 1.375
A61: Cydonia oblonga (sept) | B61: Ludovich | C61: Kweepeer (sept) | E61: kweepeer | F61: plant | G61: 1.92 | J61: ='Kostprijs berekening'!F99 -> 0.1892473118
A62: Cynara cardunculus | C62: Kardoen | E62: stengel | F62: plant | G62: 8.17 | J62: ='Kostprijs berekening'!F100 -> 5.5
A63: Decaisnea fargesii | C63: Augurkenstruik | E63: vrucht | F63: plant | G63: 10 | J63: ='Kostprijs berekening'!F101 -> 5.5
A64: Diospyros virginiana | C64: Persimoen, Kaki | D64: Hard fruit | E64: vrucht | F64: plant | G64: 8.52 | J64: ='Kostprijs berekening'!F102 -> 0.1795918367
A65: Diospyrus kaki | C65: Persimoen, Kaki | D65: Hard fruit | E65: vrucht | F65: plant | G65: 8.52 | J65: ='Kostprijs berekening'!F103 -> 0.1795918367
A66: Diospyrus virginia | C66: Persimoen, Kaki | D66: Hard fruit | E66: vrucht | F66: plant | G66: 8.52 | J66: ='Kostprijs berekening'!F104 -> 0.1795918367
A67: Echinacea spp. | C67: Zonnehoed | E67: medicinaal | F67: m2 | G67: 60 | J67: ='Kostprijs berekening'!F105 -> 5.5
A68: Elaeagnus umbellata | C68: Herfstolijfwilg | D68: Zacht fruit | E68: olijfwilgbes | F68: plant | G68: 10 | J68: ='Kostprijs berekening'!F106 -> 2.444444444
A69: Elaeagnus x ebbingei | B69: Limelight | C69: Zilverbes | D69: Zacht fruit | E69: bessen | F69: plant | G69: 5 | J69: ='Kostprijs berekening'!F107 -> 5.5
A70: Eleutherococcus Ginseng | C70: Siberische Ginseg | D70: Wortels | E70: wortels | F70: plant | G70: 0 | J70: ='Kostprijs berekening'!F108 -> 5.5
A71: Fagus spp | C71: Beuk | D71: Noten | E71: noten | F71: plant | G71: 8 | J71: ='Kostprijs berekening'!F109 -> 5.5
A72: Feijoa sellowiana | C72: Ananas Guave | E72: vrucht | F72: plant | G72: 5 | J72: ='Kostprijs berekening'!F110 -> 0.2095238095
A73: Ficus carica | B73: Brown Turkey | C73: Vijg | D73: Zacht fruit | E73: vijgen | F73: plant | G73: 13.1 | J73: ='Kostprijs berekening'!F111 -> 5.5
A74: Foeniculum vulgare | C74: Brons venkel | D74: Blad | E74: blad | F74: m2 | G74: 2.97 | J74: ='Kostprijs berekening'!F112 -> 5.5
A75: Gaultheria salal | C75: Appeltjes blad | D75: Blad | E75: blad | F75: m2 | G75: 30 | J75: ='Kostprijs berekening'!F113 -> 5.5
A76: Geum spp-. | C76: Nagelkruid | D76: Wortels | E76: wortel | F76: m2 | G76: 60 | J76: ='Kostprijs berekening'!F114 -> 5.5
A77: Ginkgo Biloba | C77: Ginko noot | D77: Noten | E77: noten | F77: plant | G77: 5 | J77: ='Kostprijs berekening'!F115 -> 5.5
A78: Gleditsia triacanthos | C78: Valse Christusdoorn | D78: Zaden | E78: zaden | F78: plant | G78: 4 | J78: ='Kostprijs berekening'!F116 -> 5.5
A79: Halesia carolina | C79: Sneeuwklokjesboom | E79: ?? | F79: plant | G79: 50 | J79: ='Kostprijs berekening'!F117 -> 5.5
A80: Helichrysum italicum | C80: Kerriekruid | D80: Blad | E80: blad | F80: m2 | G80: 60 | J80: ='Kostprijs berekening'!F118 -> 5.5
A81: Hemercallis | C81: Daglelie | D81: Bloem | E81: bloemen | F81: m2 | G81: 50 | J81: ='Kostprijs berekening'!F119 -> 5.5
A82: Hibiscus syriacus | B82: Marina | C82: Hibiscus, Altheastruik | D82: Bloem | E82: bloemen | F82: plant | G82: 30 | J82: ='Kostprijs berekening'!F120 -> 5.5
A83: Hippophae rhamnoides | B83: Pollmix (M) | C83: Duindoorn | D83: Zacht fruit | E83: bessen | F83: plant | G83: 10 | J83: ='Kostprijs berekening'!F121 -> 1.375
A84: Hosta spp. | C84: Hosta | E84: jonge scheut | F84: m2 | G84: 10 | J84: ='Kostprijs berekening'!F122 -> 5.5
A85: Hovenia Dulcis | C85: Japanse krentenboom | E85: vrucht | F85: plant | G85: 10.06 | J85: ='Kostprijs berekening'!F123 -> 4.4
A86: Humulus Lupulus | C86: Hop | E86: vrucht | F86: plant | G86: 12.5 | J86: ='Kostprijs berekening'!F124 -> 5.5
A87: Hydrangea serrata | C87: Thee hortensia | D87: Blad | E87: blad | F87: plant | G87: 30 | J87: ='Kostprijs berekening'!F125 -> 5.5
A88: Hypsizygus tessellatus | C88: Beukenzwam | D88: Paddenstoel | E88: paddenstoel | F88: plant | G88: 9.1 | J88: ='Kostprijs berekening'!F126 -> 5.5
A89: Ilex aquifolium | C89: Hulst | D89: Zacht fruit | E89: blad en bes | F89: plant | G89: 0 | J89: ='Kostprijs berekening'!F127 -> 4
A90: Juglans ailantifolia | C90: Japanse walnoot (hartnoot) | D90: Noten | E90: hartnoot | F90: plant | G90: 5.121237 | J90: ='Kostprijs berekening'!F128 -> 5.5
A91: Juglans cinerea | B91: Beckwith | C91: Witte walnoot, boternoot | D91: Noten | E91: boternoot | F91: plant | G91: 5.121237 | J91: ='Kostprijs berekening'!F129 -> 5.5
A92: Juglans nigra | B92: Bicentennial | C92: Zwarte walnoot | D92: Noten | E92: zwarte walnoot | F92: plant | G92: 5.121237 | J92: ='Kostprijs berekening'!F130 -> 5.5
A93: Juglans regia | B93: Broadview | C93: Walnoot | D93: Noten | E93: walnoot | F93: plant | G93: 5.121237 | J93: ='Kostprijs berekening'!F131 -> 5.5
A94: Laurus nobilis | C94: Keukenlaurier | D94: Blad | E94: blad en vrucht | F94: plant | G94: 60 | J94: ='Kostprijs berekening'!F132 -> 5.5
A95: Lentinula edodes | C95: Shiitake | D95: Paddenstoel | E95: paddenstoel | F95: plant | G95: 7 | J95: ='Kostprijs berekening'!F133 -> 5.5
A96: Lonicera caerulea | B96: Kamtschatica | C96: Honingbes | D96: Zacht fruit | E96: honingbes | F96: plant | G96: 10.06 | J96: ='Kostprijs berekening'!F134 -> 4.4
A97: lonicera caerulea (juli) | B97: Blue Velvet | C97: Honingbes | D97: Zacht fruit | E97: honingbes | F97: plant | G97: 10.06 | J97: ='Kostprijs berekening'!F135 -> 4.4
A98: Lycium barbarum | C98: Gojibes | D98: Zacht fruit | E98: gojibes | F98: plant | G98: 10 | J98: ='Kostprijs berekening'!F136 -> 4.4
A99: Magnolia x soulangeana | C99: Magnolia, beverboom | D99: Bloem | E99: bloemen | F99: plant | G99: 20 | J99: ='Kostprijs berekening'!F137 -> 5.5
A100: Mahonia aquifolium | B100: Smaragd | C100: Mahonie | D100: Zacht fruit | E100: bessen | F100: plant | G100: 8 | J100: ='Kostprijs berekening'!F138 -> 5.5
A101: Malus domestica (Bewaar) | C101: Appel | D101: Hard fruit | E101: appel | F101: plant | G101: 2.56 | J101: ='Kostprijs berekening'!F139 -> 0.1795918367
A102: Malus domestica (Hand) | C102: Appel | D102: Hard fruit | E102: appel | F102: plant | G102: 2.56 | J102: ='Kostprijs berekening'!F140 -> 0.1795918367
A103: Malus domestica (Laat) | C103: Appel (laat) | D103: Hard fruit | E103: appel | F103: plant | G103: 2.56 | J103: ='Kostprijs berekening'!F141 -> 0.1795918367
A104: Malus domestica (Midden) | C104: Appel (midden) | D104: Hard fruit | E104: appel | F104: plant | G104: 2.56 | J104: ='Kostprijs berekening'!F142 -> 0.1795918367
A105: Malus domestica (Vroeg) | C105: Appel (vroeg) | D105: Hard fruit | E105: appel | F105: plant | G105: 2.56 | J105: ='Kostprijs berekening'!F143 -> 0.1795918367
A106: Malus pumila | C106: Appel | D106: Hard fruit | E106: appel | F106: plant | G106: 2.56 | J106: ='Kostprijs berekening'!F144 -> 0.1795918367
A107: Mellissa off. | C107: Citroenmellise | D107: Blad | E107: blad | F107: m2 | G107: 60 | J107: ='Kostprijs berekening'!F145 -> 5.5
A108: Mentha spp. | C108: Munt | D108: Blad | E108: blad | F108: m2 | G108: 60 | J108: ='Kostprijs berekening'!F146 -> 5.5
A109: Mespilus germanica | B109: Nothingham | C109: Mispel | E109: vrucht | F109: plant | G109: 10 | J109: ='Kostprijs berekening'!F147 -> 5.5
A110: Monarda didyma | C110: Gewone bergamotplant | E110: blad en bloem | F110: m2 | G110: 60 | J110: ='Kostprijs berekening'!F148 -> 5.5
A111: Morus alba | C111: Witte moerbei | D111: Zacht fruit | E111: vrucht | F111: plant | G111: 10.63 | J111: ='Kostprijs berekening'!F149 -> 4
A112: Morus nigra | C112: Zwarte moerbei | D112: Zacht fruit | E112: vrucht | F112: plant | G112: 10.63 | J112: ='Kostprijs berekening'!F150 -> 4
A113: Myosotis spp. | C113: Vergeet mij nietje | E113: ?? | F113: plant | G113: 60 | J113: ='Kostprijs berekening'!F151 -> 5.5
A114: Myrica gale | C114: Wilde gagel | E114: vrucht | F114: plant | G114: 30 | J114: ='Kostprijs berekening'!F152 -> 5.5
A115: Myrica pensylvanica | C115: Wasgagel | E115: vrucht | F115: plant | G115: 30 | J115: ='Kostprijs berekening'!F153 -> 5.5
A116: Nepeta nervosa | C116: Kattekruid | D116: Blad | E116: blad | F116: m2 | G116: 60 | J116: ='Kostprijs berekening'!F154 -> 5.5
A117: Nepeta x. faassenii | C117: Grijs kattenkruid | D117: Blad | E117: blad | F117: m2 | G117: 60 | J117: ='Kostprijs berekening'!F155 -> 5.5
A118: Paulownia tomentosa | C118: Keizersboom | D118: Bloem | E118: bloemen | F118: plant | G118: 15 | J118: ='Kostprijs berekening'!F156 -> 5.5
A119: Persicaria odorata | C119: Vietnamese koriander | D119: Blad | E119: blad | F119: m2 | G119: 60 | J119: ='Kostprijs berekening'!F157 -> 5.5
A120: Phyllostachus bissetii 80 | B120: Aurea 80 | C120: Eetbare bamboe | E120: scheuten | F120: plant | G120: 12.5 | J120: ='Kostprijs berekening'!F158 -> 5.5
A121: Pinus Koraiensis | C121: Koreaanse den | D121: Zaden | E121: pijnboompitten | F121: plant | G121: 17.5 | J121: ='Kostprijs berekening'!F159 -> 5.5
A122: Pleurotus ostreatus | C122: Oesterzwam | D122: Paddenstoel | E122: paddenstoel | F122: plant | G122: 10 | J122: ='Kostprijs berekening'!F160 -> 5.5
A123: Poncirus trifoliata | C123: Wilde citroen | D123: Hard fruit | E123: vrucht | F123: plant | G123: 3 | J123: ='Kostprijs berekening'!F161 -> 5.5
A124: Populus canadensis | B124: Koster | C124: Populier | D124: Geen oogst | E124: ?? | F124: plant | G124: 0 | J124: ='Kostprijs berekening'!F162 -> 0
A125: Primula vulgaris | C125: Sleutel bloem | E125: blad en bloem | F125: m2 | G125: 60 | J125: ='Kostprijs berekening'!F163 -> 5.5
A126: Prunus armeniaca | B126: Goldcot | C126: Abrikoos | D126: Hard fruit | E126: abrikoos | F126: plant | G126: 4.09 | J126: ='Kostprijs berekening'!F164 -> 0.419047619
A127: Prunus avium | C127: Zoete kers | D127: Zacht fruit | E127: kersen | F127: plant | G127: 6.82 | J127: ='Kostprijs berekening'!F165 -> 1.833333333
A128: Prunus cerasifera | C128: Kerspruim | D128: Zacht fruit | E128: vrucht | F128: plant | G128: 8 | J128: ='Kostprijs berekening'!F166 -> 0.8979591837
A129: Prunus cerasus | C129: Zuurkers | D129: Zacht fruit | E129: vrucht | F129: plant | G129: 6.82 | J129: ='Kostprijs berekening'!F167 -> 1.833333333
A130: Prunus domestica | B130: Opal | C130: Pruim | D130: Hard fruit | E130: pruim | F130: plant | G130: 3.58 | J130: ='Kostprijs berekening'!F168 -> 0.8979591837
A131: Prunus dulcis | B131: Robijn | C131: Amandel | D131: Noten | E131: amandelnoot | F131: plant | G131: 8.7 | J131: ='Kostprijs berekening'!F169 -> 5.5
A132: Prunus insititia | C132: Mirabel | E132: mirabel | F132: plant | G132: 6.82 | J132: ='Kostprijs berekening'!F170 -> 0.5751633987
A133: Prunus persica | C133: Perzik | D133: Hard fruit | E133: vrucht | F133: plant | G133: 3.99 | J133: ='Kostprijs berekening'!F171 -> 0.2095238095
A134: Prunus persica nusipersica | C134: Nectarine | D134: Hard fruit | E134: vrucht | F134: plant | G134: 3.99 | J134: ='Kostprijs berekening'!F172 -> 0.2095238095
A135: Prunus salicina | C135: Perzik | D135: Hard fruit | E135: vrucht | F135: plant | G135: 6.98 | J135: ='Kostprijs berekening'!F173 -> 0.2095238095
A136: Prunus salicina x Prunus armeniaca | B136: Pluot | C136: Pruimabrikoos | D136: Hard fruit | E136: pruimabrikoos | F136: plant | G136: 6.98 | J136: ='Kostprijs berekening'!F174 -> 0.5751633987
A137: Prunus tomentosa | C137: Struikkers | E137: vrucht | F137: plant | G137: 6.82 | J137: ='Kostprijs berekening'!F175 -> 1.833333333
A138: Pulmonaria off. | C138: Longkruid | D138: Blad | E138: blad | F138: m2 | G138: 60 | J138: ='Kostprijs berekening'!F176 -> 5.5
A139: Punica granatum | C139: Granaatappel | D139: Hard fruit | E139: vrucht | F139: plant | G139: 6 | J139: ='Kostprijs berekening'!F177 -> 5.5
A140: Pyrus bretschneideri | C140: Chinapeer | D140: Hard fruit | E140: vrucht | F140: plant | G140: 3 | J140: ='Kostprijs berekening'!F178 -> 0.2
A141: Pyrus communis | B141: Conference | C141: Peer | D141: Hard fruit | E141: peer | F141: plant | G141: 1.92 | J141: ='Kostprijs berekening'!F179 -> 0.2
A142: Pyrus pyrifolia | B142: Nijsseiki 50 | C142: Nashi peer | D142: Hard fruit | E142: nashipeer | F142: plant | G142: 3 | J142: ='Kostprijs berekening'!F180 -> 0.2
A143: Quercus spp. | C143: Eik | D143: Noten | E143: eikels | F143: plant | G143: 0 | J143: ='Kostprijs berekening'!F181 -> 5.5
A144: Rhamnus frangula | C144: Vuilboom, sporkehout | D144: Geen oogst | E144: bijen | F144: plant | G144: 0 | J144: ='Kostprijs berekening'!F182 -> 0
A145: Rheum rabarberum | C145: Rabarber | E145: stelen | F145: plant | G145: 2.04 | J145: ='Kostprijs berekening'!F183 -> 5.5
A146: Rhus aromatica | C146: Sumac, limonadestruik | D146: Bloem | E146: bloemen | F146: plant | G146: 30 | J146: ='Kostprijs berekening'!F184 -> 5.5
A147: Rhus glabra | C147: Sumac | D147: Zacht fruit | E147: bessen | F147: plant | G147: 30 | J147: ='Kostprijs berekening'!F185 -> 5.5
A148: Ribes divaricatum | C148: Worchesterbes | D148: Zacht fruit | E148: worchesterbes | F148: plant | G148: 7.7 | J148: ='Kostprijs berekening'!F186 -> 2.444444444
A149: Ribes 'Josta' | B149: Jostabes | C149: Jostabes | D149: Zacht fruit | E149: jostabes | F149: plant | G149: 7.7 | J149: ='Kostprijs berekening'!F187 -> 2.444444444
A150: Ribes nigrum | C150: Zwarte bes | D150: Zacht fruit | E150: zwarte bes | F150: plant | G150: 7.7 | J150: ='Kostprijs berekening'!F188 -> 2.444444444
A151: Ribes rubrum | C151: Aalbes | D151: Zacht fruit | E151: aalbes | F151: plant | G151: 7.7 | J151: ='Kostprijs berekening'!F189 -> 2.444444444
A152: Ribes Uva-Crispa | C152: kruisbes | D152: Zacht fruit | E152: bessen | F152: plant | G152: 7.7 | J152: ='Kostprijs berekening'!F190 -> 4.4
A153: Ribes x. nidigrolaria | C153: Jostabes | D153: Zacht fruit | E153: jostabes | F153: plant | G153: 7.7 | J153: ='Kostprijs berekening'!F191 -> 2.444444444
A154: Robinia pseudoacacia | C154: Valse acacia | D154: Geen oogst | E154: stikstofbinder | F154: plant | G154: 12.5 | J154: ='Kostprijs berekening'!F192 -> 0
A155: Rosa rugosa | C155: Rimpelroos | E155: vrucht | F155: plant | G155: 5 | J155: ='Kostprijs berekening'!F193 -> 5.5
A156: Rosmarinum off. | C156: Rozemarijn | D156: Blad | E156: blad | F156: m2 | G156: 60 | J156: ='Kostprijs berekening'!F194 -> 5.5
A157: Rubus fruticosus | C157: Braam | D157: Zacht fruit | E157: vrucht | F157: plant | G157: 8 | J157: ='Kostprijs berekening'!F195 -> 4
A158: Rubus hibrids | B158: Lochness | C158: Tayberry, braamboos | D158: Zacht fruit | E158: vrucht | F158: plant | G158: 8 | J158: ='Kostprijs berekening'!F196 -> 5.176470588
A159: Rubus idaeus | B159: Autumn bliss | C159: framboos | D159: Zacht fruit | E159: framboos | F159: plant | G159: 8 | J159: ='Kostprijs berekening'!F197 -> 6.285714286
A160: Rubus loganobaccus | C160: Logan bes | D160: Zacht fruit | E160: vrucht | F160: plant | G160: 8 | J160: ='Kostprijs berekening'!F198 -> 5.176470588
A161: Rubus phoenicolasius | C161: Japanse wijnbes | D161: Zacht fruit | E161: vrucht | F161: plant | G161: 8 | J161: ='Kostprijs berekening'!F199 -> 5.5
A162: Ruta graveolens | C162: Wijnruit | D162: Blad | E162: blad | F162: m2 | G162: 60 | J162: ='Kostprijs berekening'!F200 -> 5.5
A163: Salvia off. | C163: Salie | D163: Blad | E163: blad | F163: m2 | G163: 60 | J163: ='Kostprijs berekening'!F201 -> 5.5
A164: Sambucus canadiensis | C164: Canadese vlier | E164: bloem en bes | F164: plant | G164: 7.7 | J164: ='Kostprijs berekening'!F202 -> 5.5
A165: Sambucus nigra | B165: Korsor | C165: Gewone vlier | E165: vrucht | F165: plant | G165: 7.7 | J165: ='Kostprijs berekening'!F203 -> 5.5
A166: Santolina spp. | C166: Heiligbloem | E166: ?? | F166: plant | G166: 60 | J166: ='Kostprijs berekening'!F204 -> 5.5
A167: Sassafras albidum | C167: Sassafras | D167: Blad | E167: blad | F167: plant | G167: 12.5 | J167: ='Kostprijs berekening'!F205 -> 5.5
A168: Schisandra spp. | C168: Schisandra | D168: Blad | E168: blad | F168: plant | G168: 12.5 | J168: ='Kostprijs berekening'!F206 -> 5.5
A169: Scutellaria galericulata | C169: Blauw glidkruid | E169: ?? | F169: plant | G169: 60 | J169: ='Kostprijs berekening'!F207 -> 5.5
A170: Solidago spp. | C170: Guldenroede | D170: Blad | E170: blad | F170: m2 | G170: 60 | J170: ='Kostprijs berekening'!F208 -> 5.5
A171: Sorbus aucuparia | C171: Lijserterbes | D171: Zacht fruit | E171: bessen | F171: plant | G171: 10 | J171: ='Kostprijs berekening'!F209 -> 2.444444444
A172: Sorbus domestica | C172: Peerlijserbes | D172: Zacht fruit | E172: bessen | F172: plant | G172: 3 | J172: ='Kostprijs berekening'!F210 -> 2.444444444
A173: Sorbus torminalis | C173: Elsbes | D173: Zacht fruit | E173: bessen | F173: plant | G173: 3 | J173: ='Kostprijs berekening'!F211 -> 2.444444444
A174: Staphylea pinnata | C174: Pimpernoot | D174: Noten | E174: noten | F174: plant | G174: 18 | J174: ='Kostprijs berekening'!F212 -> 5.5
A175: Symphytum officinale | C175: Smeerwortel | D175: Blad | E175: blad | F175: m2 | G175: 60 | J175: ='Kostprijs berekening'!F213 -> 5.5
A176: Tanacetum balsamita | C176: Balsem longkruid | D176: Blad | E176: blad | F176: m2 | G176: 60 | J176: ='Kostprijs berekening'!F214 -> 5.5
A177: Tanacetum parthenium | C177: Moederkruid | E177: blad en bloem | F177: m2 | G177: 60 | J177: ='Kostprijs berekening'!F215 -> 5.5
A178: Teucrium chamaedrys | C178: Echte gamander | D178: Blad | E178: blad | F178: m2 | G178: 60 | J178: ='Kostprijs berekening'!F216 -> 5.5
A179: Thymus Vulgaris | C179: Thijm | D179: Blad | E179: blad | F179: m2 | G179: 60 | J179: ='Kostprijs berekening'!F217 -> 5.5
A180: Tilia cordata | C180: Linde | D180: Blad | E180: blad | F180: plant | G180: 6 | J180: ='Kostprijs berekening'!F218 -> 5.5
A181: Toona sinensis | C181: Chinese mahonie | D181: Blad | E181: blad | F181: plant | G181: 19 | J181: ='Kostprijs berekening'!F219 -> 5.5
A182: Ugni Molinae | C182: Chileense guave | E182: vrucht | F182: plant | G182: 10 | J182: ='Kostprijs berekening'!F220 -> 5.5
A183: Ulmus laevis | C183: Fladderiep | D183: Geen oogst | E183: ?? | F183: plant | G183: 60 | J183: ='Kostprijs berekening'!F221 -> 0
A184: Urtica Dioica | C184: Brandnetel | D184: Blad | E184: blad | F184: m2 | G184: 20 | J184: ='Kostprijs berekening'!F222 -> 5.5
A185: Vaccinium Corymbosum | C185: Blauwe bes | D185: Zacht fruit | E185: bessen | F185: plant | G185: 6 | J185: ='Kostprijs berekening'!F223 -> 4.4
A186: Vaccinium Macrocarpon | C186: Cranberry | D186: Zacht fruit | E186: vrucht | F186: plant | G186: 7.7 | J186: ='Kostprijs berekening'!F224 -> 1.375
A187: Valeriana off. | C187: Valeriaan | D187: Wortels | E187: wortel | F187: m2 | G187: 60 | J187: ='Kostprijs berekening'!F225 -> 5.5
A188: Viburnum Lentago | C188: Schapenbes | D188: Zacht fruit | E188: vrucht | F188: plant | G188: 7.7 | J188: ='Kostprijs berekening'!F226 -> 4.4
A189: Viburnum setigerum | C189: Sneeuwbal | D189: Zacht fruit | E189: blad en bes | F189: plant | G189: 30 | J189: ='Kostprijs berekening'!F227 -> 5.5
A190: Vitis vinifera | C190: Druif | D190: Zacht fruit | E190: druif | F190: plant | G190: 2.66 | J190: ='Kostprijs berekening'!F228 -> 5.5
A191: Xanthoceras sorbifolium | C191: Chinesekastanje | D191: Noten | E191: kastanje | F191: plant | G191: 25 | J191: ='Kostprijs berekening'!F229 -> 5.5
A192: Zanthoxylum spp | B192: simulans | C192: Sechuan peper | D192: Zacht fruit | E192: bessen | F192: plant | G192: 56 | J192: ='Kostprijs berekening'!F230 -> 5.5
A193: Ziziphus jujube | C193: Chinese dadelboom | D193: Zacht fruit | E193: dadel | F193: plant | G193: 10 | J193: ='Kostprijs berekening'!F231 -> 5.5
A194: Chephalotaxus | F194: plant | G194: 5 | J194: ='Kostprijs berekening'!F232 -> 5.5
A195: ZR overig | F195: plant | G195: 0 | J195: ='Kostprijs berekening'!F233 -> 22
A196: ZR overig | F196: plant | G196: 0 | J196: ='Kostprijs berekening'!F234 -> 0
A197: ZR overig | F197: plant | G197: 0 | J197: ='Kostprijs berekening'!F235 -> 0
A198: ZR overig | F198: plant | G198: 0 | J198: ='Kostprijs berekening'!F236 -> 22

Sheet Investeringen
A3: Investeringen | B3: Al in eigendom? | C3: Aankoop | D3: Aanschafjaar | E3: Restwaarde | F3: Levensduur in jaren | H3: Soort financiering | I3: Rentepercentage | J3: Looptijd | K3: Berekend rentepercentage
A4: Grond | B4: Nee | E4: 0 | F4: 0 | H4: Eigen | I4: 0.02 | J4: 0 | K4: 0.005
A5: Gebouwen | B5: Nee | E5: 0 | F5: 0 | H5: Eigen | I5: 0.02 | J5: 0 | K5: 0.005
A6: Infrastructuur (paden) | B6: Nee | E6: 0 | F6: 0 | H6: Eigen | I6: 0.02 | J6: 0 | K6: 0.005
A7: Machines | B7: Nee | E7: 0 | F7: 0 | H7: Eigen | I7: 0.02 | J7: 0 | K7: 0.005
A8: Gereedschappen | B8: Nee | E8: 0 | F8: 0 | H8: Eigen | I8: 0.02 | J8: 0 | K8: 0.005
A9: Plantgoed lang | B9: Nee | E9: 0 | F9: 0 | H9: Eigen | I9: 0.02 | J9: 0 | K9: 0.005
A10: Plantgoed kort | B10: Nee | E10: 0 | F10: 0 | H10: Eigen | I10: 0.02 | J10: 0 | K10: 0.005
A11: Teeltondersteunende middelen | B11: Nee | E11: 0 | F11: 0 | H11: Eigen | I11: 0.02 | J11: 0 | K11: 0.005
A12: Ontwerp | B12: Nee | E12: 0 | F12: 0 | H12: Eigen | I12: 0.02 | J12: 0 | K12: 0.005
A13: Grondverzet | B13: Nee | E13: 0 | F13: 0 | H13: Eigen | I13: 0.02 | J13: 0 | K13: 0.005
A14: Plantgoed lang | B14: Nee | E14: 0 | F14: 0 | H14: Eigen | I14: 0.02 | J14: 0 | K14: 0.005
A15: Overig | B15: Nee | E15: 0 | F15: 0 | H15: Eigen | I15: 0.02 | J15: 0 | K15: 0.005
A16: Overig | B16: Nee | E16: 0 | F16: 0 | H16: Eigen | I16: 0.02 | J16: 0 | K16: 0.005
A17: Totaal | C17: =SUM(C4:C16) -> 0

Sheet Overige opbrengsten
A3: Vaste opbrengsten
A4: Aantal workshops per jaar | B4: 0 | C4: Totaal
A5: Prijs per persoon per workshop | B5: 250
A6: Gem. personen per workshop | B6: 0 | C6: Totaal
A7: Rondleidingen per jaar | B7: 0 | C7: Totaal
A8: Prijs persoon per rondleiding | B8: 10
A9: Gem. personen per rondleiding | B9: 0 | C9: Totaal
A10: Evenementen per jaar | B10: 0 | C10: Totaal
A11: Gem. prijs per evenement | B11: 20
A12: Overige vaste opbrengsten per jaar | B12: 0 | C12: Totaal
A14: Variabele opbrengsten
A15: Houtopbrengsten | B15: 0 | C15: Per ha
A16: Overige variabele opbrengsten | B16: 0 | C16: Per ha
A17: Afwaardering grond | B17: 0 | C17: Eenmalig per ha
A19: Subsidies en vergoedingen
A20: Biodiversiteit | B20: 0 | C20: Per jaar
A21: Klimaatadaptatie | B21: 0 | C21: Per jaar
A22: Koolstof vastlegging | B22: 0 | C22: Ton
A23: Koolstof vergoeding | B23: 0 | C23: Per ton
A24: Vul hier uw ESD in | B24: 0 | C24: Eenheid
A25: Vul hier uw vergoeding in | B25: 0 | C25: Eenheid
A26: Vul hier uw ESD in | B26: 0 | C26: Eenheid
A27: Vul hier uw vergoeding in | B27: 0 | C27: Eenheid
A28: Overige vergoedingen | B28: 0 | C28: Per jaar
A30: Subsidies en vergoedingen per ha
A31: Vul hier uw vergoeding in | B31: 0 | C31: Per ha
A32: GLB | B32: 0 | C32: Per ha
A33: Organische stof opbouw | B33: 0 | C33: % opbouw per jaar
A34: Organische stof vergoeding | B34: 0 | C34: Per % opbouw per ha
A35: Teeltvrije bufferzone langs alle percelen | B35: 0 | C35: Per ha
A36: Inzaaien akkerranden of FAB randen | B36: 0 | C36: Per ha
A37: Inzaaien groenbemester | B37: 0 | C37: Per ha
A38: Overige vergoedingen per ha | B38: 0 | C38: Per ha

Sheet Overige opbrengsten expert
A3: Vaste opbrengsten | B3: 1 | C3: 2 | D3: 3 | E3: 4 | F3: 5 | G3: 6 | H3: 7 | I3: 8 | J3: 9 | K3: 10 | L3: 11 | M3: 12 | N3: 13 | O3: 14 | P3: 15 | Q3: 16 | R3: 17 | S3: 18 | T3: 19 | U3: 20
A4: Workshops | B4: Workshops
A5: Aantal workshops per jaar | B5: ='Overige opbrengsten'!$B4 -> 0 | C5: ='Overige opbrengsten'!$B4 -> 0 | D5: ='Overige opbrengsten'!$B4 -> 0 | E5: ='Overige opbrengsten'!$B4 -> 0 | F5: ='Overige opbrengsten'!$B4 -> 0 | G5: ='Overige opbrengsten'!$B4 -> 0 | H5: ='Overige opbrengsten'!$B4 -> 0 | I5: ='Overige opbrengsten'!$B4 -> 0 | J5: ='Overige opbrengsten'!$B4 -> 0 | K5: ='Overige opbrengsten'!$B4 -> 0 | L5: ='Overige opbrengsten'!$B4 -> 0 | M5: ='Overige opbrengsten'!$B4 -> 0 | N5: ='Overige opbrengsten'!$B4 -> 0 | O5: ='Overige opbrengsten'!$B4 -> 0 | P5: ='Overige opbrengsten'!$B4 -> 0 | Q5: ='Overige opbrengsten'!$B4 -> 0 | R5: ='Overige opbrengsten'!$B4 -> 0 | S5: ='Overige opbrengsten'!$B4 -> 0 | T5: ='Overige opbrengsten'!$B4 -> 0 | U5: ='Overige opbrengsten'!$B4 -> 0
A6: Prijs per persoon per workshop | B6: ='Overige opbrengsten'!$B5 -> 250 | C6: ='Overige opbrengsten'!$B5 -> 250 | D6: ='Overige opbrengsten'!$B5 -> 250 | E6: ='Overige opbrengsten'!$B5 -> 250 | F6: ='Overige opbrengsten'!$B5 -> 250 | G6: ='Overige opbrengsten'!$B5 -> 250 | H6: ='Overige opbrengsten'!$B5 -> 250 | I6: ='Overige opbrengsten'!$B5 -> 250 | J6: ='Overige opbrengsten'!$B5 -> 250 | K6: ='Overige opbrengsten'!$B5 -> 250 | L6: ='Overige opbrengsten'!$B5 -> 250 | M6: ='Overige opbrengsten'!$B5 -> 250 | N6: ='Overige opbrengsten'!$B5 -> 250 | O6: ='Overige opbrengsten'!$B5 -> 250 | P6: ='Overige opbrengsten'!$B5 -> 250 | Q6: ='Overige opbrengsten'!$B5 -> 250 | R6: ='Overige opbrengsten'!$B5 -> 250 | S6: ='Overige opbrengsten'!$B5 -> 250 | T6: ='Overige opbrengsten'!$B5 -> 250 | U6: ='Overige opbrengsten'!$B5 -> 250
A7: Gem. personen per workshop | B7: ='Overige opbrengsten'!$B6 -> 0 | C7: ='Overige opbrengsten'!$B6 -> 0 | D7: ='Overige opbrengsten'!$B6 -> 0 | E7: ='Overige opbrengsten'!$B6 -> 0 | F7: ='Overige opbrengsten'!$B6 -> 0 | G7: ='Overige opbrengsten'!$B6 -> 0 | H7: ='Overige opbrengsten'!$B6 -> 0 | I7: ='Overige opbrengsten'!$B6 -> 0 | J7: ='Overige opbrengsten'!$B6 -> 0 | K7: ='Overige opbrengsten'!$B6 -> 0 | L7: ='Overige opbrengsten'!$B6 -> 0 | M7: ='Overige opbrengsten'!$B6 -> 0 | N7: ='Overige opbrengsten'!$B6 -> 0 | O7: ='Overige opbrengsten'!$B6 -> 0 | P7: ='Overige opbrengsten'!$B6 -> 0 | Q7: ='Overige opbrengsten'!$B6 -> 0 | R7: ='Overige opbrengsten'!$B6 -> 0 | S7: ='Overige opbrengsten'!$B6 -> 0 | T7: ='Overige opbrengsten'!$B6 -> 0 | U7: ='Overige opbrengsten'!$B6 -> 0
A8: Rondleidingen | B8: Rondleidingen
A9: Rondleidingen per jaar | B9: ='Overige opbrengsten'!$B7 -> 0 | C9: ='Overige opbrengsten'!$B7 -> 0 | D9: ='Overige opbrengsten'!$B7 -> 0 | E9: ='Overige opbrengsten'!$B7 -> 0 | F9: ='Overige opbrengsten'!$B7 -> 0 | G9: ='Overige opbrengsten'!$B7 -> 0 | H9: ='Overige opbrengsten'!$B7 -> 0 | I9: ='Overige opbrengsten'!$B7 -> 0 | J9: ='Overige opbrengsten'!$B7 -> 0 | K9: ='Overige opbrengsten'!$B7 -> 0 | L9: ='Overige opbrengsten'!$B7 -> 0 | M9: ='Overige opbrengsten'!$B7 -> 0 | N9: ='Overige opbrengsten'!$B7 -> 0 | O9: ='Overige opbrengsten'!$B7 -> 0 | P9: ='Overige opbrengsten'!$B7 -> 0 | Q9: ='Overige opbrengsten'!$B7 -> 0 | R9: ='Overige opbrengsten'!$B7 -> 0 | S9: ='Overige opbrengsten'!$B7 -> 0 | T9: ='Overige opbrengsten'!$B7 -> 0 | U9: ='Overige opbrengsten'!$B7 -> 0
A10: Prijs persoon per rondleiding | B10: ='Overige opbrengsten'!$B8 -> 10 | C10: ='Overige opbrengsten'!$B8 -> 10 | D10: ='Overige opbrengsten'!$B8 -> 10 | E10: ='Overige opbrengsten'!$B8 -> 10 | F10: ='Overige opbrengsten'!$B8 -> 10 | G10: ='Overige opbrengsten'!$B8 -> 10 | H10: ='Overige opbrengsten'!$B8 -> 10 | I10: ='Overige opbrengsten'!$B8 -> 10 | J10: ='Overige opbrengsten'!$B8 -> 10 | K10: ='Overige opbrengsten'!$B8 -> 10 | L10: ='Overige opbrengsten'!$B8 -> 10 | M10: ='Overige opbrengsten'!$B8 -> 10 | N10: ='Overige opbrengsten'!$B8 -> 10 | O10: ='Overige opbrengsten'!$B8 -> 10 | P10: ='Overige opbrengsten'!$B8 -> 10 | Q10: ='Overige opbrengsten'!$B8 -> 10 | R10: ='Overige opbrengsten'!$B8 -> 10 | S10: ='Overige opbrengsten'!$B8 -> 10 | T10: ='Overige opbrengsten'!$B8 -> 10 | U10: ='Overige opbrengsten'!$B8 -> 10
A11: Gem. personen per rondleiding | B11: ='Overige opbrengsten'!$B9 -> 0 | C11: ='Overige opbrengsten'!$B9 -> 0 | D11: ='Overige opbrengsten'!$B9 -> 0 | E11: ='Overige opbrengsten'!$B9 -> 0 | F11: ='Overige opbrengsten'!$B9 -> 0 | G11: ='Overige opbrengsten'!$B9 -> 0 | H11: ='Overige opbrengsten'!$B9 -> 0 | I11: ='Overige opbrengsten'!$B9 -> 0 | J11: ='Overige opbrengsten'!$B9 -> 0 | K11: ='Overige opbrengsten'!$B9 -> 0 | L11: ='Overige opbrengsten'!$B9 -> 0 | M11: ='Overige opbrengsten'!$B9 -> 0 | N11: ='Overige opbrengsten'!$B9 -> 0 | O11: ='Overige opbrengsten'!$B9 -> 0 | P11: ='Overige opbrengsten'!$B9 -> 0 | Q11: ='Overige opbrengsten'!$B9 -> 0 | R11: ='Overige opbrengsten'!$B9 -> 0 | S11: ='Overige opbrengsten'!$B9 -> 0 | T11: ='Overige opbrengsten'!$B9 -> 0 | U11: ='Overige opbrengsten'!$B9 -> 0
A12: Evenementen | B12: Evenementen
A13: Evenementen per jaar | B13: ='Overige opbrengsten'!$B10 -> 0 | C13: ='Overige opbrengsten'!$B10 -> 0 | D13: ='Overige opbrengsten'!$B10 -> 0 | E13: ='Overige opbrengsten'!$B10 -> 0 | F13: ='Overige opbrengsten'!$B10 -> 0 | G13: ='Overige opbrengsten'!$B10 -> 0 | H13: ='Overige opbrengsten'!$B10 -> 0 | I13: ='Overige opbrengsten'!$B10 -> 0 | J13: ='Overige opbrengsten'!$B10 -> 0 | K13: ='Overige opbrengsten'!$B10 -> 0 | L13: ='Overige opbrengsten'!$B10 -> 0 | M13: ='Overige opbrengsten'!$B10 -> 0 | N13: ='Overige opbrengsten'!$B10 -> 0 | O13: ='Overige opbrengsten'!$B10 -> 0 | P13: ='Overige opbrengsten'!$B10 -> 0 | Q13: ='Overige opbrengsten'!$B10 -> 0 | R13: ='Overige opbrengsten'!$B10 -> 0 | S13: ='Overige opbrengsten'!$B10 -> 0 | T13: ='Overige opbrengsten'!$B10 -> 0 | U13: ='Overige opbrengsten'!$B10 -> 0
A14: Gem. prijs per evenement | B14: ='Overige opbrengsten'!$B11 -> 20 | C14: ='Overige opbrengsten'!$B11 -> 20 | D14: ='Overige opbrengsten'!$B11 -> 20 | E14: ='Overige opbrengsten'!$B11 -> 20 | F14: ='Overige opbrengsten'!$B11 -> 20 | G14: ='Overige opbrengsten'!$B11 -> 20 | H14: ='Overige opbrengsten'!$B11 -> 20 | I14: ='Overige opbrengsten'!$B11 -> 20 | J14: ='Overige opbrengsten'!$B11 -> 20 | K14: ='Overige opbrengsten'!$B11 -> 20 | L14: ='Overige opbrengsten'!$B11 -> 20 | M14: ='Overige opbrengsten'!$B11 -> 20 | N14: ='Overige opbrengsten'!$B11 -> 20 | O14: ='Overige opbrengsten'!$B11 -> 20 | P14: ='Overige opbrengsten'!$B11 -> 20 | Q14: ='Overige opbrengsten'!$B11 -> 20 | R14: ='Overige opbrengsten'!$B11 -> 20 | S14: ='Overige opbrengsten'!$B11 -> 20 | T14: ='Overige opbrengsten'!$B11 -> 20 | U14: ='Overige opbrengsten'!$B11 -> 20
A15: Overige vaste opbrengsten per jaar | B15: ='Overige opbrengsten'!$B12 -> 0 | C15: ='Overige opbrengsten'!$B12 -> 0 | D15: ='Overige opbrengsten'!$B12 -> 0 | E15: ='Overige opbrengsten'!$B12 -> 0 | F15: ='Overige opbrengsten'!$B12 -> 0 | G15: ='Overige opbrengsten'!$B12 -> 0 | H15: ='Overige opbrengsten'!$B12 -> 0 | I15: ='Overige opbrengsten'!$B12 -> 0 | J15: ='Overige opbrengsten'!$B12 -> 0 | K15: ='Overige opbrengsten'!$B12 -> 0 | L15: ='Overige opbrengsten'!$B12 -> 0 | M15: ='Overige opbrengsten'!$B12 -> 0 | N15: ='Overige opbrengsten'!$B12 -> 0 | O15: ='Overige opbrengsten'!$B12 -> 0 | P15: ='Overige opbrengsten'!$B12 -> 0 | Q15: ='Overige opbrengsten'!$B12 -> 0 | R15: ='Overige opbrengsten'!$B12 -> 0 | S15: ='Overige opbrengsten'!$B12 -> 0 | T15: ='Overige opbrengsten'!$B12 -> 0 | U15: ='Overige opbrengsten'!$B12 -> 0
A17: Variabele opbrengsten | B17: 1 | C17: 2 | D17: 3 | E17: 4 | F17: 5 | G17: 6 | H17: 7 | I17: 8 | J17: 9 | K17: 10 | L17: 11 | M17: 12 | N17: 13 | O17: 14 | P17: 15 | Q17: 16 | R17: 17 | S17: 18 | T17: 19 | U17: 20
A18: Houtopbrengsten | B18: ='Overige opbrengsten'!$B$15 -> 0 | C18: ='Overige opbrengsten'!$B$15 -> 0 | D18: ='Overige opbrengsten'!$B$15 -> 0 | E18: ='Overige opbrengsten'!$B$15 -> 0 | F18: ='Overige opbrengsten'!$B$15 -> 0 | G18: ='Overige opbrengsten'!$B$15 -> 0 | H18: ='Overige opbrengsten'!$B$15 -> 0 | I18: ='Overige opbrengsten'!$B$15 -> 0 | J18: ='Overige opbrengsten'!$B$15 -> 0 | K18: ='Overige opbrengsten'!$B$15 -> 0 | L18: ='Overige opbrengsten'!$B$15 -> 0 | M18: ='Overige opbrengsten'!$B$15 -> 0 | N18: ='Overige opbrengsten'!$B$15 -> 0 | O18: ='Overige opbrengsten'!$B$15 -> 0 | P18: ='Overige opbrengsten'!$B$15 -> 0 | Q18: ='Overige opbrengsten'!$B$15 -> 0 | R18: ='Overige opbrengsten'!$B$15 -> 0 | S18: ='Overige opbrengsten'!$B$15 -> 0 | T18: ='Overige opbrengsten'!$B$15 -> 0 | U18: ='Overige opbrengsten'!$B$15 -> 0
A19: Overige variabele opbrengsten | B19: ='Overige opbrengsten'!$B16 -> 0 | C19: ='Overige opbrengsten'!$B16 -> 0 | D19: ='Overige opbrengsten'!$B16 -> 0 | E19: ='Overige opbrengsten'!$B16 -> 0 | F19: ='Overige opbrengsten'!$B16 -> 0 | G19: ='Overige opbrengsten'!$B16 -> 0 | H19: ='Overige opbrengsten'!$B16 -> 0 | I19: ='Overige opbrengsten'!$B16 -> 0 | J19: ='Overige opbrengsten'!$B16 -> 0 | K19: ='Overige opbrengsten'!$B16 -> 0 | L19: ='Overige opbrengsten'!$B16 -> 0 | M19: ='Overige opbrengsten'!$B16 -> 0 | N19: ='Overige opbrengsten'!$B16 -> 0 | O19: ='Overige opbrengsten'!$B16 -> 0 | P19: ='Overige opbrengsten'!$B16 -> 0 | Q19: ='Overige opbrengsten'!$B16 -> 0 | R19: ='Overige opbrengsten'!$B16 -> 0 | S19: ='Overige opbrengsten'!$B16 -> 0 | T19: ='Overige opbrengsten'!$B16 -> 0 | U19: ='Overige opbrengsten'!$B16 -> 0
A20: Afwaardering grond | B20: ='Overige opbrengsten'!B17 -> 0
A22: Subsidies en Vergoedingen | B22: 1 | C22: 2 | D22: 3 | E22: 4 | F22: 5 | G22: 6 | H22: 7 | I22: 8 | J22: 9 | K22: 10 | L22: 11 | M22: 12 | N22: 13 | O22: 14 | P22: 15 | Q22: 16 | R22: 17 | S22: 18 | T22: 19 | U22: 20
A23: Biodiversiteit | B23: ='Overige opbrengsten'!$B$20 -> 0 | C23: ='Overige opbrengsten'!$B$20 -> 0 | D23: ='Overige opbrengsten'!$B$20 -> 0 | E23: ='Overige opbrengsten'!$B$20 -> 0 | F23: ='Overige opbrengsten'!$B$20 -> 0 | G23: ='Overige opbrengsten'!$B$20 -> 0 | H23: ='Overige opbrengsten'!$B$20 -> 0 | I23: ='Overige opbrengsten'!$B$20 -> 0 | J23: ='Overige opbrengsten'!$B$20 -> 0 | K23: ='Overige opbrengsten'!$B$20 -> 0 | L23: ='Overige opbrengsten'!$B$20 -> 0 | M23: ='Overige opbrengsten'!$B$20 -> 0 | N23: ='Overige opbrengsten'!$B$20 -> 0 | O23: ='Overige opbrengsten'!$B$20 -> 0 | P23: ='Overige opbrengsten'!$B$20 -> 0 | Q23: ='Overige opbrengsten'!$B$20 -> 0 | R23: ='Overige opbrengsten'!$B$20 -> 0 | S23: ='Overige opbrengsten'!$B$20 -> 0 | T23: ='Overige opbrengsten'!$B$20 -> 0 | U23: ='Overige opbrengsten'!$B$20 -> 0
A24: Klimaatadaptatie | B24: ='Overige opbrengsten'!$B$21 -> 0 | C24: ='Overige opbrengsten'!$B$21 -> 0 | D24: ='Overige opbrengsten'!$B$21 -> 0 | E24: ='Overige opbrengsten'!$B$21 -> 0 | F24: ='Overige opbrengsten'!$B$21 -> 0 | G24: ='Overige opbrengsten'!$B$21 -> 0 | H24: ='Overige opbrengsten'!$B$21 -> 0 | I24: ='Overige opbrengsten'!$B$21 -> 0 | J24: ='Overige opbrengsten'!$B$21 -> 0 | K24: ='Overige opbrengsten'!$B$21 -> 0 | L24: ='Overige opbrengsten'!$B$21 -> 0 | M24: ='Overige opbrengsten'!$B$21 -> 0 | N24: ='Overige opbrengsten'!$B$21 -> 0 | O24: ='Overige opbrengsten'!$B$21 -> 0 | P24: ='Overige opbrengsten'!$B$21 -> 0 | Q24: ='Overige opbrengsten'!$B$21 -> 0 | R24: ='Overige opbrengsten'!$B$21 -> 0 | S24: ='Overige opbrengsten'!$B$21 -> 0 | T24: ='Overige opbrengsten'!$B$21 -> 0 | U24: ='Overige opbrengsten'!$B$21 -> 0
A25: Koolstof vastlegging | B25: ='Overige opbrengsten'!$B$22 -> 0 | C25: ='Overige opbrengsten'!$B$22 -> 0 | D25: ='Overige opbrengsten'!$B$22 -> 0 | E25: ='Overige opbrengsten'!$B$22 -> 0 | F25: ='Overige opbrengsten'!$B$22 -> 0 | G25: ='Overige opbrengsten'!$B$22 -> 0 | H25: ='Overige opbrengsten'!$B$22 -> 0 | I25: ='Overige opbrengsten'!$B$22 -> 0 | J25: ='Overige opbrengsten'!$B$22 -> 0 | K25: ='Overige opbrengsten'!$B$22 -> 0 | L25: ='Overige opbrengsten'!$B$22 -> 0 | M25: ='Overige opbrengsten'!$B$22 -> 0 | N25: ='Overige opbrengsten'!$B$22 -> 0 | O25: ='Overige opbrengsten'!$B$22 -> 0 | P25: ='Overige opbrengsten'!$B$22 -> 0 | Q25: ='Overige opbrengsten'!$B$22 -> 0 | R25: ='Overige opbrengsten'!$B$22 -> 0 | S25: ='Overige opbrengsten'!$B$22 -> 0 | T25: ='Overige opbrengsten'!$B$22 -> 0 | U25: ='Overige opbrengsten'!$B$22 -> 0
A26: Koolstof vergoeding | B26: ='Overige opbrengsten'!$B$23 -> 0 | C26: ='Overige opbrengsten'!$B$23 -> 0 | D26: ='Overige opbrengsten'!$B$23 -> 0 | E26: ='Overige opbrengsten'!$B$23 -> 0 | F26: ='Overige opbrengsten'!$B$23 -> 0 | G26: ='Overige opbrengsten'!$B$23 -> 0 | H26: ='Overige opbrengsten'!$B$23 -> 0 | I26: ='Overige opbrengsten'!$B$23 -> 0 | J26: ='Overige opbrengsten'!$B$23 -> 0 | K26: ='Overige opbrengsten'!$B$23 -> 0 | L26: ='Overige opbrengsten'!$B$23 -> 0 | M26: ='Overige opbrengsten'!$B$23 -> 0 | N26: ='Overige opbrengsten'!$B$23 -> 0 | O26: ='Overige opbrengsten'!$B$23 -> 0 | P26: ='Overige opbrengsten'!$B$23 -> 0 | Q26: ='Overige opbrengsten'!$B$23 -> 0 | R26: ='Overige opbrengsten'!$B$23 -> 0 | S26: ='Overige opbrengsten'!$B$23 -> 0 | T26: ='Overige opbrengsten'!$B$23 -> 0 | U26: ='Overige opbrengsten'!$B$23 -> 0
A27: Vul hier uw ESD in | B27: ='Overige opbrengsten'!$B$24 -> 0 | C27: ='Overige opbrengsten'!$B$24 -> 0 | D27: ='Overige opbrengsten'!$B$24 -> 0 | E27: ='Overige opbrengsten'!$B$24 -> 0 | F27: ='Overige opbrengsten'!$B$24 -> 0 | G27: ='Overige opbrengsten'!$B$24 -> 0 | H27: ='Overige opbrengsten'!$B$24 -> 0 | I27: ='Overige opbrengsten'!$B$24 -> 0 | J27: ='Overige opbrengsten'!$B$24 -> 0 | K27: ='Overige opbrengsten'!$B$24 -> 0 | L27: ='Overige opbrengsten'!$B$24 -> 0 | M27: ='Overige opbrengsten'!$B$24 -> 0 | N27: ='Overige opbrengsten'!$B$24 -> 0 | O27: ='Overige opbrengsten'!$B$24 -> 0 | P27: ='Overige opbrengsten'!$B$24 -> 0 | Q27: ='Overige opbrengsten'!$B$24 -> 0 | R27: ='Overige opbrengsten'!$B$24 -> 0 | S27: ='Overige opbrengsten'!$B$24 -> 0 | T27: ='Overige opbrengsten'!$B$24 -> 0 | U27: ='Overige opbrengsten'!$B$24 -> 0
A28: Vul hier uw vergoeding in | B28: ='Overige opbrengsten'!$B$25 -> 0 | C28: ='Overige opbrengsten'!$B$25 -> 0 | D28: ='Overige opbrengsten'!$B$25 -> 0 | E28: ='Overige opbrengsten'!$B$25 -> 0 | F28: ='Overige opbrengsten'!$B$25 -> 0 | G28: ='Overige opbrengsten'!$B$25 -> 0 | H28: ='Overige opbrengsten'!$B$25 -> 0 | I28: ='Overige opbrengsten'!$B$25 -> 0 | J28: ='Overige opbrengsten'!$B$25 -> 0 | K28: ='Overige opbrengsten'!$B$25 -> 0 | L28: ='Overige opbrengsten'!$B$25 -> 0 | M28: ='Overige opbrengsten'!$B$25 -> 0 | N28: ='Overige opbrengsten'!$B$25 -> 0 | O28: ='Overige opbrengsten'!$B$25 -> 0 | P28: ='Overige opbrengsten'!$B$25 -> 0 | Q28: ='Overige opbrengsten'!$B$25 -> 0 | R28: ='Overige opbrengsten'!$B$25 -> 0 | S28: ='Overige opbrengsten'!$B$25 -> 0 | T28: ='Overige opbrengsten'!$B$25 -> 0 | U28: ='Overige opbrengsten'!$B$25 -> 0
A29: Vul hier uw ESD in | B29: ='Overige opbrengsten'!$B$26 -> 0 | C29: ='Overige opbrengsten'!$B$26 -> 0 | D29: ='Overige opbrengsten'!$B$26 -> 0 | E29: ='Overige opbrengsten'!$B$26 -> 0 | F29: ='Overige opbrengsten'!$B$26 -> 0 | G29: ='Overige opbrengsten'!$B$26 -> 0 | H29: ='Overige opbrengsten'!$B$26 -> 0 | I29: ='Overige opbrengsten'!$B$26 -> 0 | J29: ='Overige opbrengsten'!$B$26 -> 0 | K29: ='Overige opbrengsten'!$B$26 -> 0 | L29: ='Overige opbrengsten'!$B$26 -> 0 | M29: ='Overige opbrengsten'!$B$26 -> 0 | N29: ='Overige opbrengsten'!$B$26 -> 0 | O29: ='Overige opbrengsten'!$B$26 -> 0 | P29: ='Overige opbrengsten'!$B$26 -> 0 | Q29: ='Overige opbrengsten'!$B$26 -> 0 | R29: ='Overige opbrengsten'!$B$26 -> 0 | S29: ='Overige opbrengsten'!$B$26 -> 0 | T29: ='Overige opbrengsten'!$B$26 -> 0 | U29: ='Overige opbrengsten'!$B$26 -> 0
A30: Vul hier uw vergoeding in | B30: ='Overige opbrengsten'!$B$27 -> 0 | C30: ='Overige opbrengsten'!$B$27 -> 0 | D30: ='Overige opbrengsten'!$B$27 -> 0 | E30: ='Overige opbrengsten'!$B$27 -> 0 | F30: ='Overige opbrengsten'!$B$27 -> 0 | G30: ='Overige opbrengsten'!$B$27 -> 0 | H30: ='Overige opbrengsten'!$B$27 -> 0 | I30: ='Overige opbrengsten'!$B$27 -> 0 | J30: ='Overige opbrengsten'!$B$27 -> 0 | K30: ='Overige opbrengsten'!$B$27 -> 0 | L30: ='Overige opbrengsten'!$B$27 -> 0 | M30: ='Overige opbrengsten'!$B$27 -> 0 | N30: ='Overige opbrengsten'!$B$27 -> 0 | O30: ='Overige opbrengsten'!$B$27 -> 0 | P30: ='Overige opbrengsten'!$B$27 -> 0 | Q30: ='Overige opbrengsten'!$B$27 -> 0 | R30: ='Overige opbrengsten'!$B$27 -> 0 | S30: ='Overige opbrengsten'!$B$27 -> 0 | T30: ='Overige opbrengsten'!$B$27 -> 0 | U30: ='Overige opbrengsten'!$B$27 -> 0
A31: Overige vergoedingen | B31: ='Overige opbrengsten'!$B$28 -> 0 | C31: ='Overige opbrengsten'!$B$28 -> 0 | D31: ='Overige opbrengsten'!$B$28 -> 0 | E31: ='Overige opbrengsten'!$B$28 -> 0 | F31: ='Overige opbrengsten'!$B$28 -> 0 | G31: ='Overige opbrengsten'!$B$28 -> 0 | H31: ='Overige opbrengsten'!$B$28 -> 0 | I31: ='Overige opbrengsten'!$B$28 -> 0 | J31: ='Overige opbrengsten'!$B$28 -> 0 | K31: ='Overige opbrengsten'!$B$28 -> 0 | L31: ='Overige opbrengsten'!$B$28 -> 0 | M31: ='Overige opbrengsten'!$B$28 -> 0 | N31: ='Overige opbrengsten'!$B$28 -> 0 | O31: ='Overige opbrengsten'!$B$28 -> 0 | P31: ='Overige opbrengsten'!$B$28 -> 0 | Q31: ='Overige opbrengsten'!$B$28 -> 0 | R31: ='Overige opbrengsten'!$B$28 -> 0 | S31: ='Overige opbrengsten'!$B$28 -> 0 | T31: ='Overige opbrengsten'!$B$28 -> 0 | U31: ='Overige opbrengsten'!$B$28 -> 0
A32: Subsidies en Vergoedingen per ha
A33: Vul hier uw vergoeding in | B33: ='Overige opbrengsten'!$B31 -> 0 | C33: ='Overige opbrengsten'!$B31 -> 0 | D33: ='Overige opbrengsten'!$B31 -> 0 | E33: ='Overige opbrengsten'!$B31 -> 0 | F33: ='Overige opbrengsten'!$B31 -> 0 | G33: ='Overige opbrengsten'!$B31 -> 0 | H33: ='Overige opbrengsten'!$B31 -> 0 | I33: ='Overige opbrengsten'!$B31 -> 0 | J33: ='Overige opbrengsten'!$B31 -> 0 | K33: ='Overige opbrengsten'!$B31 -> 0 | L33: ='Overige opbrengsten'!$B31 -> 0 | M33: ='Overige opbrengsten'!$B31 -> 0 | N33: ='Overige opbrengsten'!$B31 -> 0 | O33: ='Overige opbrengsten'!$B31 -> 0 | P33: ='Overige opbrengsten'!$B31 -> 0 | Q33: ='Overige opbrengsten'!$B31 -> 0 | R33: ='Overige opbrengsten'!$B31 -> 0 | S33: ='Overige opbrengsten'!$B31 -> 0 | T33: ='Overige opbrengsten'!$B31 -> 0 | U33: ='Overige opbrengsten'!$B31 -> 0
A34: GLB | B34: ='Overige opbrengsten'!$B$32 -> 0 | C34: ='Overige opbrengsten'!$B$32 -> 0 | D34: ='Overige opbrengsten'!$B$32 -> 0 | E34: ='Overige opbrengsten'!$B$32 -> 0 | F34: ='Overige opbrengsten'!$B$32 -> 0 | G34: ='Overige opbrengsten'!$B$32 -> 0 | H34: ='Overige opbrengsten'!$B$32 -> 0 | I34: ='Overige opbrengsten'!$B$32 -> 0 | J34: ='Overige opbrengsten'!$B$32 -> 0 | K34: ='Overige opbrengsten'!$B$32 -> 0 | L34: ='Overige opbrengsten'!$B$32 -> 0 | M34: ='Overige opbrengsten'!$B$32 -> 0 | N34: ='Overige opbrengsten'!$B$32 -> 0 | O34: ='Overige opbrengsten'!$B$32 -> 0 | P34: ='Overige opbrengsten'!$B$32 -> 0 | Q34: ='Overige opbrengsten'!$B$32 -> 0 | R34: ='Overige opbrengsten'!$B$32 -> 0 | S34: ='Overige opbrengsten'!$B$32 -> 0 | T34: ='Overige opbrengsten'!$B$32 -> 0 | U34: ='Overige opbrengsten'!$B$32 -> 0
A35: Organische stof opbouw | B35: ='Overige opbrengsten'!$B$33 -> 0 | C35: ='Overige opbrengsten'!$B$33 -> 0 | D35: ='Overige opbrengsten'!$B$33 -> 0 | E35: ='Overige opbrengsten'!$B$33 -> 0 | F35: ='Overige opbrengsten'!$B$33 -> 0 | G35: ='Overige opbrengsten'!$B$33 -> 0 | H35: ='Overige opbrengsten'!$B$33 -> 0 | I35: ='Overige opbrengsten'!$B$33 -> 0 | J35: ='Overige opbrengsten'!$B$33 -> 0 | K35: ='Overige opbrengsten'!$B$33 -> 0 | L35: ='Overige opbrengsten'!$B$33 -> 0 | M35: ='Overige opbrengsten'!$B$33 -> 0 | N35: ='Overige opbrengsten'!$B$33 -> 0 | O35: ='Overige opbrengsten'!$B$33 -> 0 | P35: ='Overige opbrengsten'!$B$33 -> 0 | Q35: ='Overige opbrengsten'!$B$33 -> 0 | R35: ='Overige opbrengsten'!$B$33 -> 0 | S35: ='Overige opbrengsten'!$B$33 -> 0 | T35: ='Overige opbrengsten'!$B$33 -> 0 | U35: ='Overige opbrengsten'!$B$33 -> 0
A36: Organische stof vergoeding | B36: ='Overige opbrengsten'!$B$34 -> 0 | C36: ='Overige opbrengsten'!$B$34 -> 0 | D36: ='Overige opbrengsten'!$B$34 -> 0 | E36: ='Overige opbrengsten'!$B$34 -> 0 | F36: ='Overige opbrengsten'!$B$34 -> 0 | G36: ='Overige opbrengsten'!$B$34 -> 0 | H36: ='Overige opbrengsten'!$B$34 -> 0 | I36: ='Overige opbrengsten'!$B$34 -> 0 | J36: ='Overige opbrengsten'!$B$34 -> 0 | K36: ='Overige opbrengsten'!$B$34 -> 0 | L36: ='Overige opbrengsten'!$B$34 -> 0 | M36: ='Overige opbrengsten'!$B$34 -> 0 | N36: ='Overige opbrengsten'!$B$34 -> 0 | O36: ='Overige opbrengsten'!$B$34 -> 0 | P36: ='Overige opbrengsten'!$B$34 -> 0 | Q36: ='Overige opbrengsten'!$B$34 -> 0 | R36: ='Overige opbrengsten'!$B$34 -> 0 | S36: ='Overige opbrengsten'!$B$34 -> 0 | T36: ='Overige opbrengsten'!$B$34 -> 0 | U36: ='Overige opbrengsten'!$B$34 -> 0
A37: Teeltvrije bufferzone langs alle percelen | B37: ='Overige opbrengsten'!$B$35 -> 0 | C37: ='Overige opbrengsten'!$B$35 -> 0 | D37: ='Overige opbrengsten'!$B$35 -> 0 | E37: ='Overige opbrengsten'!$B$35 -> 0 | F37: ='Overige opbrengsten'!$B$35 -> 0 | G37: ='Overige opbrengsten'!$B$35 -> 0 | H37: ='Overige opbrengsten'!$B$35 -> 0 | I37: ='Overige opbrengsten'!$B$35 -> 0 | J37: ='Overige opbrengsten'!$B$35 -> 0 | K37: ='Overige opbrengsten'!$B$35 -> 0 | L37: ='Overige opbrengsten'!$B$35 -> 0 | M37: ='Overige opbrengsten'!$B$35 -> 0 | N37: ='Overige opbrengsten'!$B$35 -> 0 | O37: ='Overige opbrengsten'!$B$35 -> 0 | P37: ='Overige opbrengsten'!$B$35 -> 0 | Q37: ='Overige opbrengsten'!$B$35 -> 0 | R37: ='Overige opbrengsten'!$B$35 -> 0 | S37: ='Overige opbrengsten'!$B$35 -> 0 | T37: ='Overige opbrengsten'!$B$35 -> 0 | U37: ='Overige opbrengsten'!$B$35 -> 0
A38: Inzaaien akkerranden of FAB randen | B38: ='Overige opbrengsten'!$B$36 -> 0 | C38: ='Overige opbrengsten'!$B$36 -> 0 | D38: ='Overige opbrengsten'!$B$36 -> 0 | E38: ='Overige opbrengsten'!$B$36 -> 0 | F38: ='Overige opbrengsten'!$B$36 -> 0 | G38: ='Overige opbrengsten'!$B$36 -> 0 | H38: ='Overige opbrengsten'!$B$36 -> 0 | I38: ='Overige opbrengsten'!$B$36 -> 0 | J38: ='Overige opbrengsten'!$B$36 -> 0 | K38: ='Overige opbrengsten'!$B$36 -> 0 | L38: ='Overige opbrengsten'!$B$36 -> 0 | M38: ='Overige opbrengsten'!$B$36 -> 0 | N38: ='Overige opbrengsten'!$B$36 -> 0 | O38: ='Overige opbrengsten'!$B$36 -> 0 | P38: ='Overige opbrengsten'!$B$36 -> 0 | Q38: ='Overige opbrengsten'!$B$36 -> 0 | R38: ='Overige opbrengsten'!$B$36 -> 0 | S38: ='Overige opbrengsten'!$B$36 -> 0 | T38: ='Overige opbrengsten'!$B$36 -> 0 | U38: ='Overige opbrengsten'!$B$36 -> 0
A39: Inzaaien groenbemester | B39: ='Overige opbrengsten'!$B$37 -> 0 | C39: ='Overige opbrengsten'!$B$37 -> 0 | D39: ='Overige opbrengsten'!$B$37 -> 0 | E39: ='Overige opbrengsten'!$B$37 -> 0 | F39: ='Overige opbrengsten'!$B$37 -> 0 | G39: ='Overige opbrengsten'!$B$37 -> 0 | H39: ='Overige opbrengsten'!$B$37 -> 0 | I39: ='Overige opbrengsten'!$B$37 -> 0 | J39: ='Overige opbrengsten'!$B$37 -> 0 | K39: ='Overige opbrengsten'!$B$37 -> 0 | L39: ='Overige opbrengsten'!$B$37 -> 0 | M39: ='Overige opbrengsten'!$B$37 -> 0 | N39: ='Overige opbrengsten'!$B$37 -> 0 | O39: ='Overige opbrengsten'!$B$37 -> 0 | P39: ='Overige opbrengsten'!$B$37 -> 0 | Q39: ='Overige opbrengsten'!$B$37 -> 0 | R39: ='Overige opbrengsten'!$B$37 -> 0 | S39: ='Overige opbrengsten'!$B$37 -> 0 | T39: ='Overige opbrengsten'!$B$37 -> 0 | U39: ='Overige opbrengsten'!$B$37 -> 0
A40: Overige vergoedingen per ha | B40: ='Overige opbrengsten'!$B$38 -> 0 | C40: ='Overige opbrengsten'!$B$38 -> 0 | D40: ='Overige opbrengsten'!$B$38 -> 0 | E40: ='Overige opbrengsten'!$B$38 -> 0 | F40: ='Overige opbrengsten'!$B$38 -> 0 | G40: ='Overige opbrengsten'!$B$38 -> 0 | H40: ='Overige opbrengsten'!$B$38 -> 0 | I40: ='Overige opbrengsten'!$B$38 -> 0 | J40: ='Overige opbrengsten'!$B$38 -> 0 | K40: ='Overige opbrengsten'!$B$38 -> 0 | M40: ='Overige opbrengsten'!$B$38 -> 0 | N40: ='Overige opbrengsten'!$B$38 -> 0 | O40: ='Overige opbrengsten'!$B$38 -> 0 | P40: ='Overige opbrengsten'!$B$38 -> 0 | Q40: ='Overige opbrengsten'!$B$38 -> 0 | R40: ='Overige opbrengsten'!$B$38 -> 0 | S40: ='Overige opbrengsten'!$B$38 -> 0 | T40: ='Overige opbrengsten'!$B$38 -> 0 | U40: ='Overige opbrengsten'!$B$38 -> 0

Sheet Kosten
A3: Vaste kosten
A4: Pacht per ha | B4: 0 | C4: Per ha
A5: Certificeringen | B5: 0 | C5: Totaal
A6: Website, logo & design | B6: 0 | C6: Totaal
A7: Marketing & verkoop | B7: 0 | C7: Jaarlijks budget
A8: Nutsvoorzieningen | C8: Totaal
A9: Advies | B9: 0 | C9: Totaal
A10: Opstartkosten | B10: 0 | C10: Totaal
A11: Onderhoud | B11: 0 | C11: Van de totale afschrijving
A12: Verzekeringen | B12: 0 | C12: Per ha
A13: Overige kosten | B13: 0 | C13: Totaal
A14: Onvoorziene kosten | B14: 0 | C14: van de totale kosten
A16: Variabele kosten
A17: Verpakkingsmateriaal | B17: 0 | C17: Per kg
A18: Transport | B18: 0 | C18: Per kg
A19: Opslag | B19: 0 | C19: Per kg
A20: Overige variabele kosten | B20: 0 | C20: Per kg
A22: Betaalde arbeid per ha
A23: Aanleg
A24: Uur per jaar (per ha) eigen arbeid
A25: Uur per jaar (per ha) externe arbeid
A26: Prijs per uur externe arbeid | B26: 20
A27: Schouw en inspectie
A28: Uur per jaar (per ha) eigen arbeid | B28: 0
A29: Uur per jaar (per ha) externe arbeid
A30: Prijs per uur externe arbeid | B30: 20
A31: (groen) Onderhoud
A32: Uur per jaar (per ha) eigen arbeid | B32: 0
A33: Uur per jaar (per ha) externe arbeid
A34: Prijs per uur externe arbeid | B34: 20
A35: Organisatie & logistiek
A36: Uur per jaar eigen arbeid | B36: 0
A37: Uur per jaar externe arbeid
A38: Prijs per uur externe arbeid | B38: 20
A39: Rondleidingen
A40: Uur per jaar eigen arbeid | B40: 0
A41: Uur per jaar externe arbeid
A42: Prijs per uur externe arbeid | B42: 20
A43: Evenementen
A44: Uur per jaar eigen arbeid
A45: Uur per jaar externe arbeid
A46: Prijs per uur externe arbeid | B46: 20
A47: Workshops
A48: Uur per jaar eigen arbeid
A49: Uur per jaar externe arbeid
A50: Prijs per uur externe arbeid | B50: 20
A51: Overige arbeid
A52: Uur per jaar (per ha) eigen arbeid
A53: Uur per jaar (per ha) externe arbeid
A54: Prijs per uur externe arbeid | B54: 30
A56: Oogst arbeid
A57: Percentage eigen arbeid | B57: 0
A58: Percentage externe arbeid | B58: 1
A59: Prijs per uur externe arbeid | B59: 22
A61: Totaal eigen uren | B61: =B24+B28+B32+B36+B40+B44+B48+B52 -> 0

Sheet Kosten expert
A3: Vaste kosten | B3: 1 | C3: 2 | D3: 3 | E3: 4 | F3: 5 | G3: 6 | H3: 7 | I3: 8 | J3: 9 | K3: 10 | L3: 11 | M3: 12 | N3: 13 | O3: 14 | P3: 15 | Q3: 16 | R3: 17 | S3: 18 | T3: 19 | U3: 20
A4: Pacht per ha | B4: =Kosten!$B4 -> 0 | C4: =Kosten!$B4 -> 0 | D4: =Kosten!$B4 -> 0 | E4: =Kosten!$B4 -> 0 | F4: =Kosten!$B4 -> 0 | G4: =Kosten!$B4 -> 0 | H4: =Kosten!$B4 -> 0 | I4: =Kosten!$B4 -> 0 | J4: =Kosten!$B4 -> 0 | K4: =Kosten!$B4 -> 0 | L4: =Kosten!$B4 -> 0 | M4: =Kosten!$B4 -> 0 | N4: =Kosten!$B4 -> 0 | O4: =Kosten!$B4 -> 0 | P4: =Kosten!$B4 -> 0 | Q4: =Kosten!$B4 -> 0 | R4: =Kosten!$B4 -> 0 | S4: =Kosten!$B4 -> 0 | T4: =Kosten!$B4 -> 0 | U4: =Kosten!$B4 -> 0
A5: Certificeringen | B5: =Kosten!$B5 -> 0 | C5: =Kosten!$B5 -> 0 | D5: =Kosten!$B5 -> 0 | E5: =Kosten!$B5 -> 0 | F5: =Kosten!$B5 -> 0 | G5: =Kosten!$B5 -> 0 | H5: =Kosten!$B5 -> 0 | I5: =Kosten!$B5 -> 0 | J5: =Kosten!$B5 -> 0 | K5: =Kosten!$B5 -> 0 | L5: =Kosten!$B5 -> 0 | M5: =Kosten!$B5 -> 0 | N5: =Kosten!$B5 -> 0 | O5: =Kosten!$B5 -> 0 | P5: =Kosten!$B5 -> 0 | Q5: =Kosten!$B5 -> 0 | R5: =Kosten!$B5 -> 0 | S5: =Kosten!$B5 -> 0 | T5: =Kosten!$B5 -> 0 | U5: =Kosten!$B5 -> 0
A6: Website, logo & design | B6: =Kosten!$B6 -> 0 | C6: =Kosten!$B6 -> 0 | D6: =Kosten!$B6 -> 0 | E6: =Kosten!$B6 -> 0 | F6: =Kosten!$B6 -> 0 | G6: =Kosten!$B6 -> 0 | H6: =Kosten!$B6 -> 0 | I6: =Kosten!$B6 -> 0 | J6: =Kosten!$B6 -> 0 | K6: =Kosten!$B6 -> 0 | L6: =Kosten!$B6 -> 0 | M6: =Kosten!$B6 -> 0 | N6: =Kosten!$B6 -> 0 | O6: =Kosten!$B6 -> 0 | P6: =Kosten!$B6 -> 0 | Q6: =Kosten!$B6 -> 0 | R6: =Kosten!$B6 -> 0 | S6: =Kosten!$B6 -> 0 | T6: =Kosten!$B6 -> 0 | U6: =Kosten!$B6 -> 0
A7: Marketing & verkoop | B7: =Kosten!$B7 -> 0 | C7: =Kosten!$B7 -> 0 | D7: =Kosten!$B7 -> 0 | E7: =Kosten!$B7 -> 0 | F7: =Kosten!$B7 -> 0 | G7: =Kosten!$B7 -> 0 | H7: =Kosten!$B7 -> 0 | I7: =Kosten!$B7 -> 0 | J7: =Kosten!$B7 -> 0 | K7: =Kosten!$B7 -> 0 | L7: =Kosten!$B7 -> 0 | M7: =Kosten!$B7 -> 0 | N7: =Kosten!$B7 -> 0 | O7: =Kosten!$B7 -> 0 | P7: =Kosten!$B7 -> 0 | Q7: =Kosten!$B7 -> 0 | R7: =Kosten!$B7 -> 0 | S7: =Kosten!$B7 -> 0 | T7: =Kosten!$B7 -> 0 | U7: =Kosten!$B7 -> 0
A8: Nutsvoorzieningen | B8: =Kosten!$B8 -> 0 | C8: =Kosten!$B8 -> 0 | D8: =Kosten!$B8 -> 0 | E8: =Kosten!$B8 -> 0 | F8: =Kosten!$B8 -> 0 | G8: =Kosten!$B8 -> 0 | H8: =Kosten!$B8 -> 0 | I8: =Kosten!$B8 -> 0 | J8: =Kosten!$B8 -> 0 | K8: =Kosten!$B8 -> 0 | L8: =Kosten!$B8 -> 0 | M8: =Kosten!$B8 -> 0 | N8: =Kosten!$B8 -> 0 | O8: =Kosten!$B8 -> 0 | P8: =Kosten!$B8 -> 0 | Q8: =Kosten!$B8 -> 0 | R8: =Kosten!$B8 -> 0 | S8: =Kosten!$B8 -> 0 | T8: =Kosten!$B8 -> 0 | U8: =Kosten!$B8 -> 0
A9: Advies | B9: =Kosten!$B9 -> 0 | C9: =Kosten!$B9 -> 0 | D9: =Kosten!$B9 -> 0 | E9: =Kosten!$B9 -> 0 | F9: =Kosten!$B9 -> 0 | G9: =Kosten!$B9 -> 0 | H9: =Kosten!$B9 -> 0 | I9: =Kosten!$B9 -> 0 | J9: =Kosten!$B9 -> 0 | K9: =Kosten!$B9 -> 0 | L9: =Kosten!$B9 -> 0 | M9: =Kosten!$B9 -> 0 | N9: =Kosten!$B9 -> 0 | O9: =Kosten!$B9 -> 0 | P9: =Kosten!$B9 -> 0 | Q9: =Kosten!$B9 -> 0 | R9: =Kosten!$B9 -> 0 | S9: =Kosten!$B9 -> 0 | T9: =Kosten!$B9 -> 0 | U9: =Kosten!$B9 -> 0
A10: Opstartkosten | B10: =Kosten!$B10 -> 0 | C10: 0 | D10: 0 | E10: 0 | F10: 0 | G10: 0 | H10: 0 | I10: 0 | J10: 0 | K10: 0 | L10: 0 | M10: 0 | N10: 0 | O10: 0 | P10: 0 | Q10: 0 | R10: 0 | S10: 0 | T10: 0 | U10: 0
A11: Onderhoud | B11: =Kosten!$B11 -> 0 | C11: =Kosten!$B11 -> 0 | D11: =Kosten!$B11 -> 0 | E11: =Kosten!$B11 -> 0 | F11: =Kosten!$B11 -> 0 | G11: =Kosten!$B11 -> 0 | H11: =Kosten!$B11 -> 0 | I11: =Kosten!$B11 -> 0 | J11: =Kosten!$B11 -> 0 | K11: =Kosten!$B11 -> 0 | L11: =Kosten!$B11 -> 0 | M11: =Kosten!$B11 -> 0 | N11: =Kosten!$B11 -> 0 | O11: =Kosten!$B11 -> 0 | P11: =Kosten!$B11 -> 0 | Q11: =Kosten!$B11 -> 0 | R11: =Kosten!$B11 -> 0 | S11: =Kosten!$B11 -> 0 | T11: =Kosten!$B11 -> 0 | U11: =Kosten!$B11 -> 0
A12: Verzekeringen | B12: =Kosten!$B12 -> 0 | C12: =Kosten!$B12 -> 0 | D12: =Kosten!$B12 -> 0 | E12: =Kosten!$B12 -> 0 | F12: =Kosten!$B12 -> 0 | G12: =Kosten!$B12 -> 0 | H12: =Kosten!$B12 -> 0 | I12: =Kosten!$B12 -> 0 | J12: =Kosten!$B12 -> 0 | K12: =Kosten!$B12 -> 0 | L12: =Kosten!$B12 -> 0 | M12: =Kosten!$B12 -> 0 | N12: =Kosten!$B12 -> 0 | O12: =Kosten!$B12 -> 0 | P12: =Kosten!$B12 -> 0 | Q12: =Kosten!$B12 -> 0 | R12: =Kosten!$B12 -> 0 | S12: =Kosten!$B12 -> 0 | T12: =Kosten!$B12 -> 0 | U12: =Kosten!$B12 -> 0
A13: Overige kosten | B13: =Kosten!$B13 -> 0 | C13: =Kosten!$B13 -> 0 | D13: =Kosten!$B13 -> 0 | E13: =Kosten!$B13 -> 0 | F13: =Kosten!$B13 -> 0 | G13: =Kosten!$B13 -> 0 | H13: =Kosten!$B13 -> 0 | I13: =Kosten!$B13 -> 0 | J13: =Kosten!$B13 -> 0 | K13: =Kosten!$B13 -> 0 | L13: =Kosten!$B13 -> 0 | M13: =Kosten!$B13 -> 0 | N13: =Kosten!$B13 -> 0 | O13: =Kosten!$B13 -> 0 | P13: =Kosten!$B13 -> 0 | Q13: =Kosten!$B13 -> 0 | R13: =Kosten!$B13 -> 0 | S13: =Kosten!$B13 -> 0 | T13: =Kosten!$B13 -> 0 | U13: =Kosten!$B13 -> 0
A14: Onvoorziene kosten van totaal | B14: =Kosten!$B14 -> 0 | C14: =Kosten!$B14 -> 0 | D14: =Kosten!$B14 -> 0 | E14: =Kosten!$B14 -> 0 | F14: =Kosten!$B14 -> 0 | G14: =Kosten!$B14 -> 0 | H14: =Kosten!$B14 -> 0 | I14: =Kosten!$B14 -> 0 | J14: =Kosten!$B14 -> 0 | K14: =Kosten!$B14 -> 0 | L14: =Kosten!$B14 -> 0 | M14: =Kosten!$B14 -> 0 | N14: =Kosten!$B14 -> 0 | O14: =Kosten!$B14 -> 0 | P14: =Kosten!$B14 -> 0 | Q14: =Kosten!$B14 -> 0 | R14: =Kosten!$B14 -> 0 | S14: =Kosten!$B14 -> 0 | T14: =Kosten!$B14 -> 0 | U14: =Kosten!$B14 -> 0
A16: Variabele kosten | B16: 1 | C16: 2 | D16: 3 | E16: 4 | F16: 5 | G16: 6 | H16: 7 | I16: 8 | J16: 9 | K16: 10 | L16: 11 | M16: 12 | N16: 13 | O16: 14 | P16: 15 | Q16: 16 | R16: 17 | S16: 18 | T16: 19 | U16: 20
A17: Verpakkingsmateriaal per kg | B17: =Kosten!$B17 -> 0 | C17: =Kosten!$B17 -> 0 | D17: =Kosten!$B17 -> 0 | E17: =Kosten!$B17 -> 0 | F17: =Kosten!$B17 -> 0 | G17: =Kosten!$B17 -> 0 | H17: =Kosten!$B17 -> 0 | I17: =Kosten!$B17 -> 0 | J17: =Kosten!$B17 -> 0 | K17: =Kosten!$B17 -> 0 | L17: =Kosten!$B17 -> 0 | M17: =Kosten!$B17 -> 0 | N17: =Kosten!$B17 -> 0 | O17: =Kosten!$B17 -> 0 | P17: =Kosten!$B17 -> 0 | Q17: =Kosten!$B17 -> 0 | R17: =Kosten!$B17 -> 0 | S17: =Kosten!$B17 -> 0 | T17: =Kosten!$B17 -> 0 | U17: =Kosten!$B17 -> 0
A18: Transport per kg | B18: =Kosten!$B18 -> 0 | C18: =Kosten!$B18 -> 0 | D18: =Kosten!$B18 -> 0 | E18: =Kosten!$B18 -> 0 | F18: =Kosten!$B18 -> 0 | G18: =Kosten!$B18 -> 0 | H18: =Kosten!$B18 -> 0 | I18: =Kosten!$B18 -> 0 | J18: =Kosten!$B18 -> 0 | K18: =Kosten!$B18 -> 0 | L18: =Kosten!$B18 -> 0 | M18: =Kosten!$B18 -> 0 | N18: =Kosten!$B18 -> 0 | O18: =Kosten!$B18 -> 0 | P18: =Kosten!$B18 -> 0 | Q18: =Kosten!$B18 -> 0 | R18: =Kosten!$B18 -> 0 | S18: =Kosten!$B18 -> 0 | T18: =Kosten!$B18 -> 0 | U18: =Kosten!$B18 -> 0
A19: Opslag per kg | B19: =Kosten!$B19 -> 0 | C19: =Kosten!$B19 -> 0 | D19: =Kosten!$B19 -> 0 | E19: =Kosten!$B19 -> 0 | F19: =Kosten!$B19 -> 0 | G19: =Kosten!$B19 -> 0 | H19: =Kosten!$B19 -> 0 | I19: =Kosten!$B19 -> 0 | J19: =Kosten!$B19 -> 0 | K19: =Kosten!$B19 -> 0 | L19: =Kosten!$B19 -> 0 | M19: =Kosten!$B19 -> 0 | N19: =Kosten!$B19 -> 0 | O19: =Kosten!$B19 -> 0 | P19: =Kosten!$B19 -> 0 | Q19: =Kosten!$B19 -> 0 | R19: =Kosten!$B19 -> 0 | S19: =Kosten!$B19 -> 0 | T19: =Kosten!$B19 -> 0 | U19: =Kosten!$B19 -> 0
A20: Overige variabele kosten per kg | B20: =Kosten!$B20 -> 0 | C20: =Kosten!$B20 -> 0 | D20: =Kosten!$B20 -> 0 | E20: =Kosten!$B20 -> 0 | F20: =Kosten!$B20 -> 0 | G20: =Kosten!$B20 -> 0 | H20: =Kosten!$B20 -> 0 | I20: =Kosten!$B20 -> 0 | J20: =Kosten!$B20 -> 0 | K20: =Kosten!$B20 -> 0 | L20: =Kosten!$B20 -> 0 | M20: =Kosten!$B20 -> 0 | N20: =Kosten!$B20 -> 0 | O20: =Kosten!$B20 -> 0 | P20: =Kosten!$B20 -> 0 | Q20: =Kosten!$B20 -> 0 | R20: =Kosten!$B20 -> 0 | S20: =Kosten!$B20 -> 0 | T20: =Kosten!$B20 -> 0 | U20: =Kosten!$B20 -> 0
A22: Betaalde arbeid per ha | B22: 1 | C22: 2 | D22: 3 | E22: 4 | F22: 5 | G22: 6 | H22: 7 | I22: 8 | J22: 9 | K22: 10 | L22: 11 | M22: 12 | N22: 13 | O22: 14 | P22: 15 | Q22: 16 | R22: 17 | S22: 18 | T22: 19 | U22: 20
A23: Aanleg | D23: Aanleg
A24: Uur per jaar (per ha) eigen arbeid | B24: =Kosten!$B24 -> 0 | C24: =Kosten!$B24 -> 0 | D24: =Kosten!$B24 -> 0 | E24: =Kosten!$B24 -> 0 | F24: =Kosten!$B24 -> 0 | G24: =Kosten!$B24 -> 0 | H24: =Kosten!$B24 -> 0 | I24: =Kosten!$B24 -> 0 | J24: =Kosten!$B24 -> 0 | K24: =Kosten!$B24 -> 0 | L24: =Kosten!$B24 -> 0 | M24: =Kosten!$B24 -> 0 | N24: =Kosten!$B24 -> 0 | O24: =Kosten!$B24 -> 0 | P24: =Kosten!$B24 -> 0 | Q24: =Kosten!$B24 -> 0 | R24: =Kosten!$B24 -> 0 | S24: =Kosten!$B24 -> 0 | T24: =Kosten!$B24 -> 0 | U24: =Kosten!$B24 -> 0
A25: Uur per jaar (per ha) externe arbeid | B25: =Kosten!$B25 -> 0 | C25: =Kosten!$B25 -> 0 | D25: =Kosten!$B25 -> 0 | E25: =Kosten!$B25 -> 0 | F25: =Kosten!$B25 -> 0 | G25: =Kosten!$B25 -> 0 | H25: =Kosten!$B25 -> 0 | I25: =Kosten!$B25 -> 0 | J25: =Kosten!$B25 -> 0 | K25: =Kosten!$B25 -> 0 | L25: =Kosten!$B25 -> 0 | M25: =Kosten!$B25 -> 0 | N25: =Kosten!$B25 -> 0 | O25: =Kosten!$B25 -> 0 | P25: =Kosten!$B25 -> 0 | Q25: =Kosten!$B25 -> 0 | R25: =Kosten!$B25 -> 0 | S25: =Kosten!$B25 -> 0 | T25: =Kosten!$B25 -> 0 | U25: =Kosten!$B25 -> 0
A26: Prijs per uur externe arbeid | B26: =Kosten!$B26 -> 20 | C26: =Kosten!$B26 -> 20 | D26: =Kosten!$B26 -> 20 | E26: =Kosten!$B26 -> 20 | F26: =Kosten!$B26 -> 20 | G26: =Kosten!$B26 -> 20 | H26: =Kosten!$B26 -> 20 | I26: =Kosten!$B26 -> 20 | J26: =Kosten!$B26 -> 20 | K26: =Kosten!$B26 -> 20 | L26: =Kosten!$B26 -> 20 | M26: =Kosten!$B26 -> 20 | N26: =Kosten!$B26 -> 20 | O26: =Kosten!$B26 -> 20 | P26: =Kosten!$B26 -> 20 | Q26: =Kosten!$B26 -> 20 | R26: =Kosten!$B26 -> 20 | S26: =Kosten!$B26 -> 20 | T26: =Kosten!$B26 -> 20 | U26: =Kosten!$B26 -> 20
A27: Schouw en inspectie | D27: Schouw en inspectie
A28: Uur per jaar (per ha) eigen arbeid | B28: =Kosten!$B28 -> 0 | C28: =Kosten!$B28 -> 0 | D28: =Kosten!$B28 -> 0 | E28: =Kosten!$B28 -> 0 | F28: =Kosten!$B28 -> 0 | G28: =Kosten!$B28 -> 0 | H28: =Kosten!$B28 -> 0 | I28: =Kosten!$B28 -> 0 | J28: =Kosten!$B28 -> 0 | K28: =Kosten!$B28 -> 0 | L28: =Kosten!$B28 -> 0 | M28: =Kosten!$B28 -> 0 | N28: =Kosten!$B28 -> 0 | O28: =Kosten!$B28 -> 0 | P28: =Kosten!$B28 -> 0 | Q28: =Kosten!$B28 -> 0 | R28: =Kosten!$B28 -> 0 | S28: =Kosten!$B28 -> 0 | T28: =Kosten!$B28 -> 0 | U28: =Kosten!$B28 -> 0
A29: Uur per jaar (per ha) externe arbeid | B29: =Kosten!$B29 -> 0 | C29: =Kosten!$B29 -> 0 | D29: =Kosten!$B29 -> 0 | E29: =Kosten!$B29 -> 0 | F29: =Kosten!$B29 -> 0 | G29: =Kosten!$B29 -> 0 | H29: =Kosten!$B29 -> 0 | I29: =Kosten!$B29 -> 0 | J29: =Kosten!$B29 -> 0 | K29: =Kosten!$B29 -> 0 | L29: =Kosten!$B29 -> 0 | M29: =Kosten!$B29 -> 0 | N29: =Kosten!$B29 -> 0 | O29: =Kosten!$B29 -> 0 | P29: =Kosten!$B29 -> 0 | Q29: =Kosten!$B29 -> 0 | R29: =Kosten!$B29 -> 0 | S29: =Kosten!$B29 -> 0 | T29: =Kosten!$B29 -> 0 | U29: =Kosten!$B29 -> 0
A30: Prijs per uur externe arbeid | B30: =Kosten!$B30 -> 20 | C30: =Kosten!$B30 -> 20 | D30: =Kosten!$B30 -> 20 | E30: =Kosten!$B30 -> 20 | F30: =Kosten!$B30 -> 20 | G30: =Kosten!$B30 -> 20 | H30: =Kosten!$B30 -> 20 | I30: =Kosten!$B30 -> 20 | J30: =Kosten!$B30 -> 20 | K30: =Kosten!$B30 -> 20 | L30: =Kosten!$B30 -> 20 | M30: =Kosten!$B30 -> 20 | N30: =Kosten!$B30 -> 20 | O30: =Kosten!$B30 -> 20 | P30: =Kosten!$B30 -> 20 | Q30: =Kosten!$B30 -> 20 | R30: =Kosten!$B30 -> 20 | S30: =Kosten!$B30 -> 20 | T30: =Kosten!$B30 -> 20 | U30: =Kosten!$B30 -> 20
A31: (groen) Onderhoud | D31: (groen) onderhoud
A32: Uur per jaar (per ha) eigen arbeid | B32: =Kosten!$B32 -> 0 | C32: =Kosten!$B32 -> 0 | D32: =Kosten!$B32 -> 0 | E32: =Kosten!$B32 -> 0 | F32: =Kosten!$B32 -> 0 | G32: =Kosten!$B32 -> 0 | H32: =Kosten!$B32 -> 0 | I32: =Kosten!$B32 -> 0 | J32: =Kosten!$B32 -> 0 | K32: =Kosten!$B32 -> 0 | L32: =Kosten!$B32 -> 0 | M32: =Kosten!$B32 -> 0 | N32: =Kosten!$B32 -> 0 | O32: =Kosten!$B32 -> 0 | P32: =Kosten!$B32 -> 0 | Q32: =Kosten!$B32 -> 0 | R32: =Kosten!$B32 -> 0 | S32: =Kosten!$B32 -> 0 | T32: =Kosten!$B32 -> 0 | U32: =Kosten!$B32 -> 0
A33: Uur per jaar (per ha) externe arbeid | B33: =Kosten!$B33 -> 0 | C33: =Kosten!$B33 -> 0 | D33: =Kosten!$B33 -> 0 | E33: =Kosten!$B33 -> 0 | F33: =Kosten!$B33 -> 0 | G33: =Kosten!$B33 -> 0 | H33: =Kosten!$B33 -> 0 | I33: =Kosten!$B33 -> 0 | J33: =Kosten!$B33 -> 0 | K33: =Kosten!$B33 -> 0 | L33: =Kosten!$B33 -> 0 | M33: =Kosten!$B33 -> 0 | N33: =Kosten!$B33 -> 0 | O33: =Kosten!$B33 -> 0 | P33: =Kosten!$B33 -> 0 | Q33: =Kosten!$B33 -> 0 | R33: =Kosten!$B33 -> 0 | S33: =Kosten!$B33 -> 0 | T33: =Kosten!$B33 -> 0 | U33: =Kosten!$B33 -> 0
A34: Prijs per uur externe arbeid | B34: =Kosten!$B34 -> 20 | C34: =Kosten!$B34 -> 20 | D34: =Kosten!$B34 -> 20 | E34: =Kosten!$B34 -> 20 | F34: =Kosten!$B34 -> 20 | G34: =Kosten!$B34 -> 20 | H34: =Kosten!$B34 -> 20 | I34: =Kosten!$B34 -> 20 | J34: =Kosten!$B34 -> 20 | K34: =Kosten!$B34 -> 20 | L34: =Kosten!$B34 -> 20 | M34: =Kosten!$B34 -> 20 | N34: =Kosten!$B34 -> 20 | O34: =Kosten!$B34 -> 20 | P34: =Kosten!$B34 -> 20 | Q34: =Kosten!$B34 -> 20 | R34: =Kosten!$B34 -> 20 | S34: =Kosten!$B34 -> 20 | T34: =Kosten!$B34 -> 20 | U34: =Kosten!$B34 -> 20
A35: Organisatie & logistiek | D35: Organisatie & logistiek
A36: Uur per jaar eigen arbeid | B36: =Kosten!$B36 -> 0 | C36: =Kosten!$B36 -> 0 | D36: =Kosten!$B36 -> 0 | E36: =Kosten!$B36 -> 0 | F36: =Kosten!$B36 -> 0 | G36: =Kosten!$B36 -> 0 | H36: =Kosten!$B36 -> 0 | I36: =Kosten!$B36 -> 0 | J36: =Kosten!$B36 -> 0 | K36: =Kosten!$B36 -> 0 | L36: =Kosten!$B36 -> 0 | M36: =Kosten!$B36 -> 0 | N36: =Kosten!$B36 -> 0 | O36: =Kosten!$B36 -> 0 | P36: =Kosten!$B36 -> 0 | Q36: =Kosten!$B36 -> 0 | R36: =Kosten!$B36 -> 0 | S36: =Kosten!$B36 -> 0 | T36: =Kosten!$B36 -> 0 | U36: =Kosten!$B36 -> 0
A37: Uur per jaar externe arbeid | B37: =Kosten!$B$37 -> 0 | C37: =Kosten!$B$37 -> 0 | D37: =Kosten!$B$37 -> 0 | E37: =Kosten!$B$37 -> 0 | F37: =Kosten!$B$37 -> 0 | G37: =Kosten!$B$37 -> 0 | H37: =Kosten!$B$37 -> 0 | I37: =Kosten!$B$37 -> 0 | J37: =Kosten!$B$37 -> 0 | K37: =Kosten!$B$37 -> 0 | L37: =Kosten!$B$37 -> 0 | M37: =Kosten!$B$37 -> 0 | N37: =Kosten!$B$37 -> 0 | O37: =Kosten!$B$37 -> 0 | P37: =Kosten!$B$37 -> 0 | Q37: =Kosten!$B$37 -> 0 | R37: =Kosten!$B$37 -> 0 | S37: =Kosten!$B$37 -> 0 | T37: =Kosten!$B$37 -> 0 | U37: =Kosten!$B$37 -> 0
A38: Prijs per uur externe arbeid | B38: =Kosten!$B38 -> 20 | C38: =Kosten!$B38 -> 20 | D38: =Kosten!$B38 -> 20 | E38: =Kosten!$B38 -> 20 | F38: =Kosten!$B38 -> 20 | G38: =Kosten!$B38 -> 20 | H38: =Kosten!$B38 -> 20 | I38: =Kosten!$B38 -> 20 | J38: =Kosten!$B38 -> 20 | K38: =Kosten!$B38 -> 20 | L38: =Kosten!$B38 -> 20 | M38: =Kosten!$B38 -> 20 | N38: =Kosten!$B38 -> 20 | O38: =Kosten!$B38 -> 20 | P38: =Kosten!$B38 -> 20 | Q38: =Kosten!$B38 -> 20 | R38: =Kosten!$B38 -> 20 | S38: =Kosten!$B38 -> 20 | T38: =Kosten!$B38 -> 20 | U38: =Kosten!$B38 -> 20
A39: Rondleidingen | D39: Rondleidingen
A40: Uur per jaar eigen arbeid | B40: =Kosten!$B40 -> 0 | C40: =Kosten!$B40 -> 0 | D40: =Kosten!$B40 -> 0 | E40: =Kosten!$B40 -> 0 | F40: =Kosten!$B40 -> 0 | G40: =Kosten!$B40 -> 0 | H40: =Kosten!$B40 -> 0 | I40: =Kosten!$B40 -> 0 | J40: =Kosten!$B40 -> 0 | K40: =Kosten!$B40 -> 0 | L40: =Kosten!$B40 -> 0 | M40: =Kosten!$B40 -> 0 | N40: =Kosten!$B40 -> 0 | O40: =Kosten!$B40 -> 0 | P40: =Kosten!$B40 -> 0 | Q40: =Kosten!$B40 -> 0 | R40: =Kosten!$B40 -> 0 | S40: =Kosten!$B40 -> 0 | T40: =Kosten!$B40 -> 0 | U40: =Kosten!$B40 -> 0
A41: Uur per jaar externe arbeid | B41: =Kosten!$B41 -> 0 | C41: =Kosten!$B41 -> 0 | D41: =Kosten!$B41 -> 0 | E41: =Kosten!$B41 -> 0 | F41: =Kosten!$B41 -> 0 | G41: =Kosten!$B41 -> 0 | H41: =Kosten!$B41 -> 0 | I41: =Kosten!$B41 -> 0 | J41: =Kosten!$B41 -> 0 | K41: =Kosten!$B41 -> 0 | L41: =Kosten!$B41 -> 0 | M41: =Kosten!$B41 -> 0 | N41: =Kosten!$B41 -> 0 | O41: =Kosten!$B41 -> 0 | P41: =Kosten!$B41 -> 0 | Q41: =Kosten!$B41 -> 0 | R41: =Kosten!$B41 -> 0 | S41: =Kosten!$B41 -> 0 | T41: =Kosten!$B41 -> 0 | U41: =Kosten!$B41 -> 0
A42: Prijs per uur externe arbeid | B42: =Kosten!$B42 -> 20 | C42: =Kosten!$B42 -> 20 | D42: =Kosten!$B42 -> 20 | E42: =Kosten!$B42 -> 20 | F42: =Kosten!$B42 -> 20 | G42: =Kosten!$B42 -> 20 | H42: =Kosten!$B42 -> 20 | I42: =Kosten!$B42 -> 20 | J42: =Kosten!$B42 -> 20 | K42: =Kosten!$B42 -> 20 | L42: =Kosten!$B42 -> 20 | M42: =Kosten!$B42 -> 20 | N42: =Kosten!$B42 -> 20 | O42: =Kosten!$B42 -> 20 | P42: =Kosten!$B42 -> 20 | Q42: =Kosten!$B42 -> 20 | R42: =Kosten!$B42 -> 20 | S42: =Kosten!$B42 -> 20 | T42: =Kosten!$B42 -> 20 | U42: =Kosten!$B42 -> 20
A43: Evenementen | D43: Evenementen
A44: Uur per jaar eigen arbeid | B44: =Kosten!$B44 -> 0 | C44: =Kosten!$B44 -> 0 | D44: =Kosten!$B44 -> 0 | E44: =Kosten!$B44 -> 0 | F44: =Kosten!$B44 -> 0 | G44: =Kosten!$B44 -> 0 | H44: =Kosten!$B44 -> 0 | I44: =Kosten!$B44 -> 0 | J44: =Kosten!$B44 -> 0 | K44: =Kosten!$B44 -> 0 | L44: =Kosten!$B44 -> 0 | M44: =Kosten!$B44 -> 0 | N44: =Kosten!$B44 -> 0 | O44: =Kosten!$B44 -> 0 | P44: =Kosten!$B44 -> 0 | Q44: =Kosten!$B44 -> 0 | R44: =Kosten!$B44 -> 0 | S44: =Kosten!$B44 -> 0 | T44: =Kosten!$B44 -> 0 | U44: =Kosten!$B44 -> 0
A45: Uur per jaar externe arbeid | B45: =Kosten!$B45 -> 0 | C45: =Kosten!$B45 -> 0 | D45: =Kosten!$B45 -> 0 | E45: =Kosten!$B45 -> 0 | F45: =Kosten!$B45 -> 0 | G45: =Kosten!$B45 -> 0 | H45: =Kosten!$B45 -> 0 | I45: =Kosten!$B45 -> 0 | J45: =Kosten!$B45 -> 0 | K45: =Kosten!$B45 -> 0 | L45: =Kosten!$B45 -> 0 | M45: =Kosten!$B45 -> 0 | N45: =Kosten!$B45 -> 0 | O45: =Kosten!$B45 -> 0 | P45: =Kosten!$B45 -> 0 | Q45: =Kosten!$B45 -> 0 | R45: =Kosten!$B45 -> 0 | S45: =Kosten!$B45 -> 0 | T45: =Kosten!$B45 -> 0 | U45: =Kosten!$B45 -> 0
A46: Prijs per uur externe arbeid | B46: =Kosten!$B46 -> 20 | C46: =Kosten!$B46 -> 20 | D46: =Kosten!$B46 -> 20 | E46: =Kosten!$B46 -> 20 | F46: =Kosten!$B46 -> 20 | G46: =Kosten!$B46 -> 20 | H46: =Kosten!$B46 -> 20 | I46: =Kosten!$B46 -> 20 | J46: =Kosten!$B46 -> 20 | K46: =Kosten!$B46 -> 20 | L46: =Kosten!$B46 -> 20 | M46: =Kosten!$B46 -> 20 | N46: =Kosten!$B46 -> 20 | O46: =Kosten!$B46 -> 20 | P46: =Kosten!$B46 -> 20 | Q46: =Kosten!$B46 -> 20 | R46: =Kosten!$B46 -> 20 | S46: =Kosten!$B46 -> 20 | T46: =Kosten!$B46 -> 20 | U46: =Kosten!$B46 -> 20
A47: Workshops | D47: Workshops
A48: Uur per jaar eigen arbeid | B48: =Kosten!$B48 -> 0 | C48: =Kosten!$B48 -> 0 | D48: =Kosten!$B48 -> 0 | E48: =Kosten!$B48 -> 0 | F48: =Kosten!$B48 -> 0 | G48: =Kosten!$B48 -> 0 | H48: =Kosten!$B48 -> 0 | I48: =Kosten!$B48 -> 0 | J48: =Kosten!$B48 -> 0 | K48: =Kosten!$B48 -> 0 | L48: =Kosten!$B48 -> 0 | M48: =Kosten!$B48 -> 0 | N48: =Kosten!$B48 -> 0 | O48: =Kosten!$B48 -> 0 | P48: =Kosten!$B48 -> 0 | Q48: =Kosten!$B48 -> 0 | R48: =Kosten!$B48 -> 0 | S48: =Kosten!$B48 -> 0 | T48: =Kosten!$B48 -> 0 | U48: =Kosten!$B48 -> 0
A49: Uur per jaar externe arbeid | B49: =Kosten!$B49 -> 0 | C49: =Kosten!$B49 -> 0 | D49: =Kosten!$B49 -> 0 | E49: =Kosten!$B49 -> 0 | F49: =Kosten!$B49 -> 0 | G49: =Kosten!$B49 -> 0 | H49: =Kosten!$B49 -> 0 | I49: =Kosten!$B49 -> 0 | J49: =Kosten!$B49 -> 0 | K49: =Kosten!$B49 -> 0 | L49: =Kosten!$B49 -> 0 | M49: =Kosten!$B49 -> 0 | N49: =Kosten!$B49 -> 0 | O49: =Kosten!$B49 -> 0 | P49: =Kosten!$B49 -> 0 | Q49: =Kosten!$B49 -> 0 | R49: =Kosten!$B49 -> 0 | S49: =Kosten!$B49 -> 0 | T49: =Kosten!$B49 -> 0 | U49: =Kosten!$B49 -> 0
A50: Prijs per uur externe arbeid | B50: =Kosten!$B50 -> 20 | C50: =Kosten!$B50 -> 20 | D50: =Kosten!$B50 -> 20 | E50: =Kosten!$B50 -> 20 | F50: =Kosten!$B50 -> 20 | G50: =Kosten!$B50 -> 20 | H50: =Kosten!$B50 -> 20 | I50: =Kosten!$B50 -> 20 | J50: =Kosten!$B50 -> 20 | K50: =Kosten!$B50 -> 20 | L50: =Kosten!$B50 -> 20 | M50: =Kosten!$B50 -> 20 | N50: =Kosten!$B50 -> 20 | O50: =Kosten!$B50 -> 20 | P50: =Kosten!$B50 -> 20 | Q50: =Kosten!$B50 -> 20 | R50: =Kosten!$B50 -> 20 | S50: =Kosten!$B50 -> 20 | T50: =Kosten!$B50 -> 20 | U50: =Kosten!$B50 -> 20
A51: Overige arbeid | D51: Overig
A52: Uur per jaar (per ha) eigen arbeid | B52: =Kosten!$B52 -> 0 | C52: =Kosten!$B52 -> 0 | D52: =Kosten!$B52 -> 0 | E52: =Kosten!$B52 -> 0 | F52: =Kosten!$B52 -> 0 | G52: =Kosten!$B52 -> 0 | H52: =Kosten!$B52 -> 0 | I52: =Kosten!$B52 -> 0 | J52: =Kosten!$B52 -> 0 | K52: =Kosten!$B52 -> 0 | L52: =Kosten!$B52 -> 0 | M52: =Kosten!$B52 -> 0 | N52: =Kosten!$B52 -> 0 | O52: =Kosten!$B52 -> 0 | P52: =Kosten!$B52 -> 0 | Q52: =Kosten!$B52 -> 0 | R52: =Kosten!$B52 -> 0 | S52: =Kosten!$B52 -> 0 | T52: =Kosten!$B52 -> 0 | U52: =Kosten!$B52 -> 0
A53: Uur per jaar (per ha) externe arbeid | B53: =Kosten!$B53 -> 0 | C53: =Kosten!$B53 -> 0 | D53: =Kosten!$B53 -> 0 | E53: =Kosten!$B53 -> 0 | F53: =Kosten!$B53 -> 0 | G53: =Kosten!$B53 -> 0 | H53: =Kosten!$B53 -> 0 | I53: =Kosten!$B53 -> 0 | J53: =Kosten!$B53 -> 0 | K53: =Kosten!$B53 -> 0 | L53: =Kosten!$B53 -> 0 | M53: =Kosten!$B53 -> 0 | N53: =Kosten!$B53 -> 0 | O53: =Kosten!$B53 -> 0 | P53: =Kosten!$B53 -> 0 | Q53: =Kosten!$B53 -> 0 | R53: =Kosten!$B53 -> 0 | S53: =Kosten!$B53 -> 0 | T53: =Kosten!$B53 -> 0 | U53: =Kosten!$B53 -> 0
A54: Prijs per uur externe arbeid | B54: =Kosten!$B54 -> 30 | C54: =Kosten!$B54 -> 30 | D54: =Kosten!$B54 -> 30 | E54: =Kosten!$B54 -> 30 | F54: =Kosten!$B54 -> 30 | G54: =Kosten!$B54 -> 30 | H54: =Kosten!$B54 -> 30 | I54: =Kosten!$B54 -> 30 | J54: =Kosten!$B54 -> 30 | K54: =Kosten!$B54 -> 30 | L54: =Kosten!$B54 -> 30 | M54: =Kosten!$B54 -> 30 | N54: =Kosten!$B54 -> 30 | O54: =Kosten!$B54 -> 30 | P54: =Kosten!$B54 -> 30 | Q54: =Kosten!$B54 -> 30 | R54: =Kosten!$B54 -> 30 | S54: =Kosten!$B54 -> 30 | T54: =Kosten!$B54 -> 30 | U54: =Kosten!$B54 -> 30
A56: Extra oogsten | B56: 1 | C56: 2 | D56: 3 | E56: 4 | F56: 5 | G56: 6 | H56: 7 | I56: 8 | J56: 9 | K56: 10 | L56: 11 | M56: 12 | N56: 13 | O56: 14 | P56: 15 | Q56: 16 | R56: 17 | S56: 18 | T56: 19 | U56: 20
A57: Totaal in te vullen oogst uren | B57: =Arbeidberekening!P4 -> 0 | C57: =Arbeidberekening!Q4 -> 0 | D57: =Arbeidberekening!R4 -> 0 | E57: =Arbeidberekening!S4 -> 0 | F57: =Arbeidberekening!T4 -> 0 | G57: =Arbeidberekening!U4 -> 0 | H57: =Arbeidberekening!V4 -> 0 | I57: =Arbeidberekening!W4 -> 0 | J57: =Arbeidberekening!X4 -> 0 | K57: =Arbeidberekening!Y4 -> 0 | L57: =Arbeidberekening!$Z4 -> 0 | M57: =Arbeidberekening!$Z4 -> 0 | N57: =Arbeidberekening!$Z4 -> 0 | O57: =Arbeidberekening!$Z4 -> 0 | P57: =Arbeidberekening!$Z4 -> 0 | Q57: =Arbeidberekening!$AA4 -> 0 | R57: =Arbeidberekening!$AA4 -> 0 | S57: =Arbeidberekening!$AA4 -> 0 | T57: =Arbeidberekening!$AA4 -> 0 | U57: =Arbeidberekening!$AA4 -> 0
A58: Eigen uren | B58: =B$57*Kosten!$B57 -> 0 | C58: =C$57*Kosten!$B57 -> 0 | D58: =D$57*Kosten!$B57 -> 0 | E58: =E$57*Kosten!$B57 -> 0 | F58: =F$57*Kosten!$B57 -> 0 | G58: =G$57*Kosten!$B57 -> 0 | H58: =H$57*Kosten!$B57 -> 0 | I58: =I$57*Kosten!$B57 -> 0 | J58: =J$57*Kosten!$B57 -> 0 | K58: =K$57*Kosten!$B57 -> 0 | L58: =L$57*Kosten!$B57 -> 0 | M58: =M$57*Kosten!$B57 -> 0 | N58: =N$57*Kosten!$B57 -> 0 | O58: =O$57*Kosten!$B57 -> 0 | P58: =P$57*Kosten!$B57 -> 0 | Q58: =Q$57*Kosten!$B57 -> 0 | R58: =R$57*Kosten!$B57 -> 0 | S58: =S$57*Kosten!$B57 -> 0 | T58: =T$57*Kosten!$B57 -> 0 | U58: =U$57*Kosten!$B57 -> 0
A59: Externe uren | B59: =B$57*Kosten!$B58 -> 0 | C59: =C$57*Kosten!$B58 -> 0 | D59: =D$57*Kosten!$B58 -> 0 | E59: =E$57*Kosten!$B58 -> 0 | F59: =F$57*Kosten!$B58 -> 0 | G59: =G$57*Kosten!$B58 -> 0 | H59: =H$57*Kosten!$B58 -> 0 | I59: =I$57*Kosten!$B58 -> 0 | J59: =J$57*Kosten!$B58 -> 0 | K59: =K$57*Kosten!$B58 -> 0 | L59: =L$57*Kosten!$B58 -> 0 | M59: =M$57*Kosten!$B58 -> 0 | N59: =N$57*Kosten!$B58 -> 0 | O59: =O$57*Kosten!$B58 -> 0 | P59: =P$57*Kosten!$B58 -> 0 | Q59: =Q$57*Kosten!$B58 -> 0 | R59: =R$57*Kosten!$B58 -> 0 | S59: =S$57*Kosten!$B58 -> 0 | T59: =T$57*Kosten!$B58 -> 0 | U59: =U$57*Kosten!$B58 -> 0
A60: Controle alle juist uren ingevuld | B60: =B57-B58-B59 -> 0 | C60: =C57-C58-C59 -> 0 | D60: 0 | E60: 0 | F60: 0 | G60: 0 | H60: 0 | I60: 0 | J60: 0 | K60: 0 | L60: 0 | M60: 0 | N60: 0 | O60: 0 | P60: 0 | Q60: 0 | R60: 0 | S60: 0 | T60: 0 | U60: 0
A61: Prijs per uur externe arbeid | B61: =Kosten!$B59 -> 22 | C61: =Kosten!$B59 -> 22 | D61: =Kosten!$B59 -> 22 | E61: =Kosten!$B59 -> 22 | F61: =Kosten!$B59 -> 22 | G61: =Kosten!$B59 -> 22 | H61: =Kosten!$B59 -> 22 | I61: =Kosten!$B59 -> 22 | J61: =Kosten!$B59 -> 22 | K61: =Kosten!$B59 -> 22 | L61: =Kosten!$B59 -> 22 | M61: =Kosten!$B59 -> 22 | N61: =Kosten!$B59 -> 22 | O61: =Kosten!$B59 -> 22 | P61: =Kosten!$B59 -> 22 | Q61: =Kosten!$B59 -> 22 | R61: =Kosten!$B59 -> 22 | S61: =Kosten!$B59 -> 22 | T61: =Kosten!$B59 -> 22 | U61: =Kosten!$B59 -> 22
A63: Berekende arbeid van de ondernemer met een uurloon van : | D63: 50
A65: Totaal eigen uren | B65: =B24+B28+B32+B36+B40+B44+B48+B52+B58 -> 0 | C65: =C24+C28+C32+C36+C40+C44+C48+C52+C58 -> 0 | D65: 0 | E65: 0 | F65: 0 | G65: 0 | H65: 0 | I65: 0 | J65: 0 | K65: 0 | L65: 0 | M65: 0 | N65: 0 | O65: 0 | P65: 0 | Q65: 0 | R65: 0 | S65: =S24+S28+S32+S36+S40+S44+S48+S52+S58 -> 0 | T65: 0 | U65: 0

Sheet Overige invoer
A3: Effecten op het voedselbos
A4: Oogstpercentage | B4: 1
A5: Verdeling klasse A/B | B5: 0.5
A6: Analyse prijs A | B6: 1
A7: Berekening prijs B | B7: 1
A8: Effect grondsoort | B8: 1
A9: Effect plukprestaties | B9: 1
A11: Opbrengst verdeling per afzetkanaal
A12: Supermarkt | B12: 0
A13: Cateraar | B13: 0
A14: Consument | B14: 0
A15: Kostprijs | B15: 1
A16: Totaal | B16: =SUM(B12:B15) -> 1
A18: Privé onttrekkingen
A19: Maandelijks circa | B19: 0
A20: Jaarlijks | B20: =B19*12 -> 0

Sheet Overige invoer expert
A3: Effecten op het voedselbos | B3: 1 | C3: 2 | D3: 3 | E3: 4 | F3: 5 | G3: 6 | H3: 7 | I3: 8 | J3: 9 | K3: 10 | L3: Jr 11/15 | M3: Jr 16/20
A4: Oogstpercentage | B4: ='Overige invoer'!$B4 -> 1 | C4: ='Overige invoer'!$B4 -> 1 | D4: ='Overige invoer'!$B4 -> 1 | E4: ='Overige invoer'!$B4 -> 1 | F4: ='Overige invoer'!$B4 -> 1 | G4: ='Overige invoer'!$B4 -> 1 | H4: ='Overige invoer'!$B4 -> 1 | I4: ='Overige invoer'!$B4 -> 1 | J4: ='Overige invoer'!$B4 -> 1 | K4: ='Overige invoer'!$B4 -> 1 | L4: ='Overige invoer'!$B4 -> 1 | M4: ='Overige invoer'!$B4 -> 1
A5: Verdeling klasse A/B | B5: ='Overige invoer'!$B5 -> 0.5 | C5: ='Overige invoer'!$B5 -> 0.5 | D5: ='Overige invoer'!$B5 -> 0.5 | E5: ='Overige invoer'!$B5 -> 0.5 | F5: ='Overige invoer'!$B5 -> 0.5 | G5: ='Overige invoer'!$B5 -> 0.5 | H5: ='Overige invoer'!$B5 -> 0.5 | I5: ='Overige invoer'!$B5 -> 0.5 | J5: ='Overige invoer'!$B5 -> 0.5 | K5: ='Overige invoer'!$B5 -> 0.5 | L5: ='Overige invoer'!$B5 -> 0.5 | M5: ='Overige invoer'!$B5 -> 0.5
A6: Analyse prijs A | B6: ='Overige invoer'!$B6 -> 1 | C6: ='Overige invoer'!$B6 -> 1 | D6: ='Overige invoer'!$B6 -> 1 | E6: ='Overige invoer'!$B6 -> 1 | F6: ='Overige invoer'!$B6 -> 1 | G6: ='Overige invoer'!$B6 -> 1 | H6: ='Overige invoer'!$B6 -> 1 | I6: ='Overige invoer'!$B6 -> 1 | J6: ='Overige invoer'!$B6 -> 1 | K6: ='Overige invoer'!$B6 -> 1 | L6: ='Overige invoer'!$B6 -> 1 | M6: ='Overige invoer'!$B6 -> 1
A7: Berekening prijs B | B7: ='Overige invoer'!$B7 -> 1 | C7: ='Overige invoer'!$B7 -> 1 | D7: ='Overige invoer'!$B7 -> 1 | E7: ='Overige invoer'!$B7 -> 1 | F7: ='Overige invoer'!$B7 -> 1 | G7: ='Overige invoer'!$B7 -> 1 | H7: ='Overige invoer'!$B7 -> 1 | I7: ='Overige invoer'!$B7 -> 1 | J7: ='Overige invoer'!$B7 -> 1 | K7: ='Overige invoer'!$B7 -> 1 | L7: ='Overige invoer'!$B7 -> 1 | M7: ='Overige invoer'!$B7 -> 1
A8: Effect grondsoort | B8: ='Overige invoer'!$B8 -> 1 | C8: ='Overige invoer'!$B8 -> 1 | D8: ='Overige invoer'!$B8 -> 1 | E8: ='Overige invoer'!$B8 -> 1 | F8: ='Overige invoer'!$B8 -> 1 | G8: ='Overige invoer'!$B8 -> 1 | H8: ='Overige invoer'!$B8 -> 1 | I8: ='Overige invoer'!$B8 -> 1 | J8: ='Overige invoer'!$B8 -> 1 | K8: ='Overige invoer'!$B8 -> 1 | L8: ='Overige invoer'!$B8 -> 1 | M8: ='Overige invoer'!$B8 -> 1
A9: Effect plukprestaties | B9: ='Overige invoer'!$B9 -> 1 | C9: ='Overige invoer'!$B9 -> 1 | D9: ='Overige invoer'!$B9 -> 1 | E9: ='Overige invoer'!$B9 -> 1 | F9: ='Overige invoer'!$B9 -> 1 | G9: ='Overige invoer'!$B9 -> 1 | H9: ='Overige invoer'!$B9 -> 1 | I9: ='Overige invoer'!$B9 -> 1 | J9: ='Overige invoer'!$B9 -> 1 | K9: ='Overige invoer'!$B9 -> 1 | L9: ='Overige invoer'!$B9 -> 1 | M9: ='Overige invoer'!$B9 -> 1
A11: Opbrengst verdeling per afzet kanaal | B11: 1 | C11: 2 | D11: 3 | E11: 4 | F11: 5 | G11: 6 | H11: 7 | I11: 8 | J11: 9 | K11: 10 | L11: Jr 11/15 | M11: Jr 16/20
A12: Korte keten naar supermarkt | B12: ='Overige invoer'!$B12 -> 0 | C12: ='Overige invoer'!$B12 -> 0 | D12: ='Overige invoer'!$B12 -> 0 | E12: ='Overige invoer'!$B12 -> 0 | F12: ='Overige invoer'!$B12 -> 0 | G12: ='Overige invoer'!$B12 -> 0 | H12: ='Overige invoer'!$B12 -> 0 | I12: ='Overige invoer'!$B12 -> 0 | J12: ='Overige invoer'!$B12 -> 0 | K12: ='Overige invoer'!$B12 -> 0 | L12: ='Overige invoer'!$B12 -> 0 | M12: ='Overige invoer'!$B12 -> 0
A13: Cateraar | B13: ='Overige invoer'!$B13 -> 0 | C13: ='Overige invoer'!$B13 -> 0 | D13: ='Overige invoer'!$B13 -> 0 | E13: ='Overige invoer'!$B13 -> 0 | F13: ='Overige invoer'!$B13 -> 0 | G13: ='Overige invoer'!$B13 -> 0 | H13: ='Overige invoer'!$B13 -> 0 | I13: ='Overige invoer'!$B13 -> 0 | J13: ='Overige invoer'!$B13 -> 0 | K13: ='Overige invoer'!$B13 -> 0 | L13: ='Overige invoer'!$B13 -> 0 | M13: ='Overige invoer'!$B13 -> 0
A14: Direct naar consument | B14: ='Overige invoer'!$B14 -> 0 | C14: ='Overige invoer'!$B14 -> 0 | D14: ='Overige invoer'!$B14 -> 0 | E14: ='Overige invoer'!$B14 -> 0 | F14: ='Overige invoer'!$B14 -> 0 | G14: ='Overige invoer'!$B14 -> 0 | H14: ='Overige invoer'!$B14 -> 0 | I14: ='Overige invoer'!$B14 -> 0 | J14: ='Overige invoer'!$B14 -> 0 | K14: ='Overige invoer'!$B14 -> 0 | L14: ='Overige invoer'!$B14 -> 0 | M14: ='Overige invoer'!$B14 -> 0
A15: Totaal niet meer dan 100% | B15: =SUM(B12:B14) -> 0 | C15: 0 | D15: 0 | E15: 0 | F15: 0 | G15: 0 | H15: 0 | I15: 0 | J15: 0 | K15: 0 | L15: 0 | M15: 0
A17: Privé ontrekkingen | B17: 1 | C17: 2 | D17: 3 | E17: 4 | F17: 5 | G17: 6 | H17: 7 | I17: 8 | J17: 9 | K17: 10 | L17: Jr 11/15 | M17: Jr 16/20
A18: Maandelijks circa | B18: ='Overige invoer'!$B19 -> 0 | C18: ='Overige invoer'!$B19 -> 0 | D18: ='Overige invoer'!$B19 -> 0 | E18: ='Overige invoer'!$B19 -> 0 | F18: ='Overige invoer'!$B19 -> 0 | G18: ='Overige invoer'!$B19 -> 0 | H18: ='Overige invoer'!$B19 -> 0 | I18: ='Overige invoer'!$B19 -> 0 | J18: ='Overige invoer'!$B19 -> 0 | K18: ='Overige invoer'!$B19 -> 0 | L18: ='Overige invoer'!$B19 -> 0 | M18: ='Overige invoer'!$B19 -> 0
A19: Jaarlijks | B19: =B18*12 -> 0 | C19: =C18*12 -> 0 | D19: 0 | E19: 0 | F19: 0 | G19: 0 | H19: 0 | I19: 0 | J19: 0 | K19: 0 | L19: 0 | M19: 0

Sheet Uitkomst
A3: Jaar | B3: 1 | C3: 2 | D3: 3 | E3: 4 | F3: 5 | G3: 6 | H3: 7 | I3: 8 | J3: 9 | K3: 10 | L3: 11 | M3: 12 | N3: 13 | O3: 14 | P3: 15 | Q3: 16 | R3: 17 | S3: 18 | T3: 19 | U3: 20
A5: Bedrijfsresultaat
A6: Totale vaste opbrengsten | B6: =Bedrijfsresultaat!B5 -> 0 | C6: =Bedrijfsresultaat!C5 -> 0 | D6: =Bedrijfsresultaat!D5 -> 0 | E6: =Bedrijfsresultaat!E5 -> 0 | F6: =Bedrijfsresultaat!F5 -> 0 | G6: =Bedrijfsresultaat!G5 -> 0 | H6: =Bedrijfsresultaat!H5 -> 0 | I6: =Bedrijfsresultaat!I5 -> 0 | J6: =Bedrijfsresultaat!J5 -> 0 | K6: =Bedrijfsresultaat!K5 -> 0 | L6: =Bedrijfsresultaat!L5 -> 0 | M6: =Bedrijfsresultaat!M5 -> 0 | N6: =Bedrijfsresultaat!N5 -> 0 | O6: =Bedrijfsresultaat!O5 -> 0 | P6: =Bedrijfsresultaat!P5 -> 0 | Q6: =Bedrijfsresultaat!Q5 -> 0 | R6: =Bedrijfsresultaat!R5 -> 0 | S6: =Bedrijfsresultaat!S5 -> 0 | T6: =Bedrijfsresultaat!T5 -> 0 | U6: =Bedrijfsresultaat!U5 -> 0
A7: Totale variabele opbrengsten | B7: =Bedrijfsresultaat!B4 -> 0 | C7: =Bedrijfsresultaat!C4 -> 0 | D7: =Bedrijfsresultaat!D4 -> 0 | E7: =Bedrijfsresultaat!E4 -> 0 | F7: =Bedrijfsresultaat!F4 -> 0 | G7: =Bedrijfsresultaat!G4 -> 0 | H7: =Bedrijfsresultaat!H4 -> 0 | I7: =Bedrijfsresultaat!I4 -> 0 | J7: =Bedrijfsresultaat!J4 -> 0 | K7: =Bedrijfsresultaat!K4 -> 0 | L7: =Bedrijfsresultaat!L4 -> 0 | M7: =Bedrijfsresultaat!M4 -> 0 | N7: =Bedrijfsresultaat!N4 -> 0 | O7: =Bedrijfsresultaat!O4 -> 0 | P7: =Bedrijfsresultaat!P4 -> 0 | Q7: =Bedrijfsresultaat!Q4 -> 0 | R7: =Bedrijfsresultaat!R4 -> 0 | S7: =Bedrijfsresultaat!S4 -> 0 | T7: =Bedrijfsresultaat!T4 -> 0 | U7: =Bedrijfsresultaat!U4 -> 0
A8: Totale opbrengsten | B8: =SUM(B6:B7) -> 0 | C8: =SUM(C6:C7) -> 0 | D8: 0 | E8: 0 | F8: 0 | G8: 0 | H8: 0 | I8: 0 | J8: 0 | K8: 0 | L8: 0 | M8: 0 | N8: 0 | O8: 0 | P8: 0 | Q8: 0 | R8: 0 | S8: 0 | T8: 0 | U8: 0
A10: Totale vaste kosten | B10: =Bedrijfsresultaat!B7 -> 0 | C10: =Bedrijfsresultaat!C7 -> 0 | D10: =Bedrijfsresultaat!D7 -> 0 | E10: =Bedrijfsresultaat!E7 -> 0 | F10: =Bedrijfsresultaat!F7 -> 0 | G10: =Bedrijfsresultaat!G7 -> 0 | H10: =Bedrijfsresultaat!H7 -> 0 | I10: =Bedrijfsresultaat!I7 -> 0 | J10: =Bedrijfsresultaat!J7 -> 0 | K10: =Bedrijfsresultaat!K7 -> 0 | L10: =Bedrijfsresultaat!L7 -> 0 | M10: =Bedrijfsresultaat!M7 -> 0 | N10: =Bedrijfsresultaat!N7 -> 0 | O10: =Bedrijfsresultaat!O7 -> 0 | P10: =Bedrijfsresultaat!P7 -> 0 | Q10: =Bedrijfsresultaat!Q7 -> 0 | R10: =Bedrijfsresultaat!R7 -> 0 | S10: =Bedrijfsresultaat!S7 -> 0 | T10: =Bedrijfsresultaat!T7 -> 0 | U10: =Bedrijfsresultaat!U7 -> 0
A11: Totale variabele kosten | B11: =Bedrijfsresultaat!B8 -> 0 | C11: =Bedrijfsresultaat!C8 -> 0 | D11: =Bedrijfsresultaat!D8 -> 0 | E11: =Bedrijfsresultaat!E8 -> 0 | F11: =Bedrijfsresultaat!F8 -> 0 | G11: =Bedrijfsresultaat!G8 -> 0 | H11: =Bedrijfsresultaat!H8 -> 0 | I11: =Bedrijfsresultaat!I8 -> 0 | J11: =Bedrijfsresultaat!J8 -> 0 | K11: =Bedrijfsresultaat!K8 -> 0 | L11: =Bedrijfsresultaat!L8 -> 0 | M11: =Bedrijfsresultaat!M8 -> 0 | N11: =Bedrijfsresultaat!N8 -> 0 | O11: =Bedrijfsresultaat!O8 -> 0 | P11: =Bedrijfsresultaat!P8 -> 0 | Q11: =Bedrijfsresultaat!Q8 -> 0 | R11: =Bedrijfsresultaat!R8 -> 0 | S11: =Bedrijfsresultaat!S8 -> 0 | T11: =Bedrijfsresultaat!T8 -> 0 | U11: =Bedrijfsresultaat!U8 -> 0
A12: Totale kosten | B12: =SUM(B10:B11) -> 0 | C12: =SUM(C10:C11) -> 0 | D12: =SUM(D10:D11) -> 0 | E12: 0 | F12: 0 | G12: 0 | H12: 0 | I12: 0 | J12: 0 | K12: 0 | L12: 0 | M12: 0 | N12: 0 | O12: 0 | P12: 0 | Q12: 0 | R12: 0 | S12: 0 | T12: 0 | U12: 0
A14: Bedrijfsresultaat | B14: =B8-B12 -> 0 | C14: =C8-C12 -> 0 | D14: 0 | E14: 0 | F14: 0 | G14: 0 | H14: 0 | I14: 0 | J14: =J8-J12 -> 0 | K14: 0 | L14: 0 | M14: 0 | N14: 0 | O14: 0 | P14: 0 | Q14: 0 | R14: 0 | S14: 0 | T14: 0 | U14: 0
A17: Bedrijfsresultaat met bedrijfseconomische uitgangspunten
A18: Totale vaste opbrengsten | B18: ='BE resultatenrekening'!B4 -> 0 | C18: ='BE resultatenrekening'!C4 -> 0 | D18: ='BE resultatenrekening'!D4 -> 0 | E18: ='BE resultatenrekening'!E4 -> 0 | F18: ='BE resultatenrekening'!F4 -> 0 | G18: ='BE resultatenrekening'!G4 -> 0 | H18: ='BE resultatenrekening'!H4 -> 0 | I18: ='BE resultatenrekening'!I4 -> 0 | J18: ='BE resultatenrekening'!J4 -> 0 | K18: ='BE resultatenrekening'!K4 -> 0 | L18: ='BE resultatenrekening'!L4 -> 0 | M18: ='BE resultatenrekening'!M4 -> 0 | N18: ='BE resultatenrekening'!N4 -> 0 | O18: ='BE resultatenrekening'!O4 -> 0 | P18: ='BE resultatenrekening'!P4 -> 0 | Q18: ='BE resultatenrekening'!Q4 -> 0 | R18: ='BE resultatenrekening'!R4 -> 0 | S18: ='BE resultatenrekening'!S4 -> 0 | T18: ='BE resultatenrekening'!T4 -> 0 | U18: ='BE resultatenrekening'!U4 -> 0
A19: Totale variabele opbrengsten | B19: ='BE resultatenrekening'!B5 -> 0 | C19: ='BE resultatenrekening'!C5 -> 0 | D19: ='BE resultatenrekening'!D5 -> 0 | E19: ='BE resultatenrekening'!E5 -> 0 | F19: ='BE resultatenrekening'!F5 -> 0 | G19: ='BE resultatenrekening'!G5 -> 0 | H19: ='BE resultatenrekening'!H5 -> 0 | I19: ='BE resultatenrekening'!I5 -> 0 | J19: ='BE resultatenrekening'!J5 -> 0 | K19: ='BE resultatenrekening'!K5 -> 0 | L19: ='BE resultatenrekening'!L5 -> 0 | M19: ='BE resultatenrekening'!M5 -> 0 | N19: ='BE resultatenrekening'!N5 -> 0 | O19: ='BE resultatenrekening'!O5 -> 0 | P19: ='BE resultatenrekening'!P5 -> 0 | Q19: ='BE resultatenrekening'!Q5 -> 0 | R19: ='BE resultatenrekening'!R5 -> 0 | S19: ='BE resultatenrekening'!S5 -> 0 | T19: ='BE resultatenrekening'!T5 -> 0 | U19: ='BE resultatenrekening'!U5 -> 0
A20: Totale opbrengsten | B20: =SUM(B18:B19) -> 0 | C20: =SUM(C18:C19) -> 0 | D20: 0 | E20: 0 | F20: 0 | G20: 0 | H20: 0 | I20: 0 | J20: 0 | K20: 0 | L20: 0 | M20: 0 | N20: 0 | O20: 0 | P20: 0 | Q20: 0 | R20: 0 | S20: 0 | T20: 0 | U20: 0
A22: Totale variabele kosten | B22: ='BE resultatenrekening'!B7 -> 0 | C22: ='BE resultatenrekening'!C7 -> 0 | D22: ='BE resultatenrekening'!D7 -> 0 | E22: ='BE resultatenrekening'!E7 -> 0 | F22: ='BE resultatenrekening'!F7 -> 0 | G22: ='BE resultatenrekening'!G7 -> 0 | H22: ='BE resultatenrekening'!H7 -> 0 | I22: ='BE resultatenrekening'!I7 -> 0 | J22: ='BE resultatenrekening'!J7 -> 0 | K22: ='BE resultatenrekening'!K7 -> 0 | L22: ='BE resultatenrekening'!L7 -> 0 | M22: ='BE resultatenrekening'!M7 -> 0 | N22: ='BE resultatenrekening'!N7 -> 0 | O22: ='BE resultatenrekening'!O7 -> 0 | P22: ='BE resultatenrekening'!P7 -> 0 | Q22: ='BE resultatenrekening'!Q7 -> 0 | R22: ='BE resultatenrekening'!R7 -> 0 | S22: ='BE resultatenrekening'!S7 -> 0 | T22: ='BE resultatenrekening'!T7 -> 0 | U22: ='BE resultatenrekening'!U7 -> 0
A23: Totale vaste kosten | B23: ='BE resultatenrekening'!B8 -> 0 | C23: ='BE resultatenrekening'!C8 -> 0 | D23: ='BE resultatenrekening'!D8 -> 0 | E23: ='BE resultatenrekening'!E8 -> 0 | F23: ='BE resultatenrekening'!F8 -> 0 | G23: ='BE resultatenrekening'!G8 -> 0 | H23: ='BE resultatenrekening'!H8 -> 0 | I23: ='BE resultatenrekening'!I8 -> 0 | J23: ='BE resultatenrekening'!J8 -> 0 | K23: ='BE resultatenrekening'!K8 -> 0 | L23: ='BE resultatenrekening'!L8 -> 0 | M23: ='BE resultatenrekening'!M8 -> 0 | N23: ='BE resultatenrekening'!N8 -> 0 | O23: ='BE resultatenrekening'!O8 -> 0 | P23: ='BE resultatenrekening'!P8 -> 0 | Q23: ='BE resultatenrekening'!Q8 -> 0 | R23: ='BE resultatenrekening'!R8 -> 0 | S23: ='BE resultatenrekening'!S8 -> 0 | T23: ='BE resultatenrekening'!T8 -> 0 | U23: ='BE resultatenrekening'!U8 -> 0
A24: Berekende arbeid | B24: ='BE resultatenrekening'!B9 -> 0 | C24: ='BE resultatenrekening'!C9 -> 0 | D24: ='BE resultatenrekening'!D9 -> 0 | E24: ='BE resultatenrekening'!E9 -> 0 | F24: ='BE resultatenrekening'!F9 -> 0 | G24: ='BE resultatenrekening'!G9 -> 0 | H24: ='BE resultatenrekening'!H9 -> 0 | I24: ='BE resultatenrekening'!I9 -> 0 | J24: ='BE resultatenrekening'!J9 -> 0 | K24: ='BE resultatenrekening'!K9 -> 0 | L24: ='BE resultatenrekening'!L9 -> 0 | M24: ='BE resultatenrekening'!M9 -> 0 | N24: ='BE resultatenrekening'!N9 -> 0 | O24: ='BE resultatenrekening'!O9 -> 0 | P24: ='BE resultatenrekening'!P9 -> 0 | Q24: ='BE resultatenrekening'!Q9 -> 0 | R24: ='BE resultatenrekening'!R9 -> 0 | S24: ='BE resultatenrekening'!S9 -> 0 | T24: ='BE resultatenrekening'!T9 -> 0 | U24: ='BE resultatenrekening'!U9 -> 0
A25: Berekende rente | B25: ='BE resultatenrekening'!B10 -> 0 | C25: ='BE resultatenrekening'!C10 -> 0 | D25: ='BE resultatenrekening'!D10 -> 0 | E25: ='BE resultatenrekening'!E10 -> 0 | F25: ='BE resultatenrekening'!F10 -> 0 | G25: ='BE resultatenrekening'!G10 -> 0 | H25: ='BE resultatenrekening'!H10 -> 0 | I25: ='BE resultatenrekening'!I10 -> 0 | J25: ='BE resultatenrekening'!J10 -> 0 | K25: ='BE resultatenrekening'!K10 -> 0 | L25: ='BE resultatenrekening'!L10 -> 0 | M25: ='BE resultatenrekening'!M10 -> 0 | N25: ='BE resultatenrekening'!N10 -> 0 | O25: ='BE resultatenrekening'!O10 -> 0 | P25: ='BE resultatenrekening'!P10 -> 0 | Q25: ='BE resultatenrekening'!Q10 -> 0 | R25: ='BE resultatenrekening'!R10 -> 0 | S25: ='BE resultatenrekening'!S10 -> 0 | T25: ='BE resultatenrekening'!T10 -> 0 | U25: ='BE resultatenrekening'!U10 -> 0
A26: Totale kosten | B26: =SUM(B22:B25) -> 0 | C26: =SUM(C22:C25) -> 0 | D26: 0 | E26: 0 | F26: 0 | G26: 0 | H26: 0 | I26: 0 | J26: 0 | K26: 0 | L26: 0 | M26: 0 | N26: 0 | O26: 0 | P26: 0 | Q26: 0 | R26: 0 | S26: 0 | T26: 0 | U26: 0
A28: Bedrijfseconomisch bedrijfsresultaat | B28: =B20-B26 -> 0 | C28: =C20-C26 -> 0 | D28: 0 | E28: 0 | F28: 0 | G28: 0 | H28: 0 | I28: 0 | J28: 0 | K28: 0 | L28: 0 | M28: 0 | N28: 0 | O28: 0 | P28: 0 | Q28: 0 | R28: 0 | S28: 0 | T28: 0 | U28: 0
A31: Saldo berekening
A32: Totale variabele opbrengsten | B32: ='Saldo berekening'!B30 -> 0 | C32: ='Saldo berekening'!C30 -> 0 | D32: ='Saldo berekening'!D30 -> 0 | E32: ='Saldo berekening'!E30 -> 0 | F32: ='Saldo berekening'!F30 -> 0 | G32: ='Saldo berekening'!G30 -> 0 | H32: ='Saldo berekening'!H30 -> 0 | I32: ='Saldo berekening'!I30 -> 0 | J32: ='Saldo berekening'!J30 -> 0 | K32: ='Saldo berekening'!K30 -> 0 | L32: ='Saldo berekening'!L30 -> 0 | M32: ='Saldo berekening'!M30 -> 0 | N32: ='Saldo berekening'!N30 -> 0 | O32: ='Saldo berekening'!O30 -> 0 | P32: ='Saldo berekening'!P30 -> 0 | Q32: ='Saldo berekening'!Q30 -> 0 | R32: ='Saldo berekening'!R30 -> 0 | S32: ='Saldo berekening'!S30 -> 0 | T32: ='Saldo berekening'!T30 -> 0 | U32: ='Saldo berekening'!U30 -> 0
A33: Totaal variabele kosten | B33: ='Saldo berekening'!B32+'Saldo berekening'!B31 -> 0 | C33: ='Saldo berekening'!C32+'Saldo berekening'!C31 -> 0 | D33: ='Saldo berekening'!D32+'Saldo berekening'!D31 -> 0 | E33: ='Saldo berekening'!E32+'Saldo berekening'!E31 -> 0 | F33: ='Saldo berekening'!F32+'Saldo berekening'!F31 -> 0 | G33: ='Saldo berekening'!G32+'Saldo berekening'!G31 -> 0 | H33: ='Saldo berekening'!H32+'Saldo berekening'!H31 -> 0 | I33: ='Saldo berekening'!I32+'Saldo berekening'!I31 -> 0 | J33: ='Saldo berekening'!J32+'Saldo berekening'!J31 -> 0 | K33: ='Saldo berekening'!K32+'Saldo berekening'!K31 -> 0 | L33: ='Saldo berekening'!L32+'Saldo berekening'!L31 -> 0 | M33: ='Saldo berekening'!M32+'Saldo berekening'!M31 -> 0 | N33: ='Saldo berekening'!N32+'Saldo berekening'!N31 -> 0 | O33: ='Saldo berekening'!O32+'Saldo berekening'!O31 -> 0 | P33: ='Saldo berekening'!P32+'Saldo berekening'!P31 -> 0 | Q33: ='Saldo berekening'!Q32+'Saldo berekening'!Q31 -> 0 | R33: ='Saldo berekening'!R32+'Saldo berekening'!R31 -> 0 | S33: ='Saldo berekening'!S32+'Saldo berekening'!S31 -> 0 | T33: ='Saldo berekening'!T32+'Saldo berekening'!T31 -> 0 | U33: ='Saldo berekening'!U32+'Saldo berekening'!U31 -> 0
A34: Begroot saldo per jaar | B34: ='Saldo berekening'!B33 -> 0 | C34: ='Saldo berekening'!C33 -> 0 | D34: ='Saldo berekening'!D33 -> 0 | E34: ='Saldo berekening'!E33 -> 0 | F34: ='Saldo berekening'!F33 -> 0 | G34: ='Saldo berekening'!G33 -> 0 | H34: ='Saldo berekening'!H33 -> 0 | I34: ='Saldo berekening'!I33 -> 0 | J34: ='Saldo berekening'!J33 -> 0 | K34: ='Saldo berekening'!K33 -> 0 | L34: ='Saldo berekening'!L33 -> 0 | M34: ='Saldo berekening'!M33 -> 0 | N34: ='Saldo berekening'!N33 -> 0 | O34: ='Saldo berekening'!O33 -> 0 | P34: ='Saldo berekening'!P33 -> 0 | Q34: ='Saldo berekening'!Q33 -> 0 | R34: ='Saldo berekening'!R33 -> 0 | S34: ='Saldo berekening'!S33 -> 0 | T34: ='Saldo berekening'!T33 -> 0 | U34: ='Saldo berekening'!U33 -> 0
A37: Liquiditeitsontwikkeling
A38: Per jaar | B38: =Liquiditeitsbegroting!B54 -> 0 | C38: =Liquiditeitsbegroting!C54 -> 0 | D38: =Liquiditeitsbegroting!D54 -> 0 | E38: =Liquiditeitsbegroting!E54 -> 0 | F38: =Liquiditeitsbegroting!F54 -> 0 | G38: =Liquiditeitsbegroting!G54 -> 0 | H38: =Liquiditeitsbegroting!H54 -> 0 | I38: =Liquiditeitsbegroting!I54 -> 0 | J38: =Liquiditeitsbegroting!J54 -> 0 | K38: =Liquiditeitsbegroting!K54 -> 0 | L38: =Liquiditeitsbegroting!L54 -> 0 | M38: =Liquiditeitsbegroting!M54 -> 0 | N38: =Liquiditeitsbegroting!N54 -> 0 | O38: =Liquiditeitsbegroting!O54 -> 0 | P38: =Liquiditeitsbegroting!P54 -> 0 | Q38: =Liquiditeitsbegroting!Q54 -> 0 | R38: =Liquiditeitsbegroting!R54 -> 0 | S38: =Liquiditeitsbegroting!S54 -> 0 | T38: =Liquiditeitsbegroting!T54 -> 0 | U38: =Liquiditeitsbegroting!U54 -> 0
A39: Cummalatief per jaar | B39: =Liquiditeitsbegroting!B56 -> 0 | C39: =Liquiditeitsbegroting!C56 -> 0 | D39: =Liquiditeitsbegroting!D56 -> 0 | E39: =Liquiditeitsbegroting!E56 -> 0 | F39: =Liquiditeitsbegroting!F56 -> 0 | G39: =Liquiditeitsbegroting!G56 -> 0 | H39: =Liquiditeitsbegroting!H56 -> 0 | I39: =Liquiditeitsbegroting!I56 -> 0 | J39: =Liquiditeitsbegroting!J56 -> 0 | K39: =Liquiditeitsbegroting!K56 -> 0 | L39: =Liquiditeitsbegroting!L56 -> 0 | M39: =Liquiditeitsbegroting!M56 -> 0 | N39: =Liquiditeitsbegroting!N56 -> 0 | O39: =Liquiditeitsbegroting!O56 -> 0 | P39: =Liquiditeitsbegroting!P56 -> 0 | Q39: =Liquiditeitsbegroting!Q56 -> 0 | R39: =Liquiditeitsbegroting!R56 -> 0 | S39: =Liquiditeitsbegroting!S56 -> 0 | T39: =Liquiditeitsbegroting!T56 -> 0 | U39: =Liquiditeitsbegroting!U56 -> 0
A41: Per jaar zonder privé ontrekkingen | B41: =Liquiditeitsbegroting!B58 -> 0 | C41: =Liquiditeitsbegroting!C58 -> 0 | D41: =Liquiditeitsbegroting!D58 -> 0 | E41: =Liquiditeitsbegroting!E58 -> 0 | F41: =Liquiditeitsbegroting!F58 -> 0 | G41: =Liquiditeitsbegroting!G58 -> 0 | H41: =Liquiditeitsbegroting!H58 -> 0 | I41: =Liquiditeitsbegroting!I58 -> 0 | J41: =Liquiditeitsbegroting!J58 -> 0 | K41: =Liquiditeitsbegroting!K58 -> 0 | L41: =Liquiditeitsbegroting!L58 -> 0 | M41: =Liquiditeitsbegroting!M58 -> 0 | N41: =Liquiditeitsbegroting!N58 -> 0 | O41: =Liquiditeitsbegroting!O58 -> 0 | P41: =Liquiditeitsbegroting!P58 -> 0 | Q41: =Liquiditeitsbegroting!Q58 -> 0 | R41: =Liquiditeitsbegroting!R58 -> 0 | S41: =Liquiditeitsbegroting!S58 -> 0 | T41: =Liquiditeitsbegroting!T58 -> 0 | U41: =Liquiditeitsbegroting!U58 -> 0
A42: Cummalatief zonder privé ontrekkigen | B42: =Liquiditeitsbegroting!B60 -> 0 | C42: =Liquiditeitsbegroting!C60 -> 0 | D42: =Liquiditeitsbegroting!D60 -> 0 | E42: =Liquiditeitsbegroting!E60 -> 0 | F42: =Liquiditeitsbegroting!F60 -> 0 | G42: =Liquiditeitsbegroting!G60 -> 0 | H42: =Liquiditeitsbegroting!H60 -> 0 | I42: =Liquiditeitsbegroting!I60 -> 0 | J42: =Liquiditeitsbegroting!J60 -> 0 | K42: =Liquiditeitsbegroting!K60 -> 0 | L42: =Liquiditeitsbegroting!L60 -> 0 | M42: =Liquiditeitsbegroting!M60 -> 0 | N42: =Liquiditeitsbegroting!N60 -> 0 | O42: =Liquiditeitsbegroting!O60 -> 0 | P42: =Liquiditeitsbegroting!P60 -> 0 | Q42: =Liquiditeitsbegroting!Q60 -> 0 | R42: =Liquiditeitsbegroting!R60 -> 0 | S42: =Liquiditeitsbegroting!S60 -> 0 | T42: =Liquiditeitsbegroting!T60 -> 0 | U42: =Liquiditeitsbegroting!U60 -> 0
A44: Vermogensbehoefte
A45: Investeringen eigen vermogen | B45: =Financieringsbegroting!L71 -> 0 | C45: =Financieringsbegroting!M71 -> 0 | D45: =Financieringsbegroting!N71 -> 0 | E45: =Financieringsbegroting!O71 -> 0 | F45: =Financieringsbegroting!P71 -> 0 | G45: =Financieringsbegroting!Q71 -> 0 | H45: =Financieringsbegroting!R71 -> 0 | I45: =Financieringsbegroting!S71 -> 0 | J45: =Financieringsbegroting!T71 -> 0 | K45: =Financieringsbegroting!U71 -> 0 | L45: =Financieringsbegroting!V71 -> 0 | M45: =Financieringsbegroting!W71 -> 0 | N45: =Financieringsbegroting!X71 -> 0 | O45: =Financieringsbegroting!Y71 -> 0 | P45: =Financieringsbegroting!Z71 -> 0 | Q45: =Financieringsbegroting!AA71 -> 0 | R45: =Financieringsbegroting!AB71 -> 0 | S45: =Financieringsbegroting!AC71 -> 0 | T45: =Financieringsbegroting!AD71 -> 0 | U45: =Financieringsbegroting!AE71 -> 0
A46: Investeringen vreemd vermogen | B46: =Financieringsbegroting!L107 -> 0 | C46: =Financieringsbegroting!M107 -> 0 | D46: =Financieringsbegroting!N107 -> 0 | E46: =Financieringsbegroting!O107 -> 0 | F46: =Financieringsbegroting!P107 -> 0 | G46: =Financieringsbegroting!Q107 -> 0 | H46: =Financieringsbegroting!R107 -> 0 | I46: =Financieringsbegroting!S107 -> 0 | J46: =Financieringsbegroting!T107 -> 0 | K46: =Financieringsbegroting!U107 -> 0 | L46: =Financieringsbegroting!V107 -> 0 | M46: =Financieringsbegroting!W107 -> 0 | N46: =Financieringsbegroting!X107 -> 0 | O46: =Financieringsbegroting!Y107 -> 0 | P46: =Financieringsbegroting!Z107 -> 0 | Q46: =Financieringsbegroting!AA107 -> 0 | R46: =Financieringsbegroting!AB107 -> 0 | S46: =Financieringsbegroting!AC107 -> 0 | T46: =Financieringsbegroting!AD107 -> 0 | U46: =Financieringsbegroting!AE107 -> 0
A47: Werkkapitaal (overige uitgaven) | B47: =Liquiditeitsbegroting!B52-Liquiditeitsbegroting!B47-Liquiditeitsbegroting!B48 -> 0 | C47: =Liquiditeitsbegroting!C52-Liquiditeitsbegroting!C47-Liquiditeitsbegroting!C48 -> 0 | D47: =Liquiditeitsbegroting!D52-Liquiditeitsbegroting!D47-Liquiditeitsbegroting!D48 -> 0 | E47: =Liquiditeitsbegroting!E52-Liquiditeitsbegroting!E47-Liquiditeitsbegroting!E48 -> 0 | F47: =Liquiditeitsbegroting!F52-Liquiditeitsbegroting!F47-Liquiditeitsbegroting!F48 -> 0 | G47: =Liquiditeitsbegroting!G52-Liquiditeitsbegroting!G47-Liquiditeitsbegroting!G48 -> 0 | H47: =Liquiditeitsbegroting!H52-Liquiditeitsbegroting!H47-Liquiditeitsbegroting!H48 -> 0 | I47: =Liquiditeitsbegroting!I52-Liquiditeitsbegroting!I47-Liquiditeitsbegroting!I48 -> 0 | J47: =Liquiditeitsbegroting!J52-Liquiditeitsbegroting!J47-Liquiditeitsbegroting!J48 -> 0 | K47: =Liquiditeitsbegroting!K52-Liquiditeitsbegroting!K47-Liquiditeitsbegroting!K48 -> 0 | L47: =Liquiditeitsbegroting!L52-Liquiditeitsbegroting!L47-Liquiditeitsbegroting!L48 -> 0 | M47: =Liquiditeitsbegroting!M52-Liquiditeitsbegroting!M47-Liquiditeitsbegroting!M48 -> 0 | N47: =Liquiditeitsbegroting!N52-Liquiditeitsbegroting!N47-Liquiditeitsbegroting!N48 -> 0 | O47: =Liquiditeitsbegroting!O52-Liquiditeitsbegroting!O47-Liquiditeitsbegroting!O48 -> 0 | P47: =Liquiditeitsbegroting!P52-Liquiditeitsbegroting!P47-Liquiditeitsbegroting!P48 -> 0 | Q47: =Liquiditeitsbegroting!Q52-Liquiditeitsbegroting!Q47-Liquiditeitsbegroting!Q48 -> 0 | R47: =Liquiditeitsbegroting!R52-Liquiditeitsbegroting!R47-Liquiditeitsbegroting!R48 -> 0 | S47: =Liquiditeitsbegroting!S52-Liquiditeitsbegroting!S47-Liquiditeitsbegroting!S48 -> 0 | T47: =Liquiditeitsbegroting!T52-Liquiditeitsbegroting!T47-Liquiditeitsbegroting!T48 -> 0 | U47: =Liquiditeitsbegroting!U52-Liquiditeitsbegroting!U47-Liquiditeitsbegroting!U48 -> 0
A48: Totale vermogensbehoefte | B48: =SUM(B45:B47) -> 0 | C48: =SUM(C45:C47) -> 0 | D48: 0 | E48: 0 | F48: 0 | G48: 0 | H48: 0 | I48: 0 | J48: 0 | K48: 0 | L48: 0 | M48: 0 | N48: 0 | O48: 0 | P48: 0 | Q48: 0 | R48: 0 | S48: 0 | T48: 0 | U48: 0

Sheet Uitkomst in grafieken

Sheet Kostprijs berekening
A3: Jaar | B3: 1 | C3: 2 | D3: 3 | E3: 4 | F3: 5 | G3: 6 | H3: 7 | I3: 8 | J3: 9 | K3: 10 | L3: 11 | M3: 12 | N3: 13 | O3: 14 | P3: 15 | Q3: 16 | R3: 17 | S3: 18 | T3: 19 | U3: 20
A4: Opbrengst | B4: =Opbrengstenberekening!C199 -> 0 | C4: =Opbrengstenberekening!D199 -> 0 | D4: =Opbrengstenberekening!E199 -> 0 | E4: =Opbrengstenberekening!F199 -> 0 | F4: =Opbrengstenberekening!G199 -> 0 | G4: =Opbrengstenberekening!H199 -> 0 | H4: =Opbrengstenberekening!I199 -> 0 | I4: =Opbrengstenberekening!J199 -> 0 | J4: =Opbrengstenberekening!K199 -> 0 | K4: =Opbrengstenberekening!L199 -> 0 | L4: =Opbrengstenberekening!$M199 -> 0 | M4: =Opbrengstenberekening!$M199 -> 0 | N4: =Opbrengstenberekening!$M199 -> 0 | O4: =Opbrengstenberekening!$M199 -> 0 | P4: =Opbrengstenberekening!$M199 -> 0 | Q4: =Opbrengstenberekening!$N199 -> 0 | R4: =Opbrengstenberekening!$N199 -> 0 | S4: =Opbrengstenberekening!$N199 -> 0 | T4: =Opbrengstenberekening!$N199 -> 0 | U4: =Opbrengstenberekening!$N199 -> 0
A5: Totaal | B5: =SUM(B4:U4) -> 0 | C5: kg
A6: Periode | B6: 20 | C6: jaar
A7: Gemiddelde jaarlijkse productie | B7: =B5/B6 -> 0 | C7: kg
A9: Vaste kosten | B9: 1 | C9: 2 | D9: 3 | E9: 4 | F9: 5 | G9: 6 | H9: 7 | I9: 8 | J9: 9 | K9: 10 | L9: 11 | M9: 12 | N9: 13 | O9: 14 | P9: 15 | Q9: 16 | R9: 17 | S9: 18 | T9: 19 | U9: 20
A10: ='Vaste posten'!A24 -> Pacht totaal | B10: ='Vaste posten'!B24 -> 0 | C10: ='Vaste posten'!C24 -> 0 | D10: ='Vaste posten'!D24 -> 0 | E10: ='Vaste posten'!E24 -> 0 | F10: ='Vaste posten'!F24 -> 0 | G10: ='Vaste posten'!G24 -> 0 | H10: ='Vaste posten'!H24 -> 0 | I10: ='Vaste posten'!I24 -> 0 | J10: ='Vaste posten'!J24 -> 0 | K10: ='Vaste posten'!K24 -> 0 | L10: ='Vaste posten'!L24 -> 0 | M10: ='Vaste posten'!M24 -> 0 | N10: ='Vaste posten'!N24 -> 0 | O10: ='Vaste posten'!O24 -> 0 | P10: ='Vaste posten'!P24 -> 0 | Q10: ='Vaste posten'!Q24 -> 0 | R10: ='Vaste posten'!R24 -> 0 | S10: ='Vaste posten'!S24 -> 0 | T10: ='Vaste posten'!T24 -> 0 | U10: ='Vaste posten'!U24 -> 0
A11: ='Vaste posten'!A25 -> Certificering | B11: ='Vaste posten'!B25 -> 0 | C11: ='Vaste posten'!C25 -> 0 | D11: ='Vaste posten'!D25 -> 0 | E11: ='Vaste posten'!E25 -> 0 | F11: ='Vaste posten'!F25 -> 0 | G11: ='Vaste posten'!G25 -> 0 | H11: ='Vaste posten'!H25 -> 0 | I11: ='Vaste posten'!I25 -> 0 | J11: ='Vaste posten'!J25 -> 0 | K11: ='Vaste posten'!K25 -> 0 | L11: ='Vaste posten'!L25 -> 0 | M11: ='Vaste posten'!M25 -> 0 | N11: ='Vaste posten'!N25 -> 0 | O11: ='Vaste posten'!O25 -> 0 | P11: ='Vaste posten'!P25 -> 0 | Q11: ='Vaste posten'!Q25 -> 0 | R11: ='Vaste posten'!R25 -> 0 | S11: ='Vaste posten'!S25 -> 0 | T11: ='Vaste posten'!T25 -> 0 | U11: ='Vaste posten'!U25 -> 0
A12: ='Vaste posten'!A26 -> Website, logo & design | B12: ='Vaste posten'!B26 -> 0 | C12: ='Vaste posten'!C26 -> 0 | D12: ='Vaste posten'!D26 -> 0 | E12: ='Vaste posten'!E26 -> 0 | F12: ='Vaste posten'!F26 -> 0 | G12: ='Vaste posten'!G26 -> 0 | H12: ='Vaste posten'!H26 -> 0 | I12: ='Vaste posten'!I26 -> 0 | J12: ='Vaste posten'!J26 -> 0 | K12: ='Vaste posten'!K26 -> 0 | L12: ='Vaste posten'!L26 -> 0 | M12: ='Vaste posten'!M26 -> 0 | N12: ='Vaste posten'!N26 -> 0 | O12: ='Vaste posten'!O26 -> 0 | P12: ='Vaste posten'!P26 -> 0 | Q12: ='Vaste posten'!Q26 -> 0 | R12: ='Vaste posten'!R26 -> 0 | S12: ='Vaste posten'!S26 -> 0 | T12: ='Vaste posten'!T26 -> 0 | U12: ='Vaste posten'!U26 -> 0
A13: ='Vaste posten'!A27 -> Marketing & verkoop | B13: ='Vaste posten'!B27 -> 0 | C13: ='Vaste posten'!C27 -> 0 | D13: ='Vaste posten'!D27 -> 0 | E13: ='Vaste posten'!E27 -> 0 | F13: ='Vaste posten'!F27 -> 0 | G13: ='Vaste posten'!G27 -> 0 | H13: ='Vaste posten'!H27 -> 0 | I13: ='Vaste posten'!I27 -> 0 | J13: ='Vaste posten'!J27 -> 0 | K13: ='Vaste posten'!K27 -> 0 | L13: ='Vaste posten'!L27 -> 0 | M13: ='Vaste posten'!M27 -> 0 | N13: ='Vaste posten'!N27 -> 0 | O13: ='Vaste posten'!O27 -> 0 | P13: ='Vaste posten'!P27 -> 0 | Q13: ='Vaste posten'!Q27 -> 0 | R13: ='Vaste posten'!R27 -> 0 | S13: ='Vaste posten'!S27 -> 0 | T13: ='Vaste posten'!T27 -> 0 | U13: ='Vaste posten'!U27 -> 0
A14: ='Vaste posten'!A28 -> Nutsvoorzieningen | B14: ='Vaste posten'!B28 -> 0 | C14: ='Vaste posten'!C28 -> 0 | D14: ='Vaste posten'!D28 -> 0 | E14: ='Vaste posten'!E28 -> 0 | F14: ='Vaste posten'!F28 -> 0 | G14: ='Vaste posten'!G28 -> 0 | H14: ='Vaste posten'!H28 -> 0 | I14: ='Vaste posten'!I28 -> 0 | J14: ='Vaste posten'!J28 -> 0 | K14: ='Vaste posten'!K28 -> 0 | L14: ='Vaste posten'!L28 -> 0 | M14: ='Vaste posten'!M28 -> 0 | N14: ='Vaste posten'!N28 -> 0 | O14: ='Vaste posten'!O28 -> 0 | P14: ='Vaste posten'!P28 -> 0 | Q14: ='Vaste posten'!Q28 -> 0 | R14: ='Vaste posten'!R28 -> 0 | S14: ='Vaste posten'!S28 -> 0 | T14: ='Vaste posten'!T28 -> 0 | U14: ='Vaste posten'!U28 -> 0
A15: ='Vaste posten'!A29 -> Advies | B15: ='Vaste posten'!B29 -> 0 | C15: ='Vaste posten'!C29 -> 0 | D15: ='Vaste posten'!D29 -> 0 | E15: ='Vaste posten'!E29 -> 0 | F15: ='Vaste posten'!F29 -> 0 | G15: ='Vaste posten'!G29 -> 0 | H15: ='Vaste posten'!H29 -> 0 | I15: ='Vaste posten'!I29 -> 0 | J15: ='Vaste posten'!J29 -> 0 | K15: ='Vaste posten'!K29 -> 0 | L15: ='Vaste posten'!L29 -> 0 | M15: ='Vaste posten'!M29 -> 0 | N15: ='Vaste posten'!N29 -> 0 | O15: ='Vaste posten'!O29 -> 0 | P15: ='Vaste posten'!P29 -> 0 | Q15: ='Vaste posten'!Q29 -> 0 | R15: ='Vaste posten'!R29 -> 0 | S15: ='Vaste posten'!S29 -> 0 | T15: ='Vaste posten'!T29 -> 0 | U15: ='Vaste posten'!U29 -> 0
A16: ='Vaste posten'!A30 -> Opstartkosten | B16: ='Vaste posten'!B30 -> 0 | C16: ='Vaste posten'!C30 -> 0 | D16: ='Vaste posten'!D30 -> 0 | E16: ='Vaste posten'!E30 -> 0 | F16: ='Vaste posten'!F30 -> 0 | G16: ='Vaste posten'!G30 -> 0 | H16: ='Vaste posten'!H30 -> 0 | I16: ='Vaste posten'!I30 -> 0 | J16: ='Vaste posten'!J30 -> 0 | K16: ='Vaste posten'!K30 -> 0 | L16: ='Vaste posten'!L30 -> 0 | M16: ='Vaste posten'!M30 -> 0 | N16: ='Vaste posten'!N30 -> 0 | O16: ='Vaste posten'!O30 -> 0 | P16: ='Vaste posten'!P30 -> 0 | Q16: ='Vaste posten'!Q30 -> 0 | R16: ='Vaste posten'!R30 -> 0 | S16: ='Vaste posten'!S30 -> 0 | T16: ='Vaste posten'!T30 -> 0 | U16: ='Vaste posten'!U30 -> 0
A17: ='Vaste posten'!A31 -> Onderhoud | B17: ='Vaste posten'!B31 -> 0 | C17: ='Vaste posten'!C31 -> 0 | D17: ='Vaste posten'!D31 -> 0 | E17: ='Vaste posten'!E31 -> 0 | F17: ='Vaste posten'!F31 -> 0 | G17: ='Vaste posten'!G31 -> 0 | H17: ='Vaste posten'!H31 -> 0 | I17: ='Vaste posten'!I31 -> 0 | J17: ='Vaste posten'!J31 -> 0 | K17: ='Vaste posten'!K31 -> 0 | L17: ='Vaste posten'!L31 -> 0 | M17: ='Vaste posten'!M31 -> 0 | N17: ='Vaste posten'!N31 -> 0 | O17: ='Vaste posten'!O31 -> 0 | P17: ='Vaste posten'!P31 -> 0 | Q17: ='Vaste posten'!Q31 -> 0 | R17: ='Vaste posten'!R31 -> 0 | S17: ='Vaste posten'!S31 -> 0 | T17: ='Vaste posten'!T31 -> 0 | U17: ='Vaste posten'!U31 -> 0
A18: ='Vaste posten'!A32 -> Verzekeringen | B18: ='Vaste posten'!B32 -> 0 | C18: ='Vaste posten'!C32 -> 0 | D18: ='Vaste posten'!D32 -> 0 | E18: ='Vaste posten'!E32 -> 0 | F18: ='Vaste posten'!F32 -> 0 | G18: ='Vaste posten'!G32 -> 0 | H18: ='Vaste posten'!H32 -> 0 | I18: ='Vaste posten'!I32 -> 0 | J18: ='Vaste posten'!J32 -> 0 | K18: ='Vaste posten'!K32 -> 0 | L18: ='Vaste posten'!L32 -> 0 | M18: ='Vaste posten'!M32 -> 0 | N18: ='Vaste posten'!N32 -> 0 | O18: ='Vaste posten'!O32 -> 0 | P18: ='Vaste posten'!P32 -> 0 | Q18: ='Vaste posten'!Q32 -> 0 | R18: ='Vaste posten'!R32 -> 0 | S18: ='Vaste posten'!S32 -> 0 | T18: ='Vaste posten'!T32 -> 0 | U18: ='Vaste posten'!U32 -> 0
A19: ='Vaste posten'!A33 -> Rente | B19: ='Vaste posten'!B33 -> 0 | C19: ='Vaste posten'!C33 -> 0 | D19: ='Vaste posten'!D33 -> 0 | E19: ='Vaste posten'!E33 -> 0 | F19: ='Vaste posten'!F33 -> 0 | G19: ='Vaste posten'!G33 -> 0 | H19: ='Vaste posten'!H33 -> 0 | I19: ='Vaste posten'!I33 -> 0 | J19: ='Vaste posten'!J33 -> 0 | K19: ='Vaste posten'!K33 -> 0 | L19: ='Vaste posten'!L33 -> 0 | M19: ='Vaste posten'!M33 -> 0 | N19: ='Vaste posten'!N33 -> 0 | O19: ='Vaste posten'!O33 -> 0 | P19: ='Vaste posten'!P33 -> 0 | Q19: ='Vaste posten'!Q33 -> 0 | R19: ='Vaste posten'!R33 -> 0 | S19: ='Vaste posten'!S33 -> 0 | T19: ='Vaste posten'!T33 -> 0 | U19: ='Vaste posten'!U33 -> 0
A20: ='Vaste posten'!A34 -> Afschrijvingen | B20: ='Vaste posten'!B34 -> 0 | C20: ='Vaste posten'!C34 -> 0 | D20: ='Vaste posten'!D34 -> 0 | E20: ='Vaste posten'!E34 -> 0 | F20: ='Vaste posten'!F34 -> 0 | G20: ='Vaste posten'!G34 -> 0 | H20: ='Vaste posten'!H34 -> 0 | I20: ='Vaste posten'!I34 -> 0 | J20: ='Vaste posten'!J34 -> 0 | K20: ='Vaste posten'!K34 -> 0 | L20: ='Vaste posten'!L34 -> 0 | M20: ='Vaste posten'!M34 -> 0 | N20: ='Vaste posten'!N34 -> 0 | O20: ='Vaste posten'!O34 -> 0 | P20: ='Vaste posten'!P34 -> 0 | Q20: ='Vaste posten'!Q34 -> 0 | R20: ='Vaste posten'!R34 -> 0 | S20: ='Vaste posten'!S34 -> 0 | T20: ='Vaste posten'!T34 -> 0 | U20: ='Vaste posten'!U34 -> 0
A21: ='Vaste posten'!A35 -> Overige kosten | B21: ='Vaste posten'!B35 -> 0 | C21: ='Vaste posten'!C35 -> 0 | D21: ='Vaste posten'!D35 -> 0 | E21: ='Vaste posten'!E35 -> 0 | F21: ='Vaste posten'!F35 -> 0 | G21: ='Vaste posten'!G35 -> 0 | H21: ='Vaste posten'!H35 -> 0 | I21: ='Vaste posten'!I35 -> 0 | J21: ='Vaste posten'!J35 -> 0 | K21: ='Vaste posten'!K35 -> 0 | L21: ='Vaste posten'!L35 -> 0 | M21: ='Vaste posten'!M35 -> 0 | N21: ='Vaste posten'!N35 -> 0 | O21: ='Vaste posten'!O35 -> 0 | P21: ='Vaste posten'!P35 -> 0 | Q21: ='Vaste posten'!Q35 -> 0 | R21: ='Vaste posten'!R35 -> 0 | S21: ='Vaste posten'!S35 -> 0 | T21: ='Vaste posten'!T35 -> 0 | U21: ='Vaste posten'!U35 -> 0
A22: ='Saldo berekening'!A17 -> Aanleg | B22: ='Saldo berekening'!B17 -> 0 | C22: ='Saldo berekening'!C17 -> 0 | D22: ='Saldo berekening'!D17 -> 0 | E22: ='Saldo berekening'!E17 -> 0 | F22: ='Saldo berekening'!F17 -> 0 | G22: ='Saldo berekening'!G17 -> 0 | H22: ='Saldo berekening'!H17 -> 0 | I22: ='Saldo berekening'!I17 -> 0 | J22: ='Saldo berekening'!J17 -> 0 | K22: ='Saldo berekening'!K17 -> 0 | L22: ='Saldo berekening'!L17 -> 0 | M22: ='Saldo berekening'!M17 -> 0 | N22: ='Saldo berekening'!N17 -> 0 | O22: ='Saldo berekening'!O17 -> 0 | P22: ='Saldo berekening'!P17 -> 0 | Q22: ='Saldo berekening'!Q17 -> 0 | R22: ='Saldo berekening'!R17 -> 0 | S22: ='Saldo berekening'!S17 -> 0 | T22: ='Saldo berekening'!T17 -> 0 | U22: ='Saldo berekening'!U17 -> 0
A23: ='Saldo berekening'!A18 -> Schouw en inspectie | B23: ='Saldo berekening'!B18 -> 0 | C23: ='Saldo berekening'!C18 -> 0 | D23: ='Saldo berekening'!D18 -> 0 | E23: ='Saldo berekening'!E18 -> 0 | F23: ='Saldo berekening'!F18 -> 0 | G23: ='Saldo berekening'!G18 -> 0 | H23: ='Saldo berekening'!H18 -> 0 | I23: ='Saldo berekening'!I18 -> 0 | J23: ='Saldo berekening'!J18 -> 0 | K23: ='Saldo berekening'!K18 -> 0 | L23: ='Saldo berekening'!L18 -> 0 | M23: ='Saldo berekening'!M18 -> 0 | N23: ='Saldo berekening'!N18 -> 0 | O23: ='Saldo berekening'!O18 -> 0 | P23: ='Saldo berekening'!P18 -> 0 | Q23: ='Saldo berekening'!Q18 -> 0 | R23: ='Saldo berekening'!R18 -> 0 | S23: ='Saldo berekening'!S18 -> 0 | T23: ='Saldo berekening'!T18 -> 0 | U23: ='Saldo berekening'!U18 -> 0
A24: ='Saldo berekening'!A20 -> (groen) Onderhoud | B24: ='Saldo berekening'!B20 -> 0 | C24: ='Saldo berekening'!C20 -> 0 | D24: ='Saldo berekening'!D20 -> 0 | E24: ='Saldo berekening'!E20 -> 0 | F24: ='Saldo berekening'!F20 -> 0 | G24: ='Saldo berekening'!G20 -> 0 | H24: ='Saldo berekening'!H20 -> 0 | I24: ='Saldo berekening'!I20 -> 0 | J24: ='Saldo berekening'!J20 -> 0 | K24: ='Saldo berekening'!K20 -> 0 | L24: ='Saldo berekening'!L20 -> 0 | M24: ='Saldo berekening'!M20 -> 0 | N24: ='Saldo berekening'!N20 -> 0 | O24: ='Saldo berekening'!O20 -> 0 | P24: ='Saldo berekening'!P20 -> 0 | Q24: ='Saldo berekening'!Q20 -> 0 | R24: ='Saldo berekening'!R20 -> 0 | S24: ='Saldo berekening'!S20 -> 0 | T24: ='Saldo berekening'!T20 -> 0 | U24: ='Saldo berekening'!U20 -> 0
A25: ='Saldo berekening'!A21 -> Organisatie & logistiek | B25: ='Saldo berekening'!B21 -> 0 | C25: ='Saldo berekening'!C21 -> 0 | D25: ='Saldo berekening'!D21 -> 0 | E25: ='Saldo berekening'!E21 -> 0 | F25: ='Saldo berekening'!F21 -> 0 | G25: ='Saldo berekening'!G21 -> 0 | H25: ='Saldo berekening'!H21 -> 0 | I25: ='Saldo berekening'!I21 -> 0 | J25: ='Saldo berekening'!J21 -> 0 | K25: ='Saldo berekening'!K21 -> 0 | L25: ='Saldo berekening'!L21 -> 0 | M25: ='Saldo berekening'!M21 -> 0 | N25: ='Saldo berekening'!N21 -> 0 | O25: ='Saldo berekening'!O21 -> 0 | P25: ='Saldo berekening'!P21 -> 0 | Q25: ='Saldo berekening'!Q21 -> 0 | R25: ='Saldo berekening'!R21 -> 0 | S25: ='Saldo berekening'!S21 -> 0 | T25: ='Saldo berekening'!T21 -> 0 | U25: ='Saldo berekening'!U21 -> 0
A26: ='Vaste posten'!A37 -> Onvoorziene kosten | B26: ='Vaste posten'!B37 -> 0 | C26: ='Vaste posten'!C37 -> 0 | D26: ='Vaste posten'!D37 -> 0 | E26: ='Vaste posten'!E37 -> 0 | F26: ='Vaste posten'!F37 -> 0 | G26: ='Vaste posten'!G37 -> 0 | H26: ='Vaste posten'!H37 -> 0 | I26: ='Vaste posten'!I37 -> 0 | J26: ='Vaste posten'!J37 -> 0 | K26: ='Vaste posten'!K37 -> 0 | L26: ='Vaste posten'!L37 -> 0 | M26: ='Vaste posten'!M37 -> 0 | N26: ='Vaste posten'!N37 -> 0 | O26: ='Vaste posten'!O37 -> 0 | P26: ='Vaste posten'!P37 -> 0 | Q26: ='Vaste posten'!Q37 -> 0 | R26: ='Vaste posten'!R37 -> 0 | S26: ='Vaste posten'!S37 -> 0 | T26: ='Vaste posten'!T37 -> 0 | U26: ='Vaste posten'!U37 -> 0
A27: Totaal | B27: =SUM(B10:B26) -> 0 | C27: =SUM(C10:C26) -> 0 | D27: 0 | E27: 0 | F27: 0 | G27: 0 | H27: 0 | I27: 0 | J27: 0 | K27: 0 | L27: 0 | M27: 0 | N27: 0 | O27: 0 | P27: 0 | Q27: 0 | R27: 0 | S27: 0 | T27: 0 | U27: 0
A29: Totale vaste kosten | B29: =SUM(B27:U27) -> 0
A30: Gemiddeld vaste kosten per jaar | B30: =B29/B6 -> 0
A31: Gem. jaarlijkse vaste kosten per kg | B31: =IF(B7>0,B30/B7,0) -> 0
A34: Variabele kosten
A35: ='Saldo berekening'!A10 -> Verpakkingsmateriaal | B35: =Kosten!B17 -> 0
A36: ='Saldo berekening'!A11 -> Transport | B36: =Kosten!B18 -> 0
A37: ='Saldo berekening'!A12 -> Opslag | B37: =Kosten!B19 -> 0
A38: ='Saldo berekening'!A13 -> Overige kosten | B38: =Kosten!B20 -> 0
A39: Totaal | B39: =SUM(B35:B38) -> 0
A41: Wetenschappelijke naam | B41: Nederlandse naam | C41: Vast | D41: Variabel | E41: Arbeid | F41: Totaal
A42: =Plantenlijst!A4 -> Acer campestre | B42: =Plantenlijst!B4 -> Veldesdoorn | C42: =B$31 -> 0 | D42: =B$39 -> 0 | E42: =IF(Plukprestaties!G4>0,1/Plukprestaties!G4*Kosten!B$59,0) -> 5.5 | F42: =SUM(C42:E42) -> 5.5
A43: =Plantenlijst!A5 -> Acer platanoides | B43: =Plantenlijst!B5 -> Noorse esdoorn | C43: 0 | D43: =B$39 -> 0 | E43: =IF(Plukprestaties!G5>0,1/Plukprestaties!G5*Kosten!B$59,0) -> 5.5 | F43: =SUM(C43:E43) -> 5.5
A44: =Plantenlijst!A6 -> Acer pseudoplatanus | B44: =Plantenlijst!B6 -> Gewone esdoorn | C44: 0 | D44: 0 | E44: =IF(Plukprestaties!G6>0,1/Plukprestaties!G6*Kosten!B$59,0) -> 5.5 | F44: 5.5
A45: =Plantenlijst!A7 -> Acer saccharum | B45: =Plantenlijst!B7 -> Suikeresdoorn | C45: 0 | D45: 0 | E45: =IF(Plukprestaties!G7>0,1/Plukprestaties!G7*Kosten!B$59,0) -> 5.5 | F45: 5.5
A46: =Plantenlijst!A8 -> Achillea millefolium | B46: =Plantenlijst!B8 -> Duizendblad | C46: 0 | D46: 0 | E46: =IF(Plukprestaties!G8>0,1/Plukprestaties!G8*Kosten!B$59,0) -> 5.5 | F46: 5.5
A47: =Plantenlijst!A9 -> Actinidia arguta | B47: =Plantenlijst!B9 -> Kiwibes | C47: 0 | D47: 0 | E47: =IF(Plukprestaties!G9>0,1/Plukprestaties!G9*Kosten!B$59,0) -> 1.375 | F47: 1.375
A48: =Plantenlijst!A10 -> Actinidia deliciosa | B48: =Plantenlijst!B10 -> Zelf bestuivende kiwi | C48: 0 | D48: 0 | E48: =IF(Plukprestaties!G10>0,1/Plukprestaties!G10*Kosten!B$59,0) -> 1.375 | F48: 1.375
A49: =Plantenlijst!A11 -> Actinidia komikta | B49: =Plantenlijst!B11 -> Arctisch | C49: 0 | D49: 0 | E49: =IF(Plukprestaties!G11>0,1/Plukprestaties!G11*Kosten!B$59,0) -> 1.375 | F49: 1.375
A50: =Plantenlijst!A12 -> Agaricus bisporus | B50: =Plantenlijst!B12 -> Champignon | C50: 0 | D50: 0 | E50: =IF(Plukprestaties!G12>0,1/Plukprestaties!G12*Kosten!B$59,0) -> 5.5 | F50: 5.5
A51: =Plantenlijst!A13 -> Agastache foeniculum | B51: =Plantenlijst!B13 -> Dropplant | C51: 0 | D51: 0 | E51: =IF(Plukprestaties!G13>0,1/Plukprestaties!G13*Kosten!B$59,0) -> 5.5 | F51: 5.5
A52: =Plantenlijst!A14 -> Akebia quinata | B52: =Plantenlijst!B14 -> Schijnaugurk | C52: 0 | D52: 0 | E52: =IF(Plukprestaties!G14>0,1/Plukprestaties!G14*Kosten!B$59,0) -> 5.5 | F52: 5.5
A53: =Plantenlijst!A15 -> Alcea ficifolia | B53: =Plantenlijst!B15 -> Vijgenbladstokroos | C53: 0 | D53: 0 | E53: =IF(Plukprestaties!G15>0,1/Plukprestaties!G15*Kosten!B$59,0) -> 5.5 | F53: 5.5
A54: =Plantenlijst!A16 -> Alchemilla xanthochlora | B54: =Plantenlijst!B16 -> Geelgroene vrouwenmantel | C54: 0 | D54: 0 | E54: =IF(Plukprestaties!G16>0,1/Plukprestaties!G16*Kosten!B$59,0) -> 5.5 | F54: 5.5
A55: =Plantenlijst!A17 -> Allium schoenoprasum | B55: =Plantenlijst!B17 -> Bieslook | C55: 0 | D55: 0 | E55: =IF(Plukprestaties!G17>0,1/Plukprestaties!G17*Kosten!B$59,0) -> 5.5 | F55: 5.5
A56: =Plantenlijst!A18 -> Allium Ursinum | B56: =Plantenlijst!B18 -> Daslook | C56: 0 | D56: 0 | E56: =IF(Plukprestaties!G18>0,1/Plukprestaties!G18*Kosten!B$59,0) -> 5.5 | F56: 5.5
A57: =Plantenlijst!A19 -> Alnus cordata | B57: =Plantenlijst!B19 -> Harbladige els | C57: 0 | D57: 0 | E57: =IF(Plukprestaties!G19>0,1/Plukprestaties!G19*Kosten!B$59,0) -> 0 | F57: 0
A58: =Plantenlijst!A20 -> Alnus glutinosa | B58: =Plantenlijst!B20 -> Zwarte els | C58: 0 | D58: 0 | E58: =IF(Plukprestaties!G20>0,1/Plukprestaties!G20*Kosten!B$59,0) -> 0 | F58: 0
A59: =Plantenlijst!A21 -> Alnus incana | B59: =Plantenlijst!B21 -> Witte els, grijze els | C59: 0 | D59: 0 | E59: =IF(Plukprestaties!G21>0,1/Plukprestaties!G21*Kosten!B$59,0) -> 0 | F59: 0
A60: =Plantenlijst!A22 -> Aloysia citrodora | B60: =Plantenlijst!B22 -> Citroenverbena | C60: 0 | D60: 0 | E60: =IF(Plukprestaties!G22>0,1/Plukprestaties!G22*Kosten!B$59,0) -> 5.5 | F60: 5.5
A61: =Plantenlijst!A23 -> Amelanchier alnifolia | B61: =Plantenlijst!B23 -> Krentenboompje | C61: 0 | D61: 0 | E61: =IF(Plukprestaties!G23>0,1/Plukprestaties!G23*Kosten!B$59,0) -> 4.4 | F61: 4.4
A62: =Plantenlijst!A24 -> Amelanchier laevis | B62: =Plantenlijst!B24 -> Krentenboompje | C62: 0 | D62: 0 | E62: =IF(Plukprestaties!G24>0,1/Plukprestaties!G24*Kosten!B$59,0) -> 4.4 | F62: 4.4
A63: =Plantenlijst!A25 -> Amelanchier lamarckii | B63: =Plantenlijst!B25 -> Krentenboompje | C63: 0 | D63: 0 | E63: =IF(Plukprestaties!G25>0,1/Plukprestaties!G25*Kosten!B$59,0) -> 4.4 | F63: 4.4
A64: =Plantenlijst!A26 -> Amorpha fruticosa | B64: =Plantenlijst!B26 -> Indigostruik | C64: 0 | D64: 0 | E64: =IF(Plukprestaties!G26>0,1/Plukprestaties!G26*Kosten!B$59,0) -> 5.5 | F64: 5.5
A65: =Plantenlijst!A27 -> Angelica archangelica | B65: =Plantenlijst!B27 -> Grote engelwortel | C65: 0 | D65: 0 | E65: =IF(Plukprestaties!G27>0,1/Plukprestaties!G27*Kosten!B$59,0) -> 5.5 | F65: 5.5
A66: =Plantenlijst!A28 -> Aralia elata | B66: =Plantenlijst!B28 -> Engelenboom | C66: 0 | D66: 0 | E66: =IF(Plukprestaties!G28>0,1/Plukprestaties!G28*Kosten!B$59,0) -> 5.5 | F66: 5.5
A67: =Plantenlijst!A29 -> Araucaria araucana | B67: =Plantenlijst!B29 -> Slangenden | C67: 0 | D67: 0 | E67: =IF(Plukprestaties!G29>0,1/Plukprestaties!G29*Kosten!B$59,0) -> 5.5 | F67: 5.5
A68: =Plantenlijst!A30 -> Arbutus unedo | B68: =Plantenlijst!B30 -> Aardbei boom | C68: 0 | D68: 0 | E68: =IF(Plukprestaties!G30>0,1/Plukprestaties!G30*Kosten!B$59,0) -> 1.795918367 | F68: 1.795918367
A69: =Plantenlijst!A31 -> Arnica spp. | B69: =Plantenlijst!B31 -> Valkruid | C69: 0 | D69: 0 | E69: =IF(Plukprestaties!G31>0,1/Plukprestaties!G31*Kosten!B$59,0) -> 5.5 | F69: 5.5
A70: =Plantenlijst!A32 -> Aronia arbutifolia | B70: =Plantenlijst!B32 -> Appelbes | C70: 0 | D70: 0 | E70: =IF(Plukprestaties!G32>0,1/Plukprestaties!G32*Kosten!B$59,0) -> 4.4 | F70: 4.4
A71: =Plantenlijst!A33 -> Aronia melanocarpa | B71: =Plantenlijst!B33 -> Appelbes | C71: 0 | D71: 0 | E71: =IF(Plukprestaties!G33>0,1/Plukprestaties!G33*Kosten!B$59,0) -> 4.4 | F71: 4.4
A72: =Plantenlijst!A34 -> Aronia prunifolia | B72: =Plantenlijst!B34 -> Appelbes | C72: 0 | D72: 0 | E72: =IF(Plukprestaties!G34>0,1/Plukprestaties!G34*Kosten!B$59,0) -> 4.4 | F72: 4.4
A73: =Plantenlijst!A35 -> Artemisia abrotanum | B73: =Plantenlijst!B35 -> Citroenkruid | C73: 0 | D73: 0 | E73: =IF(Plukprestaties!G35>0,1/Plukprestaties!G35*Kosten!B$59,0) -> 5.5 | F73: 5.5
A74: =Plantenlijst!A36 -> Artemisia dracunculus | B74: =Plantenlijst!B36 -> Dragon | C74: =B$31 -> 0 | D74: 0 | E74: =IF(Plukprestaties!G36>0,1/Plukprestaties!G36*Kosten!B$59,0) -> 5.5 | F74: 5.5
A75: =Plantenlijst!A37 -> Artemisia moxa | B75: =Plantenlijst!B37 -> Bijvoet | C75: 0 | D75: 0 | E75: =IF(Plukprestaties!G37>0,1/Plukprestaties!G37*Kosten!B$59,0) -> 5.5 | F75: 5.5
A76: =Plantenlijst!A38 -> Asimina triloba | B76: =Plantenlijst!B38 -> Pawpaw | C76: 0 | D76: 0 | E76: =IF(Plukprestaties!G38>0,1/Plukprestaties!G38*Kosten!B$59,0) -> 5.5 | F76: 5.5
A77: =Plantenlijst!A39 -> Berberis aristata | B77: =Plantenlijst!B39 -> Chitra | C77: 0 | D77: 0 | E77: =IF(Plukprestaties!G39>0,1/Plukprestaties!G39*Kosten!B$59,0) -> 4.4 | F77: 4.4
A78: =Plantenlijst!A40 -> Berberis vulgaris | B78: =Plantenlijst!B40 -> Zuurbes | C78: 0 | D78: 0 | E78: =IF(Plukprestaties!G40>0,1/Plukprestaties!G40*Kosten!B$59,0) -> 4.4 | F78: 4.4
A79: =Plantenlijst!A41 -> Bunimum bulbocastanum | B79: =Plantenlijst!B41 -> Aardkastanje | C79: 0 | D79: 0 | E79: =IF(Plukprestaties!G41>0,1/Plukprestaties!G41*Kosten!B$59,0) -> 5.5 | F79: 5.5
A80: =Plantenlijst!A42 -> Capparis Spinosa | B80: =Plantenlijst!B42 -> Kappertjes plant | C80: 0 | D80: 0 | E80: =IF(Plukprestaties!G42>0,1/Plukprestaties!G42*Kosten!B$59,0) -> 5.5 | F80: 5.5
A81: =Plantenlijst!A43 -> Caragana arborecens | B81: =Plantenlijst!B43 -> Chiberische erwtensctruik | C81: 0 | D81: 0 | E81: =IF(Plukprestaties!G43>0,1/Plukprestaties!G43*Kosten!B$59,0) -> 5.5 | F81: 5.5
A82: =Plantenlijst!A44 -> Carya illinoiensis | B82: =Plantenlijst!B44 -> Pecanoot | C82: 0 | D82: 0 | E82: =IF(Plukprestaties!G44>0,1/Plukprestaties!G44*Kosten!B$59,0) -> 5.5 | F82: 5.5
A83: =Plantenlijst!A45 -> Carya spp | B83: =Plantenlijst!B45 -> Hickorynoot | C83: 0 | D83: 0 | E83: =IF(Plukprestaties!G45>0,1/Plukprestaties!G45*Kosten!B$59,0) -> 5.5 | F83: 5.5
A84: =Plantenlijst!A46 -> Castanea mollissima | B84: =Plantenlijst!B46 -> Chinese kastanje | C84: 0 | D84: 0 | E84: =IF(Plukprestaties!G46>0,1/Plukprestaties!G46*Kosten!B$59,0) -> 1.466666667 | F84: 1.466666667
A85: =Plantenlijst!A47 -> Castanea sativa | B85: =Plantenlijst!B47 -> Tamme kastanje | C85: 0 | D85: 0 | E85: =IF(Plukprestaties!G47>0,1/Plukprestaties!G47*Kosten!B$59,0) -> 1.466666667 | F85: 1.466666667
A86: =Plantenlijst!A48 -> Casteana Pumiles | B86: =Plantenlijst!B48 -> Chinkapin | C86: 0 | D86: 0 | E86: =IF(Plukprestaties!G48>0,1/Plukprestaties!G48*Kosten!B$59,0) -> 5.5 | F86: 5.5
A87: =Plantenlijst!A49 -> Celtis australis | B87: =Plantenlijst!B49 -> Europese netelboom | C87: 0 | D87: 0 | E87: =IF(Plukprestaties!G49>0,1/Plukprestaties!G49*Kosten!B$59,0) -> 5.5 | F87: 5.5
A88: =Plantenlijst!A50 -> Cercis siliquastrum | B88: =Plantenlijst!B50 -> Judasboom | C88: 0 | D88: 0 | E88: =IF(Plukprestaties!G50>0,1/Plukprestaties!G50*Kosten!B$59,0) -> 5.5 | F88: 5.5
A89: =Plantenlijst!A51 -> Chaenomeles cathayensis | B89: =Plantenlijst!B51 -> Chinese kwee | C89: 0 | D89: 0 | E89: =IF(Plukprestaties!G51>0,1/Plukprestaties!G51*Kosten!B$59,0) -> 0.1892473118 | F89: 0.1892473118
A90: =Plantenlijst!A52 -> Chaenomeles speciosa | B90: =Plantenlijst!B52 -> Japanse kwee | C90: 0 | D90: 0 | E90: =IF(Plukprestaties!G52>0,1/Plukprestaties!G52*Kosten!B$59,0) -> 0.1892473118 | F90: 0.1892473118
A91: =Plantenlijst!A53 -> Chaenomeles spp. | B91: =Plantenlijst!B53 -> Kwee | C91: 0 | D91: 0 | E91: =IF(Plukprestaties!G53>0,1/Plukprestaties!G53*Kosten!B$59,0) -> 0.1892473118 | F91: 0.1892473118
A92: =Plantenlijst!A54 -> Chelidonium majus | B92: =Plantenlijst!B54 -> Stinkende gouwe | C92: 0 | D92: 0 | E92: =IF(Plukprestaties!G54>0,1/Plukprestaties!G54*Kosten!B$59,0) -> 5.5 | F92: 5.5
A93: =Plantenlijst!A55 -> Cornus kousa | B93: =Plantenlijst!B55 -> Chinese kornoelje | C93: 0 | D93: 0 | E93: =IF(Plukprestaties!G55>0,1/Plukprestaties!G55*Kosten!B$59,0) -> 6.285714286 | F93: 6.285714286
A94: =Plantenlijst!A56 -> Cornus mas | B94: =Plantenlijst!B56 -> Gele kornoelje | C94: 0 | D94: 0 | E94: =IF(Plukprestaties!G56>0,1/Plukprestaties!G56*Kosten!B$59,0) -> 1.375 | F94: 1.375
A95: =Plantenlijst!A57 -> Cornus sanguinea | B95: =Plantenlijst!B57 -> Rode kornoelje | C95: 0 | D95: 0 | E95: =IF(Plukprestaties!G57>0,1/Plukprestaties!G57*Kosten!B$59,0) -> 2.444444444 | F95: 2.444444444
A96: =Plantenlijst!A58 -> Corylus avellana | B96: =Plantenlijst!B58 -> Hazelaar | C96: 0 | D96: 0 | E96: =IF(Plukprestaties!G58>0,1/Plukprestaties!G58*Kosten!B$59,0) -> 5.5 | F96: 5.5
A97: =Plantenlijst!A59 -> Crataegus persimilis | B97: =Plantenlijst!B59 -> Grootvruchtmeidoorn | C97: 0 | D97: 0 | E97: =IF(Plukprestaties!G59>0,1/Plukprestaties!G59*Kosten!B$59,0) -> 1.375 | F97: 1.375
A98: =Plantenlijst!A60 -> Crataegus pinnatifida | B98: =Plantenlijst!B60 -> Grootvruchtmeidoorn | C98: 0 | D98: 0 | E98: =IF(Plukprestaties!G60>0,1/Plukprestaties!G60*Kosten!B$59,0) -> 1.375 | F98: 1.375
A99: =Plantenlijst!A61 -> Cydonia oblonga (sept) | B99: =Plantenlijst!B61 -> Kweepeer (sept) | C99: 0 | D99: 0 | E99: =IF(Plukprestaties!G61>0,1/Plukprestaties!G61*Kosten!B$59,0) -> 0.1892473118 | F99: 0.1892473118
A100: =Plantenlijst!A62 -> Cynara cardunculus | B100: =Plantenlijst!B62 -> Kardoen | C100: 0 | D100: 0 | E100: =IF(Plukprestaties!G62>0,1/Plukprestaties!G62*Kosten!B$59,0) -> 5.5 | F100: 5.5
A101: =Plantenlijst!A63 -> Decaisnea fargesii | B101: =Plantenlijst!B63 -> Augurkenstruik | C101: 0 | D101: 0 | E101: =IF(Plukprestaties!G63>0,1/Plukprestaties!G63*Kosten!B$59,0) -> 5.5 | F101: 5.5
A102: =Plantenlijst!A64 -> Diospyros virginiana | B102: =Plantenlijst!B64 -> Persimoen, Kaki | C102: 0 | D102: 0 | E102: =IF(Plukprestaties!G64>0,1/Plukprestaties!G64*Kosten!B$59,0) -> 0.1795918367 | F102: 0.1795918367
A103: =Plantenlijst!A65 -> Diospyrus kaki | B103: =Plantenlijst!B65 -> Persimoen, Kaki | C103: 0 | D103: 0 | E103: =IF(Plukprestaties!G65>0,1/Plukprestaties!G65*Kosten!B$59,0) -> 0.1795918367 | F103: 0.1795918367
A104: =Plantenlijst!A66 -> Diospyrus virginia | B104: =Plantenlijst!B66 -> Persimoen, Kaki | C104: 0 | D104: 0 | E104: =IF(Plukprestaties!G66>0,1/Plukprestaties!G66*Kosten!B$59,0) -> 0.1795918367 | F104: 0.1795918367
A105: =Plantenlijst!A67 -> Echinacea spp. | B105: =Plantenlijst!B67 -> Zonnehoed | C105: 0 | D105: 0 | E105: =IF(Plukprestaties!G67>0,1/Plukprestaties!G67*Kosten!B$59,0) -> 5.5 | F105: 5.5
A106: =Plantenlijst!A68 -> Elaeagnus umbellata | B106: =Plantenlijst!B68 -> Herfstolijfwilg | C106: =B$31 -> 0 | D106: 0 | E106: =IF(Plukprestaties!G68>0,1/Plukprestaties!G68*Kosten!B$59,0) -> 2.444444444 | F106: 2.444444444
A107: =Plantenlijst!A69 -> Elaeagnus x ebbingei | B107: =Plantenlijst!B69 -> Zilverbes | C107: 0 | D107: =B$39 -> 0 | E107: =IF(Plukprestaties!G69>0,1/Plukprestaties!G69*Kosten!B$59,0) -> 5.5 | F107: =SUM(C107:E107) -> 5.5
A108: =Plantenlijst!A70 -> Eleutherococcus Ginseng | B108: =Plantenlijst!B70 -> Siberische Ginseg | C108: 0 | D108: 0 | E108: =IF(Plukprestaties!G70>0,1/Plukprestaties!G70*Kosten!B$59,0) -> 5.5 | F108: 5.5
A109: =Plantenlijst!A71 -> Fagus spp | B109: =Plantenlijst!B71 -> Beuk | C109: 0 | D109: 0 | E109: =IF(Plukprestaties!G71>0,1/Plukprestaties!G71*Kosten!B$59,0) -> 5.5 | F109: 5.5
A110: =Plantenlijst!A72 -> Feijoa sellowiana | B110: =Plantenlijst!B72 -> Ananas Guave | C110: 0 | D110: 0 | E110: =IF(Plukprestaties!G72>0,1/Plukprestaties!G72*Kosten!B$59,0) -> 0.2095238095 | F110: 0.2095238095
A111: =Plantenlijst!A73 -> Ficus carica | B111: =Plantenlijst!B73 -> Vijg | C111: 0 | D111: 0 | E111: =IF(Plukprestaties!G73>0,1/Plukprestaties!G73*Kosten!B$59,0) -> 5.5 | F111: 5.5
A112: =Plantenlijst!A74 -> Foeniculum vulgare | B112: =Plantenlijst!B74 -> Brons venkel | C112: 0 | D112: 0 | E112: =IF(Plukprestaties!G74>0,1/Plukprestaties!G74*Kosten!B$59,0) -> 5.5 | F112: 5.5
A113: =Plantenlijst!A75 -> Gaultheria salal | B113: =Plantenlijst!B75 -> Appeltjes blad | C113: 0 | D113: 0 | E113: =IF(Plukprestaties!G75>0,1/Plukprestaties!G75*Kosten!B$59,0) -> 5.5 | F113: 5.5
A114: =Plantenlijst!A76 -> Geum spp-. | B114: =Plantenlijst!B76 -> Nagelkruid | C114: 0 | D114: 0 | E114: =IF(Plukprestaties!G76>0,1/Plukprestaties!G76*Kosten!B$59,0) -> 5.5 | F114: 5.5
A115: =Plantenlijst!A77 -> Ginkgo Biloba | B115: =Plantenlijst!B77 -> Ginko noot | C115: 0 | D115: 0 | E115: =IF(Plukprestaties!G77>0,1/Plukprestaties!G77*Kosten!B$59,0) -> 5.5 | F115: 5.5
A116: =Plantenlijst!A78 -> Gleditsia triacanthos | B116: =Plantenlijst!B78 -> Valse Christusdoorn | C116: 0 | D116: 0 | E116: =IF(Plukprestaties!G78>0,1/Plukprestaties!G78*Kosten!B$59,0) -> 5.5 | F116: 5.5
A117: =Plantenlijst!A79 -> Halesia carolina | B117: =Plantenlijst!B79 -> Sneeuwklokjesboom | C117: 0 | D117: 0 | E117: =IF(Plukprestaties!G79>0,1/Plukprestaties!G79*Kosten!B$59,0) -> 5.5 | F117: 5.5
A118: =Plantenlijst!A80 -> Helichrysum italicum | B118: =Plantenlijst!B80 -> Kerriekruid | C118: 0 | D118: 0 | E118: =IF(Plukprestaties!G80>0,1/Plukprestaties!G80*Kosten!B$59,0) -> 5.5 | F118: 5.5
A119: =Plantenlijst!A81 -> Hemercallis | B119: =Plantenlijst!B81 -> Daglelie | C119: 0 | D119: 0 | E119: =IF(Plukprestaties!G81>0,1/Plukprestaties!G81*Kosten!B$59,0) -> 5.5 | F119: 5.5
A120: =Plantenlijst!A82 -> Hibiscus syriacus | B120: =Plantenlijst!B82 -> Hibiscus, Altheastruik | C120: 0 | D120: 0 | E120: =IF(Plukprestaties!G82>0,1/Plukprestaties!G82*Kosten!B$59,0) -> 5.5 | F120: 5.5
A121: =Plantenlijst!A83 -> Hippophae rhamnoides | B121: =Plantenlijst!B83 -> Duindoorn | C121: 0 | D121: 0 | E121: =IF(Plukprestaties!G83>0,1/Plukprestaties!G83*Kosten!B$59,0) -> 1.375 | F121: 1.375
A122: =Plantenlijst!A84 -> Hosta spp. | B122: =Plantenlijst!B84 -> Hosta | C122: 0 | D122: 0 | E122: =IF(Plukprestaties!G84>0,1/Plukprestaties!G84*Kosten!B$59,0) -> 5.5 | F122: 5.5
A123: =Plantenlijst!A85 -> Hovenia Dulcis | B123: =Plantenlijst!B85 -> Japanse krentenboom | C123: 0 | D123: 0 | E123: =IF(Plukprestaties!G85>0,1/Plukprestaties!G85*Kosten!B$59,0) -> 4.4 | F123: 4.4
A124: =Plantenlijst!A86 -> Humulus Lupulus | B124: =Plantenlijst!B86 -> Hop | C124: 0 | D124: 0 | E124: =IF(Plukprestaties!G86>0,1/Plukprestaties!G86*Kosten!B$59,0) -> 5.5 | F124: 5.5
A125: =Plantenlijst!A87 -> Hydrangea serrata | B125: =Plantenlijst!B87 -> Thee hortensia | C125: 0 | D125: 0 | E125: =IF(Plukprestaties!G87>0,1/Plukprestaties!G87*Kosten!B$59,0) -> 5.5 | F125: 5.5
A126: =Plantenlijst!A88 -> Hypsizygus tessellatus | B126: =Plantenlijst!B88 -> Beukenzwam | C126: 0 | D126: 0 | E126: =IF(Plukprestaties!G88>0,1/Plukprestaties!G88*Kosten!B$59,0) -> 5.5 | F126: 5.5
A127: =Plantenlijst!A89 -> Ilex aquifolium | B127: =Plantenlijst!B89 -> Hulst | C127: 0 | D127: 0 | E127: =IF(Plukprestaties!G89>0,1/Plukprestaties!G89*Kosten!B$59,0) -> 4 | F127: 4
A128: =Plantenlijst!A90 -> Juglans ailantifolia | B128: =Plantenlijst!B90 -> Japanse walnoot (hartnoot) | C128: 0 | D128: 0 | E128: =IF(Plukprestaties!G90>0,1/Plukprestaties!G90*Kosten!B$59,0) -> 5.5 | F128: 5.5
A129: =Plantenlijst!A91 -> Juglans cinerea | B129: =Plantenlijst!B91 -> Witte walnoot, boternoot | C129: 0 | D129: 0 | E129: =IF(Plukprestaties!G91>0,1/Plukprestaties!G91*Kosten!B$59,0) -> 5.5 | F129: 5.5
A130: =Plantenlijst!A92 -> Juglans nigra | B130: =Plantenlijst!B92 -> Zwarte walnoot | C130: 0 | D130: 0 | E130: =IF(Plukprestaties!G92>0,1/Plukprestaties!G92*Kosten!B$59,0) -> 5.5 | F130: 5.5
A131: =Plantenlijst!A93 -> Juglans regia | B131: =Plantenlijst!B93 -> Walnoot | C131: 0 | D131: 0 | E131: =IF(Plukprestaties!G93>0,1/Plukprestaties!G93*Kosten!B$59,0) -> 5.5 | F131: 5.5
A132: =Plantenlijst!A94 -> Laurus nobilis | B132: =Plantenlijst!B94 -> Keukenlaurier | C132: 0 | D132: 0 | E132: =IF(Plukprestaties!G94>0,1/Plukprestaties!G94*Kosten!B$59,0) -> 5.5 | F132: 5.5
A133: =Plantenlijst!A95 -> Lentinula edodes | B133: =Plantenlijst!B95 -> Shiitake | C133: 0 | D133: 0 | E133: =IF(Plukprestaties!G95>0,1/Plukprestaties!G95*Kosten!B$59,0) -> 5.5 | F133: 5.5
A134: =Plantenlijst!A96 -> Lonicera caerulea | B134: =Plantenlijst!B96 -> Honingbes | C134: 0 | D134: 0 | E134: =IF(Plukprestaties!G96>0,1/Plukprestaties!G96*Kosten!B$59,0) -> 4.4 | F134: 4.4
A135: =Plantenlijst!A97 -> lonicera caerulea (juli) | B135: =Plantenlijst!B97 -> Honingbes | C135: 0 | D135: 0 | E135: =IF(Plukprestaties!G97>0,1/Plukprestaties!G97*Kosten!B$59,0) -> 4.4 | F135: 4.4
A136: =Plantenlijst!A98 -> Lycium barbarum | B136: =Plantenlijst!B98 -> Gojibes | C136: 0 | D136: 0 | E136: =IF(Plukprestaties!G98>0,1/Plukprestaties!G98*Kosten!B$59,0) -> 4.4 | F136: 4.4
A137: =Plantenlijst!A99 -> Magnolia x soulangeana | B137: =Plantenlijst!B99 -> Magnolia, beverboom | C137: 0 | D137: 0 | E137: =IF(Plukprestaties!G99>0,1/Plukprestaties!G99*Kosten!B$59,0) -> 5.5 | F137: 5.5
A138: =Plantenlijst!A100 -> Mahonia aquifolium | B138: =Plantenlijst!B100 -> Mahonie | C138: =B$31 -> 0 | D138: 0 | E138: =IF(Plukprestaties!G100>0,1/Plukprestaties!G100*Kosten!B$59,0) -> 5.5 | F138: 5.5
A139: =Plantenlijst!A101 -> Malus domestica (Bewaar) | B139: =Plantenlijst!B101 -> Appel | C139: 0 | D139: 0 | E139: =IF(Plukprestaties!G101>0,1/Plukprestaties!G101*Kosten!B$59,0) -> 0.1795918367 | F139: 0.1795918367
A140: =Plantenlijst!A102 -> Malus domestica (Hand) | B140: =Plantenlijst!B102 -> Appel | C140: 0 | D140: 0 | E140: =IF(Plukprestaties!G102>0,1/Plukprestaties!G102*Kosten!B$59,0) -> 0.1795918367 | F140: 0.1795918367
A141: =Plantenlijst!A103 -> Malus domestica cider | B141: =Plantenlijst!B103 -> 0 | C141: 0 | D141: 0 | E141: =IF(Plukprestaties!G103>0,1/Plukprestaties!G103*Kosten!B$59,0) -> 0.1795918367 | F141: 0.1795918367
A142: =Plantenlijst!A104 -> Malus domestica (Midden) | B142: =Plantenlijst!B104 -> Appel (midden) | C142: 0 | D142: 0 | E142: =IF(Plukprestaties!G104>0,1/Plukprestaties!G104*Kosten!B$59,0) -> 0.1795918367 | F142: 0.1795918367
A143: =Plantenlijst!A105 -> Malus domestica (Vroeg) | B143: =Plantenlijst!B105 -> Appel (vroeg) | C143: 0 | D143: 0 | E143: =IF(Plukprestaties!G105>0,1/Plukprestaties!G105*Kosten!B$59,0) -> 0.1795918367 | F143: 0.1795918367
A144: =Plantenlijst!A106 -> Malus pumila | B144: =Plantenlijst!B106 -> Appel | C144: 0 | D144: 0 | E144: =IF(Plukprestaties!G106>0,1/Plukprestaties!G106*Kosten!B$59,0) -> 0.1795918367 | F144: 0.1795918367
A145: =Plantenlijst!A107 -> Mellissa off. | B145: =Plantenlijst!B107 -> Citroenmellise | C145: 0 | D145: 0 | E145: =IF(Plukprestaties!G107>0,1/Plukprestaties!G107*Kosten!B$59,0) -> 5.5 | F145: 5.5
A146: =Plantenlijst!A108 -> Mentha spp. | B146: =Plantenlijst!B108 -> Munt | C146: 0 | D146: 0 | E146: =IF(Plukprestaties!G108>0,1/Plukprestaties!G108*Kosten!B$59,0) -> 5.5 | F146: 5.5
A147: =Plantenlijst!A109 -> Mespilus germanica | B147: =Plantenlijst!B109 -> Mispel | C147: 0 | D147: 0 | E147: =IF(Plukprestaties!G109>0,1/Plukprestaties!G109*Kosten!B$59,0) -> 5.5 | F147: 5.5
A148: =Plantenlijst!A110 -> Monarda didyma | B148: =Plantenlijst!B110 -> Gewone bergamotplant | C148: 0 | D148: 0 | E148: =IF(Plukprestaties!G110>0,1/Plukprestaties!G110*Kosten!B$59,0) -> 5.5 | F148: 5.5
A149: =Plantenlijst!A111 -> Morus alba | B149: =Plantenlijst!B111 -> Witte moerbei | C149: 0 | D149: 0 | E149: =IF(Plukprestaties!G111>0,1/Plukprestaties!G111*Kosten!B$59,0) -> 4 | F149: 4
A150: =Plantenlijst!A112 -> Morus nigra | B150: =Plantenlijst!B112 -> Zwarte moerbei | C150: 0 | D150: 0 | E150: =IF(Plukprestaties!G112>0,1/Plukprestaties!G112*Kosten!B$59,0) -> 4 | F150: 4
A151: =Plantenlijst!A113 -> Myosotis spp. | B151: =Plantenlijst!B113 -> Vergeet mij nietje | C151: 0 | D151: 0 | E151: =IF(Plukprestaties!G113>0,1/Plukprestaties!G113*Kosten!B$59,0) -> 5.5 | F151: 5.5
A152: =Plantenlijst!A114 -> Myrica gale | B152: =Plantenlijst!B114 -> Wilde gagel | C152: 0 | D152: 0 | E152: =IF(Plukprestaties!G114>0,1/Plukprestaties!G114*Kosten!B$59,0) -> 5.5 | F152: 5.5
A153: =Plantenlijst!A115 -> Myrica pensylvanica | B153: =Plantenlijst!B115 -> Wasgagel | C153: 0 | D153: 0 | E153: =IF(Plukprestaties!G115>0,1/Plukprestaties!G115*Kosten!B$59,0) -> 5.5 | F153: 5.5
A154: =Plantenlijst!A116 -> Nepeta nervosa | B154: =Plantenlijst!B116 -> Kattekruid | C154: 0 | D154: 0 | E154: =IF(Plukprestaties!G116>0,1/Plukprestaties!G116*Kosten!B$59,0) -> 5.5 | F154: 5.5
A155: =Plantenlijst!A117 -> Nepeta x. faassenii | B155: =Plantenlijst!B117 -> Grijs kattenkruid | C155: 0 | D155: 0 | E155: =IF(Plukprestaties!G117>0,1/Plukprestaties!G117*Kosten!B$59,0) -> 5.5 | F155: 5.5
A156: =Plantenlijst!A118 -> Paulownia tomentosa | B156: =Plantenlijst!B118 -> Keizersboom | C156: 0 | D156: 0 | E156: =IF(Plukprestaties!G118>0,1/Plukprestaties!G118*Kosten!B$59,0) -> 5.5 | F156: 5.5
A157: =Plantenlijst!A119 -> Persicaria odorata | B157: =Plantenlijst!B119 -> Vietnamese koriander | C157: 0 | D157: 0 | E157: =IF(Plukprestaties!G119>0,1/Plukprestaties!G119*Kosten!B$59,0) -> 5.5 | F157: 5.5
A158: =Plantenlijst!A120 -> Phyllostachus bissetii 80 | B158: =Plantenlijst!B120 -> Eetbare bamboe | C158: 0 | D158: 0 | E158: =IF(Plukprestaties!G120>0,1/Plukprestaties!G120*Kosten!B$59,0) -> 5.5 | F158: 5.5
A159: =Plantenlijst!A121 -> Pinus Koraiensis | B159: =Plantenlijst!B121 -> Koreaanse den | C159: 0 | D159: 0 | E159: =IF(Plukprestaties!G121>0,1/Plukprestaties!G121*Kosten!B$59,0) -> 5.5 | F159: 5.5
A160: =Plantenlijst!A122 -> Pleurotus ostreatus | B160: =Plantenlijst!B122 -> Oesterzwam | C160: 0 | D160: 0 | E160: =IF(Plukprestaties!G122>0,1/Plukprestaties!G122*Kosten!B$59,0) -> 5.5 | F160: 5.5
A161: =Plantenlijst!A123 -> Poncirus trifoliata | B161: =Plantenlijst!B123 -> Wilde citroen | C161: 0 | D161: 0 | E161: =IF(Plukprestaties!G123>0,1/Plukprestaties!G123*Kosten!B$59,0) -> 5.5 | F161: 5.5
A162: =Plantenlijst!A124 -> Populus canadensis | B162: =Plantenlijst!B124 -> Populier | C162: 0 | D162: 0 | E162: =IF(Plukprestaties!G124>0,1/Plukprestaties!G124*Kosten!B$59,0) -> 0 | F162: 0
A163: =Plantenlijst!A125 -> Primula vulgaris | B163: =Plantenlijst!B125 -> Sleutel bloem | C163: 0 | D163: 0 | E163: =IF(Plukprestaties!G125>0,1/Plukprestaties!G125*Kosten!B$59,0) -> 5.5 | F163: 5.5
A164: =Plantenlijst!A126 -> Prunus armeniaca | B164: =Plantenlijst!B126 -> Abrikoos | C164: 0 | D164: 0 | E164: =IF(Plukprestaties!G126>0,1/Plukprestaties!G126*Kosten!B$59,0) -> 0.419047619 | F164: 0.419047619
A165: =Plantenlijst!A127 -> Prunus avium | B165: =Plantenlijst!B127 -> Zoete kers | C165: 0 | D165: 0 | E165: =IF(Plukprestaties!G127>0,1/Plukprestaties!G127*Kosten!B$59,0) -> 1.833333333 | F165: 1.833333333
A166: =Plantenlijst!A128 -> Prunus cerasifera | B166: =Plantenlijst!B128 -> Kerspruim | C166: 0 | D166: 0 | E166: =IF(Plukprestaties!G128>0,1/Plukprestaties!G128*Kosten!B$59,0) -> 0.8979591837 | F166: 0.8979591837
A167: =Plantenlijst!A129 -> Prunus cerasus | B167: =Plantenlijst!B129 -> Zuurkers | C167: 0 | D167: 0 | E167: =IF(Plukprestaties!G129>0,1/Plukprestaties!G129*Kosten!B$59,0) -> 1.833333333 | F167: 1.833333333
A168: =Plantenlijst!A130 -> Prunus domestica | B168: =Plantenlijst!B130 -> Pruim | C168: 0 | D168: 0 | E168: =IF(Plukprestaties!G130>0,1/Plukprestaties!G130*Kosten!B$59,0) -> 0.8979591837 | F168: 0.8979591837
A169: =Plantenlijst!A131 -> Prunus dulcis | B169: =Plantenlijst!B131 -> Amandel | C169: 0 | D169: 0 | E169: =IF(Plukprestaties!G131>0,1/Plukprestaties!G131*Kosten!B$59,0) -> 5.5 | F169: 5.5
A170: =Plantenlijst!A132 -> Prunus insititia | B170: =Plantenlijst!B132 -> Mirabel | C170: =B$31 -> 0 | D170: 0 | E170: =IF(Plukprestaties!G132>0,1/Plukprestaties!G132*Kosten!B$59,0) -> 0.5751633987 | F170: 0.5751633987
A171: =Plantenlijst!A133 -> Prunus persica | B171: =Plantenlijst!B133 -> Perzik | C171: 0 | D171: =B$39 -> 0 | E171: =IF(Plukprestaties!G133>0,1/Plukprestaties!G133*Kosten!B$59,0) -> 0.2095238095 | F171: =SUM(C171:E171) -> 0.2095238095
A172: =Plantenlijst!A134 -> Prunus persica nusipersica | B172: =Plantenlijst!B134 -> Nectarine | C172: 0 | D172: 0 | E172: =IF(Plukprestaties!G134>0,1/Plukprestaties!G134*Kosten!B$59,0) -> 0.2095238095 | F172: 0.2095238095
A173: =Plantenlijst!A135 -> Prunus salicina | B173: =Plantenlijst!B135 -> Perzik | C173: 0 | D173: 0 | E173: =IF(Plukprestaties!G135>0,1/Plukprestaties!G135*Kosten!B$59,0) -> 0.2095238095 | F173: 0.2095238095
A174: =Plantenlijst!A136 -> Prunus salicina x Prunus armeniaca | B174: =Plantenlijst!B136 -> Pruimabrikoos | C174: 0 | D174: 0 | E174: =IF(Plukprestaties!G136>0,1/Plukprestaties!G136*Kosten!B$59,0) -> 0.5751633987 | F174: 0.5751633987
A175: =Plantenlijst!A137 -> Prunus tomentosa | B175: =Plantenlijst!B137 -> Struikkers | C175: 0 | D175: 0 | E175: =IF(Plukprestaties!G137>0,1/Plukprestaties!G137*Kosten!B$59,0) -> 1.833333333 | F175: 1.833333333
A176: =Plantenlijst!A138 -> Pulmonaria off. | B176: =Plantenlijst!B138 -> Longkruid | C176: 0 | D176: 0 | E176: =IF(Plukprestaties!G138>0,1/Plukprestaties!G138*Kosten!B$59,0) -> 5.5 | F176: 5.5
A177: =Plantenlijst!A139 -> Punica granatum | B177: =Plantenlijst!B139 -> Granaatappel | C177: 0 | D177: 0 | E177: =IF(Plukprestaties!G139>0,1/Plukprestaties!G139*Kosten!B$59,0) -> 5.5 | F177: 5.5
A178: =Plantenlijst!A140 -> Pyrus bretschneideri | B178: =Plantenlijst!B140 -> Chinapeer | C178: 0 | D178: 0 | E178: =IF(Plukprestaties!G140>0,1/Plukprestaties!G140*Kosten!B$59,0) -> 0.2 | F178: 0.2
A179: =Plantenlijst!A141 -> Pyrus communis | B179: =Plantenlijst!B141 -> Peer | C179: 0 | D179: 0 | E179: =IF(Plukprestaties!G141>0,1/Plukprestaties!G141*Kosten!B$59,0) -> 0.2 | F179: 0.2
A180: =Plantenlijst!A142 -> Pyrus pyrifolia | B180: =Plantenlijst!B142 -> Nashi peer | C180: 0 | D180: 0 | E180: =IF(Plukprestaties!G142>0,1/Plukprestaties!G142*Kosten!B$59,0) -> 0.2 | F180: 0.2
A181: =Plantenlijst!A143 -> Quercus spp. | B181: =Plantenlijst!B143 -> Eik | C181: 0 | D181: 0 | E181: =IF(Plukprestaties!G143>0,1/Plukprestaties!G143*Kosten!B$59,0) -> 5.5 | F181: 5.5
A182: =Plantenlijst!A144 -> Rhamnus frangula | B182: =Plantenlijst!B144 -> Vuilboom, sporkehout | C182: 0 | D182: 0 | E182: =IF(Plukprestaties!G144>0,1/Plukprestaties!G144*Kosten!B$59,0) -> 0 | F182: 0
A183: =Plantenlijst!A145 -> Rheum rabarberum | B183: =Plantenlijst!B145 -> Rabarber | C183: 0 | D183: 0 | E183: =IF(Plukprestaties!G145>0,1/Plukprestaties!G145*Kosten!B$59,0) -> 5.5 | F183: 5.5
A184: =Plantenlijst!A146 -> Rhus aromatica | B184: =Plantenlijst!B146 -> Sumac, limonadestruik | C184: 0 | D184: 0 | E184: =IF(Plukprestaties!G146>0,1/Plukprestaties!G146*Kosten!B$59,0) -> 5.5 | F184: 5.5
A185: =Plantenlijst!A147 -> Rhus glabra | B185: =Plantenlijst!B147 -> Sumac | C185: 0 | D185: 0 | E185: =IF(Plukprestaties!G147>0,1/Plukprestaties!G147*Kosten!B$59,0) -> 5.5 | F185: 5.5
A186: =Plantenlijst!A148 -> Ribes divaricatum | B186: =Plantenlijst!B148 -> Worchesterbes | C186: 0 | D186: 0 | E186: =IF(Plukprestaties!G148>0,1/Plukprestaties!G148*Kosten!B$59,0) -> 2.444444444 | F186: 2.444444444
A187: =Plantenlijst!A149 -> Ribes 'Josta' | B187: =Plantenlijst!B149 -> Jostabes | C187: 0 | D187: 0 | E187: =IF(Plukprestaties!G149>0,1/Plukprestaties!G149*Kosten!B$59,0) -> 2.444444444 | F187: 2.444444444
A188: =Plantenlijst!A150 -> Ribes nigrum | B188: =Plantenlijst!B150 -> Zwarte bes | C188: 0 | D188: 0 | E188: =IF(Plukprestaties!G150>0,1/Plukprestaties!G150*Kosten!B$59,0) -> 2.444444444 | F188: 2.444444444
A189: =Plantenlijst!A151 -> Ribes rubrum | B189: =Plantenlijst!B151 -> Aalbes | C189: 0 | D189: 0 | E189: =IF(Plukprestaties!G151>0,1/Plukprestaties!G151*Kosten!B$59,0) -> 2.444444444 | F189: 2.444444444
A190: =Plantenlijst!A152 -> Ribes Uva-Crispa | B190: =Plantenlijst!B152 -> kruisbes | C190: 0 | D190: 0 | E190: =IF(Plukprestaties!G152>0,1/Plukprestaties!G152*Kosten!B$59,0) -> 4.4 | F190: 4.4
A191: =Plantenlijst!A153 -> Ribes x. nidigrolaria | B191: =Plantenlijst!B153 -> Jostabes | C191: 0 | D191: 0 | E191: =IF(Plukprestaties!G153>0,1/Plukprestaties!G153*Kosten!B$59,0) -> 2.444444444 | F191: 2.444444444
A192: =Plantenlijst!A154 -> Robinia pseudoacacia | B192: =Plantenlijst!B154 -> Valse acacia | C192: 0 | D192: 0 | E192: =IF(Plukprestaties!G154>0,1/Plukprestaties!G154*Kosten!B$59,0) -> 0 | F192: 0
A193: =Plantenlijst!A155 -> Rosa rugosa | B193: =Plantenlijst!B155 -> Rimpelroos | C193: 0 | D193: 0 | E193: =IF(Plukprestaties!G155>0,1/Plukprestaties!G155*Kosten!B$59,0) -> 5.5 | F193: 5.5
A194: =Plantenlijst!A156 -> Rosmarinum off. | B194: =Plantenlijst!B156 -> Rozemarijn | C194: 0 | D194: 0 | E194: =IF(Plukprestaties!G156>0,1/Plukprestaties!G156*Kosten!B$59,0) -> 5.5 | F194: 5.5
A195: =Plantenlijst!A157 -> Rubus fruticosus | B195: =Plantenlijst!B157 -> Braam | C195: 0 | D195: 0 | E195: =IF(Plukprestaties!G157>0,1/Plukprestaties!G157*Kosten!B$59,0) -> 4 | F195: 4
A196: =Plantenlijst!A158 -> Rubus hibrids | B196: =Plantenlijst!B158 -> Tayberry, braamboos | C196: 0 | D196: 0 | E196: =IF(Plukprestaties!G158>0,1/Plukprestaties!G158*Kosten!B$59,0) -> 5.176470588 | F196: 5.176470588
A197: =Plantenlijst!A159 -> Rubus idaeus | B197: =Plantenlijst!B159 -> framboos | C197: 0 | D197: 0 | E197: =IF(Plukprestaties!G159>0,1/Plukprestaties!G159*Kosten!B$59,0) -> 6.285714286 | F197: 6.285714286
A198: =Plantenlijst!A160 -> Rubus loganobaccus | B198: =Plantenlijst!B160 -> Logan bes | C198: 0 | D198: 0 | E198: =IF(Plukprestaties!G160>0,1/Plukprestaties!G160*Kosten!B$59,0) -> 5.176470588 | F198: 5.176470588
A199: =Plantenlijst!A161 -> Rubus phoenicolasius | B199: =Plantenlijst!B161 -> Japanse wijnbes | C199: 0 | D199: 0 | E199: =IF(Plukprestaties!G161>0,1/Plukprestaties!G161*Kosten!B$59,0) -> 5.5 | F199: 5.5
A200: =Plantenlijst!A162 -> Ruta graveolens | B200: =Plantenlijst!B162 -> Wijnruit | C200: 0 | D200: 0 | E200: =IF(Plukprestaties!G162>0,1/Plukprestaties!G162*Kosten!B$59,0) -> 5.5 | F200: 5.5
A201: =Plantenlijst!A163 -> Salvia off. | B201: =Plantenlijst!B163 -> Salie | C201: 0 | D201: 0 | E201: =IF(Plukprestaties!G163>0,1/Plukprestaties!G163*Kosten!B$59,0) -> 5.5 | F201: 5.5
A202: =Plantenlijst!A164 -> Sambucus canadiensis | B202: =Plantenlijst!B164 -> Canadese vlier | C202: =B$31 -> 0 | D202: 0 | E202: =IF(Plukprestaties!G164>0,1/Plukprestaties!G164*Kosten!B$59,0) -> 5.5 | F202: 5.5
A203: =Plantenlijst!A165 -> Sambucus nigra | B203: =Plantenlijst!B165 -> Gewone vlier | C203: 0 | D203: 0 | E203: =IF(Plukprestaties!G165>0,1/Plukprestaties!G165*Kosten!B$59,0) -> 5.5 | F203: 5.5
A204: =Plantenlijst!A166 -> Santolina spp. | B204: =Plantenlijst!B166 -> Heiligbloem | C204: 0 | D204: 0 | E204: =IF(Plukprestaties!G166>0,1/Plukprestaties!G166*Kosten!B$59,0) -> 5.5 | F204: 5.5
A205: =Plantenlijst!A167 -> Sassafras albidum | B205: =Plantenlijst!B167 -> Sassafras | C205: 0 | D205: 0 | E205: =IF(Plukprestaties!G167>0,1/Plukprestaties!G167*Kosten!B$59,0) -> 5.5 | F205: 5.5
A206: =Plantenlijst!A168 -> Schisandra spp. | B206: =Plantenlijst!B168 -> Schisandra | C206: 0 | D206: 0 | E206: =IF(Plukprestaties!G168>0,1/Plukprestaties!G168*Kosten!B$59,0) -> 5.5 | F206: 5.5
A207: =Plantenlijst!A169 -> Scutellaria galericulata | B207: =Plantenlijst!B169 -> Blauw glidkruid | C207: 0 | D207: 0 | E207: =IF(Plukprestaties!G169>0,1/Plukprestaties!G169*Kosten!B$59,0) -> 5.5 | F207: 5.5
... 29 more rows

Sheet Opbrengstenberekening
C2: Totale productie per plant in kg per jaar | P2: Klasse A | AC2: Klasse B | AP2: Opbrengst Klasse A naar supermarkt | BC2: Opbrengst Klasse A naar cateraar | BP2: Opbrengst Klasse A direct naar consument | CC2: Opbrengst Klasse B naar supermarkt | CP2: Opbrengst Klasse B naar Cateraar | CQ2: Opbrengst B-2 | DC2: Opbrengst Klasse B direct naar consument | DP2: Kostprijs | DQ2: Opbrengst kostprijs
A3: Wetenschappelijke naam | B3: Nederlandse naam | C3: 1 | D3: 2 | E3: 3 | F3: 4 | G3: 5 | H3: 6 | I3: 7 | J3: 8 | K3: 9 | L3: 10 | M3: 11 tm 15 | N3: 16 tm 20 | P3: 1 | Q3: 2 | R3: 3 | S3: 4 | T3: 5 | U3: 6 | V3: 7 | W3: 8 | X3: 9 | Y3: 10 | Z3: 11 tm 15 | AA3: 16 tm 20 | AC3: 1 | AD3: 2 | AE3: 3 | AF3: 4 | AG3: 5 | AH3: 6 | AI3: 7 | AJ3: 8 | AK3: 9 | AL3: 10 | AM3: 11 tm 15 | AN3: 16 tm 20 | AP3: 1 | AQ3: 2 | AR3: 3 | AS3: 4 | AT3: 5 | AU3: 6 | AV3: 7 | AW3: 8 | AX3: 9 | AY3: 10 | AZ3: 11 tm 15 | BA3: 16 tm 20 | BC3: 1 | BD3: 2 | BE3: 3 | BF3: 4 | BG3: 5 | BH3: 6 | BI3: 7 | BJ3: 8 | BK3: 9 | BL3: 10 | BM3: 11 tm 15 | BN3: 16 tm 20 | BP3: 1 | BQ3: 2 | BR3: 3 | BS3: 4 | BT3: 5 | BU3: 6 | BV3: 7 | BW3: 8 | BX3: 9 | BY3: 10 | BZ3: 11 tm 15 | CA3: 16 tm 20 | CC3: 1 | CD3: 2 | CE3: 3 | CF3: 4 | CG3: 5 | CH3: 6 | CI3: 7 | CJ3: 8 | CK3: 9 | CL3: 10 | CM3: 11 tm 15 | CN3: 16 tm 20 | CP3: 1 | CQ3: 2 | CR3: 3 | CS3: 4 | CT3: 5 | CU3: 6 | CV3: 7 | CW3: 8 | CX3: 9 | CY3: 10 | CZ3: 11 tm 15 | DA3: 16 tm 20 | DC3: 1 | DD3: 2 | DE3: 3 | DF3: 4 | DG3: 5 | DH3: 6 | DI3: 7 | DJ3: 8 | DK3: 9 | DL3: 10 | DM3: 11 tm 15 | DN3: 16 tm 20 | DP3: 1 | DQ3: 2 | DR3: 3 | DS3: 4 | DT3: 5 | DU3: 6 | DV3: 7 | DW3: 8 | DX3: 9 | DY3: 10 | DZ3: 11tm15 | EA3: 16 tm20 | EC3: Totaal per afzetkanaal | ED3: 1 | EE3: 2 | EF3: 3 | EG3: 4 | EH3: 5 | EI3: 6 | EJ3: 7 | EK3: 8 | EL3: 9 | EM3: 10 | EN3: 11 tm 15 | EO3: 16 tm 20
A4: Acer campestre | B4: Veldesdoorn | C4: =Plantenlijst!$G4*Productielijst!D5*'Overige invoer expert'!B$4*'Overige invoer expert'!B$8 -> 0 | D4: =Plantenlijst!$G4*Productielijst!E5*'Overige invoer expert'!C$4*'Overige invoer expert'!C$8 -> 0 | E4: =Plantenlijst!$G4*Productielijst!F5*'Overige invoer expert'!D$4*'Overige invoer expert'!D$8 -> 0 | F4: =Plantenlijst!$G4*Productielijst!G5*'Overige invoer expert'!E$4*'Overige invoer expert'!E$8 -> 0 | G4: =Plantenlijst!$G4*Productielijst!H5*'Overige invoer expert'!F$4*'Overige invoer expert'!F$8 -> 0 | H4: =Plantenlijst!$G4*Productielijst!I5*'Overige invoer expert'!G$4*'Overige invoer expert'!G$8 -> 0 | I4: =Plantenlijst!$G4*Productielijst!J5*'Overige invoer expert'!H$4*'Overige invoer expert'!H$8 -> 0 | J4: =Plantenlijst!$G4*Productielijst!K5*'Overige invoer expert'!I$4*'Overige invoer expert'!I$8 -> 0 | K4: =Plantenlijst!$G4*Productielijst!L5*'Overige invoer expert'!J$4*'Overige invoer expert'!J$8 -> 0 | L4: =Plantenlijst!$G4*Productielijst!M5*'Overige invoer expert'!K$4*'Overige invoer expert'!K$8 -> 0 | M4: =Plantenlijst!$G4*Productielijst!N5*'Overige invoer expert'!L$4*'Overige invoer expert'!L$8 -> 0 | N4: =Plantenlijst!$G4*Productielijst!O5*'Overige invoer expert'!M$4*'Overige invoer expert'!M$8 -> 0 | P4: =C4*'Overige invoer expert'!B$5 -> 0 | Q4: =D4*'Overige invoer expert'!C$5 -> 0 | R4: =E4*'Overige invoer expert'!D$5 -> 0 | S4: =F4*'Overige invoer expert'!E$5 -> 0 | T4: =G4*'Overige invoer expert'!F$5 -> 0 | U4: =H4*'Overige invoer expert'!G$5 -> 0 | V4: =I4*'Overige invoer expert'!H$5 -> 0 | W4: =J4*'Overige invoer expert'!I$5 -> 0 | X4: =K4*'Overige invoer expert'!J$5 -> 0 | Y4: =L4*'Overige invoer expert'!K$5 -> 0 | Z4: =M4*'Overige invoer expert'!L$5 -> 0 | AA4: =N4*'Overige invoer expert'!M$5 -> 0 | AC4: =C4*(100%-'Overige invoer expert'!B$5) -> 0 | AD4: =D4*(100%-'Overige invoer expert'!C$5) -> 0 | AE4: =E4*(100%-'Overige invoer expert'!D$5) -> 0 | AF4: =F4*(100%-'Overige invoer expert'!E$5) -> 0 | AG4: =G4*(100%-'Overige invoer expert'!F$5) -> 0 | AH4: =H4*(100%-'Overige invoer expert'!G$5) -> 0 | AI4: =I4*(100%-'Overige invoer expert'!H$5) -> 0 | AJ4: =J4*(100%-'Overige invoer expert'!I$5) -> 0 | AK4: =K4*(100%-'Overige invoer expert'!J$5) -> 0 | AL4: =L4*(100%-'Overige invoer expert'!K$5) -> 0 | AM4: =M4*(100%-'Overige invoer expert'!L$5) -> 0 | AN4: =N4*(100%-'Overige invoer expert'!M$5) -> 0 | AP4: =P4*'Overige invoer expert'!B$12*'Verkoopprijs per afzetkanaal'!$G4*'Overige invoer expert'!B$6 -> 0 | AQ4: =Q4*'Overige invoer expert'!C$12*'Verkoopprijs per afzetkanaal'!$G4*'Overige invoer expert'!C$6 -> 0 | AR4: =R4*'Overige invoer expert'!D$12*'Verkoopprijs per afzetkanaal'!$G4*'Overige invoer expert'!D$6 -> 0 | AS4: =S4*'Overige invoer expert'!E$12*'Verkoopprijs per afzetkanaal'!$G4*'Overige invoer expert'!E$6 -> 0 | AT4: =T4*'Overige invoer expert'!F$12*'Verkoopprijs per afzetkanaal'!$G4*'Overige invoer expert'!F$6 -> 0 | AU4: =U4*'Overige invoer expert'!G$12*'Verkoopprijs per afzetkanaal'!$G4*'Overige invoer expert'!G$6 -> 0 | AV4: =V4*'Overige invoer expert'!H$12*'Verkoopprijs per afzetkanaal'!$G4*'Overige invoer expert'!H$6 -> 0 | AW4: =W4*'Overige invoer expert'!I$12*'Verkoopprijs per afzetkanaal'!$G4*'Overige invoer expert'!I$6 -> 0 | AX4: =X4*'Overige invoer expert'!J$12*'Verkoopprijs per afzetkanaal'!$G4*'Overige invoer expert'!J$6 -> 0 | AY4: =Y4*'Overige invoer expert'!K$12*'Verkoopprijs per afzetkanaal'!$G4*'Overige invoer expert'!K$6 -> 0 | AZ4: =Z4*'Overige invoer expert'!L$12*'Verkoopprijs per afzetkanaal'!$G4*'Overige invoer expert'!L$6 -> 0 | BA4: =AA4*'Overige invoer expert'!M$12*'Verkoopprijs per afzetkanaal'!$G4*'Overige invoer expert'!M$6 -> 0 | BC4: =P4*'Overige invoer expert'!B$13*'Verkoopprijs per afzetkanaal'!$H4*'Overige invoer expert'!B$6 -> 0 | BD4: =Q4*'Overige invoer expert'!C$13*'Verkoopprijs per afzetkanaal'!$H4*'Overige invoer expert'!C$6 -> 0 | BE4: =R4*'Overige invoer expert'!D$13*'Verkoopprijs per afzetkanaal'!$H4*'Overige invoer expert'!D$6 -> 0 | BF4: =S4*'Overige invoer expert'!E$13*'Verkoopprijs per afzetkanaal'!$H4*'Overige invoer expert'!E$6 -> 0 | BG4: =T4*'Overige invoer expert'!F$13*'Verkoopprijs per afzetkanaal'!$H4*'Overige invoer expert'!F$6 -> 0 | BH4: =U4*'Overige invoer expert'!G$13*'Verkoopprijs per afzetkanaal'!$H4*'Overige invoer expert'!G$6 -> 0 | BI4: =V4*'Overige invoer expert'!H$13*'Verkoopprijs per afzetkanaal'!$H4*'Overige invoer expert'!H$6 -> 0 | BJ4: =W4*'Overige invoer expert'!I$13*'Verkoopprijs per afzetkanaal'!$H4*'Overige invoer expert'!I$6 -> 0 | BK4: =X4*'Overige invoer expert'!J$13*'Verkoopprijs per afzetkanaal'!$H4*'Overige invoer expert'!J$6 -> 0 | BL4: =Y4*'Overige invoer expert'!K$13*'Verkoopprijs per afzetkanaal'!$H4*'Overige invoer expert'!K$6 -> 0 | BM4: =Z4*'Overige invoer expert'!L$13*'Verkoopprijs per afzetkanaal'!$H4*'Overige invoer expert'!L$6 -> 0 | BN4: =AA4*'Overige invoer expert'!M$13*'Verkoopprijs per afzetkanaal'!$H4*'Overige invoer expert'!M$6 -> 0 | BP4: =P4*'Overige invoer expert'!B$14*'Verkoopprijs per afzetkanaal'!$I4*'Overige invoer expert'!B$6 -> 0 | BQ4: =Q4*'Overige invoer expert'!C$14*'Verkoopprijs per afzetkanaal'!$I4*'Overige invoer expert'!C$6 -> 0 | BR4: =R4*'Overige invoer expert'!D$14*'Verkoopprijs per afzetkanaal'!$I4*'Overige invoer expert'!D$6 -> 0 | BS4: =S4*'Overige invoer expert'!E$14*'Verkoopprijs per afzetkanaal'!$I4*'Overige invoer expert'!E$6 -> 0 | BT4: =T4*'Overige invoer expert'!F$14*'Verkoopprijs per afzetkanaal'!$I4*'Overige invoer expert'!F$6 -> 0 | BU4: =U4*'Overige invoer expert'!G$14*'Verkoopprijs per afzetkanaal'!$I4*'Overige invoer expert'!G$6 -> 0 | BV4: =V4*'Overige invoer expert'!H$14*'Verkoopprijs per afzetkanaal'!$I4*'Overige invoer expert'!H$6 -> 0 | BW4: =W4*'Overige invoer expert'!I$14*'Verkoopprijs per afzetkanaal'!$I4*'Overige invoer expert'!I$6 -> 0 | BX4: =X4*'Overige invoer expert'!J$14*'Verkoopprijs per afzetkanaal'!$I4*'Overige invoer expert'!J$6 -> 0 | BY4: =Y4*'Overige invoer expert'!K$14*'Verkoopprijs per afzetkanaal'!$I4*'Overige invoer expert'!K$6 -> 0 | BZ4: =Z4*'Overige invoer expert'!L$14*'Verkoopprijs per afzetkanaal'!$I4*'Overige invoer expert'!L$6 -> 0 | CA4: =AA4*'Overige invoer expert'!M$14*'Verkoopprijs per afzetkanaal'!$I4*'Overige invoer expert'!M$6 -> 0 | CC4: =AC4*'Overige invoer expert'!B$12*'Verkoopprijs per afzetkanaal'!$G4*'Overige invoer expert'!B$7 -> 0 | CD4: =AD4*'Overige invoer expert'!C$12*'Verkoopprijs per afzetkanaal'!$G4*'Overige invoer expert'!C$7 -> 0 | CE4: =AE4*'Overige invoer expert'!D$12*'Verkoopprijs per afzetkanaal'!$G4*'Overige invoer expert'!D$7 -> 0 | CF4: =AF4*'Overige invoer expert'!E$12*'Verkoopprijs per afzetkanaal'!$G4*'Overige invoer expert'!E$7 -> 0 | CG4: =AG4*'Overige invoer expert'!F$12*'Verkoopprijs per afzetkanaal'!$G4*'Overige invoer expert'!F$7 -> 0 | CH4: =AH4*'Overige invoer expert'!G$12*'Verkoopprijs per afzetkanaal'!$G4*'Overige invoer expert'!G$7 -> 0 | CI4: =AI4*'Overige invoer expert'!H$12*'Verkoopprijs per afzetkanaal'!$G4*'Overige invoer expert'!H$7 -> 0 | CJ4: =AJ4*'Overige invoer expert'!I$12*'Verkoopprijs per afzetkanaal'!$G4*'Overige invoer expert'!I$7 -> 0 | CK4: =AK4*'Overige invoer expert'!J$12*'Verkoopprijs per afzetkanaal'!$G4*'Overige invoer expert'!J$7 -> 0 | CL4: =AL4*'Overige invoer expert'!K$12*'Verkoopprijs per afzetkanaal'!$G4*'Overige invoer expert'!K$7 -> 0 | CM4: =AM4*'Overige invoer expert'!L$12*'Verkoopprijs per afzetkanaal'!$G4*'Overige invoer expert'!L$7 -> 0 | CN4: =AN4*'Overige invoer expert'!M$12*'Verkoopprijs per afzetkanaal'!$G4*'Overige invoer expert'!M$7 -> 0 | CP4: =AC4*'Overige invoer expert'!B$13*'Verkoopprijs per afzetkanaal'!$H4*'Overige invoer expert'!B$7 -> 0 | CQ4: =AD4*'Overige invoer expert'!C$13*'Verkoopprijs per afzetkanaal'!$H4*'Overige invoer expert'!C$7 -> 0 | CR4: =AE4*'Overige invoer expert'!D$13*'Verkoopprijs per afzetkanaal'!$H4*'Overige invoer expert'!D$7 -> 0 | CS4: =AF4*'Overige invoer expert'!E$13*'Verkoopprijs per afzetkanaal'!$H4*'Overige invoer expert'!E$7 -> 0 | CT4: =AG4*'Overige invoer expert'!F$13*'Verkoopprijs per afzetkanaal'!$H4*'Overige invoer expert'!F$7 -> 0 | CU4: =AH4*'Overige invoer expert'!G$13*'Verkoopprijs per afzetkanaal'!$H4*'Overige invoer expert'!G$7 -> 0 | CV4: =AI4*'Overige invoer expert'!H$13*'Verkoopprijs per afzetkanaal'!$H4*'Overige invoer expert'!H$7 -> 0 | CW4: =AJ4*'Overige invoer expert'!I$13*'Verkoopprijs per afzetkanaal'!$H4*'Overige invoer expert'!I$7 -> 0 | CX4: =AK4*'Overige invoer expert'!J$13*'Verkoopprijs per afzetkanaal'!$H4*'Overige invoer expert'!J$7 -> 0 | CY4: =AL4*'Overige invoer expert'!K$13*'Verkoopprijs per afzetkanaal'!$H4*'Overige invoer expert'!K$7 -> 0 | CZ4: =AM4*'Overige invoer expert'!L$13*'Verkoopprijs per afzetkanaal'!$H4*'Overige invoer expert'!L$7 -> 0 | DA4: =AN4*'Overige invoer expert'!M$13*'Verkoopprijs per afzetkanaal'!$H4*'Overige invoer expert'!M$7 -> 0 | DC4: =AC4*'Overige invoer expert'!B$14*'Verkoopprijs per afzetkanaal'!$I4*'Overige invoer expert'!B$7 -> 0 | DD4: =AD4*'Overige invoer expert'!C$14*'Verkoopprijs per afzetkanaal'!$I4*'Overige invoer expert'!C$7 -> 0 | DE4: =AE4*'Overige invoer expert'!D$14*'Verkoopprijs per afzetkanaal'!$I4*'Overige invoer expert'!D$7 -> 0 | DF4: =AF4*'Overige invoer expert'!E$14*'Verkoopprijs per afzetkanaal'!$I4*'Overige invoer expert'!E$7 -> 0 | DG4: =AG4*'Overige invoer expert'!F$14*'Verkoopprijs per afzetkanaal'!$I4*'Overige invoer expert'!F$7 -> 0 | DH4: =AH4*'Overige invoer expert'!G$14*'Verkoopprijs per afzetkanaal'!$I4*'Overige invoer expert'!G$7 -> 0 | DI4: =AI4*'Overige invoer expert'!H$14*'Verkoopprijs per afzetkanaal'!$I4*'Overige invoer expert'!H$7 -> 0 | DJ4: =AJ4*'Overige invoer expert'!I$14*'Verkoopprijs per afzetkanaal'!$I4*'Overige invoer expert'!I$7 -> 0 | DK4: =AK4*'Overige invoer expert'!J$14*'Verkoopprijs per afzetkanaal'!$I4*'Overige invoer expert'!J$7 -> 0 | DL4: =AL4*'Overige invoer expert'!K$14*'Verkoopprijs per afzetkanaal'!$I4*'Overige invoer expert'!K$7 -> 0 | DM4: =AM4*'Overige invoer expert'!L$14*'Verkoopprijs per afzetkanaal'!$I4*'Overige invoer expert'!L$7 -> 0 | DN4: =AN4*'Overige invoer expert'!M$14*'Verkoopprijs per afzetkanaal'!$I4*'Overige invoer expert'!M$7 -> 0 | DP4: =(P4+AC4)*'Overige invoer'!$B$15*'Verkoopprijs per afzetkanaal'!$J4 -> 0 | DQ4: =(Q4+AD4)*'Overige invoer'!$B$15*'Verkoopprijs per afzetkanaal'!$J4 -> 0 | DR4: =(R4+AE4)*'Overige invoer'!$B$15*'Verkoopprijs per afzetkanaal'!$J4 -> 0 | DS4: =(S4+AF4)*'Overige invoer'!$B$15*'Verkoopprijs per afzetkanaal'!$J4 -> 0 | DT4: =(T4+AG4)*'Overige invoer'!$B$15*'Verkoopprijs per afzetkanaal'!$J4 -> 0 | DU4: =(U4+AH4)*'Overige invoer'!$B$15*'Verkoopprijs per afzetkanaal'!$J4 -> 0 | DV4: =(V4+AI4)*'Overige invoer'!$B$15*'Verkoopprijs per afzetkanaal'!$J4 -> 0 | DW4: =(W4+AJ4)*'Overige invoer'!$B$15*'Verkoopprijs per afzetkanaal'!$J4 -> 0 | DX4: =(X4+AK4)*'Overige invoer'!$B$15*'Verkoopprijs per afzetkanaal'!$J4 -> 0 | DY4: =(Y4+AL4)*'Overige invoer'!$B$15*'Verkoopprijs per afzetkanaal'!$J4 -> 0 | DZ4: =(Z4+AM4)*'Overige invoer'!$B$15*'Verkoopprijs per afzetkanaal'!$J4 -> 0 | EA4: =(AA4+AN4)*'Overige invoer'!$B$15*'Verkoopprijs per afzetkanaal'!$J4 -> 0 | EC4: =AP2 -> Opbrengst Klasse A naar supermarkt | ED4: =AP199 -> 0 | EE4: =AQ199 -> 0 | EF4: 0 | EG4: 0 | EH4: 0 | EI4: 0 | EJ4: 0 | EK4: 0 | EL4: 0 | EM4: 0 | EN4: 0 | EO4: 0
A5: Acer platanoides | B5: Noorse esdoorn | C5: =Plantenlijst!$G5*Productielijst!D6*'Overige invoer expert'!B$4*'Overige invoer expert'!B$8 -> 0 | D5: =Plantenlijst!$G5*Productielijst!E6*'Overige invoer expert'!C$4*'Overige invoer expert'!C$8 -> 0 | E5: =Plantenlijst!$G5*Productielijst!F6*'Overige invoer expert'!D$4*'Overige invoer expert'!D$8 -> 0 | F5: =Plantenlijst!$G5*Productielijst!G6*'Overige invoer expert'!E$4*'Overige invoer expert'!E$8 -> 0 | G5: =Plantenlijst!$G5*Productielijst!H6*'Overige invoer expert'!F$4*'Overige invoer expert'!F$8 -> 0 | H5: =Plantenlijst!$G5*Productielijst!I6*'Overige invoer expert'!G$4*'Overige invoer expert'!G$8 -> 0 | I5: =Plantenlijst!$G5*Productielijst!J6*'Overige invoer expert'!H$4*'Overige invoer expert'!H$8 -> 0 | J5: =Plantenlijst!$G5*Productielijst!K6*'Overige invoer expert'!I$4*'Overige invoer expert'!I$8 -> 0 | K5: =Plantenlijst!$G5*Productielijst!L6*'Overige invoer expert'!J$4*'Overige invoer expert'!J$8 -> 0 | L5: =Plantenlijst!$G5*Productielijst!M6*'Overige invoer expert'!K$4*'Overige invoer expert'!K$8 -> 0 | M5: =Plantenlijst!$G5*Productielijst!N6*'Overige invoer expert'!L$4*'Overige invoer expert'!L$8 -> 0 | N5: =Plantenlijst!$G5*Productielijst!O6*'Overige invoer expert'!M$4*'Overige invoer expert'!M$8 -> 0 | P5: =C5*'Overige invoer expert'!B$5 -> 0 | Q5: =D5*'Overige invoer expert'!C$5 -> 0 | R5: =E5*'Overige invoer expert'!D$5 -> 0 | S5: =F5*'Overige invoer expert'!E$5 -> 0 | T5: =G5*'Overige invoer expert'!F$5 -> 0 | U5: =H5*'Overige invoer expert'!G$5 -> 0 | V5: =I5*'Overige invoer expert'!H$5 -> 0 | W5: =J5*'Overige invoer expert'!I$5 -> 0 | X5: =K5*'Overige invoer expert'!J$5 -> 0 | Y5: =L5*'Overige invoer expert'!K$5 -> 0 | Z5: =M5*'Overige invoer expert'!L$5 -> 0 | AA5: =N5*'Overige invoer expert'!M$5 -> 0 | AC5: =C5*(100%-'Overige invoer expert'!B$5) -> 0 | AD5: =D5*(100%-'Overige invoer expert'!C$5) -> 0 | AE5: =E5*(100%-'Overige invoer expert'!D$5) -> 0 | AF5: =F5*(100%-'Overige invoer expert'!E$5) -> 0 | AG5: =G5*(100%-'Overige invoer expert'!F$5) -> 0 | AH5: =H5*(100%-'Overige invoer expert'!G$5) -> 0 | AI5: =I5*(100%-'Overige invoer expert'!H$5) -> 0 | AJ5: =J5*(100%-'Overige invoer expert'!I$5) -> 0 | AK5: =K5*(100%-'Overige invoer expert'!J$5) -> 0 | AL5: =L5*(100%-'Overige invoer expert'!K$5) -> 0 | AM5: =M5*(100%-'Overige invoer expert'!L$5) -> 0 | AN5: =N5*(100%-'Overige invoer expert'!M$5) -> 0 | AP5: =P5*'Overige invoer expert'!B$12*'Verkoopprijs per afzetkanaal'!$G5*'Overige invoer expert'!B$6 -> 0 | AQ5: =Q5*'Overige invoer expert'!C$12*'Verkoopprijs per afzetkanaal'!$G5*'Overige invoer expert'!C$6 -> 0 | AR5: =R5*'Overige invoer expert'!D$12*'Verkoopprijs per afzetkanaal'!$G5*'Overige invoer expert'!D$6 -> 0 | AS5: =S5*'Overige invoer expert'!E$12*'Verkoopprijs per afzetkanaal'!$G5*'Overige invoer expert'!E$6 -> 0 | AT5: =T5*'Overige invoer expert'!F$12*'Verkoopprijs per afzetkanaal'!$G5*'Overige invoer expert'!F$6 -> 0 | AU5: =U5*'Overige invoer expert'!G$12*'Verkoopprijs per afzetkanaal'!$G5*'Overige invoer expert'!G$6 -> 0 | AV5: =V5*'Overige invoer expert'!H$12*'Verkoopprijs per afzetkanaal'!$G5*'Overige invoer expert'!H$6 -> 0 | AW5: =W5*'Overige invoer expert'!I$12*'Verkoopprijs per afzetkanaal'!$G5*'Overige invoer expert'!I$6 -> 0 | AX5: =X5*'Overige invoer expert'!J$12*'Verkoopprijs per afzetkanaal'!$G5*'Overige invoer expert'!J$6 -> 0 | AY5: =Y5*'Overige invoer expert'!K$12*'Verkoopprijs per afzetkanaal'!$G5*'Overige invoer expert'!K$6 -> 0 | AZ5: =Z5*'Overige invoer expert'!L$12*'Verkoopprijs per afzetkanaal'!$G5*'Overige invoer expert'!L$6 -> 0 | BA5: =AA5*'Overige invoer expert'!M$12*'Verkoopprijs per afzetkanaal'!$G5*'Overige invoer expert'!M$6 -> 0 | BC5: =P5*'Overige invoer expert'!B$13*'Verkoopprijs per afzetkanaal'!$H5*'Overige invoer expert'!B$6 -> 0 | BD5: =Q5*'Overige invoer expert'!C$13*'Verkoopprijs per afzetkanaal'!$H5*'Overige invoer expert'!C$6 -> 0 | BE5: =R5*'Overige invoer expert'!D$13*'Verkoopprijs per afzetkanaal'!$H5*'Overige invoer expert'!D$6 -> 0 | BF5: =S5*'Overige invoer expert'!E$13*'Verkoopprijs per afzetkanaal'!$H5*'Overige invoer expert'!E$6 -> 0 | BG5: =T5*'Overige invoer expert'!F$13*'Verkoopprijs per afzetkanaal'!$H5*'Overige invoer expert'!F$6 -> 0 | BH5: =U5*'Overige invoer expert'!G$13*'Verkoopprijs per afzetkanaal'!$H5*'Overige invoer expert'!G$6 -> 0 | BI5: =V5*'Overige invoer expert'!H$13*'Verkoopprijs per afzetkanaal'!$H5*'Overige invoer expert'!H$6 -> 0 | BJ5: =W5*'Overige invoer expert'!I$13*'Verkoopprijs per afzetkanaal'!$H5*'Overige invoer expert'!I$6 -> 0 | BK5: =X5*'Overige invoer expert'!J$13*'Verkoopprijs per afzetkanaal'!$H5*'Overige invoer expert'!J$6 -> 0 | BL5: =Y5*'Overige invoer expert'!K$13*'Verkoopprijs per afzetkanaal'!$H5*'Overige invoer expert'!K$6 -> 0 | BM5: =Z5*'Overige invoer expert'!L$13*'Verkoopprijs per afzetkanaal'!$H5*'Overige invoer expert'!L$6 -> 0 | BN5: =AA5*'Overige invoer expert'!M$13*'Verkoopprijs per afzetkanaal'!$H5*'Overige invoer expert'!M$6 -> 0 | BP5: =P5*'Overige invoer expert'!B$14*'Verkoopprijs per afzetkanaal'!$I5*'Overige invoer expert'!B$6 -> 0 | BQ5: =Q5*'Overige invoer expert'!C$14*'Verkoopprijs per afzetkanaal'!$I5*'Overige invoer expert'!C$6 -> 0 | BR5: =R5*'Overige invoer expert'!D$14*'Verkoopprijs per afzetkanaal'!$I5*'Overige invoer expert'!D$6 -> 0 | BS5: =S5*'Overige invoer expert'!E$14*'Verkoopprijs per afzetkanaal'!$I5*'Overige invoer expert'!E$6 -> 0 | BT5: =T5*'Overige invoer expert'!F$14*'Verkoopprijs per afzetkanaal'!$I5*'Overige invoer expert'!F$6 -> 0 | BU5: =U5*'Overige invoer expert'!G$14*'Verkoopprijs per afzetkanaal'!$I5*'Overige invoer expert'!G$6 -> 0 | BV5: =V5*'Overige invoer expert'!H$14*'Verkoopprijs per afzetkanaal'!$I5*'Overige invoer expert'!H$6 -> 0 | BW5: =W5*'Overige invoer expert'!I$14*'Verkoopprijs per afzetkanaal'!$I5*'Overige invoer expert'!I$6 -> 0 | BX5: =X5*'Overige invoer expert'!J$14*'Verkoopprijs per afzetkanaal'!$I5*'Overige invoer expert'!J$6 -> 0 | BY5: =Y5*'Overige invoer expert'!K$14*'Verkoopprijs per afzetkanaal'!$I5*'Overige invoer expert'!K$6 -> 0 | BZ5: =Z5*'Overige invoer expert'!L$14*'Verkoopprijs per afzetkanaal'!$I5*'Overige invoer expert'!L$6 -> 0 | CA5: =AA5*'Overige invoer expert'!M$14*'Verkoopprijs per afzetkanaal'!$I5*'Overige invoer expert'!M$6 -> 0 | CC5: =AC5*'Overige invoer expert'!B$12*'Verkoopprijs per afzetkanaal'!$G5*'Overige invoer expert'!B$7 -> 0 | CD5: =AD5*'Overige invoer expert'!C$12*'Verkoopprijs per afzetkanaal'!$G5*'Overige invoer expert'!C$7 -> 0 | CE5: =AE5*'Overige invoer expert'!D$12*'Verkoopprijs per afzetkanaal'!$G5*'Overige invoer expert'!D$7 -> 0 | CF5: =AF5*'Overige invoer expert'!E$12*'Verkoopprijs per afzetkanaal'!$G5*'Overige invoer expert'!E$7 -> 0 | CG5: =AG5*'Overige invoer expert'!F$12*'Verkoopprijs per afzetkanaal'!$G5*'Overige invoer expert'!F$7 -> 0 | CH5: =AH5*'Overige invoer expert'!G$12*'Verkoopprijs per afzetkanaal'!$G5*'Overige invoer expert'!G$7 -> 0 | CI5: =AI5*'Overige invoer expert'!H$12*'Verkoopprijs per afzetkanaal'!$G5*'Overige invoer expert'!H$7 -> 0 | CJ5: =AJ5*'Overige invoer expert'!I$12*'Verkoopprijs per afzetkanaal'!$G5*'Overige invoer expert'!I$7 -> 0 | CK5: =AK5*'Overige invoer expert'!J$12*'Verkoopprijs per afzetkanaal'!$G5*'Overige invoer expert'!J$7 -> 0 | CL5: =AL5*'Overige invoer expert'!K$12*'Verkoopprijs per afzetkanaal'!$G5*'Overige invoer expert'!K$7 -> 0 | CM5: =AM5*'Overige invoer expert'!L$12*'Verkoopprijs per afzetkanaal'!$G5*'Overige invoer expert'!L$7 -> 0 | CN5: =AN5*'Overige invoer expert'!M$12*'Verkoopprijs per afzetkanaal'!$G5*'Overige invoer expert'!M$7 -> 0 | CP5: =AC5*'Overige invoer expert'!B$13*'Verkoopprijs per afzetkanaal'!$H5*'Overige invoer expert'!B$7 -> 0 | CQ5: =AD5*'Overige invoer expert'!C$13*'Verkoopprijs per afzetkanaal'!$H5*'Overige invoer expert'!C$7 -> 0 | CR5: =AE5*'Overige invoer expert'!D$13*'Verkoopprijs per afzetkanaal'!$H5*'Overige invoer expert'!D$7 -> 0 | CS5: =AF5*'Overige invoer expert'!E$13*'Verkoopprijs per afzetkanaal'!$H5*'Overige invoer expert'!E$7 -> 0 | CT5: =AG5*'Overige invoer expert'!F$13*'Verkoopprijs per afzetkanaal'!$H5*'Overige invoer expert'!F$7 -> 0 | CU5: =AH5*'Overige invoer expert'!G$13*'Verkoopprijs per afzetkanaal'!$H5*'Overige invoer expert'!G$7 -> 0 | CV5: =AI5*'Overige invoer expert'!H$13*'Verkoopprijs per afzetkanaal'!$H5*'Overige invoer expert'!H$7 -> 0 | CW5: =AJ5*'Overige invoer expert'!I$13*'Verkoopprijs per afzetkanaal'!$H5*'Overige invoer expert'!I$7 -> 0 | CX5: =AK5*'Overige invoer expert'!J$13*'Verkoopprijs per afzetkanaal'!$H5*'Overige invoer expert'!J$7 -> 0 | CY5: =AL5*'Overige invoer expert'!K$13*'Verkoopprijs per afzetkanaal'!$H5*'Overige invoer expert'!K$7 -> 0 | CZ5: =AM5*'Overige invoer expert'!L$13*'Verkoopprijs per afzetkanaal'!$H5*'Overige invoer expert'!L$7 -> 0 | DA5: =AN5*'Overige invoer expert'!M$13*'Verkoopprijs per afzetkanaal'!$H5*'Overige invoer expert'!M$7 -> 0 | DC5: =AC5*'Overige invoer expert'!B$14*'Verkoopprijs per afzetkanaal'!$I5*'Overige invoer expert'!B$7 -> 0 | DD5: =AD5*'Overige invoer expert'!C$14*'Verkoopprijs per afzetkanaal'!$I5*'Overige invoer expert'!C$7 -> 0 | DE5: =AE5*'Overige invoer expert'!D$14*'Verkoopprijs per afzetkanaal'!$I5*'Overige invoer expert'!D$7 -> 0 | DF5: =AF5*'Overige invoer expert'!E$14*'Verkoopprijs per afzetkanaal'!$I5*'Overige invoer expert'!E$7 -> 0 | DG5: =AG5*'Overige invoer expert'!F$14*'Verkoopprijs per afzetkanaal'!$I5*'Overige invoer expert'!F$7 -> 0 | DH5: =AH5*'Overige invoer expert'!G$14*'Verkoopprijs per afzetkanaal'!$I5*'Overige invoer expert'!G$7 -> 0 | DI5: =AI5*'Overige invoer expert'!H$14*'Verkoopprijs per afzetkanaal'!$I5*'Overige invoer expert'!H$7 -> 0 | DJ5: =AJ5*'Overige invoer expert'!I$14*'Verkoopprijs per afzetkanaal'!$I5*'Overige invoer expert'!I$7 -> 0 | DK5: =AK5*'Overige invoer expert'!J$14*'Verkoopprijs per afzetkanaal'!$I5*'Overige invoer expert'!J$7 -> 0 | DL5: =AL5*'Overige invoer expert'!K$14*'Verkoopprijs per afzetkanaal'!$I5*'Overige invoer expert'!K$7 -> 0 | DM5: =AM5*'Overige invoer expert'!L$14*'Verkoopprijs per afzetkanaal'!$I5*'Overige invoer expert'!L$7 -> 0 | DN5: =AN5*'Overige invoer expert'!M$14*'Verkoopprijs per afzetkanaal'!$I5*'Overige invoer expert'!M$7 -> 0 | DP5: =(P5+AC5)*'Overige invoer'!$B$15*'Verkoopprijs per afzetkanaal'!$J5 -> 0 | DQ5: =(Q5+AD5)*'Overige invoer'!$B$15*'Verkoopprijs per afzetkanaal'!$J5 -> 0 | DR5: =(R5+AE5)*'Overige invoer'!$B$15*'Verkoopprijs per afzetkanaal'!$J5 -> 0 | DS5: =(S5+AF5)*'Overige invoer'!$B$15*'Verkoopprijs per afzetkanaal'!$J5 -> 0 | DT5: =(T5+AG5)*'Overige invoer'!$B$15*'Verkoopprijs per afzetkanaal'!$J5 -> 0 | DU5: =(U5+AH5)*'Overige invoer'!$B$15*'Verkoopprijs per afzetkanaal'!$J5 -> 0 | DV5: =(V5+AI5)*'Overige invoer'!$B$15*'Verkoopprijs per afzetkanaal'!$J5 -> 0 | DW5: =(W5+AJ5)*'Overige invoer'!$B$15*'Verkoopprijs per afzetkanaal'!$J5 -> 0 | DX5: =(X5+AK5)*'Overige invoer'!$B$15*'Verkoopprijs per afzetkanaal'!$J5 -> 0 | DY5: =(Y5+AL5)*'Overige invoer'!$B$15*'Verkoopprijs per afzetkanaal'!$J5 -> 0 | DZ5: =(Z5+AM5)*'Overige invoer'!$B$15*'Verkoopprijs per afzetkanaal'!$J5 -> 0 | EA5: =(AA5+AN5)*'Overige invoer'!$B$15*'Verkoopprijs per afzetkanaal'!$J5 -> 0 | EC5: =BC2 -> Opbrengst Klasse A naar cateraar | ED5: =BC199 -> 0 | EE5: =BD199 -> 0 | EF5: 0 | EG5: 0 | EH5: 0 | EI5: 0 | EJ5: 0 | EK5: 0 | EL5: 0 | EM5: 0 | EN5: 0 | EO5: 0
A6: Acer pseudoplatanus | B6: Gewone esdoorn | C6: =Plantenlijst!$G6*Productielijst!D7*'Overige invoer expert'!B$4*'Overige invoer expert'!B$8 -> 0 | D6: =Plantenlijst!$G6*Productielijst!E7*'Overige invoer expert'!C$4*'Overige invoer expert'!C$8 -> 0 | E6: =Plantenlijst!$G6*Productielijst!F7*'Overige invoer expert'!D$4*'Overige invoer expert'!D$8 -> 0 | F6: =Plantenlijst!$G6*Productielijst!G7*'Overige invoer expert'!E$4*'Overige invoer expert'!E$8 -> 0 | G6: =Plantenlijst!$G6*Productielijst!H7*'Overige invoer expert'!F$4*'Overige invoer expert'!F$8 -> 0 | H6: =Plantenlijst!$G6*Productielijst!I7*'Overige invoer expert'!G$4*'Overige invoer expert'!G$8 -> 0 | I6: =Plantenlijst!$G6*Productielijst!J7*'Overige invoer expert'!H$4*'Overige invoer expert'!H$8 -> 0 | J6: =Plantenlijst!$G6*Productielijst!K7*'Overige invoer expert'!I$4*'Overige invoer expert'!I$8 -> 0 | K6: =Plantenlijst!$G6*Productielijst!L7*'Overige invoer expert'!J$4*'Overige invoer expert'!J$8 -> 0 | L6: =Plantenlijst!$G6*Productielijst!M7*'Overige invoer expert'!K$4*'Overige invoer expert'!K$8 -> 0 | M6: =Plantenlijst!$G6*Productielijst!N7*'Overige invoer expert'!L$4*'Overige invoer expert'!L$8 -> 0 | N6: =Plantenlijst!$G6*Productielijst!O7*'Overige invoer expert'!M$4*'Overige invoer expert'!M$8 -> 0 | P6: =C6*'Overige invoer expert'!B$5 -> 0 | Q6: =D6*'Overige invoer expert'!C$5 -> 0 | R6: =E6*'Overige invoer expert'!D$5 -> 0 | S6: =F6*'Overige invoer expert'!E$5 -> 0 | T6: =G6*'Overige invoer expert'!F$5 -> 0 | U6: =H6*'Overige invoer expert'!G$5 -> 0 | V6: =I6*'Overige invoer expert'!H$5 -> 0 | W6: =J6*'Overige invoer expert'!I$5 -> 0 | X6: =K6*'Overige invoer expert'!J$5 -> 0 | Y6: =L6*'Overige invoer expert'!K$5 -> 0 | Z6: =M6*'Overige invoer expert'!L$5 -> 0 | AA6: =N6*'Overige invoer expert'!M$5 -> 0 | AC6: =C6*(100%-'Overige invoer expert'!B$5) -> 0 | AD6: =D6*(100%-'Overige invoer expert'!C$5) -> 0 | AE6: =E6*(100%-'Overige invoer expert'!D$5) -> 0 | AF6: =F6*(100%-'Overige invoer expert'!E$5) -> 0 | AG6: =G6*(100%-'Overige invoer expert'!F$5) -> 0 | AH6: =H6*(100%-'Overige invoer expert'!G$5) -> 0 | AI6: =I6*(100%-'Overige invoer expert'!H$5) -> 0 | AJ6: =J6*(100%-'Overige invoer expert'!I$5) -> 0 | AK6: =K6*(100%-'Overige invoer expert'!J$5) -> 0 | AL6: =L6*(100%-'Overige invoer expert'!K$5) -> 0 | AM6: =M6*(100%-'Overige invoer expert'!L$5) -> 0 | AN6: =N6*(100%-'Overige invoer expert'!M$5) -> 0 | AP6: =P6*'Overige invoer expert'!B$12*'Verkoopprijs per afzetkanaal'!$G6*'Overige invoer expert'!B$6 -> 0 | AQ6: =Q6*'Overige invoer expert'!C$12*'Verkoopprijs per afzetkanaal'!$G6*'Overige invoer expert'!C$6 -> 0 | AR6: =R6*'Overige invoer expert'!D$12*'Verkoopprijs per afzetkanaal'!$G6*'Overige invoer expert'!D$6 -> 0 | AS6: =S6*'Overige invoer expert'!E$12*'Verkoopprijs per afzetkanaal'!$G6*'Overige invoer expert'!E$6 -> 0 | AT6: =T6*'Overige invoer expert'!F$12*'Verkoopprijs per afzetkanaal'!$G6*'Overige invoer expert'!F$6 -> 0 | AU6: =U6*'Overige invoer expert'!G$12*'Verkoopprijs per afzetkanaal'!$G6*'Overige invoer expert'!G$6 -> 0 | AV6: =V6*'Overige invoer expert'!H$12*'Verkoopprijs per afzetkanaal'!$G6*'Overige invoer expert'!H$6 -> 0 | AW6: =W6*'Overige invoer expert'!I$12*'Verkoopprijs per afzetkanaal'!$G6*'Overige invoer expert'!I$6 -> 0 | AX6: =X6*'Overige invoer expert'!J$12*'Verkoopprijs per afzetkanaal'!$G6*'Overige invoer expert'!J$6 -> 0 | AY6: =Y6*'Overige invoer expert'!K$12*'Verkoopprijs per afzetkanaal'!$G6*'Overige invoer expert'!K$6 -> 0 | AZ6: =Z6*'Overige invoer expert'!L$12*'Verkoopprijs per afzetkanaal'!$G6*'Overige invoer expert'!L$6 -> 0 | BA6: =AA6*'Overige invoer expert'!M$12*'Verkoopprijs per afzetkanaal'!$G6*'Overige invoer expert'!M$6 -> 0 | BC6: =P6*'Overige invoer expert'!B$13*'Verkoopprijs per afzetkanaal'!$H6*'Overige invoer expert'!B$6 -> 0 | BD6: =Q6*'Overige invoer expert'!C$13*'Verkoopprijs per afzetkanaal'!$H6*'Overige invoer expert'!C$6 -> 0 | BE6: =R6*'Overige invoer expert'!D$13*'Verkoopprijs per afzetkanaal'!$H6*'Overige invoer expert'!D$6 -> 0 | BF6: =S6*'Overige invoer expert'!E$13*'Verkoopprijs per afzetkanaal'!$H6*'Overige invoer expert'!E$6 -> 0 | BG6: =T6*'Overige invoer expert'!F$13*'Verkoopprijs per afzetkanaal'!$H6*'Overige invoer expert'!F$6 -> 0 | BH6: =U6*'Overige invoer expert'!G$13*'Verkoopprijs per afzetkanaal'!$H6*'Overige invoer expert'!G$6 -> 0 | BI6: =V6*'Overige invoer expert'!H$13*'Verkoopprijs per afzetkanaal'!$H6*'Overige invoer expert'!H$6 -> 0 | BJ6: =W6*'Overige invoer expert'!I$13*'Verkoopprijs per afzetkanaal'!$H6*'Overige invoer expert'!I$6 -> 0 | BK6: =X6*'Overige invoer expert'!J$13*'Verkoopprijs per afzetkanaal'!$H6*'Overige invoer expert'!J$6 -> 0 | BL6: =Y6*'Overige invoer expert'!K$13*'Verkoopprijs per afzetkanaal'!$H6*'Overige invoer expert'!K$6 -> 0 | BM6: =Z6*'Overige invoer expert'!L$13*'Verkoopprijs per afzetkanaal'!$H6*'Overige invoer expert'!L$6 -> 0 | BN6: =AA6*'Overige invoer expert'!M$13*'Verkoopprijs per afzetkanaal'!$H6*'Overige invoer expert'!M$6 -> 0 | BP6: =P6*'Overige invoer expert'!B$14*'Verkoopprijs per afzetkanaal'!$I6*'Overige invoer expert'!B$6 -> 0 | BQ6: =Q6*'Overige invoer expert'!C$14*'Verkoopprijs per afzetkanaal'!$I6*'Overige invoer expert'!C$6 -> 0 | BR6: =R6*'Overige invoer expert'!D$14*'Verkoopprijs per afzetkanaal'!$I6*'Overige invoer expert'!D$6 -> 0 | BS6: =S6*'Overige invoer expert'!E$14*'Verkoopprijs per afzetkanaal'!$I6*'Overige invoer expert'!E$6 -> 0 | BT6: =T6*'Overige invoer expert'!F$14*'Verkoopprijs per afzetkanaal'!$I6*'Overige invoer expert'!F$6 -> 0 | BU6: =U6*'Overige invoer expert'!G$14*'Verkoopprijs per afzetkanaal'!$I6*'Overige invoer expert'!G$6 -> 0 | BV6: =V6*'Overige invoer expert'!H$14*'Verkoopprijs per afzetkanaal'!$I6*'Overige invoer expert'!H$6 -> 0 | BW6: =W6*'Overige invoer expert'!I$14*'Verkoopprijs per afzetkanaal'!$I6*'Overige invoer expert'!I$6 -> 0 | BX6: =X6*'Overige invoer expert'!J$14*'Verkoopprijs per afzetkanaal'!$I6*'Overige invoer expert'!J$6 -> 0 | BY6: =Y6*'Overige invoer expert'!K$14*'Verkoopprijs per afzetkanaal'!$I6*'Overige invoer expert'!K$6 -> 0 | BZ6: =Z6*'Overige invoer expert'!L$14*'Verkoopprijs per afzetkanaal'!$I6*'Overige invoer expert'!L$6 -> 0 | CA6: =AA6*'Overige invoer expert'!M$14*'Verkoopprijs per afzetkanaal'!$I6*'Overige invoer expert'!M$6 -> 0 | CC6: =AC6*'Overige invoer expert'!B$12*'Verkoopprijs per afzetkanaal'!$G6*'Overige invoer expert'!B$7 -> 0 | CD6: =AD6*'Overige invoer expert'!C$12*'Verkoopprijs per afzetkanaal'!$G6*'Overige invoer expert'!C$7 -> 0 | CE6: =AE6*'Overige invoer expert'!D$12*'Verkoopprijs per afzetkanaal'!$G6*'Overige invoer expert'!D$7 -> 0 | CF6: =AF6*'Overige invoer expert'!E$12*'Verkoopprijs per afzetkanaal'!$G6*'Overige invoer expert'!E$7 -> 0 | CG6: =AG6*'Overige invoer expert'!F$12*'Verkoopprijs per afzetkanaal'!$G6*'Overige invoer expert'!F$7 -> 0 | CH6: =AH6*'Overige invoer expert'!G$12*'Verkoopprijs per afzetkanaal'!$G6*'Overige invoer expert'!G$7 -> 0 | CI6: =AI6*'Overige invoer expert'!H$12*'Verkoopprijs per afzetkanaal'!$G6*'Overige invoer expert'!H$7 -> 0 | CJ6: =AJ6*'Overige invoer expert'!I$12*'Verkoopprijs per afzetkanaal'!$G6*'Overige invoer expert'!I$7 -> 0 | CK6: =AK6*'Overige invoer expert'!J$12*'Verkoopprijs per afzetkanaal'!$G6*'Overige invoer expert'!J$7 -> 0 | CL6: =AL6*'Overige invoer expert'!K$12*'Verkoopprijs per afzetkanaal'!$G6*'Overige invoer expert'!K$7 -> 0 | CM6: =AM6*'Overige invoer expert'!L$12*'Verkoopprijs per afzetkanaal'!$G6*'Overige invoer expert'!L$7 -> 0 | CN6: =AN6*'Overige invoer expert'!M$12*'Verkoopprijs per afzetkanaal'!$G6*'Overige invoer expert'!M$7 -> 0 | CP6: =AC6*'Overige invoer expert'!B$13*'Verkoopprijs per afzetkanaal'!$H6*'Overige invoer expert'!B$7 -> 0 | CQ6: =AD6*'Overige invoer expert'!C$13*'Verkoopprijs per afzetkanaal'!$H6*'Overige invoer expert'!C$7 -> 0 | CR6: =AE6*'Overige invoer expert'!D$13*'Verkoopprijs per afzetkanaal'!$H6*'Overige invoer expert'!D$7 -> 0 | CS6: =AF6*'Overige invoer expert'!E$13*'Verkoopprijs per afzetkanaal'!$H6*'Overige invoer expert'!E$7 -> 0 | CT6: =AG6*'Overige invoer expert'!F$13*'Verkoopprijs per afzetkanaal'!$H6*'Overige invoer expert'!F$7 -> 0 | CU6: =AH6*'Overige invoer expert'!G$13*'Verkoopprijs per afzetkanaal'!$H6*'Overige invoer expert'!G$7 -> 0 | CV6: =AI6*'Overige invoer expert'!H$13*'Verkoopprijs per afzetkanaal'!$H6*'Overige invoer expert'!H$7 -> 0 | CW6: =AJ6*'Overige invoer expert'!I$13*'Verkoopprijs per afzetkanaal'!$H6*'Overige invoer expert'!I$7 -> 0 | CX6: =AK6*'Overige invoer expert'!J$13*'Verkoopprijs per afzetkanaal'!$H6*'Overige invoer expert'!J$7 -> 0 | CY6: =AL6*'Overige invoer expert'!K$13*'Verkoopprijs per afzetkanaal'!$H6*'Overige invoer expert'!K$7 -> 0 | CZ6: =AM6*'Overige invoer expert'!L$13*'Verkoopprijs per afzetkanaal'!$H6*'Overige invoer expert'!L$7 -> 0 | DA6: =AN6*'Overige invoer expert'!M$13*'Verkoopprijs per afzetkanaal'!$H6*'Overige invoer expert'!M$7 -> 0 | DC6: =AC6*'Overige invoer expert'!B$14*'Verkoopprijs per afzetkanaal'!$I6*'Overige invoer expert'!B$7 -> 0 | DD6: =AD6*'Overige invoer expert'!C$14*'Verkoopprijs per afzetkanaal'!$I6*'Overige invoer expert'!C$7 -> 0 | DE6: =AE6*'Overige invoer expert'!D$14*'Verkoopprijs per afzetkanaal'!$I6*'Overige invoer expert'!D$7 -> 0 | DF6: =AF6*'Overige invoer expert'!E$14*'Verkoopprijs per afzetkanaal'!$I6*'Overige invoer expert'!E$7 -> 0 | DG6: =AG6*'Overige invoer expert'!F$14*'Verkoopprijs per afzetkanaal'!$I6*'Overige invoer expert'!F$7 -> 0 | DH6: =AH6*'Overige invoer expert'!G$14*'Verkoopprijs per afzetkanaal'!$I6*'Overige invoer expert'!G$7 -> 0 | DI6: =AI6*'Overige invoer expert'!H$14*'Verkoopprijs per afzetkanaal'!$I6*'Overige invoer expert'!H$7 -> 0 | DJ6: =AJ6*'Overige invoer expert'!I$14*'Verkoopprijs per afzetkanaal'!$I6*'Overige invoer expert'!I$7 -> 0 | DK6: =AK6*'Overige invoer expert'!J$14*'Verkoopprijs per afzetkanaal'!$I6*'Overige invoer expert'!J$7 -> 0 | DL6: =AL6*'Overige invoer expert'!K$14*'Verkoopprijs per afzetkanaal'!$I6*'Overige invoer expert'!K$7 -> 0 | DM6: =AM6*'Overige invoer expert'!L$14*'Verkoopprijs per afzetkanaal'!$I6*'Overige invoer expert'!L$7 -> 0 | DN6: =AN6*'Overige invoer expert'!M$14*'Verkoopprijs per afzetkanaal'!$I6*'Overige invoer expert'!M$7 -> 0 | DP6: =(P6+AC6)*'Overige invoer'!$B$15*'Verkoopprijs per afzetkanaal'!$J6 -> 0 | DQ6: =(Q6+AD6)*'Overige invoer'!$B$15*'Verkoopprijs per afzetkanaal'!$J6 -> 0 | DR6: =(R6+AE6)*'Overige invoer'!$B$15*'Verkoopprijs per afzetkanaal'!$J6 -> 0 | DS6: =(S6+AF6)*'Overige invoer'!$B$15*'Verkoopprijs per afzetkanaal'!$J6 -> 0 | DT6: =(T6+AG6)*'Overige invoer'!$B$15*'Verkoopprijs per afzetkanaal'!$J6 -> 0 | DU6: =(U6+AH6)*'Overige invoer'!$B$15*'Verkoopprijs per afzetkanaal'!$J6 -> 0 | DV6: =(V6+AI6)*'Overige invoer'!$B$15*'Verkoopprijs per afzetkanaal'!$J6 -> 0 | DW6: =(W6+AJ6)*'Overige invoer'!$B$15*'Verkoopprijs per afzetkanaal'!$J6 -> 0 | DX6: =(X6+AK6)*'Overige invoer'!$B$15*'Verkoopprijs per afzetkanaal'!$J6 -> 0 | DY6: =(Y6+AL6)*'Overige invoer'!$B$15*'Verkoopprijs per afzetkanaal'!$J6 -> 0 | DZ6: =(Z6+AM6)*'Overige invoer'!$B$15*'Verkoopprijs per afzetkanaal'!$J6 -> 0 | EA6: =(AA6+AN6)*'Overige invoer'!$B$15*'Verkoopprijs per afzetkanaal'!$J6 -> 0 | EC6: =BP2 -> Opbrengst Klasse A direct naar consument | ED6: =BP199 -> 0 | EE6: =BQ199 -> 0 | EF6: 0 | EG6: 0 | EH6: 0 | EI6: 0 | EJ6: 0 | EK6: 0 | EL6: 0 | EM6: 0 | EN6: 0 | EO6: 0
A7: Acer saccharum | B7: Suikeresdoorn | C7: =Plantenlijst!$G7*Productielijst!D8*'Overige invoer expert'!B$4*'Overige invoer expert'!B$8 -> 0 | D7: =Plantenlijst!$G7*Productielijst!E8*'Overige invoer expert'!C$4*'Overige invoer expert'!C$8 -> 0 | E7: =Plantenlijst!$G7*Productielijst!F8*'Overige invoer expert'!D$4*'Overige invoer expert'!D$8 -> 0 | F7: =Plantenlijst!$G7*Productielijst!G8*'Overige invoer expert'!E$4*'Overige invoer expert'!E$8 -> 0 | G7: =Plantenlijst!$G7*Productielijst!H8*'Overige invoer expert'!F$4*'Overige invoer expert'!F$8 -> 0 | H7: =Plantenlijst!$G7*Productielijst!I8*'Overige invoer expert'!G$4*'Overige invoer expert'!G$8 -> 0 | I7: =Plantenlijst!$G7*Productielijst!J8*'Overige invoer expert'!H$4*'Overige invoer expert'!H$8 -> 0 | J7: =Plantenlijst!$G7*Productielijst!K8*'Overige invoer expert'!I$4*'Overige invoer expert'!I$8 -> 0 | K7: =Plantenlijst!$G7*Productielijst!L8*'Overige invoer expert'!J$4*'Overige invoer expert'!J$8 -> 0 | L7: =Plantenlijst!$G7*Productielijst!M8*'Overige invoer expert'!K$4*'Overige invoer expert'!K$8 -> 0 | M7: =Plantenlijst!$G7*Productielijst!N8*'Overige invoer expert'!L$4*'Overige invoer expert'!L$8 -> 0 | N7: =Plantenlijst!$G7*Productielijst!O8*'Overige invoer expert'!M$4*'Overige invoer expert'!M$8 -> 0 | P7: =C7*'Overige invoer expert'!B$5 -> 0 | Q7: =D7*'Overige invoer expert'!C$5 -> 0 | R7: =E7*'Overige invoer expert'!D$5 -> 0 | S7: =F7*'Overige invoer expert'!E$5 -> 0 | T7: =G7*'Overige invoer expert'!F$5 -> 0 | U7: =H7*'Overige invoer expert'!G$5 -> 0 | V7: =I7*'Overige invoer expert'!H$5 -> 0 | W7: =J7*'Overige invoer expert'!I$5 -> 0 | X7: =K7*'Overige invoer expert'!J$5 -> 0 | Y7: =L7*'Overige invoer expert'!K$5 -> 0 | Z7: =M7*'Overige invoer expert'!L$5 -> 0 | AA7: =N7*'Overige invoer expert'!M$5 -> 0 | AC7: =C7*(100%-'Overige invoer expert'!B$5) -> 0 | AD7: =D7*(100%-'Overige invoer expert'!C$5) -> 0 | AE7: =E7*(100%-'Overige invoer expert'!D$5) -> 0 | AF7: =F7*(100%-'Overige invoer expert'!E$5) -> 0 | AG7: =G7*(100%-'Overige invoer expert'!F$5) -> 0 | AH7: =H7*(100%-'Overige invoer expert'!G$5) -> 0 | AI7: =I7*(100%-'Overige invoer expert'!H$5) -> 0 | AJ7: =J7*(100%-'Overige invoer expert'!I$5) -> 0 | AK7: =K7*(100%-'Overige invoer expert'!J$5) -> 0 | AL7: =L7*(100%-'Overige invoer expert'!K$5) -> 0 | AM7: =M7*(100%-'Overige invoer expert'!L$5) -> 0 | AN7: =N7*(100%-'Overige invoer expert'!M$5) -> 0 | AP7: =P7*'Overige invoer expert'!B$12*'Verkoopprijs per afzetkanaal'!$G7*'Overige invoer expert'!B$6 -> 0 | AQ7: =Q7*'Overige invoer expert'!C$12*'Verkoopprijs per afzetkanaal'!$G7*'Overige invoer expert'!C$6 -> 0 | AR7: =R7*'Overige invoer expert'!D$12*'Verkoopprijs per afzetkanaal'!$G7*'Overige invoer expert'!D$6 -> 0 | AS7: =S7*'Overige invoer expert'!E$12*'Verkoopprijs per afzetkanaal'!$G7*'Overige invoer expert'!E$6 -> 0 | AT7: =T7*'Overige invoer expert'!F$12*'Verkoopprijs per afzetkanaal'!$G7*'Overige invoer expert'!F$6 -> 0 | AU7: =U7*'Overige invoer expert'!G$12*'Verkoopprijs per afzetkanaal'!$G7*'Overige invoer expert'!G$6 -> 0 | AV7: =V7*'Overige invoer expert'!H$12*'Verkoopprijs per afzetkanaal'!$G7*'Overige invoer expert'!H$6 -> 0 | AW7: =W7*'Overige invoer expert'!I$12*'Verkoopprijs per afzetkanaal'!$G7*'Overige invoer expert'!I$6 -> 0 | AX7: =X7*'Overige invoer expert'!J$12*'Verkoopprijs per afzetkanaal'!$G7*'Overige invoer expert'!J$6 -> 0 | AY7: =Y7*'Overige invoer expert'!K$12*'Verkoopprijs per afzetkanaal'!$G7*'Overige invoer expert'!K$6 -> 0 | AZ7: =Z7*'Overige invoer expert'!L$12*'Verkoopprijs per afzetkanaal'!$G7*'Overige invoer expert'!L$6 -> 0 | BA7: =AA7*'Overige invoer expert'!M$12*'Verkoopprijs per afzetkanaal'!$G7*'Overige invoer expert'!M$6 -> 0 | BC7: =P7*'Overige invoer expert'!B$13*'Verkoopprijs per afzetkanaal'!$H7*'Overige invoer expert'!B$6 -> 0 | BD7: =Q7*'Overige invoer expert'!C$13*'Verkoopprijs per afzetkanaal'!$H7*'Overige invoer expert'!C$6 -> 0 | BE7: =R7*'Overige invoer expert'!D$13*'Verkoopprijs per afzetkanaal'!$H7*'Overige invoer expert'!D$6 -> 0 | BF7: =S7*'Overige invoer expert'!E$13*'Verkoopprijs per afzetkanaal'!$H7*'Overige invoer expert'!E$6 -> 0 | BG7: =T7*'Overige invoer expert'!F$13*'Verkoopprijs per afzetkanaal'!$H7*'Overige invoer expert'!F$6 -> 0 | BH7: =U7*'Overige invoer expert'!G$13*'Verkoopprijs per afzetkanaal'!$H7*'Overige invoer expert'!G$6 -> 0 | BI7: =V7*'Overige invoer expert'!H$13*'Verkoopprijs per afzetkanaal'!$H7*'Overige invoer expert'!H$6 -> 0 | BJ7: =W7*'Overige invoer expert'!I$13*'Verkoopprijs per afzetkanaal'!$H7*'Overige invoer expert'!I$6 -> 0 | BK7: =X7*'Overige invoer expert'!J$13*'Verkoopprijs per afzetkanaal'!$H7*'Overige invoer expert'!J$6 -> 0 | BL7: =Y7*'Overige invoer expert'!K$13*'Verkoopprijs per afzetkanaal'!$H7*'Overige invoer expert'!K$6 -> 0 | BM7: =Z7*'Overige invoer expert'!L$13*'Verkoopprijs per afzetkanaal'!$H7*'Overige invoer expert'!L$6 -> 0 | BN7: =AA7*'Overige invoer expert'!M$13*'Verkoopprijs per afzetkanaal'!$H7*'Overige invoer expert'!M$6 -> 0 | BP7: =P7*'Overige invoer expert'!B$14*'Verkoopprijs per afzetkanaal'!$I7*'Overige invoer expert'!B$6 -> 0 | BQ7: =Q7*'Overige invoer expert'!C$14*'Verkoopprijs per afzetkanaal'!$I7*'Overige invoer expert'!C$6 -> 0 | BR7: =R7*'Overige invoer expert'!D$14*'Verkoopprijs per afzetkanaal'!$I7*'Overige invoer expert'!D$6 -> 0 | BS7: =S7*'Overige invoer expert'!E$14*'Verkoopprijs per afzetkanaal'!$I7*'Overige invoer expert'!E$6 -> 0 | BT7: =T7*'Overige invoer expert'!F$14*'Verkoopprijs per afzetkanaal'!$I7*'Overige invoer expert'!F$6 -> 0 | BU7: =U7*'Overige invoer expert'!G$14*'Verkoopprijs per afzetkanaal'!$I7*'Overige invoer expert'!G$6 -> 0 | BV7: =V7*'Overige invoer expert'!H$14*'Verkoopprijs per afzetkanaal'!$I7*'Overige invoer expert'!H$6 -> 0 | BW7: =W7*'Overige invoer expert'!I$14*'Verkoopprijs per afzetkanaal'!$I7*'Overige invoer expert'!I$6 -> 0 | BX7: =X7*'Overige invoer expert'!J$14*'Verkoopprijs per afzetkanaal'!$I7*'Overige invoer expert'!J$6 -> 0 | BY7: =Y7*'Overige invoer expert'!K$14*'Verkoopprijs per afzetkanaal'!$I7*'Overige invoer expert'!K$6 -> 0 | BZ7: =Z7*'Overige invoer expert'!L$14*'Verkoopprijs per afzetkanaal'!$I7*'Overige invoer expert'!L$6 -> 0 | CA7: =AA7*'Overige invoer expert'!M$14*'Verkoopprijs per afzetkanaal'!$I7*'Overige invoer expert'!M$6 -> 0 | CC7: =AC7*'Overige invoer expert'!B$12*'Verkoopprijs per afzetkanaal'!$G7*'Overige invoer expert'!B$7 -> 0 | CD7: =AD7*'Overige invoer expert'!C$12*'Verkoopprijs per afzetkanaal'!$G7*'Overige invoer expert'!C$7 -> 0 | CE7: =AE7*'Overige invoer expert'!D$12*'Verkoopprijs per afzetkanaal'!$G7*'Overige invoer expert'!D$7 -> 0 | CF7: =AF7*'Overige invoer expert'!E$12*'Verkoopprijs per afzetkanaal'!$G7*'Overige invoer expert'!E$7 -> 0 | CG7: =AG7*'Overige invoer expert'!F$12*'Verkoopprijs per afzetkanaal'!$G7*'Overige invoer expert'!F$7 -> 0 | CH7: =AH7*'Overige invoer expert'!G$12*'Verkoopprijs per afzetkanaal'!$G7*'Overige invoer expert'!G$7 -> 0 | CI7: =AI7*'Overige invoer expert'!H$12*'Verkoopprijs per afzetkanaal'!$G7*'Overige invoer expert'!H$7 -> 0 | CJ7: =AJ7*'Overige invoer expert'!I$12*'Verkoopprijs per afzetkanaal'!$G7*'Overige invoer expert'!I$7 -> 0 | CK7: =AK7*'Overige invoer expert'!J$12*'Verkoopprijs per afzetkanaal'!$G7*'Overige invoer expert'!J$7 -> 0 | CL7: =AL7*'Overige invoer expert'!K$12*'Verkoopprijs per afzetkanaal'!$G7*'Overige invoer expert'!K$7 -> 0 | CM7: =AM7*'Overige invoer expert'!L$12*'Verkoopprijs per afzetkanaal'!$G7*'Overige invoer expert'!L$7 -> 0 | CN7: =AN7*'Overige invoer expert'!M$12*'Verkoopprijs per afzetkanaal'!$G7*'Overige invoer expert'!M$7 -> 0 | CP7: =AC7*'Overige invoer expert'!B$13*'Verkoopprijs per afzetkanaal'!$H7*'Overige invoer expert'!B$7 -> 0 | CQ7: =AD7*'Overige invoer expert'!C$13*'Verkoopprijs per afzetkanaal'!$H7*'Overige invoer expert'!C$7 -> 0 | CR7: =AE7*'Overige invoer expert'!D$13*'Verkoopprijs per afzetkanaal'!$H7*'Overige invoer expert'!D$7 -> 0 | CS7: =AF7*'Overige invoer expert'!E$13*'Verkoopprijs per afzetkanaal'!$H7*'Overige invoer expert'!E$7 -> 0 | CT7: =AG7*'Overige invoer expert'!F$13*'Verkoopprijs per afzetkanaal'!$H7*'Overige invoer expert'!F$7 -> 0 | CU7: =AH7*'Overige invoer expert'!G$13*'Verkoopprijs per afzetkanaal'!$H7*'Overige invoer expert'!G$7 -> 0 | CV7: =AI7*'Overige invoer expert'!H$13*'Verkoopprijs per afzetkanaal'!$H7*'Overige invoer expert'!H$7 -> 0 | CW7: =AJ7*'Overige invoer expert'!I$13*'Verkoopprijs per afzetkanaal'!$H7*'Overige invoer expert'!I$7 -> 0 | CX7: =AK7*'Overige invoer expert'!J$13*'Verkoopprijs per afzetkanaal'!$H7*'Overige invoer expert'!J$7 -> 0 | CY7: =AL7*'Overige invoer expert'!K$13*'Verkoopprijs per afzetkanaal'!$H7*'Overige invoer expert'!K$7 -> 0 | CZ7: =AM7*'Overige invoer expert'!L$13*'Verkoopprijs per afzetkanaal'!$H7*'Overige invoer expert'!L$7 -> 0 | DA7: =AN7*'Overige invoer expert'!M$13*'Verkoopprijs per afzetkanaal'!$H7*'Overige invoer expert'!M$7 -> 0 | DC7: =AC7*'Overige invoer expert'!B$14*'Verkoopprijs per afzetkanaal'!$I7*'Overige invoer expert'!B$7 -> 0 | DD7: =AD7*'Overige invoer expert'!C$14*'Verkoopprijs per afzetkanaal'!$I7*'Overige invoer expert'!C$7 -> 0 | DE7: =AE7*'Overige invoer expert'!D$14*'Verkoopprijs per afzetkanaal'!$I7*'Overige invoer expert'!D$7 -> 0 | DF7: =AF7*'Overige invoer expert'!E$14*'Verkoopprijs per afzetkanaal'!$I7*'Overige invoer expert'!E$7 -> 0 | DG7: =AG7*'Overige invoer expert'!F$14*'Verkoopprijs per afzetkanaal'!$I7*'Overige invoer expert'!F$7 -> 0 | DH7: =AH7*'Overige invoer expert'!G$14*'Verkoopprijs per afzetkanaal'!$I7*'Overige invoer expert'!G$7 -> 0 | DI7: =AI7*'Overige invoer expert'!H$14*'Verkoopprijs per afzetkanaal'!$I7*'Overige invoer expert'!H$7 -> 0 | DJ7: =AJ7*'Overige invoer expert'!I$14*'Verkoopprijs per afzetkanaal'!$I7*'Overige invoer expert'!I$7 -> 0 | DK7: =AK7*'Overige invoer expert'!J$14*'Verkoopprijs per afzetkanaal'!$I7*'Overige invoer expert'!J$7 -> 0 | DL7: =AL7*'Overige invoer expert'!K$14*'Verkoopprijs per afzetkanaal'!$I7*'Overige invoer expert'!K$7 -> 0 | DM7: =AM7*'Overige invoer expert'!L$14*'Verkoopprijs per afzetkanaal'!$I7*'Overige invoer expert'!L$7 -> 0 | DN7: =AN7*'Overige invoer expert'!M$14*'Verkoopprijs per afzetkanaal'!$I7*'Overige invoer expert'!M$7 -> 0 | DP7: =(P7+AC7)*'Overige invoer'!$B$15*'Verkoopprijs per afzetkanaal'!$J7 -> 0 | DQ7: =(Q7+AD7)*'Overige invoer'!$B$15*'Verkoopprijs per afzetkanaal'!$J7 -> 0 | DR7: =(R7+AE7)*'Overige invoer'!$B$15*'Verkoopprijs per afzetkanaal'!$J7 -> 0 | DS7: =(S7+AF7)*'Overige invoer'!$B$15*'Verkoopprijs per afzetkanaal'!$J7 -> 0 | DT7: =(T7+AG7)*'Overige invoer'!$B$15*'Verkoopprijs per afzetkanaal'!$J7 -> 0 | DU7: =(U7+AH7)*'Overige invoer'!$B$15*'Verkoopprijs per afzetkanaal'!$J7 -> 0 | DV7: =(V7+AI7)*'Overige invoer'!$B$15*'Verkoopprijs per afzetkanaal'!$J7 -> 0 | DW7: =(W7+AJ7)*'Overige invoer'!$B$15*'Verkoopprijs per afzetkanaal'!$J7 -> 0 | DX7: =(X7+AK7)*'Overige invoer'!$B$15*'Verkoopprijs per afzetkanaal'!$J7 -> 0 | DY7: =(Y7+AL7)*'Overige invoer'!$B$15*'Verkoopprijs per afzetkanaal'!$J7 -> 0 | DZ7: =(Z7+AM7)*'Overige invoer'!$B$15*'Verkoopprijs per afzetkanaal'!$J7 -> 0 | EA7: =(AA7+AN7)*'Overige invoer'!$B$15*'Verkoopprijs per afzetkanaal'!$J7 -> 0 | EC7: =CC2 -> Opbrengst Klasse B naar supermarkt | ED7: =CC199 -> 0 | EE7: =CD199 -> 0 | EF7: 0 | EG7: 0 | EH7: 0 | EI7: 0 | EJ7: 0 | EK7: 0 | EL7: 0 | EM7: 0 | EN7: 0 | EO7: 0
A8: Achillea millefolium | B8: Duizendblad | C8: =Plantenlijst!$G8*Productielijst!D9*'Overige invoer expert'!B$4*'Overige invoer expert'!B$8 -> 0 | D8: =Plantenlijst!$G8*Productielijst!E9*'Overige invoer expert'!C$4*'Overige invoer expert'!C$8 -> 0 | E8: =Plantenlijst!$G8*Productielijst!F9*'Overige invoer expert'!D$4*'Overige invoer expert'!D$8 -> 0 | F8: =Plantenlijst!$G8*Productielijst!G9*'Overige invoer expert'!E$4*'Overige invoer expert'!E$8 -> 0 | G8: =Plantenlijst!$G8*Productielijst!H9*'Overige invoer expert'!F$4*'Overige invoer expert'!F$8 -> 0 | H8: =Plantenlijst!$G8*Productielijst!I9*'Overige invoer expert'!G$4*'Overige invoer expert'!G$8 -> 0 | I8: =Plantenlijst!$G8*Productielijst!J9*'Overige invoer expert'!H$4*'Overige invoer expert'!H$8 -> 0 | J8: =Plantenlijst!$G8*Productielijst!K9*'Overige invoer expert'!I$4*'Overige invoer expert'!I$8 -> 0 | K8: =Plantenlijst!$G8*Productielijst!L9*'Overige invoer expert'!J$4*'Overige invoer expert'!J$8 -> 0 | L8: =Plantenlijst!$G8*Productielijst!M9*'Overige invoer expert'!K$4*'Overige invoer expert'!K$8 -> 0 | M8: =Plantenlijst!$G8*Productielijst!N9*'Overige invoer expert'!L$4*'Overige invoer expert'!L$8 -> 0 | N8: =Plantenlijst!$G8*Productielijst!O9*'Overige invoer expert'!M$4*'Overige invoer expert'!M$8 -> 0 | P8: =C8*'Overige invoer expert'!B$5 -> 0 | Q8: =D8*'Overige invoer expert'!C$5 -> 0 | R8: =E8*'Overige invoer expert'!D$5 -> 0 | S8: =F8*'Overige invoer expert'!E$5 -> 0 | T8: =G8*'Overige invoer expert'!F$5 -> 0 | U8: =H8*'Overige invoer expert'!G$5 -> 0 | V8: =I8*'Overige invoer expert'!H$5 -> 0 | W8: =J8*'Overige invoer expert'!I$5 -> 0 | X8: =K8*'Overige invoer expert'!J$5 -> 0 | Y8: =L8*'Overige invoer expert'!K$5 -> 0 | Z8: =M8*'Overige invoer expert'!L$5 -> 0 | AA8: =N8*'Overige invoer expert'!M$5 -> 0 | AC8: =C8*(100%-'Overige invoer expert'!B$5) -> 0 | AD8: =D8*(100%-'Overige invoer expert'!C$5) -> 0 | AE8: =E8*(100%-'Overige invoer expert'!D$5) -> 0 | AF8: =F8*(100%-'Overige invoer expert'!E$5) -> 0 | AG8: =G8*(100%-'Overige invoer expert'!F$5) -> 0 | AH8: =H8*(100%-'Overige invoer expert'!G$5) -> 0 | AI8: =I8*(100%-'Overige invoer expert'!H$5) -> 0 | AJ8: =J8*(100%-'Overige invoer expert'!I$5) -> 0 | AK8: =K8*(100%-'Overige invoer expert'!J$5) -> 0 | AL8: =L8*(100%-'Overige invoer expert'!K$5) -> 0 | AM8: =M8*(100%-'Overige invoer expert'!L$5) -> 0 | AN8: =N8*(100%-'Overige invoer expert'!M$5) -> 0 | AP8: =P8*'Overige invoer expert'!B$12*'Verkoopprijs per afzetkanaal'!$G8*'Overige invoer expert'!B$6 -> 0 | AQ8: =Q8*'Overige invoer expert'!C$12*'Verkoopprijs per afzetkanaal'!$G8*'Overige invoer expert'!C$6 -> 0 | AR8: =R8*'Overige invoer expert'!D$12*'Verkoopprijs per afzetkanaal'!$G8*'Overige invoer expert'!D$6 -> 0 | AS8: =S8*'Overige invoer expert'!E$12*'Verkoopprijs per afzetkanaal'!$G8*'Overige invoer expert'!E$6 -> 0 | AT8: =T8*'Overige invoer expert'!F$12*'Verkoopprijs per afzetkanaal'!$G8*'Overige invoer expert'!F$6 -> 0 | AU8: =U8*'Overige invoer expert'!G$12*'Verkoopprijs per afzetkanaal'!$G8*'Overige invoer expert'!G$6 -> 0 | AV8: =V8*'Overige invoer expert'!H$12*'Verkoopprijs per afzetkanaal'!$G8*'Overige invoer expert'!H$6 -> 0 | AW8: =W8*'Overige invoer expert'!I$12*'Verkoopprijs per afzetkanaal'!$G8*'Overige invoer expert'!I$6 -> 0 | AX8: =X8*'Overige invoer expert'!J$12*'Verkoopprijs per afzetkanaal'!$G8*'Overige invoer expert'!J$6 -> 0 | AY8: =Y8*'Overige invoer expert'!K$12*'Verkoopprijs per afzetkanaal'!$G8*'Overige invoer expert'!K$6 -> 0 | AZ8: =Z8*'Overige invoer expert'!L$12*'Verkoopprijs per afzetkanaal'!$G8*'Overige invoer expert'!L$6 -> 0 | BA8: =AA8*'Overige invoer expert'!M$12*'Verkoopprijs per afzetkanaal'!$G8*'Overige invoer expert'!M$6 -> 0 | BC8: =P8*'Overige invoer expert'!B$13*'Verkoopprijs per afzetkanaal'!$H8*'Overige invoer expert'!B$6 -> 0 | BD8: =Q8*'Overige invoer expert'!C$13*'Verkoopprijs per afzetkanaal'!$H8*'Overige invoer expert'!C$6 -> 0 | BE8: =R8*'Overige invoer expert'!D$13*'Verkoopprijs per afzetkanaal'!$H8*'Overige invoer expert'!D$6 -> 0 | BF8: =S8*'Overige invoer expert'!E$13*'Verkoopprijs per afzetkanaal'!$H8*'Overige invoer expert'!E$6 -> 0 | BG8: =T8*'Overige invoer expert'!F$13*'Verkoopprijs per afzetkanaal'!$H8*'Overige invoer expert'!F$6 -> 0 | BH8: =U8*'Overige invoer expert'!G$13*'Verkoopprijs per afzetkanaal'!$H8*'Overige invoer expert'!G$6 -> 0 | BI8: =V8*'Overige invoer expert'!H$13*'Verkoopprijs per afzetkanaal'!$H8*'Overige invoer expert'!H$6 -> 0 | BJ8: =W8*'Overige invoer expert'!I$13*'Verkoopprijs per afzetkanaal'!$H8*'Overige invoer expert'!I$6 -> 0 | BK8: =X8*'Overige invoer expert'!J$13*'Verkoopprijs per afzetkanaal'!$H8*'Overige invoer expert'!J$6 -> 0 | BL8: =Y8*'Overige invoer expert'!K$13*'Verkoopprijs per afzetkanaal'!$H8*'Overige invoer expert'!K$6 -> 0 | BM8: =Z8*'Overige invoer expert'!L$13*'Verkoopprijs per afzetkanaal'!$H8*'Overige invoer expert'!L$6 -> 0 | BN8: =AA8*'Overige invoer expert'!M$13*'Verkoopprijs per afzetkanaal'!$H8*'Overige invoer expert'!M$6 -> 0 | BP8: =P8*'Overige invoer expert'!B$14*'Verkoopprijs per afzetkanaal'!$I8*'Overige invoer expert'!B$6 -> 0 | BQ8: =Q8*'Overige invoer expert'!C$14*'Verkoopprijs per afzetkanaal'!$I8*'Overige invoer expert'!C$6 -> 0 | BR8: =R8*'Overige invoer expert'!D$14*'Verkoopprijs per afzetkanaal'!$I8*'Overige invoer expert'!D$6 -> 0 | BS8: =S8*'Overige invoer expert'!E$14*'Verkoopprijs per afzetkanaal'!$I8*'Overige invoer expert'!E$6 -> 0 | BT8: =T8*'Overige invoer expert'!F$14*'Verkoopprijs per afzetkanaal'!$I8*'Overige invoer expert'!F$6 -> 0 | BU8: =U8*'Overige invoer expert'!G$14*'Verkoopprijs per afzetkanaal'!$I8*'Overige invoer expert'!G$6 -> 0 | BV8: =V8*'Overige invoer expert'!H$14*'Verkoopprijs per afzetkanaal'!$I8*'Overige invoer expert'!H$6 -> 0 | BW8: =W8*'Overige invoer expert'!I$14*'Verkoopprijs per afzetkanaal'!$I8*'Overige invoer expert'!I$6 -> 0 | BX8: =X8*'Overige invoer expert'!J$14*'Verkoopprijs per afzetkanaal'!$I8*'Overige invoer expert'!J$6 -> 0 | BY8: =Y8*'Overige invoer expert'!K$14*'Verkoopprijs per afzetkanaal'!$I8*'Overige invoer expert'!K$6 -> 0 | BZ8: =Z8*'Overige invoer expert'!L$14*'Verkoopprijs per afzetkanaal'!$I8*'Overige invoer expert'!L$6 -> 0 | CA8: =AA8*'Overige invoer expert'!M$14*'Verkoopprijs per afzetkanaal'!$I8*'Overige invoer expert'!M$6 -> 0 | CC8: =AC8*'Overige invoer expert'!B$12*'Verkoopprijs per afzetkanaal'!$G8*'Overige invoer expert'!B$7 -> 0 | CD8: =AD8*'Overige invoer expert'!C$12*'Verkoopprijs per afzetkanaal'!$G8*'Overige invoer expert'!C$7 -> 0 | CE8: =AE8*'Overige invoer expert'!D$12*'Verkoopprijs per afzetkanaal'!$G8*'Overige invoer expert'!D$7 -> 0 | CF8: =AF8*'Overige invoer expert'!E$12*'Verkoopprijs per afzetkanaal'!$G8*'Overige invoer expert'!E$7 -> 0 | CG8: =AG8*'Overige invoer expert'!F$12*'Verkoopprijs per afzetkanaal'!$G8*'Overige invoer expert'!F$7 -> 0 | CH8: =AH8*'Overige invoer expert'!G$12*'Verkoopprijs per afzetkanaal'!$G8*'Overige invoer expert'!G$7 -> 0 | CI8: =AI8*'Overige invoer expert'!H$12*'Verkoopprijs per afzetkanaal'!$G8*'Overige invoer expert'!H$7 -> 0 | CJ8: =AJ8*'Overige invoer expert'!I$12*'Verkoopprijs per afzetkanaal'!$G8*'Overige invoer expert'!I$7 -> 0 | CK8: =AK8*'Overige invoer expert'!J$12*'Verkoopprijs per afzetkanaal'!$G8*'Overige invoer expert'!J$7 -> 0 | CL8: =AL8*'Overige invoer expert'!K$12*'Verkoopprijs per afzetkanaal'!$G8*'Overige invoer expert'!K$7 -> 0 | CM8: =AM8*'Overige invoer expert'!L$12*'Verkoopprijs per afzetkanaal'!$G8*'Overige invoer expert'!L$7 -> 0 | CN8: =AN8*'Overige invoer expert'!M$12*'Verkoopprijs per afzetkanaal'!$G8*'Overige invoer expert'!M$7 -> 0 | CP8: =AC8*'Overige invoer expert'!B$13*'Verkoopprijs per afzetkanaal'!$H8*'Overige invoer expert'!B$7 -> 0 | CQ8: =AD8*'Overige invoer expert'!C$13*'Verkoopprijs per afzetkanaal'!$H8*'Overige invoer expert'!C$7 -> 0 | CR8: =AE8*'Overige invoer expert'!D$13*'Verkoopprijs per afzetkanaal'!$H8*'Overige invoer expert'!D$7 -> 0 | CS8: =AF8*'Overige invoer expert'!E$13*'Verkoopprijs per afzetkanaal'!$H8*'Overige invoer expert'!E$7 -> 0 | CT8: =AG8*'Overige invoer expert'!F$13*'Verkoopprijs per afzetkanaal'!$H8*'Overige invoer expert'!F$7 -> 0 | CU8: =AH8*'Overige invoer expert'!G$13*'Verkoopprijs per afzetkanaal'!$H8*'Overige invoer expert'!G$7 -> 0 | CV8: =AI8*'Overige invoer expert'!H$13*'Verkoopprijs per afzetkanaal'!$H8*'Overige invoer expert'!H$7 -> 0 | CW8: =AJ8*'Overige invoer expert'!I$13*'Verkoopprijs per afzetkanaal'!$H8*'Overige invoer expert'!I$7 -> 0 | CX8: =AK8*'Overige invoer expert'!J$13*'Verkoopprijs per afzetkanaal'!$H8*'Overige invoer expert'!J$7 -> 0 | CY8: =AL8*'Overige invoer expert'!K$13*'Verkoopprijs per afzetkanaal'!$H8*'Overige invoer expert'!K$7 -> 0 | CZ8: =AM8*'Overige invoer expert'!L$13*'Verkoopprijs per afzetkanaal'!$H8*'Overige invoer expert'!L$7 -> 0 | DA8: =AN8*'Overige invoer expert'!M$13*'Verkoopprijs per afzetkanaal'!$H8*'Overige invoer expert'!M$7 -> 0 | DC8: =AC8*'Overige invoer expert'!B$14*'Verkoopprijs per afzetkanaal'!$I8*'Overige invoer expert'!B$7 -> 0 | DD8: =AD8*'Overige invoer expert'!C$14*'Verkoopprijs per afzetkanaal'!$I8*'Overige invoer expert'!C$7 -> 0 | DE8: =AE8*'Overige invoer expert'!D$14*'Verkoopprijs per afzetkanaal'!$I8*'Overige invoer expert'!D$7 -> 0 | DF8: =AF8*'Overige invoer expert'!E$14*'Verkoopprijs per afzetkanaal'!$I8*'Overige invoer expert'!E$7 -> 0 | DG8: =AG8*'Overige invoer expert'!F$14*'Verkoopprijs per afzetkanaal'!$I8*'Overige invoer expert'!F$7 -> 0 | DH8: =AH8*'Overige invoer expert'!G$14*'Verkoopprijs per afzetkanaal'!$I8*'Overige invoer expert'!G$7 -> 0 | DI8: =AI8*'Overige invoer expert'!H$14*'Verkoopprijs per afzetkanaal'!$I8*'Overige invoer expert'!H$7 -> 0 | DJ8: =AJ8*'Overige invoer expert'!I$14*'Verkoopprijs per afzetkanaal'!$I8*'Overige invoer expert'!I$7 -> 0 | DK8: =AK8*'Overige invoer expert'!J$14*'Verkoopprijs per afzetkanaal'!$I8*'Overige invoer expert'!J$7 -> 0 | DL8: =AL8*'Overige invoer expert'!K$14*'Verkoopprijs per afzetkanaal'!$I8*'Overige invoer expert'!K$7 -> 0 | DM8: =AM8*'Overige invoer expert'!L$14*'Verkoopprijs per afzetkanaal'!$I8*'Overige invoer expert'!L$7 -> 0 | DN8: =AN8*'Overige invoer expert'!M$14*'Verkoopprijs per afzetkanaal'!$I8*'Overige invoer expert'!M$7 -> 0 | DP8: =(P8+AC8)*'Overige invoer'!$B$15*'Verkoopprijs per afzetkanaal'!$J8 -> 0 | DQ8: =(Q8+AD8)*'Overige invoer'!$B$15*'Verkoopprijs per afzetkanaal'!$J8 -> 0 | DR8: =(R8+AE8)*'Overige invoer'!$B$15*'Verkoopprijs per afzetkanaal'!$J8 -> 0 | DS8: =(S8+AF8)*'Overige invoer'!$B$15*'Verkoopprijs per afzetkanaal'!$J8 -> 0 | DT8: =(T8+AG8)*'Overige invoer'!$B$15*'Verkoopprijs per afzetkanaal'!$J8 -> 0 | DU8: =(U8+AH8)*'Overige invoer'!$B$15*'Verkoopprijs per afzetkanaal'!$J8 -> 0 | DV8: =(V8+AI8)*'Overige invoer'!$B$15*'Verkoopprijs per afzetkanaal'!$J8 -> 0 | DW8: =(W8+AJ8)*'Overige invoer'!$B$15*'Verkoopprijs per afzetkanaal'!$J8 -> 0 | DX8: =(X8+AK8)*'Overige invoer'!$B$15*'Verkoopprijs per afzetkanaal'!$J8 -> 0 | DY8: =(Y8+AL8)*'Overige invoer'!$B$15*'Verkoopprijs per afzetkanaal'!$J8 -> 0 | DZ8: =(Z8+AM8)*'Overige invoer'!$B$15*'Verkoopprijs per afzetkanaal'!$J8 -> 0 | EA8: =(AA8+AN8)*'Overige invoer'!$B$15*'Verkoopprijs per afzetkanaal'!$J8 -> 0 | EC8: =CP2 -> Opbrengst Klasse B naar Cateraar | ED8: =CP199 -> 0 | EE8: =CQ199 -> 0 | EF8: 0 | EG8: 0 | EH8: 0 | EI8: 0 | EJ8: 0 | EK8: 0 | EL8: 0 | EM8: 0 | EN8: 0 | EO8: 0
A9: Actinidia arguta | B9: Kiwibes | C9: =Plantenlijst!$G9*Productielijst!D10*'Overige invoer expert'!B$4*'Overige invoer expert'!B$8 -> 0 | D9: =Plantenlijst!$G9*Productielijst!E10*'Overige invoer expert'!C$4*'Overige invoer expert'!C$8 -> 0 | E9: =Plantenlijst!$G9*Productielijst!F10*'Overige invoer expert'!D$4*'Overige invoer expert'!D$8 -> 0 | F9: =Plantenlijst!$G9*Productielijst!G10*'Overige invoer expert'!E$4*'Overige invoer expert'!E$8 -> 0 | G9: =Plantenlijst!$G9*Productielijst!H10*'Overige invoer expert'!F$4*'Overige invoer expert'!F$8 -> 0 | H9: =Plantenlijst!$G9*Productielijst!I10*'Overige invoer expert'!G$4*'Overige invoer expert'!G$8 -> 0 | I9: =Plantenlijst!$G9*Productielijst!J10*'Overige invoer expert'!H$4*'Overige invoer expert'!H$8 -> 0 | J9: =Plantenlijst!$G9*Productielijst!K10*'Overige invoer expert'!I$4*'Overige invoer expert'!I$8 -> 0 | K9: =Plantenlijst!$G9*Productielijst!L10*'Overige invoer expert'!J$4*'Overige invoer expert'!J$8 -> 0 | L9: =Plantenlijst!$G9*Productielijst!M10*'Overige invoer expert'!K$4*'Overige invoer expert'!K$8 -> 0 | M9: =Plantenlijst!$G9*Productielijst!N10*'Overige invoer expert'!L$4*'Overige invoer expert'!L$8 -> 0 | N9: =Plantenlijst!$G9*Productielijst!O10*'Overige invoer expert'!M$4*'Overige invoer expert'!M$8 -> 0 | P9: =C9*'Overige invoer expert'!B$5 -> 0 | Q9: =D9*'Overige invoer expert'!C$5 -> 0 | R9: =E9*'Overige invoer expert'!D$5 -> 0 | S9: =F9*'Overige invoer expert'!E$5 -> 0 | T9: =G9*'Overige invoer expert'!F$5 -> 0 | U9: =H9*'Overige invoer expert'!G$5 -> 0 | V9: =I9*'Overige invoer expert'!H$5 -> 0 | W9: =J9*'Overige invoer expert'!I$5 -> 0 | X9: =K9*'Overige invoer expert'!J$5 -> 0 | Y9: =L9*'Overige invoer expert'!K$5 -> 0 | Z9: =M9*'Overige invoer expert'!L$5 -> 0 | AA9: =N9*'Overige invoer expert'!M$5 -> 0 | AC9: =C9*(100%-'Overige invoer expert'!B$5) -> 0 | AD9: =D9*(100%-'Overige invoer expert'!C$5) -> 0 | AE9: =E9*(100%-'Overige invoer expert'!D$5) -> 0 | AF9: =F9*(100%-'Overige invoer expert'!E$5) -> 0 | AG9: =G9*(100%-'Overige invoer expert'!F$5) -> 0 | AH9: =H9*(100%-'Overige invoer expert'!G$5) -> 0 | AI9: =I9*(100%-'Overige invoer expert'!H$5) -> 0 | AJ9: =J9*(100%-'Overige invoer expert'!I$5) -> 0 | AK9: =K9*(100%-'Overige invoer expert'!J$5) -> 0 | AL9: =L9*(100%-'Overige invoer expert'!K$5) -> 0 | AM9: =M9*(100%-'Overige invoer expert'!L$5) -> 0 | AN9: =N9*(100%-'Overige invoer expert'!M$5) -> 0 | AP9: =P9*'Overige invoer expert'!B$12*'Verkoopprijs per afzetkanaal'!$G9*'Overige invoer expert'!B$6 -> 0 | AQ9: =Q9*'Overige invoer expert'!C$12*'Verkoopprijs per afzetkanaal'!$G9*'Overige invoer expert'!C$6 -> 0 | AR9: =R9*'Overige invoer expert'!D$12*'Verkoopprijs per afzetkanaal'!$G9*'Overige invoer expert'!D$6 -> 0 | AS9: =S9*'Overige invoer expert'!E$12*'Verkoopprijs per afzetkanaal'!$G9*'Overige invoer expert'!E$6 -> 0 | AT9: =T9*'Overige invoer expert'!F$12*'Verkoopprijs per afzetkanaal'!$G9*'Overige invoer expert'!F$6 -> 0 | AU9: =U9*'Overige invoer expert'!G$12*'Verkoopprijs per afzetkanaal'!$G9*'Overige invoer expert'!G$6 -> 0 | AV9: =V9*'Overige invoer expert'!H$12*'Verkoopprijs per afzetkanaal'!$G9*'Overige invoer expert'!H$6 -> 0 | AW9: =W9*'Overige invoer expert'!I$12*'Verkoopprijs per afzetkanaal'!$G9*'Overige invoer expert'!I$6 -> 0 | AX9: =X9*'Overige invoer expert'!J$12*'Verkoopprijs per afzetkanaal'!$G9*'Overige invoer expert'!J$6 -> 0 | AY9: =Y9*'Overige invoer expert'!K$12*'Verkoopprijs per afzetkanaal'!$G9*'Overige invoer expert'!K$6 -> 0 | AZ9: =Z9*'Overige invoer expert'!L$12*'Verkoopprijs per afzetkanaal'!$G9*'Overige invoer expert'!L$6 -> 0 | BA9: =AA9*'Overige invoer expert'!M$12*'Verkoopprijs per afzetkanaal'!$G9*'Overige invoer expert'!M$6 -> 0 | BC9: =P9*'Overige invoer expert'!B$13*'Verkoopprijs per afzetkanaal'!$H9*'Overige invoer expert'!B$6 -> 0 | BD9: =Q9*'Overige invoer expert'!C$13*'Verkoopprijs per afzetkanaal'!$H9*'Overige invoer expert'!C$6 -> 0 | BE9: =R9*'Overige invoer expert'!D$13*'Verkoopprijs per afzetkanaal'!$H9*'Overige invoer expert'!D$6 -> 0 | BF9: =S9*'Overige invoer expert'!E$13*'Verkoopprijs per afzetkanaal'!$H9*'Overige invoer expert'!E$6 -> 0 | BG9: =T9*'Overige invoer expert'!F$13*'Verkoopprijs per afzetkanaal'!$H9*'Overige invoer expert'!F$6 -> 0 | BH9: =U9*'Overige invoer expert'!G$13*'Verkoopprijs per afzetkanaal'!$H9*'Overige invoer expert'!G$6 -> 0 | BI9: =V9*'Overige invoer expert'!H$13*'Verkoopprijs per afzetkanaal'!$H9*'Overige invoer expert'!H$6 -> 0 | BJ9: =W9*'Overige invoer expert'!I$13*'Verkoopprijs per afzetkanaal'!$H9*'Overige invoer expert'!I$6 -> 0 | BK9: =X9*'Overige invoer expert'!J$13*'Verkoopprijs per afzetkanaal'!$H9*'Overige invoer expert'!J$6 -> 0 | BL9: =Y9*'Overige invoer expert'!K$13*'Verkoopprijs per afzetkanaal'!$H9*'Overige invoer expert'!K$6 -> 0 | BM9: =Z9*'Overige invoer expert'!L$13*'Verkoopprijs per afzetkanaal'!$H9*'Overige invoer expert'!L$6 -> 0 | BN9: =AA9*'Overige invoer expert'!M$13*'Verkoopprijs per afzetkanaal'!$H9*'Overige invoer expert'!M$6 -> 0 | BP9: =P9*'Overige invoer expert'!B$14*'Verkoopprijs per afzetkanaal'!$I9*'Overige invoer expert'!B$6 -> 0 | BQ9: =Q9*'Overige invoer expert'!C$14*'Verkoopprijs per afzetkanaal'!$I9*'Overige invoer expert'!C$6 -> 0 | BR9: =R9*'Overige invoer expert'!D$14*'Verkoopprijs per afzetkanaal'!$I9*'Overige invoer expert'!D$6 -> 0 | BS9: =S9*'Overige invoer expert'!E$14*'Verkoopprijs per afzetkanaal'!$I9*'Overige invoer expert'!E$6 -> 0 | BT9: =T9*'Overige invoer expert'!F$14*'Verkoopprijs per afzetkanaal'!$I9*'Overige invoer expert'!F$6 -> 0 | BU9: =U9*'Overige invoer expert'!G$14*'Verkoopprijs per afzetkanaal'!$I9*'Overige invoer expert'!G$6 -> 0 | BV9: =V9*'Overige invoer expert'!H$14*'Verkoopprijs per afzetkanaal'!$I9*'Overige invoer expert'!H$6 -> 0 | BW9: =W9*'Overige invoer expert'!I$14*'Verkoopprijs per afzetkanaal'!$I9*'Overige invoer expert'!I$6 -> 0 | BX9: =X9*'Overige invoer expert'!J$14*'Verkoopprijs per afzetkanaal'!$I9*'Overige invoer expert'!J$6 -> 0 | BY9: =Y9*'Overige invoer expert'!K$14*'Verkoopprijs per afzetkanaal'!$I9*'Overige invoer expert'!K$6 -> 0 | BZ9: =Z9*'Overige invoer expert'!L$14*'Verkoopprijs per afzetkanaal'!$I9*'Overige invoer expert'!L$6 -> 0 | CA9: =AA9*'Overige invoer expert'!M$14*'Verkoopprijs per afzetkanaal'!$I9*'Overige invoer expert'!M$6 -> 0 | CC9: =AC9*'Overige invoer expert'!B$12*'Verkoopprijs per afzetkanaal'!$G9*'Overige invoer expert'!B$7 -> 0 | CD9: =AD9*'Overige invoer expert'!C$12*'Verkoopprijs per afzetkanaal'!$G9*'Overige invoer expert'!C$7 -> 0 | CE9: =AE9*'Overige invoer expert'!D$12*'Verkoopprijs per afzetkanaal'!$G9*'Overige invoer expert'!D$7 -> 0 | CF9: =AF9*'Overige invoer expert'!E$12*'Verkoopprijs per afzetkanaal'!$G9*'Overige invoer expert'!E$7 -> 0 | CG9: =AG9*'Overige invoer expert'!F$12*'Verkoopprijs per afzetkanaal'!$G9*'Overige invoer expert'!F$7 -> 0 | CH9: =AH9*'Overige invoer expert'!G$12*'Verkoopprijs per afzetkanaal'!$G9*'Overige invoer expert'!G$7 -> 0 | CI9: =AI9*'Overige invoer expert'!H$12*'Verkoopprijs per afzetkanaal'!$G9*'Overige invoer expert'!H$7 -> 0 | CJ9: =AJ9*'Overige invoer expert'!I$12*'Verkoopprijs per afzetkanaal'!$G9*'Overige invoer expert'!I$7 -> 0 | CK9: =AK9*'Overige invoer expert'!J$12*'Verkoopprijs per afzetkanaal'!$G9*'Overige invoer expert'!J$7 -> 0 | CL9: =AL9*'Overige invoer expert'!K$12*'Verkoopprijs per afzetkanaal'!$G9*'Overige invoer expert'!K$7 -> 0 | CM9: =AM9*'Overige invoer expert'!L$12*'Verkoopprijs per afzetkanaal'!$G9*'Overige invoer expert'!L$7 -> 0 | CN9: =AN9*'Overige invoer expert'!M$12*'Verkoopprijs per afzetkanaal'!$G9*'Overige invoer expert'!M$7 -> 0 | CP9: =AC9*'Overige invoer expert'!B$13*'Verkoopprijs per afzetkanaal'!$H9*'Overige invoer expert'!B$7 -> 0 | CQ9: =AD9*'Overige invoer expert'!C$13*'Verkoopprijs per afzetkanaal'!$H9*'Overige invoer expert'!C$7 -> 0 | CR9: =AE9*'Overige invoer expert'!D$13*'Verkoopprijs per afzetkanaal'!$H9*'Overige invoer expert'!D$7 -> 0 | CS9: =AF9*'Overige invoer expert'!E$13*'Verkoopprijs per afzetkanaal'!$H9*'Overige invoer expert'!E$7 -> 0 | CT9: =AG9*'Overige invoer expert'!F$13*'Verkoopprijs per afzetkanaal'!$H9*'Overige invoer expert'!F$7 -> 0 | CU9: =AH9*'Overige invoer expert'!G$13*'Verkoopprijs per afzetkanaal'!$H9*'Overige invoer expert'!G$7 -> 0 | CV9: =AI9*'Overige invoer expert'!H$13*'Verkoopprijs per afzetkanaal'!$H9*'Overige invoer expert'!H$7 -> 0 | CW9: =AJ9*'Overige invoer expert'!I$13*'Verkoopprijs per afzetkanaal'!$H9*'Overige invoer expert'!I$7 -> 0 | CX9: =AK9*'Overige invoer expert'!J$13*'Verkoopprijs per afzetkanaal'!$H9*'Overige invoer expert'!J$7 -> 0 | CY9: =AL9*'Overige invoer expert'!K$13*'Verkoopprijs per afzetkanaal'!$H9*'Overige invoer expert'!K$7 -> 0 | CZ9: =AM9*'Overige invoer expert'!L$13*'Verkoopprijs per afzetkanaal'!$H9*'Overige invoer expert'!L$7 -> 0 | DA9: =AN9*'Overige invoer expert'!M$13*'Verkoopprijs per afzetkanaal'!$H9*'Overige invoer expert'!M$7 -> 0 | DC9: =AC9*'Overige invoer expert'!B$14*'Verkoopprijs per afzetkanaal'!$I9*'Overige invoer expert'!B$7 -> 0 | DD9: =AD9*'Overige invoer expert'!C$14*'Verkoopprijs per afzetkanaal'!$I9*'Overige invoer expert'!C$7 -> 0 | DE9: =AE9*'Overige invoer expert'!D$14*'Verkoopprijs per afzetkanaal'!$I9*'Overige invoer expert'!D$7 -> 0 | DF9: =AF9*'Overige invoer expert'!E$14*'Verkoopprijs per afzetkanaal'!$I9*'Overige invoer expert'!E$7 -> 0 | DG9: =AG9*'Overige invoer expert'!F$14*'Verkoopprijs per afzetkanaal'!$I9*'Overige invoer expert'!F$7 -> 0 | DH9: =AH9*'Overige invoer expert'!G$14*'Verkoopprijs per afzetkanaal'!$I9*'Overige invoer expert'!G$7 -> 0 | DI9: =AI9*'Overige invoer expert'!H$14*'Verkoopprijs per afzetkanaal'!$I9*'Overige invoer expert'!H$7 -> 0 | DJ9: =AJ9*'Overige invoer expert'!I$14*'Verkoopprijs per afzetkanaal'!$I9*'Overige invoer expert'!I$7 -> 0 | DK9: =AK9*'Overige invoer expert'!J$14*'Verkoopprijs per afzetkanaal'!$I9*'Overige invoer expert'!J$7 -> 0 | DL9: =AL9*'Overige invoer expert'!K$14*'Verkoopprijs per afzetkanaal'!$I9*'Overige invoer expert'!K$7 -> 0 | DM9: =AM9*'Overige invoer expert'!L$14*'Verkoopprijs per afzetkanaal'!$I9*'Overige invoer expert'!L$7 -> 0 | DN9: =AN9*'Overige invoer expert'!M$14*'Verkoopprijs per afzetkanaal'!$I9*'Overige invoer expert'!M$7 -> 0 | DP9: =(P9+AC9)*'Overige invoer'!$B$15*'Verkoopprijs per afzetkanaal'!$J9 -> 0 | DQ9: =(Q9+AD9)*'Overige invoer'!$B$15*'Verkoopprijs per afzetkanaal'!$J9 -> 0 | DR9: =(R9+AE9)*'Overige invoer'!$B$15*'Verkoopprijs per afzetkanaal'!$J9 -> 0 | DS9: =(S9+AF9)*'Overige invoer'!$B$15*'Verkoopprijs per afzetkanaal'!$J9 -> 0 | DT9: =(T9+AG9)*'Overige invoer'!$B$15*'Verkoopprijs per afzetkanaal'!$J9 -> 0 | DU9: =(U9+AH9)*'Overige invoer'!$B$15*'Verkoopprijs per afzetkanaal'!$J9 -> 0 | DV9: =(V9+AI9)*'Overige invoer'!$B$15*'Verkoopprijs per afzetkanaal'!$J9 -> 0 | DW9: =(W9+AJ9)*'Overige invoer'!$B$15*'Verkoopprijs per afzetkanaal'!$J9 -> 0 | DX9: =(X9+AK9)*'Overige invoer'!$B$15*'Verkoopprijs per afzetkanaal'!$J9 -> 0 | DY9: =(Y9+AL9)*'Overige invoer'!$B$15*'Verkoopprijs per afzetkanaal'!$J9 -> 0 | DZ9: =(Z9+AM9)*'Overige invoer'!$B$15*'Verkoopprijs per afzetkanaal'!$J9 -> 0 | EA9: =(AA9+AN9)*'Overige invoer'!$B$15*'Verkoopprijs per afzetkanaal'!$J9 -> 0 | EC9: =DC2 -> Opbrengst Klasse B direct naar consument | ED9: =DC199 -> 0 | EE9: =DD199 -> 0 | EF9: 0 | EG9: 0 | EH9: 0 | EI9: 0 | EJ9: 0 | EK9: 0 | EL9: 0 | EM9: 0 | EN9: 0 | EO9: 0
